{"text_format":"1","workbook":"xlsx","n_sheets":27,"sheets":["Vejledning til brug af ark","Kodefinder","Adm.ark specialer","Delkursusleder 1","(Evt. delkursusleder 2)","Honorarlønnet 1","Honorarlønnet 2","Honorarlønnet 3","Honorarlønnet 4","Honorarlønnet 5","Honorarlønnet 6","Honorarlønnet 7","Honorarlønnet 8","Honorarlønnet 9","Honorarlønnet 10","Honorarlønnet 11","Honorarlønnet 12","Honorarlønnet 13","Honorarlønnet 14","Honorarlønnet 15","Sekretær","Samlingsark","Hovedkursusleder","SST, økonomi","Lønadm.","Lønadm_backup","Adm.ark satser"],"not_rendered":{"charts":0,"images":1,"macros":1,"external_links":0,"defined_names":48,"comments":0,"pivot_tables":0},"unopened":[],"bounds":{"document_bytes":16777216,"sheet_cells":100000,"rows_first":2000,"rows_last":500,"rows_between":2000,"halvings":0,"cell_chars":16384,"cell_head_chars":4096},"cells_cut":0,"cells_raw":0,"read":"whole","date_system":"1900"}

{"sheet":"Vejledning til brug af ark","index":0,"n_rows":14,"n_cols":24,"rows_kept":14,"cut":false,"hidden":false,"merged":[[6,15,6,23],[11,20,11,21],[12,20,12,21],[13,20,13,21]]}
["Sådan udfyldes arket:",null,null,null,null,null,null,null,null,null,null,null,null,null,null,"Spørgsmål og svar",null,null,null,null,null,null,null,"vers. 39"]
[null,null,null,null,null,null,null,null,null,null,null,null,null,null,null,null,null,null,null,null,null,null,null,"2026-05-07"]
[null,null,null,null,null,null,null,null,null,null,null,null,null,null,null,"Mere end 15 undervisere? Udfyld 2 selvstændige dokumenter med bemærkning"]
[null,null,null,null,null,null,null,null,null,null,null,null,null,null,null,"Mere end 2 delkursusleder eller mere end 1 sekretær? Udfyld 2 selvstændige dokumenter med bemærkning"]
[null,null,null,null,null,null,null,null,null,null,null,null,null,null,null,"Skal alle faneblade udfyldes? Nej, kun de grønne faneblade må udfyldes."]
[null,null,null,null,null,null,null,null,null,null,null,null,null,null,null,"Hvilket format skal excelarket sendes i? Arket skal sendes som vedhæftet excel-fil, må IKKE konverteres til pdf"]
[null,null,null,null,null,null,null,null,null,null,null,null,null,null,null,"Probemer med filstørrelse? Hvis den endelige fil er for stor til Outlook (20 mb) anbefales du at dele filen med din institutions fildelingssystem eller at ZIP-komprimere filen."]
[]
[null,null,null,null,null,null,null,null,null,null,null,null,null,null,null,"Telefonliste"]
[null,null,null,null,null,null,null,null,null,null,null,null,null,null,null,"Hvis du oplever problemer med at benytte arket er du velkommen til at kontakte"]
[]
[null,null,null,null,null,null,null,null,null,null,null,null,null,null,null,"Maiken Bjerg, Sundhedsstyrelsen",null,null,null,"mail:","maib@sst.dk",null,"tlf:","20 26 66 81"]
[null,null,null,null,null,null,null,null,null,null,null,null,null,null,null,"Oskar Reeh, Sundhedsstyrelsen",null,null,null,"mail:","osre@sst.dk",null,"tlf:","21 27 99 85"]
[null,null,null,null,null,null,null,null,null,null,null,null,null,null,null,"Specialespecifikke Postkasse",null,null,null,"mail:","specialespecifikke@sst.dk",null,"tlf:","72 22 74 00"]

{"sheet":"Kodefinder","index":1,"n_rows":764,"n_cols":14,"rows_kept":764,"cut":false,"hidden":true,"merged":[]}
["Indsæt data fra opdateringsark i række A og B, så opdaters resten af arket automatisk."]
["Du skal altså kun opdatere dette ark når der findes nye kurser. Det opdateres i samme omgang som \"Adm.ark specialer\""]
["Den nemmeste måde er at vælge al data i kolonne A:B, slette det og indsætte det nye. På den måde er du sikker på at undgå duplikater"]
[]
[]
["Kursus-nummer","Kursusnavn","hjælpekolonne","Nummer","Speciale","Speciale_",null,null,"FINDER"]
[26101,"ØST33 modul 13",{"$f":"IF(LEN(A7)=5,LEFT(A7,3),LEFT(A7,4))","v":"261"},{"$f":"INDEX(J:J,MATCH(C7,I:I,0))","v":100},{"$f":"INDEX(K:K,MATCH(D7,J:J,0))","v":"Almen Medicin, Kbh"},{"$f":"INDEX(L:L,MATCH(E7,K:K,0))","v":"Almen_Medicin_Kbh"},null,null,"261",100,"Almen Medicin, Kbh","Almen_Medicin_Kbh",null,{"$f":"IFERROR(INDEX(A:A,MATCH(#REF!,B:B,0)),\"Der findes flere kurser med samme navn. Du skal manuelt vælge kursusnummer\")","v":"Der findes flere kurser med samme navn. Du skal manuelt vælge kursusnummer"}]
[26102,"ØST33 modul 14",{"$f":"IF(LEN(A8)=5,LEFT(A8,3),LEFT(A8,4))","v":"261"},{"$f":"INDEX(J:J,MATCH(C8,I:I,0))","v":100},{"$f":"INDEX(K:K,MATCH(D8,J:J,0))","v":"Almen Medicin, Kbh"},{"$f":"INDEX(L:L,MATCH(E8,K:K,0))","v":"Almen_Medicin_Kbh"},null,null,"262",200,"Almen Medicin, Odense","Almen_Medicin_Odense"]
[26103,"ØST33 modul 15","261",{"$f":"INDEX(J:J,MATCH(C9,I:I,0))","v":100},{"$f":"INDEX(K:K,MATCH(D9,J:J,0))","v":"Almen Medicin, Kbh"},{"$f":"INDEX(L:L,MATCH(E9,K:K,0))","v":"Almen_Medicin_Kbh"},null,null,"263",300,"Almen Medicin, Århus","Almen_Medicin_Aarhus"]
[26104,"ØST33 modul 16","261",{"$f":"INDEX(J:J,MATCH(C10,I:I,0))","v":100},{"$f":"INDEX(K:K,MATCH(D10,J:J,0))","v":"Almen Medicin, Kbh"},{"$f":"INDEX(L:L,MATCH(E10,K:K,0))","v":"Almen_Medicin_Kbh"},null,null,"264",400,"Anæstesiologi","Anæstesiologi"]
[26105,"ØST34 modul 11","261",{"$f":"INDEX(J:J,MATCH(C11,I:I,0))","v":100},{"$f":"INDEX(K:K,MATCH(D11,J:J,0))","v":"Almen Medicin, Kbh"},{"$f":"INDEX(L:L,MATCH(E11,K:K,0))","v":"Almen_Medicin_Kbh"},null,null,"265",500,"Arbejdsmedicin","Arbejdsmedicin"]
[26106,"ØST34 modul 12","261",{"$f":"INDEX(J:J,MATCH(C12,I:I,0))","v":100},{"$f":"INDEX(K:K,MATCH(D12,J:J,0))","v":"Almen Medicin, Kbh"},{"$f":"INDEX(L:L,MATCH(E12,K:K,0))","v":"Almen_Medicin_Kbh"},null,null,"266",600,"Børne- og ungdomspsykiatri","Børne_og_ungdomspsykiatri"]
[26107,"ØST34 modul 13","261",{"$f":"INDEX(J:J,MATCH(C13,I:I,0))","v":100},{"$f":"INDEX(K:K,MATCH(D13,J:J,0))","v":"Almen Medicin, Kbh"},{"$f":"INDEX(L:L,MATCH(E13,K:K,0))","v":"Almen_Medicin_Kbh"},null,null,"267",700,"Dermato-venerologi","Dermato_venerologi"]
[26108,"ØST34 modul 14","261",{"$f":"INDEX(J:J,MATCH(C14,I:I,0))","v":100},{"$f":"INDEX(K:K,MATCH(D14,J:J,0))","v":"Almen Medicin, Kbh"},{"$f":"INDEX(L:L,MATCH(E14,K:K,0))","v":"Almen_Medicin_Kbh"},null,null,"268",800,"Diagnostisk radiologi","Diagnostisk_radiologi"]
[26109,"ØST34 modul 15","261",{"$f":"INDEX(J:J,MATCH(C15,I:I,0))","v":100},{"$f":"INDEX(K:K,MATCH(D15,J:J,0))","v":"Almen Medicin, Kbh"},{"$f":"INDEX(L:L,MATCH(E15,K:K,0))","v":"Almen_Medicin_Kbh"},null,null,"269",900,"Gynækologi og obstetrik","Gynækologi_og_obstetrik"]
[26110,"ØST34 modul 16","261",{"$f":"INDEX(J:J,MATCH(C16,I:I,0))","v":100},{"$f":"INDEX(K:K,MATCH(D16,J:J,0))","v":"Almen Medicin, Kbh"},{"$f":"INDEX(L:L,MATCH(E16,K:K,0))","v":"Almen_Medicin_Kbh"},null,null,"2610",1000,"IM: Endokrinologi","IM_Endokrinologi"]
[26111,"ØST35 modul 10","261",{"$f":"INDEX(J:J,MATCH(C17,I:I,0))","v":100},{"$f":"INDEX(K:K,MATCH(D17,J:J,0))","v":"Almen Medicin, Kbh"},{"$f":"INDEX(L:L,MATCH(E17,K:K,0))","v":"Almen_Medicin_Kbh"},null,null,"2611",1100,"IM: Fælleskurser","IM_Fælleskurser"]
[26112,"ØST35 modul 11","261",{"$f":"INDEX(J:J,MATCH(C18,I:I,0))","v":100},{"$f":"INDEX(K:K,MATCH(D18,J:J,0))","v":"Almen Medicin, Kbh"},{"$f":"INDEX(L:L,MATCH(E18,K:K,0))","v":"Almen_Medicin_Kbh"},null,null,"2612",1200,"IM: Gastroenterologi og Hepatologi","IM_Gastroenterologi_og_Hepatologi"]
[26113,"ØST35 modul 12","261",{"$f":"INDEX(J:J,MATCH(C19,I:I,0))","v":100},{"$f":"INDEX(K:K,MATCH(D19,J:J,0))","v":"Almen Medicin, Kbh"},{"$f":"INDEX(L:L,MATCH(E19,K:K,0))","v":"Almen_Medicin_Kbh"},null,null,"2613",1300,"IM: Geriatri","IM_Geriatri"]
[26114,"ØST35 modul 13","261",{"$f":"INDEX(J:J,MATCH(C20,I:I,0))","v":100},{"$f":"INDEX(K:K,MATCH(D20,J:J,0))","v":"Almen Medicin, Kbh"},{"$f":"INDEX(L:L,MATCH(E20,K:K,0))","v":"Almen_Medicin_Kbh"},null,null,"2614",1400,"IM: Hæmatologi","IM_Hæmatologi"]
[26115,"ØST35 modul 14","261",{"$f":"INDEX(J:J,MATCH(C21,I:I,0))","v":100},{"$f":"INDEX(K:K,MATCH(D21,J:J,0))","v":"Almen Medicin, Kbh"},{"$f":"INDEX(L:L,MATCH(E21,K:K,0))","v":"Almen_Medicin_Kbh"},null,null,"2615",1500,"IM: Infektionsmedicin","IM_Infektionsmedicin"]
[26116,"ØST35 modul 15","261",{"$f":"INDEX(J:J,MATCH(C22,I:I,0))","v":100},{"$f":"INDEX(K:K,MATCH(D22,J:J,0))","v":"Almen Medicin, Kbh"},{"$f":"INDEX(L:L,MATCH(E22,K:K,0))","v":"Almen_Medicin_Kbh"},null,null,"2616",1600,"IM: Kardiologi","IM_Kardiologi"]
[26117,"ØST35 modul 16","261",{"$f":"INDEX(J:J,MATCH(C23,I:I,0))","v":100},{"$f":"INDEX(K:K,MATCH(D23,J:J,0))","v":"Almen Medicin, Kbh"},{"$f":"INDEX(L:L,MATCH(E23,K:K,0))","v":"Almen_Medicin_Kbh"},null,null,"2617",1700,"IM: Lungesygdomme","IM_Lungesygdomme"]
[26118,"ØST36 modul 10","261",{"$f":"INDEX(J:J,MATCH(C24,I:I,0))","v":100},{"$f":"INDEX(K:K,MATCH(D24,J:J,0))","v":"Almen Medicin, Kbh"},{"$f":"INDEX(L:L,MATCH(E24,K:K,0))","v":"Almen_Medicin_Kbh"},null,null,"2618",1800,"IM: Nefrologi","IM_Nefrologi"]
[26119,"ØST36 modul 11","261",{"$f":"INDEX(J:J,MATCH(C25,I:I,0))","v":100},{"$f":"INDEX(K:K,MATCH(D25,J:J,0))","v":"Almen Medicin, Kbh"},{"$f":"INDEX(L:L,MATCH(E25,K:K,0))","v":"Almen_Medicin_Kbh"},null,null,"2619",1900,"IM: Reumatologi","IM_Reumatologi"]
[26120,"ØST36 modul 12","261",{"$f":"INDEX(J:J,MATCH(C26,I:I,0))","v":100},{"$f":"INDEX(K:K,MATCH(D26,J:J,0))","v":"Almen Medicin, Kbh"},{"$f":"INDEX(L:L,MATCH(E26,K:K,0))","v":"Almen_Medicin_Kbh"},null,null,"2620",2000,"Karkirurgi","Karkirurgi"]
[26121,"ØST36 modul 13","261",{"$f":"INDEX(J:J,MATCH(C27,I:I,0))","v":100},{"$f":"INDEX(K:K,MATCH(D27,J:J,0))","v":"Almen Medicin, Kbh"},{"$f":"INDEX(L:L,MATCH(E27,K:K,0))","v":"Almen_Medicin_Kbh"},null,null,"2621",2100,"Kirurgi","Kirurgi"]
[26122,"ØST36 modul 14","261",{"$f":"INDEX(J:J,MATCH(C28,I:I,0))","v":100},{"$f":"INDEX(K:K,MATCH(D28,J:J,0))","v":"Almen Medicin, Kbh"},{"$f":"INDEX(L:L,MATCH(E28,K:K,0))","v":"Almen_Medicin_Kbh"},null,null,"2622",2200,"Kir. færdighedskurser, KBH, Odense og Århus","Kir._færdighedskurser_KBH_Odense_og_Århus"]
[26123,"ØST36 modul 15","261",{"$f":"INDEX(J:J,MATCH(C29,I:I,0))","v":100},{"$f":"INDEX(K:K,MATCH(D29,J:J,0))","v":"Almen Medicin, Kbh"},{"$f":"INDEX(L:L,MATCH(E29,K:K,0))","v":"Almen_Medicin_Kbh"},null,null,"2624",2400,"Klinisk Biokemi","Klinisk_Biokemi"]
[26124,"ØST36 modul 16","261",{"$f":"INDEX(J:J,MATCH(C30,I:I,0))","v":100},{"$f":"INDEX(K:K,MATCH(D30,J:J,0))","v":"Almen Medicin, Kbh"},{"$f":"INDEX(L:L,MATCH(E30,K:K,0))","v":"Almen_Medicin_Kbh"},null,null,"2625",2500,"Klinisk Farmakologi","Klinisk_Farmakologi"]
[26125,"ØST37 modul 10","261",{"$f":"INDEX(J:J,MATCH(C31,I:I,0))","v":100},{"$f":"INDEX(K:K,MATCH(D31,J:J,0))","v":"Almen Medicin, Kbh"},{"$f":"INDEX(L:L,MATCH(E31,K:K,0))","v":"Almen_Medicin_Kbh"},null,null,"2626",2600,"Klinisk Fysiologi og Nuklearmedicin","Klinisk_Fysiologi_og_Nuklearmedicin"]
[26126,"ØST37 modul 11","261",{"$f":"INDEX(J:J,MATCH(C32,I:I,0))","v":100},{"$f":"INDEX(K:K,MATCH(D32,J:J,0))","v":"Almen Medicin, Kbh"},{"$f":"INDEX(L:L,MATCH(E32,K:K,0))","v":"Almen_Medicin_Kbh"},null,null,"2627",2700,"Klinisk Genetik","Klinisk_Genetik"]
[26127,"ØST37 modul 12","261",{"$f":"INDEX(J:J,MATCH(C33,I:I,0))","v":100},{"$f":"INDEX(K:K,MATCH(D33,J:J,0))","v":"Almen Medicin, Kbh"},{"$f":"INDEX(L:L,MATCH(E33,K:K,0))","v":"Almen_Medicin_Kbh"},null,null,"2628",2800,"Klinisk Immunologi","Klinisk_Immunologi"]
[26128,"ØST38 modul 10","261",{"$f":"INDEX(J:J,MATCH(C34,I:I,0))","v":100},{"$f":"INDEX(K:K,MATCH(D34,J:J,0))","v":"Almen Medicin, Kbh"},{"$f":"INDEX(L:L,MATCH(E34,K:K,0))","v":"Almen_Medicin_Kbh"},null,null,"2629",2900,"Klinisk Mikrobiologi","Klinisk_Mikrobiologi"]
[26129,"ØST41 modul 9","261",{"$f":"INDEX(J:J,MATCH(C35,I:I,0))","v":100},{"$f":"INDEX(K:K,MATCH(D35,J:J,0))","v":"Almen Medicin, Kbh"},{"$f":"INDEX(L:L,MATCH(E35,K:K,0))","v":"Almen_Medicin_Kbh"},null,null,"2630",3000,"Klinisk Onkologi","Klinisk_Onkologi"]
[26130,"ØST42 modul 9","261",{"$f":"INDEX(J:J,MATCH(C36,I:I,0))","v":100},{"$f":"INDEX(K:K,MATCH(D36,J:J,0))","v":"Almen Medicin, Kbh"},{"$f":"INDEX(L:L,MATCH(E36,K:K,0))","v":"Almen_Medicin_Kbh"},null,null,"2631",3100,"Neurokirurgi","Neurokirurgi"]
[26131,"ØST42X modul 9","261",{"$f":"INDEX(J:J,MATCH(C37,I:I,0))","v":100},{"$f":"INDEX(K:K,MATCH(D37,J:J,0))","v":"Almen Medicin, Kbh"},{"$f":"INDEX(L:L,MATCH(E37,K:K,0))","v":"Almen_Medicin_Kbh"},null,null,"2632",3200,"Neurologi","Neurologi"]
[26132,"ØST43 modul 8","261",{"$f":"INDEX(J:J,MATCH(C38,I:I,0))","v":100},{"$f":"INDEX(K:K,MATCH(D38,J:J,0))","v":"Almen Medicin, Kbh"},{"$f":"INDEX(L:L,MATCH(E38,K:K,0))","v":"Almen_Medicin_Kbh"},null,null,"2633",3300,"Oftalmologi","Oftalmologi"]
[26133,"ØST43 modul 9","261",{"$f":"INDEX(J:J,MATCH(C39,I:I,0))","v":100},{"$f":"INDEX(K:K,MATCH(D39,J:J,0))","v":"Almen Medicin, Kbh"},{"$f":"INDEX(L:L,MATCH(E39,K:K,0))","v":"Almen_Medicin_Kbh"},null,null,"2634",3400,"Ortopædisk kirurgi","Ortopædisk_kirurgi"]
[26134,"ØST44 modul 8","261",{"$f":"INDEX(J:J,MATCH(C40,I:I,0))","v":100},{"$f":"INDEX(K:K,MATCH(D40,J:J,0))","v":"Almen Medicin, Kbh"},{"$f":"INDEX(L:L,MATCH(E40,K:K,0))","v":"Almen_Medicin_Kbh"},null,null,"2635",3500,"Oto-rhino-laryngologi","Oto_rhino_laryngologi"]
[26135,"ØST44 modul 9","261",{"$f":"INDEX(J:J,MATCH(C41,I:I,0))","v":100},{"$f":"INDEX(K:K,MATCH(D41,J:J,0))","v":"Almen Medicin, Kbh"},{"$f":"INDEX(L:L,MATCH(E41,K:K,0))","v":"Almen_Medicin_Kbh"},null,null,"2636",3600,"Patologisk anatomi og cytologi","Patologisk_anatomi_og_cytologi"]
[26136,"ØST44X modul 8","261",{"$f":"INDEX(J:J,MATCH(C42,I:I,0))","v":100},{"$f":"INDEX(K:K,MATCH(D42,J:J,0))","v":"Almen Medicin, Kbh"},{"$f":"INDEX(L:L,MATCH(E42,K:K,0))","v":"Almen_Medicin_Kbh"},null,null,"2637",3700,"Plastikkirurgi","Plastikkirurgi"]
[26137,"ØST44X modul 9","261",{"$f":"INDEX(J:J,MATCH(C43,I:I,0))","v":100},{"$f":"INDEX(K:K,MATCH(D43,J:J,0))","v":"Almen Medicin, Kbh"},{"$f":"INDEX(L:L,MATCH(E43,K:K,0))","v":"Almen_Medicin_Kbh"},null,null,"2638",3800,"Psykiatri","Psykiatri"]
[26138,"ØST45 modul 7","261",{"$f":"INDEX(J:J,MATCH(C44,I:I,0))","v":100},{"$f":"INDEX(K:K,MATCH(D44,J:J,0))","v":"Almen Medicin, Kbh"},{"$f":"INDEX(L:L,MATCH(E44,K:K,0))","v":"Almen_Medicin_Kbh"},null,null,"2639",3900,"Pædiatri","Pædiatri"]
[26139,"ØST45 modul 8","261",{"$f":"INDEX(J:J,MATCH(C45,I:I,0))","v":100},{"$f":"INDEX(K:K,MATCH(D45,J:J,0))","v":"Almen Medicin, Kbh"},{"$f":"INDEX(L:L,MATCH(E45,K:K,0))","v":"Almen_Medicin_Kbh"},null,null,"2640",4000,"Retsmedicin","Retsmedicin"]
[26140,"ØST46 modul 7","261",{"$f":"INDEX(J:J,MATCH(C46,I:I,0))","v":100},{"$f":"INDEX(K:K,MATCH(D46,J:J,0))","v":"Almen Medicin, Kbh"},{"$f":"INDEX(L:L,MATCH(E46,K:K,0))","v":"Almen_Medicin_Kbh"},null,null,"2641",4100,"Samfundsmedicin","Samfundsmedicin"]
[26141,"ØST46 modul 8","261",{"$f":"INDEX(J:J,MATCH(C47,I:I,0))","v":100},{"$f":"INDEX(K:K,MATCH(D47,J:J,0))","v":"Almen Medicin, Kbh"},{"$f":"INDEX(L:L,MATCH(E47,K:K,0))","v":"Almen_Medicin_Kbh"},null,null,"2642",4200,"Thoraxkirurgi","Thoraxkirurgi"]
[26142,"ØST46X modul 7","261",{"$f":"INDEX(J:J,MATCH(C48,I:I,0))","v":100},{"$f":"INDEX(K:K,MATCH(D48,J:J,0))","v":"Almen Medicin, Kbh"},{"$f":"INDEX(L:L,MATCH(E48,K:K,0))","v":"Almen_Medicin_Kbh"},null,null,"2643",4300,"Urologi","Urologi"]
[26143,"ØST46X modul 8","261",{"$f":"INDEX(J:J,MATCH(C49,I:I,0))","v":100},{"$f":"INDEX(K:K,MATCH(D49,J:J,0))","v":"Almen Medicin, Kbh"},{"$f":"INDEX(L:L,MATCH(E49,K:K,0))","v":"Almen_Medicin_Kbh"},null,null,"2644",4400,"SOL","SOL_2"]
[26144,"ØST47 modul 6","261",{"$f":"INDEX(J:J,MATCH(C50,I:I,0))","v":100},{"$f":"INDEX(K:K,MATCH(D50,J:J,0))","v":"Almen Medicin, Kbh"},{"$f":"INDEX(L:L,MATCH(E50,K:K,0))","v":"Almen_Medicin_Kbh"},null,null,null,4400,"SOL","SOL_2"]
[26145,"ØST47 modul 7","261",{"$f":"INDEX(J:J,MATCH(C51,I:I,0))","v":100},{"$f":"INDEX(K:K,MATCH(D51,J:J,0))","v":"Almen Medicin, Kbh"},{"$f":"INDEX(L:L,MATCH(E51,K:K,0))","v":"Almen_Medicin_Kbh"},null,null,"2646",4600,"Tand-, mund- og kæbekirurgi","Tand_mund_og_kæbekirurgi"]
[26146,"ØST48 modul 4","261",{"$f":"INDEX(J:J,MATCH(C52,I:I,0))","v":100},{"$f":"INDEX(K:K,MATCH(D52,J:J,0))","v":"Almen Medicin, Kbh"},{"$f":"INDEX(L:L,MATCH(E52,K:K,0))","v":"Almen_Medicin_Kbh"},null,null,"2647",4700,"Ortodonti","Ortodonti"]
[26147,"ØST48 modul 5","261",{"$f":"INDEX(J:J,MATCH(C53,I:I,0))","v":100},{"$f":"INDEX(K:K,MATCH(D53,J:J,0))","v":"Almen Medicin, Kbh"},{"$f":"INDEX(L:L,MATCH(E53,K:K,0))","v":"Almen_Medicin_Kbh"},null,null,"2650",5000,"Kir. Færdighedskursus operativ gynækologi","Færdighedskurser_operativ_gynækologi"]
[26148,"ØST48 modul 6","261",{"$f":"INDEX(J:J,MATCH(C54,I:I,0))","v":100},{"$f":"INDEX(K:K,MATCH(D54,J:J,0))","v":"Almen Medicin, Kbh"},{"$f":"INDEX(L:L,MATCH(E54,K:K,0))","v":"Almen_Medicin_Kbh"},null,null,"2651",5100,"Kir. Færdighedskursus otopædisk kirurgi","Færdighedskurser_ort._kir."]
[26149,"ØST48 modul 7","261",{"$f":"INDEX(J:J,MATCH(C55,I:I,0))","v":100},{"$f":"INDEX(K:K,MATCH(D55,J:J,0))","v":"Almen Medicin, Kbh"},{"$f":"INDEX(L:L,MATCH(E55,K:K,0))","v":"Almen_Medicin_Kbh"},null,null,"2660",6000,"Akutmedicin","Akutmedicin"]
[26150,"ØST48X modul 3","261",{"$f":"INDEX(J:J,MATCH(C56,I:I,0))","v":100},{"$f":"INDEX(K:K,MATCH(D56,J:J,0))","v":"Almen Medicin, Kbh"},{"$f":"INDEX(L:L,MATCH(E56,K:K,0))","v":"Almen_Medicin_Kbh"},null,null,null,"","",""]
[26151,"ØST48X modul 4","261",{"$f":"INDEX(J:J,MATCH(C57,I:I,0))","v":100},{"$f":"INDEX(K:K,MATCH(D57,J:J,0))","v":"Almen Medicin, Kbh"},{"$f":"INDEX(L:L,MATCH(E57,K:K,0))","v":"Almen_Medicin_Kbh"}]
[26152,"ØST48X modul 5","261",{"$f":"INDEX(J:J,MATCH(C58,I:I,0))","v":100},{"$f":"INDEX(K:K,MATCH(D58,J:J,0))","v":"Almen Medicin, Kbh"},{"$f":"INDEX(L:L,MATCH(E58,K:K,0))","v":"Almen_Medicin_Kbh"}]
[26153,"ØST48X modul 6","261",{"$f":"INDEX(J:J,MATCH(C59,I:I,0))","v":100},{"$f":"INDEX(K:K,MATCH(D59,J:J,0))","v":"Almen Medicin, Kbh"},{"$f":"INDEX(L:L,MATCH(E59,K:K,0))","v":"Almen_Medicin_Kbh"}]
[26154,"ØST48X modul 7","261",{"$f":"INDEX(J:J,MATCH(C60,I:I,0))","v":100},{"$f":"INDEX(K:K,MATCH(D60,J:J,0))","v":"Almen Medicin, Kbh"},{"$f":"INDEX(L:L,MATCH(E60,K:K,0))","v":"Almen_Medicin_Kbh"}]
[26155,"ØST49 modul 1","261",{"$f":"INDEX(J:J,MATCH(C61,I:I,0))","v":100},{"$f":"INDEX(K:K,MATCH(D61,J:J,0))","v":"Almen Medicin, Kbh"},{"$f":"INDEX(L:L,MATCH(E61,K:K,0))","v":"Almen_Medicin_Kbh"}]
[26156,"ØST49 modul 2","261",{"$f":"INDEX(J:J,MATCH(C62,I:I,0))","v":100},{"$f":"INDEX(K:K,MATCH(D62,J:J,0))","v":"Almen Medicin, Kbh"},{"$f":"INDEX(L:L,MATCH(E62,K:K,0))","v":"Almen_Medicin_Kbh"}]
[26157,"ØST49 modul 3","261",{"$f":"INDEX(J:J,MATCH(C63,I:I,0))","v":100},{"$f":"INDEX(K:K,MATCH(D63,J:J,0))","v":"Almen Medicin, Kbh"},{"$f":"INDEX(L:L,MATCH(E63,K:K,0))","v":"Almen_Medicin_Kbh"}]
[26158,"ØST49 modul 4","261",{"$f":"INDEX(J:J,MATCH(C64,I:I,0))","v":100},{"$f":"INDEX(K:K,MATCH(D64,J:J,0))","v":"Almen Medicin, Kbh"},{"$f":"INDEX(L:L,MATCH(E64,K:K,0))","v":"Almen_Medicin_Kbh"}]
[26159,"ØST49 modul 5","261",{"$f":"INDEX(J:J,MATCH(C65,I:I,0))","v":100},{"$f":"INDEX(K:K,MATCH(D65,J:J,0))","v":"Almen Medicin, Kbh"},{"$f":"INDEX(L:L,MATCH(E65,K:K,0))","v":"Almen_Medicin_Kbh"}]
[26160,"ØST49 modul 6","261",{"$f":"INDEX(J:J,MATCH(C66,I:I,0))","v":100},{"$f":"INDEX(K:K,MATCH(D66,J:J,0))","v":"Almen Medicin, Kbh"},{"$f":"INDEX(L:L,MATCH(E66,K:K,0))","v":"Almen_Medicin_Kbh"}]
[26161,"ØST49 modul 7","261",{"$f":"INDEX(J:J,MATCH(C67,I:I,0))","v":100},{"$f":"INDEX(K:K,MATCH(D67,J:J,0))","v":"Almen Medicin, Kbh"},{"$f":"INDEX(L:L,MATCH(E67,K:K,0))","v":"Almen_Medicin_Kbh"}]
[26162,"ØST49 modul 8","261",{"$f":"INDEX(J:J,MATCH(C68,I:I,0))","v":100},{"$f":"INDEX(K:K,MATCH(D68,J:J,0))","v":"Almen Medicin, Kbh"},{"$f":"INDEX(L:L,MATCH(E68,K:K,0))","v":"Almen_Medicin_Kbh"}]
[26163,"ØST50 modul 1",{"$f":"IF(LEN(A69)=5,LEFT(A69,3),LEFT(A69,4))","v":"261"},{"$f":"INDEX(J:J,MATCH(C69,I:I,0))","v":100},{"$f":"INDEX(K:K,MATCH(D69,J:J,0))","v":"Almen Medicin, Kbh"},{"$f":"INDEX(L:L,MATCH(E69,K:K,0))","v":"Almen_Medicin_Kbh"}]
[26164,"ØST50 modul 2","261",{"$f":"INDEX(J:J,MATCH(C70,I:I,0))","v":100},{"$f":"INDEX(K:K,MATCH(D70,J:J,0))","v":"Almen Medicin, Kbh"},{"$f":"INDEX(L:L,MATCH(E70,K:K,0))","v":"Almen_Medicin_Kbh"}]
[26165,"ØST50 modul 3","261",{"$f":"INDEX(J:J,MATCH(C71,I:I,0))","v":100},{"$f":"INDEX(K:K,MATCH(D71,J:J,0))","v":"Almen Medicin, Kbh"},{"$f":"INDEX(L:L,MATCH(E71,K:K,0))","v":"Almen_Medicin_Kbh"}]
[26166,"ØST50 modul 4","261",{"$f":"INDEX(J:J,MATCH(C72,I:I,0))","v":100},{"$f":"INDEX(K:K,MATCH(D72,J:J,0))","v":"Almen Medicin, Kbh"},{"$f":"INDEX(L:L,MATCH(E72,K:K,0))","v":"Almen_Medicin_Kbh"}]
[26167,"ØST50 modul 5","261",{"$f":"INDEX(J:J,MATCH(C73,I:I,0))","v":100},{"$f":"INDEX(K:K,MATCH(D73,J:J,0))","v":"Almen Medicin, Kbh"},{"$f":"INDEX(L:L,MATCH(E73,K:K,0))","v":"Almen_Medicin_Kbh"}]
[26168,"ØST50 modul 6","261",{"$f":"INDEX(J:J,MATCH(C74,I:I,0))","v":100},{"$f":"INDEX(K:K,MATCH(D74,J:J,0))","v":"Almen Medicin, Kbh"},{"$f":"INDEX(L:L,MATCH(E74,K:K,0))","v":"Almen_Medicin_Kbh"}]
[26169,"ØST50 modul 7","261",{"$f":"INDEX(J:J,MATCH(C75,I:I,0))","v":100},{"$f":"INDEX(K:K,MATCH(D75,J:J,0))","v":"Almen Medicin, Kbh"},{"$f":"INDEX(L:L,MATCH(E75,K:K,0))","v":"Almen_Medicin_Kbh"}]
[26170,"ØST50 modul 8",{"$f":"IF(LEN(A76)=5,LEFT(A76,3),LEFT(A76,4))","v":"261"},{"$f":"INDEX(J:J,MATCH(C76,I:I,0))","v":100},{"$f":"INDEX(K:K,MATCH(D76,J:J,0))","v":"Almen Medicin, Kbh"},{"$f":"INDEX(L:L,MATCH(E76,K:K,0))","v":"Almen_Medicin_Kbh"}]
[26171,"ØST50X modul 1","261",{"$f":"INDEX(J:J,MATCH(C77,I:I,0))","v":100},{"$f":"INDEX(K:K,MATCH(D77,J:J,0))","v":"Almen Medicin, Kbh"},{"$f":"INDEX(L:L,MATCH(E77,K:K,0))","v":"Almen_Medicin_Kbh"}]
[26172,"ØST50X modul 2","261",{"$f":"INDEX(J:J,MATCH(C78,I:I,0))","v":100},{"$f":"INDEX(K:K,MATCH(D78,J:J,0))","v":"Almen Medicin, Kbh"},{"$f":"INDEX(L:L,MATCH(E78,K:K,0))","v":"Almen_Medicin_Kbh"}]
[26173,"ØST50X modul 3","261",{"$f":"INDEX(J:J,MATCH(C79,I:I,0))","v":100},{"$f":"INDEX(K:K,MATCH(D79,J:J,0))","v":"Almen Medicin, Kbh"},{"$f":"INDEX(L:L,MATCH(E79,K:K,0))","v":"Almen_Medicin_Kbh"}]
[26174,"ØST50X modul 4","261",{"$f":"INDEX(J:J,MATCH(C80,I:I,0))","v":100},{"$f":"INDEX(K:K,MATCH(D80,J:J,0))","v":"Almen Medicin, Kbh"},{"$f":"INDEX(L:L,MATCH(E80,K:K,0))","v":"Almen_Medicin_Kbh"}]
[26175,"ØST50X modul 5","261",{"$f":"INDEX(J:J,MATCH(C81,I:I,0))","v":100},{"$f":"INDEX(K:K,MATCH(D81,J:J,0))","v":"Almen Medicin, Kbh"},{"$f":"INDEX(L:L,MATCH(E81,K:K,0))","v":"Almen_Medicin_Kbh"}]
[26176,"ØST50X modul 6","261",{"$f":"INDEX(J:J,MATCH(C82,I:I,0))","v":100},{"$f":"INDEX(K:K,MATCH(D82,J:J,0))","v":"Almen Medicin, Kbh"},{"$f":"INDEX(L:L,MATCH(E82,K:K,0))","v":"Almen_Medicin_Kbh"}]
[26177,"ØST50X modul 7","261",{"$f":"INDEX(J:J,MATCH(C83,I:I,0))","v":100},{"$f":"INDEX(K:K,MATCH(D83,J:J,0))","v":"Almen Medicin, Kbh"},{"$f":"INDEX(L:L,MATCH(E83,K:K,0))","v":"Almen_Medicin_Kbh"}]
[26178,"ØST51 modul 1","261",{"$f":"INDEX(J:J,MATCH(C84,I:I,0))","v":100},{"$f":"INDEX(K:K,MATCH(D84,J:J,0))","v":"Almen Medicin, Kbh"},{"$f":"INDEX(L:L,MATCH(E84,K:K,0))","v":"Almen_Medicin_Kbh"}]
[26179,"ØST51 modul 2","261",{"$f":"INDEX(J:J,MATCH(C85,I:I,0))","v":100},{"$f":"INDEX(K:K,MATCH(D85,J:J,0))","v":"Almen Medicin, Kbh"},{"$f":"INDEX(L:L,MATCH(E85,K:K,0))","v":"Almen_Medicin_Kbh"}]
[26180,"ØST51 modul 3","261",{"$f":"INDEX(J:J,MATCH(C86,I:I,0))","v":100},{"$f":"INDEX(K:K,MATCH(D86,J:J,0))","v":"Almen Medicin, Kbh"},{"$f":"INDEX(L:L,MATCH(E86,K:K,0))","v":"Almen_Medicin_Kbh"}]
[26181,"ØST51 modul 4","261",{"$f":"INDEX(J:J,MATCH(C87,I:I,0))","v":100},{"$f":"INDEX(K:K,MATCH(D87,J:J,0))","v":"Almen Medicin, Kbh"},{"$f":"INDEX(L:L,MATCH(E87,K:K,0))","v":"Almen_Medicin_Kbh"}]
[26182,"ØST51 modul 5","261",{"$f":"INDEX(J:J,MATCH(C88,I:I,0))","v":100},{"$f":"INDEX(K:K,MATCH(D88,J:J,0))","v":"Almen Medicin, Kbh"},{"$f":"INDEX(L:L,MATCH(E88,K:K,0))","v":"Almen_Medicin_Kbh"}]
[26183,"ØST51 modul 6","261",{"$f":"INDEX(J:J,MATCH(C89,I:I,0))","v":100},{"$f":"INDEX(K:K,MATCH(D89,J:J,0))","v":"Almen Medicin, Kbh"},{"$f":"INDEX(L:L,MATCH(E89,K:K,0))","v":"Almen_Medicin_Kbh"}]
[26184,"ØST52 modul 1","261",{"$f":"INDEX(J:J,MATCH(C90,I:I,0))","v":100},{"$f":"INDEX(K:K,MATCH(D90,J:J,0))","v":"Almen Medicin, Kbh"},{"$f":"INDEX(L:L,MATCH(E90,K:K,0))","v":"Almen_Medicin_Kbh"}]
[26185,"ØST52 modul 2","261",{"$f":"INDEX(J:J,MATCH(C91,I:I,0))","v":100},{"$f":"INDEX(K:K,MATCH(D91,J:J,0))","v":"Almen Medicin, Kbh"},{"$f":"INDEX(L:L,MATCH(E91,K:K,0))","v":"Almen_Medicin_Kbh"}]
[26186,"ØST52 modul 3","261",{"$f":"INDEX(J:J,MATCH(C92,I:I,0))","v":100},{"$f":"INDEX(K:K,MATCH(D92,J:J,0))","v":"Almen Medicin, Kbh"},{"$f":"INDEX(L:L,MATCH(E92,K:K,0))","v":"Almen_Medicin_Kbh"}]
[26187,"ØST52X modul 1","261",{"$f":"INDEX(J:J,MATCH(C93,I:I,0))","v":100},{"$f":"INDEX(K:K,MATCH(D93,J:J,0))","v":"Almen Medicin, Kbh"},{"$f":"INDEX(L:L,MATCH(E93,K:K,0))","v":"Almen_Medicin_Kbh"}]
[26188,"ØST52X modul 2","261",{"$f":"INDEX(J:J,MATCH(C94,I:I,0))","v":100},{"$f":"INDEX(K:K,MATCH(D94,J:J,0))","v":"Almen Medicin, Kbh"},{"$f":"INDEX(L:L,MATCH(E94,K:K,0))","v":"Almen_Medicin_Kbh"}]
[26201,"SYD 2022-1","262",{"$f":"INDEX(J:J,MATCH(C95,I:I,0))","v":200},{"$f":"INDEX(K:K,MATCH(D95,J:J,0))","v":"Almen Medicin, Odense"},{"$f":"INDEX(L:L,MATCH(E95,K:K,0))","v":"Almen_Medicin_Odense"}]
[26202,"SYD2022-2","262",{"$f":"INDEX(J:J,MATCH(C96,I:I,0))","v":200},{"$f":"INDEX(K:K,MATCH(D96,J:J,0))","v":"Almen Medicin, Odense"},{"$f":"INDEX(L:L,MATCH(E96,K:K,0))","v":"Almen_Medicin_Odense"}]
[26203,"SYD2022-3","262",{"$f":"INDEX(J:J,MATCH(C97,I:I,0))","v":200},{"$f":"INDEX(K:K,MATCH(D97,J:J,0))","v":"Almen Medicin, Odense"},{"$f":"INDEX(L:L,MATCH(E97,K:K,0))","v":"Almen_Medicin_Odense"}]
[26204,"SYD2022-4","262",{"$f":"INDEX(J:J,MATCH(C98,I:I,0))","v":200},{"$f":"INDEX(K:K,MATCH(D98,J:J,0))","v":"Almen Medicin, Odense"},{"$f":"INDEX(L:L,MATCH(E98,K:K,0))","v":"Almen_Medicin_Odense"}]
[26205,"SYD2023-1","262",{"$f":"INDEX(J:J,MATCH(C99,I:I,0))","v":200},{"$f":"INDEX(K:K,MATCH(D99,J:J,0))","v":"Almen Medicin, Odense"},{"$f":"INDEX(L:L,MATCH(E99,K:K,0))","v":"Almen_Medicin_Odense"}]
[26206,"SYD2023-2","262",{"$f":"INDEX(J:J,MATCH(C100,I:I,0))","v":200},{"$f":"INDEX(K:K,MATCH(D100,J:J,0))","v":"Almen Medicin, Odense"},{"$f":"INDEX(L:L,MATCH(E100,K:K,0))","v":"Almen_Medicin_Odense"}]
[26207,"SYD2023-3 (FT)","262",{"$f":"INDEX(J:J,MATCH(C101,I:I,0))","v":200},{"$f":"INDEX(K:K,MATCH(D101,J:J,0))","v":"Almen Medicin, Odense"},{"$f":"INDEX(L:L,MATCH(E101,K:K,0))","v":"Almen_Medicin_Odense"}]
[26208,"SYD2023-4 (FT)","262",{"$f":"INDEX(J:J,MATCH(C102,I:I,0))","v":200},{"$f":"INDEX(K:K,MATCH(D102,J:J,0))","v":"Almen Medicin, Odense"},{"$f":"INDEX(L:L,MATCH(E102,K:K,0))","v":"Almen_Medicin_Odense"}]
[26209,"SYD2023-5","262",{"$f":"INDEX(J:J,MATCH(C103,I:I,0))","v":200},{"$f":"INDEX(K:K,MATCH(D103,J:J,0))","v":"Almen Medicin, Odense"},{"$f":"INDEX(L:L,MATCH(E103,K:K,0))","v":"Almen_Medicin_Odense"}]
[26210,"SYD2024-1","262",{"$f":"INDEX(J:J,MATCH(C104,I:I,0))","v":200},{"$f":"INDEX(K:K,MATCH(D104,J:J,0))","v":"Almen Medicin, Odense"},{"$f":"INDEX(L:L,MATCH(E104,K:K,0))","v":"Almen_Medicin_Odense"}]
[26211,"SYD2024-2","262",{"$f":"INDEX(J:J,MATCH(C105,I:I,0))","v":200},{"$f":"INDEX(K:K,MATCH(D105,J:J,0))","v":"Almen Medicin, Odense"},{"$f":"INDEX(L:L,MATCH(E105,K:K,0))","v":"Almen_Medicin_Odense"}]
[26212,"SYD2024-3","262",{"$f":"INDEX(J:J,MATCH(C106,I:I,0))","v":200},{"$f":"INDEX(K:K,MATCH(D106,J:J,0))","v":"Almen Medicin, Odense"},{"$f":"INDEX(L:L,MATCH(E106,K:K,0))","v":"Almen_Medicin_Odense"}]
[26213,"SYD2024-4","262",{"$f":"INDEX(J:J,MATCH(C107,I:I,0))","v":200},{"$f":"INDEX(K:K,MATCH(D107,J:J,0))","v":"Almen Medicin, Odense"},{"$f":"INDEX(L:L,MATCH(E107,K:K,0))","v":"Almen_Medicin_Odense"}]
[26214,"SYD2025-1","262",{"$f":"INDEX(J:J,MATCH(C108,I:I,0))","v":200},{"$f":"INDEX(K:K,MATCH(D108,J:J,0))","v":"Almen Medicin, Odense"},{"$f":"INDEX(L:L,MATCH(E108,K:K,0))","v":"Almen_Medicin_Odense"}]
[26215,"SYD2025-2","262",{"$f":"INDEX(J:J,MATCH(C109,I:I,0))","v":200},{"$f":"INDEX(K:K,MATCH(D109,J:J,0))","v":"Almen Medicin, Odense"},{"$f":"INDEX(L:L,MATCH(E109,K:K,0))","v":"Almen_Medicin_Odense"}]
[26216,"SYD2025-3","262",{"$f":"INDEX(J:J,MATCH(C110,I:I,0))","v":200},{"$f":"INDEX(K:K,MATCH(D110,J:J,0))","v":"Almen Medicin, Odense"},{"$f":"INDEX(L:L,MATCH(E110,K:K,0))","v":"Almen_Medicin_Odense"}]
[26217,"SYD2025-4","262",{"$f":"INDEX(J:J,MATCH(C111,I:I,0))","v":200},{"$f":"INDEX(K:K,MATCH(D111,J:J,0))","v":"Almen Medicin, Odense"},{"$f":"INDEX(L:L,MATCH(E111,K:K,0))","v":"Almen_Medicin_Odense"}]
[26218,"SYD2026-1","262",{"$f":"INDEX(J:J,MATCH(C112,I:I,0))","v":200},{"$f":"INDEX(K:K,MATCH(D112,J:J,0))","v":"Almen Medicin, Odense"},{"$f":"INDEX(L:L,MATCH(E112,K:K,0))","v":"Almen_Medicin_Odense"}]
[26219,"SYD2026-2","262",{"$f":"INDEX(J:J,MATCH(C113,I:I,0))","v":200},{"$f":"INDEX(K:K,MATCH(D113,J:J,0))","v":"Almen Medicin, Odense"},{"$f":"INDEX(L:L,MATCH(E113,K:K,0))","v":"Almen_Medicin_Odense"}]
[26220,"SYD2026-3","262",{"$f":"INDEX(J:J,MATCH(C114,I:I,0))","v":200},{"$f":"INDEX(K:K,MATCH(D114,J:J,0))","v":"Almen Medicin, Odense"},{"$f":"INDEX(L:L,MATCH(E114,K:K,0))","v":"Almen_Medicin_Odense"}]
[26221,"SYD2026-4","262",{"$f":"INDEX(J:J,MATCH(C115,I:I,0))","v":200},{"$f":"INDEX(K:K,MATCH(D115,J:J,0))","v":"Almen Medicin, Odense"},{"$f":"INDEX(L:L,MATCH(E115,K:K,0))","v":"Almen_Medicin_Odense"}]
[26301,"Nord 52","263",{"$f":"INDEX(J:J,MATCH(C116,I:I,0))","v":300},{"$f":"INDEX(K:K,MATCH(D116,J:J,0))","v":"Almen Medicin, Århus"},{"$f":"INDEX(L:L,MATCH(E116,K:K,0))","v":"Almen_Medicin_Aarhus"}]
[26302,"Nord 51","263",{"$f":"INDEX(J:J,MATCH(C117,I:I,0))","v":300},{"$f":"INDEX(K:K,MATCH(D117,J:J,0))","v":"Almen Medicin, Århus"},{"$f":"INDEX(L:L,MATCH(E117,K:K,0))","v":"Almen_Medicin_Aarhus"}]
[26303,"Nord 50","263",{"$f":"INDEX(J:J,MATCH(C118,I:I,0))","v":300},{"$f":"INDEX(K:K,MATCH(D118,J:J,0))","v":"Almen Medicin, Århus"},{"$f":"INDEX(L:L,MATCH(E118,K:K,0))","v":"Almen_Medicin_Aarhus"}]
[26304,"Nord 49","263",{"$f":"INDEX(J:J,MATCH(C119,I:I,0))","v":300},{"$f":"INDEX(K:K,MATCH(D119,J:J,0))","v":"Almen Medicin, Århus"},{"$f":"INDEX(L:L,MATCH(E119,K:K,0))","v":"Almen_Medicin_Aarhus"}]
[26305,"Nord 48","263",{"$f":"INDEX(J:J,MATCH(C120,I:I,0))","v":300},{"$f":"INDEX(K:K,MATCH(D120,J:J,0))","v":"Almen Medicin, Århus"},{"$f":"INDEX(L:L,MATCH(E120,K:K,0))","v":"Almen_Medicin_Aarhus"}]
[26306,"Nord 47","263",{"$f":"INDEX(J:J,MATCH(C121,I:I,0))","v":300},{"$f":"INDEX(K:K,MATCH(D121,J:J,0))","v":"Almen Medicin, Århus"},{"$f":"INDEX(L:L,MATCH(E121,K:K,0))","v":"Almen_Medicin_Aarhus"}]
[26307,"Nord 46","263",{"$f":"INDEX(J:J,MATCH(C122,I:I,0))","v":300},{"$f":"INDEX(K:K,MATCH(D122,J:J,0))","v":"Almen Medicin, Århus"},{"$f":"INDEX(L:L,MATCH(E122,K:K,0))","v":"Almen_Medicin_Aarhus"}]
[26308,"Nord 45","263",{"$f":"INDEX(J:J,MATCH(C123,I:I,0))","v":300},{"$f":"INDEX(K:K,MATCH(D123,J:J,0))","v":"Almen Medicin, Århus"},{"$f":"INDEX(L:L,MATCH(E123,K:K,0))","v":"Almen_Medicin_Aarhus"}]
[26309,"Nord 44","263",{"$f":"INDEX(J:J,MATCH(C124,I:I,0))","v":300},{"$f":"INDEX(K:K,MATCH(D124,J:J,0))","v":"Almen Medicin, Århus"},{"$f":"INDEX(L:L,MATCH(E124,K:K,0))","v":"Almen_Medicin_Aarhus"}]
[26310,"Nord 43","263",{"$f":"INDEX(J:J,MATCH(C125,I:I,0))","v":300},{"$f":"INDEX(K:K,MATCH(D125,J:J,0))","v":"Almen Medicin, Århus"},{"$f":"INDEX(L:L,MATCH(E125,K:K,0))","v":"Almen_Medicin_Aarhus"}]
[26311,"Nord 42","263",{"$f":"INDEX(J:J,MATCH(C126,I:I,0))","v":300},{"$f":"INDEX(K:K,MATCH(D126,J:J,0))","v":"Almen Medicin, Århus"},{"$f":"INDEX(L:L,MATCH(E126,K:K,0))","v":"Almen_Medicin_Aarhus"}]
[26312,"Nord 41","263",{"$f":"INDEX(J:J,MATCH(C127,I:I,0))","v":300},{"$f":"INDEX(K:K,MATCH(D127,J:J,0))","v":"Almen Medicin, Århus"},{"$f":"INDEX(L:L,MATCH(E127,K:K,0))","v":"Almen_Medicin_Aarhus"}]
[26313,"Nord 40","263",{"$f":"INDEX(J:J,MATCH(C128,I:I,0))","v":300},{"$f":"INDEX(K:K,MATCH(D128,J:J,0))","v":"Almen Medicin, Århus"},{"$f":"INDEX(L:L,MATCH(E128,K:K,0))","v":"Almen_Medicin_Aarhus"}]
[26314,"Nord 39","263",{"$f":"INDEX(J:J,MATCH(C129,I:I,0))","v":300},{"$f":"INDEX(K:K,MATCH(D129,J:J,0))","v":"Almen Medicin, Århus"},{"$f":"INDEX(L:L,MATCH(E129,K:K,0))","v":"Almen_Medicin_Aarhus"}]
[26315,"Nord 38","263",{"$f":"INDEX(J:J,MATCH(C130,I:I,0))","v":300},{"$f":"INDEX(K:K,MATCH(D130,J:J,0))","v":"Almen Medicin, Århus"},{"$f":"INDEX(L:L,MATCH(E130,K:K,0))","v":"Almen_Medicin_Aarhus"}]
[26316,"Nord 37","263",{"$f":"INDEX(J:J,MATCH(C131,I:I,0))","v":300},{"$f":"INDEX(K:K,MATCH(D131,J:J,0))","v":"Almen Medicin, Århus"},{"$f":"INDEX(L:L,MATCH(E131,K:K,0))","v":"Almen_Medicin_Aarhus"}]
[26317,"Nord 36","263",{"$f":"INDEX(J:J,MATCH(C132,I:I,0))","v":300},{"$f":"INDEX(K:K,MATCH(D132,J:J,0))","v":"Almen Medicin, Århus"},{"$f":"INDEX(L:L,MATCH(E132,K:K,0))","v":"Almen_Medicin_Aarhus"}]
[26318,"Nord 35","263",{"$f":"INDEX(J:J,MATCH(C133,I:I,0))","v":300},{"$f":"INDEX(K:K,MATCH(D133,J:J,0))","v":"Almen Medicin, Århus"},{"$f":"INDEX(L:L,MATCH(E133,K:K,0))","v":"Almen_Medicin_Aarhus"}]
[26319,"Nord 34","263",{"$f":"INDEX(J:J,MATCH(C134,I:I,0))","v":300},{"$f":"INDEX(K:K,MATCH(D134,J:J,0))","v":"Almen Medicin, Århus"},{"$f":"INDEX(L:L,MATCH(E134,K:K,0))","v":"Almen_Medicin_Aarhus"}]
[26320,"Nord 33","263",{"$f":"INDEX(J:J,MATCH(C135,I:I,0))","v":300},{"$f":"INDEX(K:K,MATCH(D135,J:J,0))","v":"Almen Medicin, Århus"},{"$f":"INDEX(L:L,MATCH(E135,K:K,0))","v":"Almen_Medicin_Aarhus"}]
[26321,"Nord 32","263",{"$f":"INDEX(J:J,MATCH(C136,I:I,0))","v":300},{"$f":"INDEX(K:K,MATCH(D136,J:J,0))","v":"Almen Medicin, Århus"},{"$f":"INDEX(L:L,MATCH(E136,K:K,0))","v":"Almen_Medicin_Aarhus"}]
[26399,"Underviserseminar 2026","263",{"$f":"INDEX(J:J,MATCH(C137,I:I,0))","v":300},{"$f":"INDEX(K:K,MATCH(D137,J:J,0))","v":"Almen Medicin, Århus"},{"$f":"INDEX(L:L,MATCH(E137,K:K,0))","v":"Almen_Medicin_Aarhus"}]
[26401,"Luftvejshåndtering","264",{"$f":"INDEX(J:J,MATCH(C138,I:I,0))","v":400},{"$f":"INDEX(K:K,MATCH(D138,J:J,0))","v":"Anæstesiologi"},{"$f":"INDEX(L:L,MATCH(E138,K:K,0))","v":"Anæstesiologi"}]
[26402,"Avanceret Intensiv terapi","264",{"$f":"INDEX(J:J,MATCH(C139,I:I,0))","v":400},{"$f":"INDEX(K:K,MATCH(D139,J:J,0))","v":"Anæstesiologi"},{"$f":"INDEX(L:L,MATCH(E139,K:K,0))","v":"Anæstesiologi"}]
[26403,"Obstetrisk anæstesi og det nyfødte barn - Aarhus",{"$f":"IF(LEN(A140)=5,LEFT(A140,3),LEFT(A140,4))","v":"264"},{"$f":"INDEX(J:J,MATCH(C140,I:I,0))","v":400},{"$f":"INDEX(K:K,MATCH(D140,J:J,0))","v":"Anæstesiologi"},{"$f":"INDEX(L:L,MATCH(E140,K:K,0))","v":"Anæstesiologi"}]
[26404,"Ultralyd ","264",{"$f":"INDEX(J:J,MATCH(C141,I:I,0))","v":400},{"$f":"INDEX(K:K,MATCH(D141,J:J,0))","v":"Anæstesiologi"},{"$f":"INDEX(L:L,MATCH(E141,K:K,0))","v":"Anæstesiologi"}]
[26405,"Anæstesi ","264",{"$f":"INDEX(J:J,MATCH(C142,I:I,0))","v":400},{"$f":"INDEX(K:K,MATCH(D142,J:J,0))","v":"Anæstesiologi"},{"$f":"INDEX(L:L,MATCH(E142,K:K,0))","v":"Anæstesiologi"}]
[26406,"Intensiv terapi -NORD & SYD - Aalborg","264",{"$f":"INDEX(J:J,MATCH(C143,I:I,0))","v":400},{"$f":"INDEX(K:K,MATCH(D143,J:J,0))","v":"Anæstesiologi"},{"$f":"INDEX(L:L,MATCH(E143,K:K,0))","v":"Anæstesiologi"}]
[26407,"Intensiv terapi - ØST","264",{"$f":"INDEX(J:J,MATCH(C144,I:I,0))","v":400},{"$f":"INDEX(K:K,MATCH(D144,J:J,0))","v":"Anæstesiologi"},{"$f":"INDEX(L:L,MATCH(E144,K:K,0))","v":"Anæstesiologi"}]
[26408,"Pædiatrisk anæstesi  - Aarhus","264",{"$f":"INDEX(J:J,MATCH(C145,I:I,0))","v":400},{"$f":"INDEX(K:K,MATCH(D145,J:J,0))","v":"Anæstesiologi"},{"$f":"INDEX(L:L,MATCH(E145,K:K,0))","v":"Anæstesiologi"}]
[26409,"Klinisk beslutningstagning ","264",{"$f":"INDEX(J:J,MATCH(C146,I:I,0))","v":400},{"$f":"INDEX(K:K,MATCH(D146,J:J,0))","v":"Anæstesiologi"},{"$f":"INDEX(L:L,MATCH(E146,K:K,0))","v":"Anæstesiologi"}]
[26410,"Akutte og kroniske smerter","264",{"$f":"INDEX(J:J,MATCH(C147,I:I,0))","v":400},{"$f":"INDEX(K:K,MATCH(D147,J:J,0))","v":"Anæstesiologi"},{"$f":"INDEX(L:L,MATCH(E147,K:K,0))","v":"Anæstesiologi"}]
[26411,"Neuro, traume, præhospital","264",{"$f":"INDEX(J:J,MATCH(C148,I:I,0))","v":400},{"$f":"INDEX(K:K,MATCH(D148,J:J,0))","v":"Anæstesiologi"},{"$f":"INDEX(L:L,MATCH(E148,K:K,0))","v":"Anæstesiologi"}]
[26412,"Patientsikkerhed og kom.","264",{"$f":"INDEX(J:J,MATCH(C149,I:I,0))","v":400},{"$f":"INDEX(K:K,MATCH(D149,J:J,0))","v":"Anæstesiologi"},{"$f":"INDEX(L:L,MATCH(E149,K:K,0))","v":"Anæstesiologi"}]
[26413,"Luftvejshåndtering","264",{"$f":"INDEX(J:J,MATCH(C150,I:I,0))","v":400},{"$f":"INDEX(K:K,MATCH(D150,J:J,0))","v":"Anæstesiologi"},{"$f":"INDEX(L:L,MATCH(E150,K:K,0))","v":"Anæstesiologi"}]
[26414,"Avanceret Intensiv terapi","264",{"$f":"INDEX(J:J,MATCH(C151,I:I,0))","v":400},{"$f":"INDEX(K:K,MATCH(D151,J:J,0))","v":"Anæstesiologi"},{"$f":"INDEX(L:L,MATCH(E151,K:K,0))","v":"Anæstesiologi"}]
[26415,"Anæstesi ","264",{"$f":"INDEX(J:J,MATCH(C152,I:I,0))","v":400},{"$f":"INDEX(K:K,MATCH(D152,J:J,0))","v":"Anæstesiologi"},{"$f":"INDEX(L:L,MATCH(E152,K:K,0))","v":"Anæstesiologi"}]
[26416,"Intensiv terapi - ØST","264",{"$f":"INDEX(J:J,MATCH(C153,I:I,0))","v":400},{"$f":"INDEX(K:K,MATCH(D153,J:J,0))","v":"Anæstesiologi"},{"$f":"INDEX(L:L,MATCH(E153,K:K,0))","v":"Anæstesiologi"}]
[26417,"Intensiv terapi -Nord og Syd- odense","264",{"$f":"INDEX(J:J,MATCH(C154,I:I,0))","v":400},{"$f":"INDEX(K:K,MATCH(D154,J:J,0))","v":"Anæstesiologi"},{"$f":"INDEX(L:L,MATCH(E154,K:K,0))","v":"Anæstesiologi"}]
[26418,"Obstetrisk anæstesi og det nyfødte barn - Kbh","264",{"$f":"INDEX(J:J,MATCH(C155,I:I,0))","v":400},{"$f":"INDEX(K:K,MATCH(D155,J:J,0))","v":"Anæstesiologi"},{"$f":"INDEX(L:L,MATCH(E155,K:K,0))","v":"Anæstesiologi"}]
[26419,"Klinisk beslutningstagning ","264",{"$f":"INDEX(J:J,MATCH(C156,I:I,0))","v":400},{"$f":"INDEX(K:K,MATCH(D156,J:J,0))","v":"Anæstesiologi"},{"$f":"INDEX(L:L,MATCH(E156,K:K,0))","v":"Anæstesiologi"}]
[26420,"Ultralyd ","264",{"$f":"INDEX(J:J,MATCH(C157,I:I,0))","v":400},{"$f":"INDEX(K:K,MATCH(D157,J:J,0))","v":"Anæstesiologi"},{"$f":"INDEX(L:L,MATCH(E157,K:K,0))","v":"Anæstesiologi"}]
[26421,"Akutte og kroniske smerter","264",{"$f":"INDEX(J:J,MATCH(C158,I:I,0))","v":400},{"$f":"INDEX(K:K,MATCH(D158,J:J,0))","v":"Anæstesiologi"},{"$f":"INDEX(L:L,MATCH(E158,K:K,0))","v":"Anæstesiologi"}]
[26422,"Pædiatrisk anæstesi, KBH","264",{"$f":"INDEX(J:J,MATCH(C159,I:I,0))","v":400},{"$f":"INDEX(K:K,MATCH(D159,J:J,0))","v":"Anæstesiologi"},{"$f":"INDEX(L:L,MATCH(E159,K:K,0))","v":"Anæstesiologi"}]
[26423,"Patientsikkerhed og kom.","264",{"$f":"INDEX(J:J,MATCH(C160,I:I,0))","v":400},{"$f":"INDEX(K:K,MATCH(D160,J:J,0))","v":"Anæstesiologi"},{"$f":"INDEX(L:L,MATCH(E160,K:K,0))","v":"Anæstesiologi"}]
[26424,"Neuro, traume, præhospital","264",{"$f":"INDEX(J:J,MATCH(C161,I:I,0))","v":400},{"$f":"INDEX(K:K,MATCH(D161,J:J,0))","v":"Anæstesiologi"},{"$f":"INDEX(L:L,MATCH(E161,K:K,0))","v":"Anæstesiologi"}]
[26499,"Delkursusleder møde årligt 10 delkursusledere, 5 timer","264",{"$f":"INDEX(J:J,MATCH(C162,I:I,0))","v":400},{"$f":"INDEX(K:K,MATCH(D162,J:J,0))","v":"Anæstesiologi"},{"$f":"INDEX(L:L,MATCH(E162,K:K,0))","v":"Anæstesiologi"}]
[26501,"Eksponerings-, årsags- og risikovurdering, modul 3","265",{"$f":"INDEX(J:J,MATCH(C163,I:I,0))","v":500},{"$f":"INDEX(K:K,MATCH(D163,J:J,0))","v":"Arbejdsmedicin"},{"$f":"INDEX(L:L,MATCH(E163,K:K,0))","v":"Arbejdsmedicin"}]
[26502,"Individuel risikokommunikation og Pressehåndtering","265",{"$f":"INDEX(J:J,MATCH(C164,I:I,0))","v":500},{"$f":"INDEX(K:K,MATCH(D164,J:J,0))","v":"Arbejdsmedicin"},{"$f":"INDEX(L:L,MATCH(E164,K:K,0))","v":"Arbejdsmedicin"}]
[26503,"Forebyggelse og tilbage til arbejde","265",{"$f":"INDEX(J:J,MATCH(C165,I:I,0))","v":500},{"$f":"INDEX(K:K,MATCH(D165,J:J,0))","v":"Arbejdsmedicin"},{"$f":"INDEX(L:L,MATCH(E165,K:K,0))","v":"Arbejdsmedicin"}]
[26601,"Teoretisk kursus psykoterapi ","266",{"$f":"INDEX(J:J,MATCH(C166,I:I,0))","v":600},{"$f":"INDEX(K:K,MATCH(D166,J:J,0))","v":"Børne- og ungdomspsykiatri"},{"$f":"INDEX(L:L,MATCH(E166,K:K,0))","v":"Børne_og_ungdomspsykiatri"}]
[26602,"ADHD, Komorbiditet og differentialdiagnostik ","266",{"$f":"INDEX(J:J,MATCH(C167,I:I,0))","v":600},{"$f":"INDEX(K:K,MATCH(D167,J:J,0))","v":"Børne- og ungdomspsykiatri"},{"$f":"INDEX(L:L,MATCH(E167,K:K,0))","v":"Børne_og_ungdomspsykiatri"}]
[26603,"Farmakologisk behandling af ADHD (Psykofarmakologi 2","266",{"$f":"INDEX(J:J,MATCH(C168,I:I,0))","v":600},{"$f":"INDEX(K:K,MATCH(D168,J:J,0))","v":"Børne- og ungdomspsykiatri"},{"$f":"INDEX(L:L,MATCH(E168,K:K,0))","v":"Børne_og_ungdomspsykiatri"}]
[26604,"Spiseforstyrrelser ","266",{"$f":"INDEX(J:J,MATCH(C169,I:I,0))","v":600},{"$f":"INDEX(K:K,MATCH(D169,J:J,0))","v":"Børne- og ungdomspsykiatri"},{"$f":"INDEX(L:L,MATCH(E169,K:K,0))","v":"Børne_og_ungdomspsykiatri"}]
[26605,"Retspsykiatri","266",{"$f":"INDEX(J:J,MATCH(C170,I:I,0))","v":600},{"$f":"INDEX(K:K,MATCH(D170,J:J,0))","v":"Børne- og ungdomspsykiatri"},{"$f":"INDEX(L:L,MATCH(E170,K:K,0))","v":"Børne_og_ungdomspsykiatri"}]
[26606,"Adfærds- og personlighedsforstyrrelser ","266",{"$f":"INDEX(J:J,MATCH(C171,I:I,0))","v":600},{"$f":"INDEX(K:K,MATCH(D171,J:J,0))","v":"Børne- og ungdomspsykiatri"},{"$f":"INDEX(L:L,MATCH(E171,K:K,0))","v":"Børne_og_ungdomspsykiatri"}]
[26607,"Misbrug","266",{"$f":"INDEX(J:J,MATCH(C172,I:I,0))","v":600},{"$f":"INDEX(K:K,MATCH(D172,J:J,0))","v":"Børne- og ungdomspsykiatri"},{"$f":"INDEX(L:L,MATCH(E172,K:K,0))","v":"Børne_og_ungdomspsykiatri"}]
[26608,"Teoretisk kursus psykopatologi ","266",{"$f":"INDEX(J:J,MATCH(C173,I:I,0))","v":600},{"$f":"INDEX(K:K,MATCH(D173,J:J,0))","v":"Børne- og ungdomspsykiatri"},{"$f":"INDEX(L:L,MATCH(E173,K:K,0))","v":"Børne_og_ungdomspsykiatri"}]
[26609,"Biologisk Psykiatri ","266",{"$f":"INDEX(J:J,MATCH(C174,I:I,0))","v":600},{"$f":"INDEX(K:K,MATCH(D174,J:J,0))","v":"Børne- og ungdomspsykiatri"},{"$f":"INDEX(L:L,MATCH(E174,K:K,0))","v":"Børne_og_ungdomspsykiatri"}]
[26610,"Autismespektrumforstyrrelser, generelle udviklingsforstyrrelser og sjældne neuropsykiatriske lidelser ","266",{"$f":"INDEX(J:J,MATCH(C175,I:I,0))","v":600},{"$f":"INDEX(K:K,MATCH(D175,J:J,0))","v":"Børne- og ungdomspsykiatri"},{"$f":"INDEX(L:L,MATCH(E175,K:K,0))","v":"Børne_og_ungdomspsykiatri"}]
[26611,"Psykofarmakologi, interaktion og bivirkninger (Psykofarmakologi 1","266",{"$f":"INDEX(J:J,MATCH(C176,I:I,0))","v":600},{"$f":"INDEX(K:K,MATCH(D176,J:J,0))","v":"Børne- og ungdomspsykiatri"},{"$f":"INDEX(L:L,MATCH(E176,K:K,0))","v":"Børne_og_ungdomspsykiatri"}]
[26612,"Seksualitet og seksuelle overgreb ","266",{"$f":"INDEX(J:J,MATCH(C177,I:I,0))","v":600},{"$f":"INDEX(K:K,MATCH(D177,J:J,0))","v":"Børne- og ungdomspsykiatri"},{"$f":"INDEX(L:L,MATCH(E177,K:K,0))","v":"Børne_og_ungdomspsykiatri"}]
[26613,"Belastningsreaktioner og PTSD ","266",{"$f":"INDEX(J:J,MATCH(C178,I:I,0))","v":600},{"$f":"INDEX(K:K,MATCH(D178,J:J,0))","v":"Børne- og ungdomspsykiatri"},{"$f":"INDEX(L:L,MATCH(E178,K:K,0))","v":"Børne_og_ungdomspsykiatri"}]
[26614,"Spædbarnspsykiatri ","266",{"$f":"INDEX(J:J,MATCH(C179,I:I,0))","v":600},{"$f":"INDEX(K:K,MATCH(D179,J:J,0))","v":"Børne- og ungdomspsykiatri"},{"$f":"INDEX(L:L,MATCH(E179,K:K,0))","v":"Børne_og_ungdomspsykiatri"}]
[26615,"Teoretisk kursus udviklingspsykopatologi ","266",{"$f":"INDEX(J:J,MATCH(C180,I:I,0))","v":600},{"$f":"INDEX(K:K,MATCH(D180,J:J,0))","v":"Børne- og ungdomspsykiatri"},{"$f":"INDEX(L:L,MATCH(E180,K:K,0))","v":"Børne_og_ungdomspsykiatri"}]
[26616,"Affektive lidelser","266",{"$f":"INDEX(J:J,MATCH(C181,I:I,0))","v":600},{"$f":"INDEX(K:K,MATCH(D181,J:J,0))","v":"Børne- og ungdomspsykiatri"},{"$f":"INDEX(L:L,MATCH(E181,K:K,0))","v":"Børne_og_ungdomspsykiatri"}]
[26617,"OCD, tics og Tourette ","266",{"$f":"INDEX(J:J,MATCH(C182,I:I,0))","v":600},{"$f":"INDEX(K:K,MATCH(D182,J:J,0))","v":"Børne- og ungdomspsykiatri"},{"$f":"INDEX(L:L,MATCH(E182,K:K,0))","v":"Børne_og_ungdomspsykiatri"}]
[26618,"Angst og psykosomatik ","266",{"$f":"INDEX(J:J,MATCH(C183,I:I,0))","v":600},{"$f":"INDEX(K:K,MATCH(D183,J:J,0))","v":"Børne- og ungdomspsykiatri"},{"$f":"INDEX(L:L,MATCH(E183,K:K,0))","v":"Børne_og_ungdomspsykiatri"}]
[26619,"Skizofreni ","266",{"$f":"INDEX(J:J,MATCH(C184,I:I,0))","v":600},{"$f":"INDEX(K:K,MATCH(D184,J:J,0))","v":"Børne- og ungdomspsykiatri"},{"$f":"INDEX(L:L,MATCH(E184,K:K,0))","v":"Børne_og_ungdomspsykiatri"}]
[26620,"Spiseforstyrrelser kursus 2",{"$f":"IF(LEN(A185)=5,LEFT(A185,3),LEFT(A185,4))","v":"266"},{"$f":"INDEX(J:J,MATCH(C185,I:I,0))","v":600},{"$f":"INDEX(K:K,MATCH(D185,J:J,0))","v":"Børne- og ungdomspsykiatri"},{"$f":"INDEX(L:L,MATCH(E185,K:K,0))","v":"Børne_og_ungdomspsykiatri"}]
[26701,"Basal dermatologi (delkursus 0 - øst)","267",{"$f":"INDEX(J:J,MATCH(C186,I:I,0))","v":700},{"$f":"INDEX(K:K,MATCH(D186,J:J,0))","v":"Dermato-venerologi"},{"$f":"INDEX(L:L,MATCH(E186,K:K,0))","v":"Dermato_venerologi"}]
[26702,"Dermatologiske manifestationer ved interne medicinske sygd. (delkursus 7)","267",{"$f":"INDEX(J:J,MATCH(C187,I:I,0))","v":700},{"$f":"INDEX(K:K,MATCH(D187,J:J,0))","v":"Dermato-venerologi"},{"$f":"INDEX(L:L,MATCH(E187,K:K,0))","v":"Dermato_venerologi"}]
[26703,"Den prof. dermatolog og infektioner i huden (delkursus 6)","267",{"$f":"INDEX(J:J,MATCH(C188,I:I,0))","v":700},{"$f":"INDEX(K:K,MATCH(D188,J:J,0))","v":"Dermato-venerologi"},{"$f":"INDEX(L:L,MATCH(E188,K:K,0))","v":"Dermato_venerologi"}]
[26704,"Eksemer (delkursus 8)","267",{"$f":"INDEX(J:J,MATCH(C189,I:I,0))","v":700},{"$f":"INDEX(K:K,MATCH(D189,J:J,0))","v":"Dermato-venerologi"},{"$f":"INDEX(L:L,MATCH(E189,K:K,0))","v":"Dermato_venerologi"}]
[26705,"Kron. inflam. hudsygd. (undtagen eksem og AD) (delkursus 9)","267",{"$f":"INDEX(J:J,MATCH(C190,I:I,0))","v":700},{"$f":"INDEX(K:K,MATCH(D190,J:J,0))","v":"Dermato-venerologi"},{"$f":"INDEX(L:L,MATCH(E190,K:K,0))","v":"Dermato_venerologi"}]
[26706,"Basal dermatologi (delkursus 0 - vest)","267",{"$f":"INDEX(J:J,MATCH(C191,I:I,0))","v":700},{"$f":"INDEX(K:K,MATCH(D191,J:J,0))","v":"Dermato-venerologi"},{"$f":"INDEX(L:L,MATCH(E191,K:K,0))","v":"Dermato_venerologi"}]
[26707,"Dermatopatologi og laser (delkursus 10)","267",{"$f":"INDEX(J:J,MATCH(C192,I:I,0))","v":700},{"$f":"INDEX(K:K,MATCH(D192,J:J,0))","v":"Dermato-venerologi"},{"$f":"INDEX(L:L,MATCH(E192,K:K,0))","v":"Dermato_venerologi"}]
[26801,"Abdominal radiologi","268",{"$f":"INDEX(J:J,MATCH(C193,I:I,0))","v":800},{"$f":"INDEX(K:K,MATCH(D193,J:J,0))","v":"Diagnostisk radiologi"},{"$f":"INDEX(L:L,MATCH(E193,K:K,0))","v":"Diagnostisk_radiologi"}]
[26802,"Fysik og radiobiologi","268",{"$f":"INDEX(J:J,MATCH(C194,I:I,0))","v":800},{"$f":"INDEX(K:K,MATCH(D194,J:J,0))","v":"Diagnostisk radiologi"},{"$f":"INDEX(L:L,MATCH(E194,K:K,0))","v":"Diagnostisk_radiologi"}]
[26803,"Kar og interventionsradiologi","268",{"$f":"INDEX(J:J,MATCH(C195,I:I,0))","v":800},{"$f":"INDEX(K:K,MATCH(D195,J:J,0))","v":"Diagnostisk radiologi"},{"$f":"INDEX(L:L,MATCH(E195,K:K,0))","v":"Diagnostisk_radiologi"}]
[26804,"Mammaradiologi","268",{"$f":"INDEX(J:J,MATCH(C196,I:I,0))","v":800},{"$f":"INDEX(K:K,MATCH(D196,J:J,0))","v":"Diagnostisk radiologi"},{"$f":"INDEX(L:L,MATCH(E196,K:K,0))","v":"Diagnostisk_radiologi"}]
[26805,"Muskuloskeletal radiologi","268",{"$f":"INDEX(J:J,MATCH(C197,I:I,0))","v":800},{"$f":"INDEX(K:K,MATCH(D197,J:J,0))","v":"Diagnostisk radiologi"},{"$f":"INDEX(L:L,MATCH(E197,K:K,0))","v":"Diagnostisk_radiologi"}]
[26806,"Neuroradiologi","268",{"$f":"INDEX(J:J,MATCH(C198,I:I,0))","v":800},{"$f":"INDEX(K:K,MATCH(D198,J:J,0))","v":"Diagnostisk radiologi"},{"$f":"INDEX(L:L,MATCH(E198,K:K,0))","v":"Diagnostisk_radiologi"}]
[26807,"Pædiatrisk radiologi","268",{"$f":"INDEX(J:J,MATCH(C199,I:I,0))","v":800},{"$f":"INDEX(K:K,MATCH(D199,J:J,0))","v":"Diagnostisk radiologi"},{"$f":"INDEX(L:L,MATCH(E199,K:K,0))","v":"Diagnostisk_radiologi"}]
[26808,"Thorax radiologi","268",{"$f":"INDEX(J:J,MATCH(C200,I:I,0))","v":800},{"$f":"INDEX(K:K,MATCH(D200,J:J,0))","v":"Diagnostisk radiologi"},{"$f":"INDEX(L:L,MATCH(E200,K:K,0))","v":"Diagnostisk_radiologi"}]
[26809,"Onkoradiologi","268",{"$f":"INDEX(J:J,MATCH(C201,I:I,0))","v":800},{"$f":"INDEX(K:K,MATCH(D201,J:J,0))","v":"Diagnostisk radiologi"},{"$f":"INDEX(L:L,MATCH(E201,K:K,0))","v":"Diagnostisk_radiologi"}]
[26810,"Teknik og strålebeskyttelse","268",{"$f":"INDEX(J:J,MATCH(C202,I:I,0))","v":800},{"$f":"INDEX(K:K,MATCH(D202,J:J,0))","v":"Diagnostisk radiologi"},{"$f":"INDEX(L:L,MATCH(E202,K:K,0))","v":"Diagnostisk_radiologi"}]
[26811,"Urogenital radiologi","268",{"$f":"INDEX(J:J,MATCH(C203,I:I,0))","v":800},{"$f":"INDEX(K:K,MATCH(D203,J:J,0))","v":"Diagnostisk radiologi"},{"$f":"INDEX(L:L,MATCH(E203,K:K,0))","v":"Diagnostisk_radiologi"}]
[26898,"kursusdag for delkursusledere","268",{"$f":"INDEX(J:J,MATCH(C204,I:I,0))","v":800},{"$f":"INDEX(K:K,MATCH(D204,J:J,0))","v":"Diagnostisk radiologi"},{"$f":"INDEX(L:L,MATCH(E204,K:K,0))","v":"Diagnostisk_radiologi"}]
[26901,"Intrapartal Obstetrik",{"$f":"IF(LEN(A205)=5,LEFT(A205,3),LEFT(A205,4))","v":"269"},{"$f":"INDEX(J:J,MATCH(C205,I:I,0))","v":900},{"$f":"INDEX(K:K,MATCH(D205,J:J,0))","v":"Gynækologi og obstetrik"},{"$f":"INDEX(L:L,MATCH(E205,K:K,0))","v":"Gynækologi_og_obstetrik"}]
[26902,"Urogynækologi","269",{"$f":"INDEX(J:J,MATCH(C206,I:I,0))","v":900},{"$f":"INDEX(K:K,MATCH(D206,J:J,0))","v":"Gynækologi og obstetrik"},{"$f":"INDEX(L:L,MATCH(E206,K:K,0))","v":"Gynækologi_og_obstetrik"}]
[26903,"Benign gynækologi","269",{"$f":"INDEX(J:J,MATCH(C207,I:I,0))","v":900},{"$f":"INDEX(K:K,MATCH(D207,J:J,0))","v":"Gynækologi og obstetrik"},{"$f":"INDEX(L:L,MATCH(E207,K:K,0))","v":"Gynækologi_og_obstetrik"}]
[26904,"Reproduktionsmedicin","269",{"$f":"INDEX(J:J,MATCH(C208,I:I,0))","v":900},{"$f":"INDEX(K:K,MATCH(D208,J:J,0))","v":"Gynækologi og obstetrik"},{"$f":"INDEX(L:L,MATCH(E208,K:K,0))","v":"Gynækologi_og_obstetrik"}]
[26905,"Kommunikation A","269",{"$f":"INDEX(J:J,MATCH(C209,I:I,0))","v":900},{"$f":"INDEX(K:K,MATCH(D209,J:J,0))","v":"Gynækologi og obstetrik"},{"$f":"INDEX(L:L,MATCH(E209,K:K,0))","v":"Gynækologi_og_obstetrik"}]
[26906,"Endokrin gynækologi","269",{"$f":"INDEX(J:J,MATCH(C210,I:I,0))","v":900},{"$f":"INDEX(K:K,MATCH(D210,J:J,0))","v":"Gynækologi og obstetrik"},{"$f":"INDEX(L:L,MATCH(E210,K:K,0))","v":"Gynækologi_og_obstetrik"}]
[26907,"Føtalmedicin","269",{"$f":"INDEX(J:J,MATCH(C211,I:I,0))","v":900},{"$f":"INDEX(K:K,MATCH(D211,J:J,0))","v":"Gynækologi og obstetrik"},{"$f":"INDEX(L:L,MATCH(E211,K:K,0))","v":"Gynækologi_og_obstetrik"}]
[26908,"Gynækologisk Onkologi","269",{"$f":"INDEX(J:J,MATCH(C212,I:I,0))","v":900},{"$f":"INDEX(K:K,MATCH(D212,J:J,0))","v":"Gynækologi og obstetrik"},{"$f":"INDEX(L:L,MATCH(E212,K:K,0))","v":"Gynækologi_og_obstetrik"}]
[26909,"Antepartal obstetrik","269",{"$f":"INDEX(J:J,MATCH(C213,I:I,0))","v":900},{"$f":"INDEX(K:K,MATCH(D213,J:J,0))","v":"Gynækologi og obstetrik"},{"$f":"INDEX(L:L,MATCH(E213,K:K,0))","v":"Gynækologi_og_obstetrik"}]
[26910,"Kommunikation B ","269",{"$f":"INDEX(J:J,MATCH(C214,I:I,0))","v":900},{"$f":"INDEX(K:K,MATCH(D214,J:J,0))","v":"Gynækologi og obstetrik"},{"$f":"INDEX(L:L,MATCH(E214,K:K,0))","v":"Gynækologi_og_obstetrik"}]
[26911,"Temadag","269",{"$f":"INDEX(J:J,MATCH(C215,I:I,0))","v":900},{"$f":"INDEX(K:K,MATCH(D215,J:J,0))","v":"Gynækologi og obstetrik"},{"$f":"INDEX(L:L,MATCH(E215,K:K,0))","v":"Gynækologi_og_obstetrik"}]
[261001,"Binyresygdomme","2610",{"$f":"INDEX(J:J,MATCH(C216,I:I,0))","v":1000},{"$f":"INDEX(K:K,MATCH(D216,J:J,0))","v":"IM: Endokrinologi"},{"$f":"INDEX(L:L,MATCH(E216,K:K,0))","v":"IM_Endokrinologi"}]
[261002,"Laboratorieteknik","2610",{"$f":"INDEX(J:J,MATCH(C217,I:I,0))","v":1000},{"$f":"INDEX(K:K,MATCH(D217,J:J,0))","v":"IM: Endokrinologi"},{"$f":"INDEX(L:L,MATCH(E217,K:K,0))","v":"IM_Endokrinologi"}]
[261003,"Knogle- og calciummetaboliske sygdomme","2610",{"$f":"INDEX(J:J,MATCH(C218,I:I,0))","v":1000},{"$f":"INDEX(K:K,MATCH(D218,J:J,0))","v":"IM: Endokrinologi"},{"$f":"INDEX(L:L,MATCH(E218,K:K,0))","v":"IM_Endokrinologi"}]
[261004,"Thyroideasygdomme","2610",{"$f":"INDEX(J:J,MATCH(C219,I:I,0))","v":1000},{"$f":"INDEX(K:K,MATCH(D219,J:J,0))","v":"IM: Endokrinologi"},{"$f":"INDEX(L:L,MATCH(E219,K:K,0))","v":"IM_Endokrinologi"}]
[261005,"Diabetes og ernæringsbetingede sygdomme","2610",{"$f":"INDEX(J:J,MATCH(C220,I:I,0))","v":1000},{"$f":"INDEX(K:K,MATCH(D220,J:J,0))","v":"IM: Endokrinologi"},{"$f":"INDEX(L:L,MATCH(E220,K:K,0))","v":"IM_Endokrinologi"}]
[261101,"Akut medicin, Nord - Maj","2611",{"$f":"INDEX(J:J,MATCH(C221,I:I,0))","v":1100},{"$f":"INDEX(K:K,MATCH(D221,J:J,0))","v":"IM: Fælleskurser"},{"$f":"INDEX(L:L,MATCH(E221,K:K,0))","v":"IM_Fælleskurser"}]
[261102,"Akut medicin, Syd - Maj","2611",{"$f":"INDEX(J:J,MATCH(C222,I:I,0))","v":1100},{"$f":"INDEX(K:K,MATCH(D222,J:J,0))","v":"IM: Fælleskurser"},{"$f":"INDEX(L:L,MATCH(E222,K:K,0))","v":"IM_Fælleskurser"}]
[261103,"Akut medicin, Øst - Maj","2611",{"$f":"INDEX(J:J,MATCH(C223,I:I,0))","v":1100},{"$f":"INDEX(K:K,MATCH(D223,J:J,0))","v":"IM: Fælleskurser"},{"$f":"INDEX(L:L,MATCH(E223,K:K,0))","v":"IM_Fælleskurser"}]
[261104,"Akut medicin, Nord - November","2611",{"$f":"INDEX(J:J,MATCH(C224,I:I,0))","v":1100},{"$f":"INDEX(K:K,MATCH(D224,J:J,0))","v":"IM: Fælleskurser"},{"$f":"INDEX(L:L,MATCH(E224,K:K,0))","v":"IM_Fælleskurser"}]
[261105,"Akut medicin, Syd - November","2611",{"$f":"INDEX(J:J,MATCH(C225,I:I,0))","v":1100},{"$f":"INDEX(K:K,MATCH(D225,J:J,0))","v":"IM: Fælleskurser"},{"$f":"INDEX(L:L,MATCH(E225,K:K,0))","v":"IM_Fælleskurser"}]
[261106,"Akut medicin, Øst - November","2611",{"$f":"INDEX(J:J,MATCH(C226,I:I,0))","v":1100},{"$f":"INDEX(K:K,MATCH(D226,J:J,0))","v":"IM: Fælleskurser"},{"$f":"INDEX(L:L,MATCH(E226,K:K,0))","v":"IM_Fælleskurser"}]
[261107,"De 8 selskabers kursusdag, Nord - Maj","2611",{"$f":"INDEX(J:J,MATCH(C227,I:I,0))","v":1100},{"$f":"INDEX(K:K,MATCH(D227,J:J,0))","v":"IM: Fælleskurser"},{"$f":"INDEX(L:L,MATCH(E227,K:K,0))","v":"IM_Fælleskurser"}]
[261108,"De 8 selskabers kursusdag, Syd - Maj","2611",{"$f":"INDEX(J:J,MATCH(C228,I:I,0))","v":1100},{"$f":"INDEX(K:K,MATCH(D228,J:J,0))","v":"IM: Fælleskurser"},{"$f":"INDEX(L:L,MATCH(E228,K:K,0))","v":"IM_Fælleskurser"}]
[261109,"De 8 selskabers kursusdag, Øst - Maj","2611",{"$f":"INDEX(J:J,MATCH(C229,I:I,0))","v":1100},{"$f":"INDEX(K:K,MATCH(D229,J:J,0))","v":"IM: Fælleskurser"},{"$f":"INDEX(L:L,MATCH(E229,K:K,0))","v":"IM_Fælleskurser"}]
[261110,"De 8 selskabers kursusdag, Nord - November","2611",{"$f":"INDEX(J:J,MATCH(C230,I:I,0))","v":1100},{"$f":"INDEX(K:K,MATCH(D230,J:J,0))","v":"IM: Fælleskurser"},{"$f":"INDEX(L:L,MATCH(E230,K:K,0))","v":"IM_Fælleskurser"}]
[261111,"De 8 selskabers kursusdag, Syd - November","2611",{"$f":"INDEX(J:J,MATCH(C231,I:I,0))","v":1100},{"$f":"INDEX(K:K,MATCH(D231,J:J,0))","v":"IM: Fælleskurser"},{"$f":"INDEX(L:L,MATCH(E231,K:K,0))","v":"IM_Fælleskurser"}]
[261112,"De 8 selskabers kursusdag, Øst - November","2611",{"$f":"INDEX(J:J,MATCH(C232,I:I,0))","v":1100},{"$f":"INDEX(K:K,MATCH(D232,J:J,0))","v":"IM: Fælleskurser"},{"$f":"INDEX(L:L,MATCH(E232,K:K,0))","v":"IM_Fælleskurser"}]
[261113,"Rationel farmakoterapi, Nord - Maj","2611",{"$f":"INDEX(J:J,MATCH(C233,I:I,0))","v":1100},{"$f":"INDEX(K:K,MATCH(D233,J:J,0))","v":"IM: Fælleskurser"},{"$f":"INDEX(L:L,MATCH(E233,K:K,0))","v":"IM_Fælleskurser"}]
[261114,"Rationel farmakoterapi, Syd - Maj","2611",{"$f":"INDEX(J:J,MATCH(C234,I:I,0))","v":1100},{"$f":"INDEX(K:K,MATCH(D234,J:J,0))","v":"IM: Fælleskurser"},{"$f":"INDEX(L:L,MATCH(E234,K:K,0))","v":"IM_Fælleskurser"}]
[261115,"Rationel farmakoterapi, Øst - Maj","2611",{"$f":"INDEX(J:J,MATCH(C235,I:I,0))","v":1100},{"$f":"INDEX(K:K,MATCH(D235,J:J,0))","v":"IM: Fælleskurser"},{"$f":"INDEX(L:L,MATCH(E235,K:K,0))","v":"IM_Fælleskurser"}]
[261116,"Rationel farmakoterapi, Nord - November","2611",{"$f":"INDEX(J:J,MATCH(C236,I:I,0))","v":1100},{"$f":"INDEX(K:K,MATCH(D236,J:J,0))","v":"IM: Fælleskurser"},{"$f":"INDEX(L:L,MATCH(E236,K:K,0))","v":"IM_Fælleskurser"}]
[261117,"Rationel farmakoterapi, Syd - November","2611",{"$f":"INDEX(J:J,MATCH(C237,I:I,0))","v":1100},{"$f":"INDEX(K:K,MATCH(D237,J:J,0))","v":"IM: Fælleskurser"},{"$f":"INDEX(L:L,MATCH(E237,K:K,0))","v":"IM_Fælleskurser"}]
[261118,"Rationel farmakoterapi, Øst - November","2611",{"$f":"INDEX(J:J,MATCH(C238,I:I,0))","v":1100},{"$f":"INDEX(K:K,MATCH(D238,J:J,0))","v":"IM: Fælleskurser"},{"$f":"INDEX(L:L,MATCH(E238,K:K,0))","v":"IM_Fælleskurser"}]
[261119,"Neurologi for intern medicinere, Nord - Maj","2611",{"$f":"INDEX(J:J,MATCH(C239,I:I,0))","v":1100},{"$f":"INDEX(K:K,MATCH(D239,J:J,0))","v":"IM: Fælleskurser"},{"$f":"INDEX(L:L,MATCH(E239,K:K,0))","v":"IM_Fælleskurser"}]
[261120,"Neurologi for intern medicinere, Syd - Maj","2611",{"$f":"INDEX(J:J,MATCH(C240,I:I,0))","v":1100},{"$f":"INDEX(K:K,MATCH(D240,J:J,0))","v":"IM: Fælleskurser"},{"$f":"INDEX(L:L,MATCH(E240,K:K,0))","v":"IM_Fælleskurser"}]
[261121,"Neurologi for intern medicinere, Øst - Maj","2611",{"$f":"INDEX(J:J,MATCH(C241,I:I,0))","v":1100},{"$f":"INDEX(K:K,MATCH(D241,J:J,0))","v":"IM: Fælleskurser"},{"$f":"INDEX(L:L,MATCH(E241,K:K,0))","v":"IM_Fælleskurser"}]
[261122,"Neurologi for intern medicinere, Nord - November","2611",{"$f":"INDEX(J:J,MATCH(C242,I:I,0))","v":1100},{"$f":"INDEX(K:K,MATCH(D242,J:J,0))","v":"IM: Fælleskurser"},{"$f":"INDEX(L:L,MATCH(E242,K:K,0))","v":"IM_Fælleskurser"}]
[261123,"Neurologi for intern medicinere, Syd - November","2611",{"$f":"INDEX(J:J,MATCH(C243,I:I,0))","v":1100},{"$f":"INDEX(K:K,MATCH(D243,J:J,0))","v":"IM: Fælleskurser"},{"$f":"INDEX(L:L,MATCH(E243,K:K,0))","v":"IM_Fælleskurser"}]
[261124,"Neurologi for intern medicinere, Øst - November","2611",{"$f":"INDEX(J:J,MATCH(C244,I:I,0))","v":1100},{"$f":"INDEX(K:K,MATCH(D244,J:J,0))","v":"IM: Fælleskurser"},{"$f":"INDEX(L:L,MATCH(E244,K:K,0))","v":"IM_Fælleskurser"}]
[261125,"Psykiatri for intern medicinere, Nord - Maj","2611",{"$f":"INDEX(J:J,MATCH(C245,I:I,0))","v":1100},{"$f":"INDEX(K:K,MATCH(D245,J:J,0))","v":"IM: Fælleskurser"},{"$f":"INDEX(L:L,MATCH(E245,K:K,0))","v":"IM_Fælleskurser"}]
[261126,"Psykiatri for intern medicinere, Syd - Maj","2611",{"$f":"INDEX(J:J,MATCH(C246,I:I,0))","v":1100},{"$f":"INDEX(K:K,MATCH(D246,J:J,0))","v":"IM: Fælleskurser"},{"$f":"INDEX(L:L,MATCH(E246,K:K,0))","v":"IM_Fælleskurser"}]
[261127,"Psykiatri for intern medicinere, Øst - Maj","2611",{"$f":"INDEX(J:J,MATCH(C247,I:I,0))","v":1100},{"$f":"INDEX(K:K,MATCH(D247,J:J,0))","v":"IM: Fælleskurser"},{"$f":"INDEX(L:L,MATCH(E247,K:K,0))","v":"IM_Fælleskurser"}]
[261128,"Psykiatri for intern medicinere, Nord - November","2611",{"$f":"INDEX(J:J,MATCH(C248,I:I,0))","v":1100},{"$f":"INDEX(K:K,MATCH(D248,J:J,0))","v":"IM: Fælleskurser"},{"$f":"INDEX(L:L,MATCH(E248,K:K,0))","v":"IM_Fælleskurser"}]
[261129,"Psykiatri for intern medicinere, Syd - November","2611",{"$f":"INDEX(J:J,MATCH(C249,I:I,0))","v":1100},{"$f":"INDEX(K:K,MATCH(D249,J:J,0))","v":"IM: Fælleskurser"},{"$f":"INDEX(L:L,MATCH(E249,K:K,0))","v":"IM_Fælleskurser"}]
[261130,"Psykiatri for intern medicinere, Øst - November","2611",{"$f":"INDEX(J:J,MATCH(C250,I:I,0))","v":1100},{"$f":"INDEX(K:K,MATCH(D250,J:J,0))","v":"IM: Fælleskurser"},{"$f":"INDEX(L:L,MATCH(E250,K:K,0))","v":"IM_Fælleskurser"}]
[261131,"Rationel klinisk beslutningsteori, Nord - Maj","2611",{"$f":"INDEX(J:J,MATCH(C251,I:I,0))","v":1100},{"$f":"INDEX(K:K,MATCH(D251,J:J,0))","v":"IM: Fælleskurser"},{"$f":"INDEX(L:L,MATCH(E251,K:K,0))","v":"IM_Fælleskurser"}]
[261132,"Rationel klinisk beslutningsteori, Syd - Maj","2611",{"$f":"INDEX(J:J,MATCH(C252,I:I,0))","v":1100},{"$f":"INDEX(K:K,MATCH(D252,J:J,0))","v":"IM: Fælleskurser"},{"$f":"INDEX(L:L,MATCH(E252,K:K,0))","v":"IM_Fælleskurser"}]
[261133,"Rationel klinisk beslutningsteori, Øst - Maj","2611",{"$f":"INDEX(J:J,MATCH(C253,I:I,0))","v":1100},{"$f":"INDEX(K:K,MATCH(D253,J:J,0))","v":"IM: Fælleskurser"},{"$f":"INDEX(L:L,MATCH(E253,K:K,0))","v":"IM_Fælleskurser"}]
[261134,"Rationel klinisk beslutningsteori, Nord - November","2611",{"$f":"INDEX(J:J,MATCH(C254,I:I,0))","v":1100},{"$f":"INDEX(K:K,MATCH(D254,J:J,0))","v":"IM: Fælleskurser"},{"$f":"INDEX(L:L,MATCH(E254,K:K,0))","v":"IM_Fælleskurser"}]
[261135,"Rationel klinisk beslutningsteori, Syd - November","2611",{"$f":"INDEX(J:J,MATCH(C255,I:I,0))","v":1100},{"$f":"INDEX(K:K,MATCH(D255,J:J,0))","v":"IM: Fælleskurser"},{"$f":"INDEX(L:L,MATCH(E255,K:K,0))","v":"IM_Fælleskurser"}]
[261136,"Rationel klinisk beslutningsteori, Øst - November","2611",{"$f":"INDEX(J:J,MATCH(C256,I:I,0))","v":1100},{"$f":"INDEX(K:K,MATCH(D256,J:J,0))","v":"IM: Fælleskurser"},{"$f":"INDEX(L:L,MATCH(E256,K:K,0))","v":"IM_Fælleskurser"}]
[261137,"Onkologi for intern medicinere, Nord - Maj","2611",{"$f":"INDEX(J:J,MATCH(C257,I:I,0))","v":1100},{"$f":"INDEX(K:K,MATCH(D257,J:J,0))","v":"IM: Fælleskurser"},{"$f":"INDEX(L:L,MATCH(E257,K:K,0))","v":"IM_Fælleskurser"}]
[261138,"Onkologi for intern medicinere, Syd - Maj","2611",{"$f":"INDEX(J:J,MATCH(C258,I:I,0))","v":1100},{"$f":"INDEX(K:K,MATCH(D258,J:J,0))","v":"IM: Fælleskurser"},{"$f":"INDEX(L:L,MATCH(E258,K:K,0))","v":"IM_Fælleskurser"}]
[261139,"Onkologi for intern medicinere, Øst - Maj","2611",{"$f":"INDEX(J:J,MATCH(C259,I:I,0))","v":1100},{"$f":"INDEX(K:K,MATCH(D259,J:J,0))","v":"IM: Fælleskurser"},{"$f":"INDEX(L:L,MATCH(E259,K:K,0))","v":"IM_Fælleskurser"}]
[261140,"Onkologi for intern medicinere, Nord - November","2611",{"$f":"INDEX(J:J,MATCH(C260,I:I,0))","v":1100},{"$f":"INDEX(K:K,MATCH(D260,J:J,0))","v":"IM: Fælleskurser"},{"$f":"INDEX(L:L,MATCH(E260,K:K,0))","v":"IM_Fælleskurser"}]
[261141,"Onkologi for intern medicinere, Syd - November","2611",{"$f":"INDEX(J:J,MATCH(C261,I:I,0))","v":1100},{"$f":"INDEX(K:K,MATCH(D261,J:J,0))","v":"IM: Fælleskurser"},{"$f":"INDEX(L:L,MATCH(E261,K:K,0))","v":"IM_Fælleskurser"}]
[261142,"Onkologi for intern medicinere, Øst - November","2611",{"$f":"INDEX(J:J,MATCH(C262,I:I,0))","v":1100},{"$f":"INDEX(K:K,MATCH(D262,J:J,0))","v":"IM: Fælleskurser"},{"$f":"INDEX(L:L,MATCH(E262,K:K,0))","v":"IM_Fælleskurser"}]
[261143,"Den terminale patient, palliativ behandling, Nord - Maj","2611",{"$f":"INDEX(J:J,MATCH(C263,I:I,0))","v":1100},{"$f":"INDEX(K:K,MATCH(D263,J:J,0))","v":"IM: Fælleskurser"},{"$f":"INDEX(L:L,MATCH(E263,K:K,0))","v":"IM_Fælleskurser"}]
[261144,"Den terminale patient, palliativ behandling, Syd - Maj","2611",{"$f":"INDEX(J:J,MATCH(C264,I:I,0))","v":1100},{"$f":"INDEX(K:K,MATCH(D264,J:J,0))","v":"IM: Fælleskurser"},{"$f":"INDEX(L:L,MATCH(E264,K:K,0))","v":"IM_Fælleskurser"}]
[261145,"Den terminale patient, palliativ behandling, Øst - Maj","2611",{"$f":"INDEX(J:J,MATCH(C265,I:I,0))","v":1100},{"$f":"INDEX(K:K,MATCH(D265,J:J,0))","v":"IM: Fælleskurser"},{"$f":"INDEX(L:L,MATCH(E265,K:K,0))","v":"IM_Fælleskurser"}]
[261146,"Den terminale patient, palliativ behandling, Nord - November","2611",{"$f":"INDEX(J:J,MATCH(C266,I:I,0))","v":1100},{"$f":"INDEX(K:K,MATCH(D266,J:J,0))","v":"IM: Fælleskurser"},{"$f":"INDEX(L:L,MATCH(E266,K:K,0))","v":"IM_Fælleskurser"}]
[261147,"Den terminale patient, palliativ behandling, Syd - November","2611",{"$f":"INDEX(J:J,MATCH(C267,I:I,0))","v":1100},{"$f":"INDEX(K:K,MATCH(D267,J:J,0))","v":"IM: Fælleskurser"},{"$f":"INDEX(L:L,MATCH(E267,K:K,0))","v":"IM_Fælleskurser"}]
[261148,"Den terminale patient, palliativ behandling, Øst - November","2611",{"$f":"INDEX(J:J,MATCH(C268,I:I,0))","v":1100},{"$f":"INDEX(K:K,MATCH(D268,J:J,0))","v":"IM: Fælleskurser"},{"$f":"INDEX(L:L,MATCH(E268,K:K,0))","v":"IM_Fælleskurser"}]
[261149,"Den ældre patient, Nord - Maj",{"$f":"IF(LEN(A269)=5,LEFT(A269,3),LEFT(A269,4))","v":"2611"},{"$f":"INDEX(J:J,MATCH(C269,I:I,0))","v":1100},{"$f":"INDEX(K:K,MATCH(D269,J:J,0))","v":"IM: Fælleskurser"},{"$f":"INDEX(L:L,MATCH(E269,K:K,0))","v":"IM_Fælleskurser"}]
[261150,"Den ældre patient, Syd - Maj","2611",{"$f":"INDEX(J:J,MATCH(C270,I:I,0))","v":1100},{"$f":"INDEX(K:K,MATCH(D270,J:J,0))","v":"IM: Fælleskurser"},{"$f":"INDEX(L:L,MATCH(E270,K:K,0))","v":"IM_Fælleskurser"}]
[261151,"Den ældre patient, Øst - Maj","2611",{"$f":"INDEX(J:J,MATCH(C271,I:I,0))","v":1100},{"$f":"INDEX(K:K,MATCH(D271,J:J,0))","v":"IM: Fælleskurser"},{"$f":"INDEX(L:L,MATCH(E271,K:K,0))","v":"IM_Fælleskurser"}]
[261152,"Den ældre patient, Nord - November","2611",{"$f":"INDEX(J:J,MATCH(C272,I:I,0))","v":1100},{"$f":"INDEX(K:K,MATCH(D272,J:J,0))","v":"IM: Fælleskurser"},{"$f":"INDEX(L:L,MATCH(E272,K:K,0))","v":"IM_Fælleskurser"}]
[261153,"Den ældre patient, Syd - November","2611",{"$f":"INDEX(J:J,MATCH(C273,I:I,0))","v":1100},{"$f":"INDEX(K:K,MATCH(D273,J:J,0))","v":"IM: Fælleskurser"},{"$f":"INDEX(L:L,MATCH(E273,K:K,0))","v":"IM_Fælleskurser"}]
[261154,"Den ældre patient, Øst - November","2611",{"$f":"INDEX(J:J,MATCH(C274,I:I,0))","v":1100},{"$f":"INDEX(K:K,MATCH(D274,J:J,0))","v":"IM: Fælleskurser"},{"$f":"INDEX(L:L,MATCH(E274,K:K,0))","v":"IM_Fælleskurser"}]
[261155,"rationel farmakoterapi, øst ekstra","2611",{"$f":"INDEX(J:J,MATCH(C275,I:I,0))","v":1100},{"$f":"INDEX(K:K,MATCH(D275,J:J,0))","v":"IM: Fælleskurser"},{"$f":"INDEX(L:L,MATCH(E275,K:K,0))","v":"IM_Fælleskurser"}]
[261156,"Neurologi for intern medicinere, Øst ekstra ","2611",{"$f":"INDEX(J:J,MATCH(C276,I:I,0))","v":1100},{"$f":"INDEX(K:K,MATCH(D276,J:J,0))","v":"IM: Fælleskurser"},{"$f":"INDEX(L:L,MATCH(E276,K:K,0))","v":"IM_Fælleskurser"}]
[261157,"Psykiatri for intern medicinerer, Øst ekstra ","2611",{"$f":"INDEX(J:J,MATCH(C277,I:I,0))","v":1100},{"$f":"INDEX(K:K,MATCH(D277,J:J,0))","v":"IM: Fælleskurser"},{"$f":"INDEX(L:L,MATCH(E277,K:K,0))","v":"IM_Fælleskurser"}]
[261201,"Gastrointestinal Endoskopi","2612",{"$f":"INDEX(J:J,MATCH(C278,I:I,0))","v":1200},{"$f":"INDEX(K:K,MATCH(D278,J:J,0))","v":"IM: Gastroenterologi og Hepatologi"},{"$f":"INDEX(L:L,MATCH(E278,K:K,0))","v":"IM_Gastroenterologi_og_Hepatologi"}]
[261202,"Gastrointestinal Billeddiagnostik","2612",{"$f":"INDEX(J:J,MATCH(C279,I:I,0))","v":1200},{"$f":"INDEX(K:K,MATCH(D279,J:J,0))","v":"IM: Gastroenterologi og Hepatologi"},{"$f":"INDEX(L:L,MATCH(E279,K:K,0))","v":"IM_Gastroenterologi_og_Hepatologi"}]
[261203,"Gastroenterologi","2612",{"$f":"INDEX(J:J,MATCH(C280,I:I,0))","v":1200},{"$f":"INDEX(K:K,MATCH(D280,J:J,0))","v":"IM: Gastroenterologi og Hepatologi"},{"$f":"INDEX(L:L,MATCH(E280,K:K,0))","v":"IM_Gastroenterologi_og_Hepatologi"}]
[261204,"Avanceret gastroenterologi","2612",{"$f":"INDEX(J:J,MATCH(C281,I:I,0))","v":1200},{"$f":"INDEX(K:K,MATCH(D281,J:J,0))","v":"IM: Gastroenterologi og Hepatologi"},{"$f":"INDEX(L:L,MATCH(E281,K:K,0))","v":"IM_Gastroenterologi_og_Hepatologi"}]
[261301,"Geriatriske sygdomme 2; Fald m.m.","2613",{"$f":"INDEX(J:J,MATCH(C282,I:I,0))","v":1300},{"$f":"INDEX(K:K,MATCH(D282,J:J,0))","v":"IM: Geriatri"},{"$f":"INDEX(L:L,MATCH(E282,K:K,0))","v":"IM_Geriatri"}]
[261302,"Aldring og Samfund","2613",{"$f":"INDEX(J:J,MATCH(C283,I:I,0))","v":1300},{"$f":"INDEX(K:K,MATCH(D283,J:J,0))","v":"IM: Geriatri"},{"$f":"INDEX(L:L,MATCH(E283,K:K,0))","v":"IM_Geriatri"}]
[261401,"Akut leukæmi, myelodysplasi og transplantation","2614",{"$f":"INDEX(J:J,MATCH(C284,I:I,0))","v":1400},{"$f":"INDEX(K:K,MATCH(D284,J:J,0))","v":"IM: Hæmatologi"},{"$f":"INDEX(L:L,MATCH(E284,K:K,0))","v":"IM_Hæmatologi"}]
[261402,"Myeloproliferativ neoplasi og trombofili","2614",{"$f":"INDEX(J:J,MATCH(C285,I:I,0))","v":1400},{"$f":"INDEX(K:K,MATCH(D285,J:J,0))","v":"IM: Hæmatologi"},{"$f":"INDEX(L:L,MATCH(E285,K:K,0))","v":"IM_Hæmatologi"}]
[261403,"Den hæmatologiske patient","2614",{"$f":"INDEX(J:J,MATCH(C286,I:I,0))","v":1400},{"$f":"INDEX(K:K,MATCH(D286,J:J,0))","v":"IM: Hæmatologi"},{"$f":"INDEX(L:L,MATCH(E286,K:K,0))","v":"IM_Hæmatologi"}]
[261404,"Kommunikation i hæmatologi","2614",{"$f":"INDEX(J:J,MATCH(C287,I:I,0))","v":1400},{"$f":"INDEX(K:K,MATCH(D287,J:J,0))","v":"IM: Hæmatologi"},{"$f":"INDEX(L:L,MATCH(E287,K:K,0))","v":"IM_Hæmatologi"}]
[261405,"Behandlingsmodaliteter i hæmatologi","2614",{"$f":"INDEX(J:J,MATCH(C288,I:I,0))","v":1400},{"$f":"INDEX(K:K,MATCH(D288,J:J,0))","v":"IM: Hæmatologi"},{"$f":"INDEX(L:L,MATCH(E288,K:K,0))","v":"IM_Hæmatologi"}]
[261501,"Immundefekt + Feber af ukendt årsag","2615",{"$f":"INDEX(J:J,MATCH(C289,I:I,0))","v":1500},{"$f":"INDEX(K:K,MATCH(D289,J:J,0))","v":"IM: Infektionsmedicin"},{"$f":"INDEX(L:L,MATCH(E289,K:K,0))","v":"IM_Infektionsmedicin"}]
[261502,"Kardiopulmonale infektioner + TB","2615",{"$f":"INDEX(J:J,MATCH(C290,I:I,0))","v":1500},{"$f":"INDEX(K:K,MATCH(D290,J:J,0))","v":"IM: Infektionsmedicin"},{"$f":"INDEX(L:L,MATCH(E290,K:K,0))","v":"IM_Infektionsmedicin"}]
[261503,"Gastroenterologiske infektioner og kronisk hepatitis","2615",{"$f":"INDEX(J:J,MATCH(C291,I:I,0))","v":1500},{"$f":"INDEX(K:K,MATCH(D291,J:J,0))","v":"IM: Infektionsmedicin"},{"$f":"INDEX(L:L,MATCH(E291,K:K,0))","v":"IM_Infektionsmedicin"}]
[261504,"Diplomkursus i tropemedicin","2615",{"$f":"INDEX(J:J,MATCH(C292,I:I,0))","v":1500},{"$f":"INDEX(K:K,MATCH(D292,J:J,0))","v":"IM: Infektionsmedicin"},{"$f":"INDEX(L:L,MATCH(E292,K:K,0))","v":"IM_Infektionsmedicin"}]
[261601,"TEE simulation","2616",{"$f":"INDEX(J:J,MATCH(C293,I:I,0))","v":1600},{"$f":"INDEX(K:K,MATCH(D293,J:J,0))","v":"IM: Kardiologi"},{"$f":"INDEX(L:L,MATCH(E293,K:K,0))","v":"IM_Kardiologi"}]
[261602,"TEE simulation","2616",{"$f":"INDEX(J:J,MATCH(C294,I:I,0))","v":1600},{"$f":"INDEX(K:K,MATCH(D294,J:J,0))","v":"IM: Kardiologi"},{"$f":"INDEX(L:L,MATCH(E294,K:K,0))","v":"IM_Kardiologi"}]
[261603,"ÅR 1 KURSUS (HU1)","2616",{"$f":"INDEX(J:J,MATCH(C295,I:I,0))","v":1600},{"$f":"INDEX(K:K,MATCH(D295,J:J,0))","v":"IM: Kardiologi"},{"$f":"INDEX(L:L,MATCH(E295,K:K,0))","v":"IM_Kardiologi"}]
[261604,"ÅR 2 KURSUS (HU2)","2616",{"$f":"INDEX(J:J,MATCH(C296,I:I,0))","v":1600},{"$f":"INDEX(K:K,MATCH(D296,J:J,0))","v":"IM: Kardiologi"},{"$f":"INDEX(L:L,MATCH(E296,K:K,0))","v":"IM_Kardiologi"}]
[261605,"ÅR 3 KURSUS (HU3)","2616",{"$f":"INDEX(J:J,MATCH(C297,I:I,0))","v":1600},{"$f":"INDEX(K:K,MATCH(D297,J:J,0))","v":"IM: Kardiologi"},{"$f":"INDEX(L:L,MATCH(E297,K:K,0))","v":"IM_Kardiologi"}]
[261606,"ÅR 4 KURSUS (HU4)","2616",{"$f":"INDEX(J:J,MATCH(C298,I:I,0))","v":1600},{"$f":"INDEX(K:K,MATCH(D298,J:J,0))","v":"IM: Kardiologi"},{"$f":"INDEX(L:L,MATCH(E298,K:K,0))","v":"IM_Kardiologi"}]
[261607,"ÅR 5 KURSUS (HU5)","2616",{"$f":"INDEX(J:J,MATCH(C299,I:I,0))","v":1600},{"$f":"INDEX(K:K,MATCH(D299,J:J,0))","v":"IM: Kardiologi"},{"$f":"INDEX(L:L,MATCH(E299,K:K,0))","v":"IM_Kardiologi"}]
[261701,"Kursus i Klinisk respirationsfysiologi","2617",{"$f":"INDEX(J:J,MATCH(C300,I:I,0))","v":1700},{"$f":"INDEX(K:K,MATCH(D300,J:J,0))","v":"IM: Lungesygdomme"},{"$f":"INDEX(L:L,MATCH(E300,K:K,0))","v":"IM_Lungesygdomme"}]
[261702,"Kursus i KOL og NIV","2617",{"$f":"INDEX(J:J,MATCH(C301,I:I,0))","v":1700},{"$f":"INDEX(K:K,MATCH(D301,J:J,0))","v":"IM: Lungesygdomme"},{"$f":"INDEX(L:L,MATCH(E301,K:K,0))","v":"IM_Lungesygdomme"}]
[261703,"Kursus i Astma","2617",{"$f":"INDEX(J:J,MATCH(C302,I:I,0))","v":1700},{"$f":"INDEX(K:K,MATCH(D302,J:J,0))","v":"IM: Lungesygdomme"},{"$f":"INDEX(L:L,MATCH(E302,K:K,0))","v":"IM_Lungesygdomme"}]
[261704,"Kursus i Allergi ","2617",{"$f":"INDEX(J:J,MATCH(C303,I:I,0))","v":1700},{"$f":"INDEX(K:K,MATCH(D303,J:J,0))","v":"IM: Lungesygdomme"},{"$f":"INDEX(L:L,MATCH(E303,K:K,0))","v":"IM_Lungesygdomme"}]
[261705,"Kursus i Pulmonale infektioner ","2617",{"$f":"INDEX(J:J,MATCH(C304,I:I,0))","v":1700},{"$f":"INDEX(K:K,MATCH(D304,J:J,0))","v":"IM: Lungesygdomme"},{"$f":"INDEX(L:L,MATCH(E304,K:K,0))","v":"IM_Lungesygdomme"}]
[261706,"Kursus i Infiltratudredning, pleuraeffusioner, mesotheliom og hæmoptyse ","2617",{"$f":"INDEX(J:J,MATCH(C305,I:I,0))","v":1700},{"$f":"INDEX(K:K,MATCH(D305,J:J,0))","v":"IM: Lungesygdomme"},{"$f":"INDEX(L:L,MATCH(E305,K:K,0))","v":"IM_Lungesygdomme"}]
[261707,"Kursus i Invasiv diagnostik ","2617",{"$f":"INDEX(J:J,MATCH(C306,I:I,0))","v":1700},{"$f":"INDEX(K:K,MATCH(D306,J:J,0))","v":"IM: Lungesygdomme"},{"$f":"INDEX(L:L,MATCH(E306,K:K,0))","v":"IM_Lungesygdomme"}]
[261708,"Kursus i Interstitielle Lungesygdomme ","2617",{"$f":"INDEX(J:J,MATCH(C307,I:I,0))","v":1700},{"$f":"INDEX(K:K,MATCH(D307,J:J,0))","v":"IM: Lungesygdomme"},{"$f":"INDEX(L:L,MATCH(E307,K:K,0))","v":"IM_Lungesygdomme"}]
[261801,"Transplantation og Immunologi","2618",{"$f":"INDEX(J:J,MATCH(C308,I:I,0))","v":1800},{"$f":"INDEX(K:K,MATCH(D308,J:J,0))","v":"IM: Nefrologi"},{"$f":"INDEX(L:L,MATCH(E308,K:K,0))","v":"IM_Nefrologi"}]
[261802,"Sekundær og kompliceret primær arteriel hypertension","2618",{"$f":"INDEX(J:J,MATCH(C309,I:I,0))","v":1800},{"$f":"INDEX(K:K,MATCH(D309,J:J,0))","v":"IM: Nefrologi"},{"$f":"INDEX(L:L,MATCH(E309,K:K,0))","v":"IM_Nefrologi"}]
[261901,"Delkursus 1 Inflammatoriske lidelser 1","2619",{"$f":"INDEX(J:J,MATCH(C310,I:I,0))","v":1900},{"$f":"INDEX(K:K,MATCH(D310,J:J,0))","v":"IM: Reumatologi"},{"$f":"INDEX(L:L,MATCH(E310,K:K,0))","v":"IM_Reumatologi"}]
[261902,"Delkursus 2 Inflammatoriske lidelser 2","2619",{"$f":"INDEX(J:J,MATCH(C311,I:I,0))","v":1900},{"$f":"INDEX(K:K,MATCH(D311,J:J,0))","v":"IM: Reumatologi"},{"$f":"INDEX(L:L,MATCH(E311,K:K,0))","v":"IM_Reumatologi"}]
[261903,"Delkursus 3, Den patologiske underekstremitet og degenerative rygsygdomme","2619",{"$f":"INDEX(J:J,MATCH(C312,I:I,0))","v":1900},{"$f":"INDEX(K:K,MATCH(D312,J:J,0))","v":"IM: Reumatologi"},{"$f":"INDEX(L:L,MATCH(E312,K:K,0))","v":"IM_Reumatologi"}]
[261904,"Delkursus 4. Den patologiske overekstremitet","2619",{"$f":"INDEX(J:J,MATCH(C313,I:I,0))","v":1900},{"$f":"INDEX(K:K,MATCH(D313,J:J,0))","v":"IM: Reumatologi"},{"$f":"INDEX(L:L,MATCH(E313,K:K,0))","v":"IM_Reumatologi"}]
[261905,"Delkursus 5. Vaskulit og bindevævssygdomme","2619",{"$f":"INDEX(J:J,MATCH(C314,I:I,0))","v":1900},{"$f":"INDEX(K:K,MATCH(D314,J:J,0))","v":"IM: Reumatologi"},{"$f":"INDEX(L:L,MATCH(E314,K:K,0))","v":"IM_Reumatologi"}]
[261906,"Delkursus 6. Komplekse reumatologiske tilstande","2619",{"$f":"INDEX(J:J,MATCH(C315,I:I,0))","v":1900},{"$f":"INDEX(K:K,MATCH(D315,J:J,0))","v":"IM: Reumatologi"},{"$f":"INDEX(L:L,MATCH(E315,K:K,0))","v":"IM_Reumatologi"}]
[261907,"USU-møder","2619",{"$f":"INDEX(J:J,MATCH(C316,I:I,0))","v":1900},{"$f":"INDEX(K:K,MATCH(D316,J:J,0))","v":"IM: Reumatologi"},{"$f":"INDEX(L:L,MATCH(E316,K:K,0))","v":"IM_Reumatologi"}]
[262001,"Basalt Ultralydskursus ESVS (9000)","2620",{"$f":"INDEX(J:J,MATCH(C317,I:I,0))","v":2000},{"$f":"INDEX(K:K,MATCH(D317,J:J,0))","v":"Karkirurgi"},{"$f":"INDEX(L:L,MATCH(E317,K:K,0))","v":"Karkirurgi"}]
[262002,"ENHANCE EVAR ESVS (15666)","2620",{"$f":"INDEX(J:J,MATCH(C318,I:I,0))","v":2000},{"$f":"INDEX(K:K,MATCH(D318,J:J,0))","v":"Karkirurgi"},{"$f":"INDEX(L:L,MATCH(E318,K:K,0))","v":"Karkirurgi"}]
[262003,"ENHANCE OPEN ESVS (17500)","2620",{"$f":"INDEX(J:J,MATCH(C319,I:I,0))","v":2000},{"$f":"INDEX(K:K,MATCH(D319,J:J,0))","v":"Karkirurgi"},{"$f":"INDEX(L:L,MATCH(E319,K:K,0))","v":"Karkirurgi"}]
[262004,"Kursus i endovaskulære teknikker (15000)","2620",{"$f":"INDEX(J:J,MATCH(C320,I:I,0))","v":2000},{"$f":"INDEX(K:K,MATCH(D320,J:J,0))","v":"Karkirurgi"},{"$f":"INDEX(L:L,MATCH(E320,K:K,0))","v":"Karkirurgi"}]
[262005,"ENHANCE PAD ESVS","2620",{"$f":"INDEX(J:J,MATCH(C321,I:I,0))","v":2000},{"$f":"INDEX(K:K,MATCH(D321,J:J,0))","v":"Karkirurgi"},{"$f":"INDEX(L:L,MATCH(E321,K:K,0))","v":"Karkirurgi"}]
[262006,"Kursus i venesygdomme for karkirurger","2620",{"$f":"INDEX(J:J,MATCH(C322,I:I,0))","v":2000},{"$f":"INDEX(K:K,MATCH(D322,J:J,0))","v":"Karkirurgi"},{"$f":"INDEX(L:L,MATCH(E322,K:K,0))","v":"Karkirurgi"}]
[262007,"Kursus i dialyse-adgange samt kar-relateret mikrobiologi og infektioner","2620",{"$f":"INDEX(J:J,MATCH(C323,I:I,0))","v":2000},{"$f":"INDEX(K:K,MATCH(D323,J:J,0))","v":"Karkirurgi"},{"$f":"INDEX(L:L,MATCH(E323,K:K,0))","v":"Karkirurgi"}]
[262101,"Mammakursus, Aarhus","2621",{"$f":"INDEX(J:J,MATCH(C324,I:I,0))","v":2100},{"$f":"INDEX(K:K,MATCH(D324,J:J,0))","v":"Kirurgi"},{"$f":"INDEX(L:L,MATCH(E324,K:K,0))","v":"Kirurgi"}]
[262102,"Teoretisk fælleskirurgisk kursus","2621",{"$f":"INDEX(J:J,MATCH(C325,I:I,0))","v":2100},{"$f":"INDEX(K:K,MATCH(D325,J:J,0))","v":"Kirurgi"},{"$f":"INDEX(L:L,MATCH(E325,K:K,0))","v":"Kirurgi"}]
[262103,"Den kirurgiske kræftpatient","2621",{"$f":"INDEX(J:J,MATCH(C326,I:I,0))","v":2100},{"$f":"INDEX(K:K,MATCH(D326,J:J,0))","v":"Kirurgi"},{"$f":"INDEX(L:L,MATCH(E326,K:K,0))","v":"Kirurgi"}]
[262104,"Avanceret kirurgisk endoskopi, Kbh","2621",{"$f":"INDEX(J:J,MATCH(C327,I:I,0))","v":2100},{"$f":"INDEX(K:K,MATCH(D327,J:J,0))","v":"Kirurgi"},{"$f":"INDEX(L:L,MATCH(E327,K:K,0))","v":"Kirurgi"}]
[262105,"Den akutte kirurgiske patient","2621",{"$f":"INDEX(J:J,MATCH(C328,I:I,0))","v":2100},{"$f":"INDEX(K:K,MATCH(D328,J:J,0))","v":"Kirurgi"},{"$f":"INDEX(L:L,MATCH(E328,K:K,0))","v":"Kirurgi"}]
[262106,"Børnekirurgi","2621",{"$f":"INDEX(J:J,MATCH(C329,I:I,0))","v":2100},{"$f":"INDEX(K:K,MATCH(D329,J:J,0))","v":"Kirurgi"},{"$f":"INDEX(L:L,MATCH(E329,K:K,0))","v":"Kirurgi"}]
[262107,"Traumatologi Aarhus","2621",{"$f":"INDEX(J:J,MATCH(C330,I:I,0))","v":2100},{"$f":"INDEX(K:K,MATCH(D330,J:J,0))","v":"Kirurgi"},{"$f":"INDEX(L:L,MATCH(E330,K:K,0))","v":"Kirurgi"}]
[262108,"Traumatologi ekstra pga. aflysning 2025, Aarhus","2621",{"$f":"INDEX(J:J,MATCH(C331,I:I,0))","v":2100},{"$f":"INDEX(K:K,MATCH(D331,J:J,0))","v":"Kirurgi"},{"$f":"INDEX(L:L,MATCH(E331,K:K,0))","v":"Kirurgi"}]
[262109,"Den akutte patient Aarhus","2621",{"$f":"INDEX(J:J,MATCH(C332,I:I,0))","v":2100},{"$f":"INDEX(K:K,MATCH(D332,J:J,0))","v":"Kirurgi"},{"$f":"INDEX(L:L,MATCH(E332,K:K,0))","v":"Kirurgi"}]
[262110,"Avanceret kirurgisk endoskopi, ",{"$f":"IF(LEN(A333)=5,LEFT(A333,3),LEFT(A333,4))","v":"2621"},{"$f":"INDEX(J:J,MATCH(C333,I:I,0))","v":2100},{"$f":"INDEX(K:K,MATCH(D333,J:J,0))","v":"Kirurgi"},{"$f":"INDEX(L:L,MATCH(E333,K:K,0))","v":"Kirurgi"}]
[262111,"Teoretisk fælleskirurgisk kursus","2621",{"$f":"INDEX(J:J,MATCH(C334,I:I,0))","v":2100},{"$f":"INDEX(K:K,MATCH(D334,J:J,0))","v":"Kirurgi"},{"$f":"INDEX(L:L,MATCH(E334,K:K,0))","v":"Kirurgi"}]
[262112,"Mammakursus, Aarhus","2621",{"$f":"INDEX(J:J,MATCH(C335,I:I,0))","v":2100},{"$f":"INDEX(K:K,MATCH(D335,J:J,0))","v":"Kirurgi"},{"$f":"INDEX(L:L,MATCH(E335,K:K,0))","v":"Kirurgi"}]
[262113,"Traumatologi Kbh","2621",{"$f":"INDEX(J:J,MATCH(C336,I:I,0))","v":2100},{"$f":"INDEX(K:K,MATCH(D336,J:J,0))","v":"Kirurgi"},{"$f":"INDEX(L:L,MATCH(E336,K:K,0))","v":"Kirurgi"}]
[262114,"Den kirurgiske kræftpatient Aarhus","2621",{"$f":"INDEX(J:J,MATCH(C337,I:I,0))","v":2100},{"$f":"INDEX(K:K,MATCH(D337,J:J,0))","v":"Kirurgi"},{"$f":"INDEX(L:L,MATCH(E337,K:K,0))","v":"Kirurgi"}]
[262115,"traumatologi Odense","2621",{"$f":"INDEX(J:J,MATCH(C338,I:I,0))","v":2100},{"$f":"INDEX(K:K,MATCH(D338,J:J,0))","v":"Kirurgi"},{"$f":"INDEX(L:L,MATCH(E338,K:K,0))","v":"Kirurgi"}]
[262116,"Børnekirurgi","2621",{"$f":"INDEX(J:J,MATCH(C339,I:I,0))","v":2100},{"$f":"INDEX(K:K,MATCH(D339,J:J,0))","v":"Kirurgi"},{"$f":"INDEX(L:L,MATCH(E339,K:K,0))","v":"Kirurgi"}]
[262201,"Praktisk fælleskirurgisk kursus, Århus","2622",{"$f":"INDEX(J:J,MATCH(C340,I:I,0))","v":2200},{"$f":"INDEX(K:K,MATCH(D340,J:J,0))","v":"Kir. færdighedskurser, KBH, Odense og Århus"},{"$f":"INDEX(L:L,MATCH(E340,K:K,0))","v":"Kir._færdighedskurser_KBH_Odense_og_Århus"}]
[262202,"Praktisk fælleskirurgisk kursus, Odense","2622",{"$f":"INDEX(J:J,MATCH(C341,I:I,0))","v":2200},{"$f":"INDEX(K:K,MATCH(D341,J:J,0))","v":"Kir. færdighedskurser, KBH, Odense og Århus"},{"$f":"INDEX(L:L,MATCH(E341,K:K,0))","v":"Kir._færdighedskurser_KBH_Odense_og_Århus"}]
[262203,"Laparoskopisk kirurgi, København","2622",{"$f":"INDEX(J:J,MATCH(C342,I:I,0))","v":2200},{"$f":"INDEX(K:K,MATCH(D342,J:J,0))","v":"Kir. færdighedskurser, KBH, Odense og Århus"},{"$f":"INDEX(L:L,MATCH(E342,K:K,0))","v":"Kir._færdighedskurser_KBH_Odense_og_Århus"}]
[262204,"Åben kirurgi, Odense","2622",{"$f":"INDEX(J:J,MATCH(C343,I:I,0))","v":2200},{"$f":"INDEX(K:K,MATCH(D343,J:J,0))","v":"Kir. færdighedskurser, KBH, Odense og Århus"},{"$f":"INDEX(L:L,MATCH(E343,K:K,0))","v":"Kir._færdighedskurser_KBH_Odense_og_Århus"}]
[262205,"Åben kirurgi, København","2622",{"$f":"INDEX(J:J,MATCH(C344,I:I,0))","v":2200},{"$f":"INDEX(K:K,MATCH(D344,J:J,0))","v":"Kir. færdighedskurser, KBH, Odense og Århus"},{"$f":"INDEX(L:L,MATCH(E344,K:K,0))","v":"Kir._færdighedskurser_KBH_Odense_og_Århus"}]
[262206,"Praktisk fælleskirurgisk kursus, København","2622",{"$f":"INDEX(J:J,MATCH(C345,I:I,0))","v":2200},{"$f":"INDEX(K:K,MATCH(D345,J:J,0))","v":"Kir. færdighedskurser, KBH, Odense og Århus"},{"$f":"INDEX(L:L,MATCH(E345,K:K,0))","v":"Kir._færdighedskurser_KBH_Odense_og_Århus"}]
[262207,"Laparoskopisk kursus, Århus","2622",{"$f":"INDEX(J:J,MATCH(C346,I:I,0))","v":2200},{"$f":"INDEX(K:K,MATCH(D346,J:J,0))","v":"Kir. færdighedskurser, KBH, Odense og Århus"},{"$f":"INDEX(L:L,MATCH(E346,K:K,0))","v":"Kir._færdighedskurser_KBH_Odense_og_Århus"}]
[262208,"Praktisk fælleskirurgisk kursus, Århus","2622",{"$f":"INDEX(J:J,MATCH(C347,I:I,0))","v":2200},{"$f":"INDEX(K:K,MATCH(D347,J:J,0))","v":"Kir. færdighedskurser, KBH, Odense og Århus"},{"$f":"INDEX(L:L,MATCH(E347,K:K,0))","v":"Kir._færdighedskurser_KBH_Odense_og_Århus"}]
[262209,"Åben kirurgi, Århus","2622",{"$f":"INDEX(J:J,MATCH(C348,I:I,0))","v":2200},{"$f":"INDEX(K:K,MATCH(D348,J:J,0))","v":"Kir. færdighedskurser, KBH, Odense og Århus"},{"$f":"INDEX(L:L,MATCH(E348,K:K,0))","v":"Kir._færdighedskurser_KBH_Odense_og_Århus"}]
[262210,"Praktisk fælleskirurgisk kursus, København","2622",{"$f":"INDEX(J:J,MATCH(C349,I:I,0))","v":2200},{"$f":"INDEX(K:K,MATCH(D349,J:J,0))","v":"Kir. færdighedskurser, KBH, Odense og Århus"},{"$f":"INDEX(L:L,MATCH(E349,K:K,0))","v":"Kir._færdighedskurser_KBH_Odense_og_Århus"}]
[262211,"Laparoskopisk kirurgi, Odense","2622",{"$f":"INDEX(J:J,MATCH(C350,I:I,0))","v":2200},{"$f":"INDEX(K:K,MATCH(D350,J:J,0))","v":"Kir. færdighedskurser, KBH, Odense og Århus"},{"$f":"INDEX(L:L,MATCH(E350,K:K,0))","v":"Kir._færdighedskurser_KBH_Odense_og_Århus"}]
[262401,"Endokrinologi","2624",{"$f":"INDEX(J:J,MATCH(C351,I:I,0))","v":2400},{"$f":"INDEX(K:K,MATCH(D351,J:J,0))","v":"Klinisk Biokemi"},{"$f":"INDEX(L:L,MATCH(E351,K:K,0))","v":"Klinisk_Biokemi"}]
[262402,"Molekylærbiologi i klinisk biokemi","2624",{"$f":"INDEX(J:J,MATCH(C352,I:I,0))","v":2400},{"$f":"INDEX(K:K,MATCH(D352,J:J,0))","v":"Klinisk Biokemi"},{"$f":"INDEX(L:L,MATCH(E352,K:K,0))","v":"Klinisk_Biokemi"}]
[262501,"Lægemiddeludvikling og administrativ farmakologi","2625",{"$f":"INDEX(J:J,MATCH(C353,I:I,0))","v":2500},{"$f":"INDEX(K:K,MATCH(D353,J:J,0))","v":"Klinisk Farmakologi"},{"$f":"INDEX(L:L,MATCH(E353,K:K,0))","v":"Klinisk_Farmakologi"}]
[262502,"Evidensbaseret farmakoterapi","2625",{"$f":"INDEX(J:J,MATCH(C354,I:I,0))","v":2500},{"$f":"INDEX(K:K,MATCH(D354,J:J,0))","v":"Klinisk Farmakologi"},{"$f":"INDEX(L:L,MATCH(E354,K:K,0))","v":"Klinisk_Farmakologi"}]
[262503,"Farmakoterapi til risikogrupper","2625",{"$f":"INDEX(J:J,MATCH(C355,I:I,0))","v":2500},{"$f":"INDEX(K:K,MATCH(D355,J:J,0))","v":"Klinisk Farmakologi"},{"$f":"INDEX(L:L,MATCH(E355,K:K,0))","v":"Klinisk_Farmakologi"}]
[262504,"Temadag for delkursusedere","2625",{"$f":"INDEX(J:J,MATCH(C356,I:I,0))","v":2500},{"$f":"INDEX(K:K,MATCH(D356,J:J,0))","v":"Klinisk Farmakologi"},{"$f":"INDEX(L:L,MATCH(E356,K:K,0))","v":"Klinisk_Farmakologi"}]
[262601,"Isotopteknik 1 - \"Radioaktive isotoper og \nioniserende stråling\" (Kbh)","2626",{"$f":"INDEX(J:J,MATCH(C357,I:I,0))","v":2600},{"$f":"INDEX(K:K,MATCH(D357,J:J,0))","v":"Klinisk Fysiologi og Nuklearmedicin"},{"$f":"INDEX(L:L,MATCH(E357,K:K,0))","v":"Klinisk_Fysiologi_og_Nuklearmedicin"}]
[262602,"Lungepatofysiologi ","2626",{"$f":"INDEX(J:J,MATCH(C358,I:I,0))","v":2600},{"$f":"INDEX(K:K,MATCH(D358,J:J,0))","v":"Klinisk Fysiologi og Nuklearmedicin"},{"$f":"INDEX(L:L,MATCH(E358,K:K,0))","v":"Klinisk_Fysiologi_og_Nuklearmedicin"}]
[262603,"Metodekursus 2 (CT og hybridteknikker)","2626",{"$f":"INDEX(J:J,MATCH(C359,I:I,0))","v":2600},{"$f":"INDEX(K:K,MATCH(D359,J:J,0))","v":"Klinisk Fysiologi og Nuklearmedicin"},{"$f":"INDEX(L:L,MATCH(E359,K:K,0))","v":"Klinisk_Fysiologi_og_Nuklearmedicin"}]
[262604,"Onkologisk diagnostik og behandling","2626",{"$f":"INDEX(J:J,MATCH(C360,I:I,0))","v":2600},{"$f":"INDEX(K:K,MATCH(D360,J:J,0))","v":"Klinisk Fysiologi og Nuklearmedicin"},{"$f":"INDEX(L:L,MATCH(E360,K:K,0))","v":"Klinisk_Fysiologi_og_Nuklearmedicin"}]
[262605,"Nyrernes og urinvejenes patofysiologi","2626",{"$f":"INDEX(J:J,MATCH(C361,I:I,0))","v":2600},{"$f":"INDEX(K:K,MATCH(D361,J:J,0))","v":"Klinisk Fysiologi og Nuklearmedicin"},{"$f":"INDEX(L:L,MATCH(E361,K:K,0))","v":"Klinisk_Fysiologi_og_Nuklearmedicin"}]
[262606,"Møde for kursusudvalget","2626",{"$f":"INDEX(J:J,MATCH(C362,I:I,0))","v":2600},{"$f":"INDEX(K:K,MATCH(D362,J:J,0))","v":"Klinisk Fysiologi og Nuklearmedicin"},{"$f":"INDEX(L:L,MATCH(E362,K:K,0))","v":"Klinisk_Fysiologi_og_Nuklearmedicin"}]
[262701,"Genetisk epidemiologi","2627",{"$f":"INDEX(J:J,MATCH(C363,I:I,0))","v":2700},{"$f":"INDEX(K:K,MATCH(D363,J:J,0))","v":"Klinisk Genetik"},{"$f":"INDEX(L:L,MATCH(E363,K:K,0))","v":"Klinisk_Genetik"}]
[262702,"Cytogenetik","2627",{"$f":"INDEX(J:J,MATCH(C364,I:I,0))","v":2700},{"$f":"INDEX(K:K,MATCH(D364,J:J,0))","v":"Klinisk Genetik"},{"$f":"INDEX(L:L,MATCH(E364,K:K,0))","v":"Klinisk_Genetik"}]
[262703,"Klinisk Genetik 2 ","2627",{"$f":"INDEX(J:J,MATCH(C365,I:I,0))","v":2700},{"$f":"INDEX(K:K,MATCH(D365,J:J,0))","v":"Klinisk Genetik"},{"$f":"INDEX(L:L,MATCH(E365,K:K,0))","v":"Klinisk_Genetik"}]
[262704,"Dysmorfologi","2627",{"$f":"INDEX(J:J,MATCH(C366,I:I,0))","v":2700},{"$f":"INDEX(K:K,MATCH(D366,J:J,0))","v":"Klinisk Genetik"},{"$f":"INDEX(L:L,MATCH(E366,K:K,0))","v":"Klinisk_Genetik"}]
[262801,"Transplantationsimmunologi","2628",{"$f":"INDEX(J:J,MATCH(C367,I:I,0))","v":2800},{"$f":"INDEX(K:K,MATCH(D367,J:J,0))","v":"Klinisk Immunologi"},{"$f":"INDEX(L:L,MATCH(E367,K:K,0))","v":"Klinisk_Immunologi"}]
[262802,"Produktion og anvendelse af celler og væv (SoHO) samt cellulær terapi","2628",{"$f":"INDEX(J:J,MATCH(C368,I:I,0))","v":2800},{"$f":"INDEX(K:K,MATCH(D368,J:J,0))","v":"Klinisk Immunologi"},{"$f":"INDEX(L:L,MATCH(E368,K:K,0))","v":"Klinisk_Immunologi"}]
[262901,"Kursus i epidemiologi","2629",{"$f":"INDEX(J:J,MATCH(C369,I:I,0))","v":2900},{"$f":"INDEX(K:K,MATCH(D369,J:J,0))","v":"Klinisk Mikrobiologi"},{"$f":"INDEX(L:L,MATCH(E369,K:K,0))","v":"Klinisk_Mikrobiologi"}]
[262902,"Kursus i klinisk virologi og serologi","2629",{"$f":"INDEX(J:J,MATCH(C370,I:I,0))","v":2900},{"$f":"INDEX(K:K,MATCH(D370,J:J,0))","v":"Klinisk Mikrobiologi"},{"$f":"INDEX(L:L,MATCH(E370,K:K,0))","v":"Klinisk_Mikrobiologi"}]
[262903,"Fremmedkursus - Optimised Dosing of Antibiotics","2629",{"$f":"INDEX(J:J,MATCH(C371,I:I,0))","v":2900},{"$f":"INDEX(K:K,MATCH(D371,J:J,0))","v":"Klinisk Mikrobiologi"},{"$f":"INDEX(L:L,MATCH(E371,K:K,0))","v":"Klinisk_Mikrobiologi"}]
[262904,"Fremmedkursus - Clinical Parasitology","2629",{"$f":"INDEX(J:J,MATCH(C372,I:I,0))","v":2900},{"$f":"INDEX(K:K,MATCH(D372,J:J,0))","v":"Klinisk Mikrobiologi"},{"$f":"INDEX(L:L,MATCH(E372,K:K,0))","v":"Klinisk_Mikrobiologi"}]
[263001,"Radioterapi 1, 2 og 3","2630",{"$f":"INDEX(J:J,MATCH(C373,I:I,0))","v":3000},{"$f":"INDEX(K:K,MATCH(D373,J:J,0))","v":"Klinisk Onkologi"},{"$f":"INDEX(L:L,MATCH(E373,K:K,0))","v":"Klinisk_Onkologi"}]
[263002,"Medicinsk Kræftbehandling","2630",{"$f":"INDEX(J:J,MATCH(C374,I:I,0))","v":3000},{"$f":"INDEX(K:K,MATCH(D374,J:J,0))","v":"Klinisk Onkologi"},{"$f":"INDEX(L:L,MATCH(E374,K:K,0))","v":"Klinisk_Onkologi"}]
[263003,"Kommunikation","2630",{"$f":"INDEX(J:J,MATCH(C375,I:I,0))","v":3000},{"$f":"INDEX(K:K,MATCH(D375,J:J,0))","v":"Klinisk Onkologi"},{"$f":"INDEX(L:L,MATCH(E375,K:K,0))","v":"Klinisk_Onkologi"}]
[263004,"Onkologiske Sygdomme","2630",{"$f":"INDEX(J:J,MATCH(C376,I:I,0))","v":3000},{"$f":"INDEX(K:K,MATCH(D376,J:J,0))","v":"Klinisk Onkologi"},{"$f":"INDEX(L:L,MATCH(E376,K:K,0))","v":"Klinisk_Onkologi"}]
[263005,"Intern Medicin & Komorbiditet","2630",{"$f":"INDEX(J:J,MATCH(C377,I:I,0))","v":3000},{"$f":"INDEX(K:K,MATCH(D377,J:J,0))","v":"Klinisk Onkologi"},{"$f":"INDEX(L:L,MATCH(E377,K:K,0))","v":"Klinisk_Onkologi"}]
[263006,"Understøttende Behandling","2630",{"$f":"INDEX(J:J,MATCH(C378,I:I,0))","v":3000},{"$f":"INDEX(K:K,MATCH(D378,J:J,0))","v":"Klinisk Onkologi"},{"$f":"INDEX(L:L,MATCH(E378,K:K,0))","v":"Klinisk_Onkologi"}]
[263007,"MDT","2630",{"$f":"INDEX(J:J,MATCH(C379,I:I,0))","v":3000},{"$f":"INDEX(K:K,MATCH(D379,J:J,0))","v":"Klinisk Onkologi"},{"$f":"INDEX(L:L,MATCH(E379,K:K,0))","v":"Klinisk_Onkologi"}]
[263101,"Internationalt kursus Beitostølen/EANS inklusiv undervisere","2631",{"$f":"INDEX(J:J,MATCH(C380,I:I,0))","v":3100},{"$f":"INDEX(K:K,MATCH(D380,J:J,0))","v":"Neurokirurgi"},{"$f":"INDEX(L:L,MATCH(E380,K:K,0))","v":"Neurokirurgi"}]
[263103,"Beslutningsteori og kommunikation","2631",{"$f":"INDEX(J:J,MATCH(C381,I:I,0))","v":3100},{"$f":"INDEX(K:K,MATCH(D381,J:J,0))","v":"Neurokirurgi"},{"$f":"INDEX(L:L,MATCH(E381,K:K,0))","v":"Neurokirurgi"}]
[263201,"Neurorehabilitering og smerter","2632",{"$f":"INDEX(J:J,MATCH(C382,I:I,0))","v":3200},{"$f":"INDEX(K:K,MATCH(D382,J:J,0))","v":"Neurologi"},{"$f":"INDEX(L:L,MATCH(E382,K:K,0))","v":"Neurologi"}]
[263202,"Bevægeforstyrrelser 1","2632",{"$f":"INDEX(J:J,MATCH(C383,I:I,0))","v":3200},{"$f":"INDEX(K:K,MATCH(D383,J:J,0))","v":"Neurologi"},{"$f":"INDEX(L:L,MATCH(E383,K:K,0))","v":"Neurologi"}]
[263203,"Bevægeforstyrrelser 2","2632",{"$f":"INDEX(J:J,MATCH(C384,I:I,0))","v":3200},{"$f":"INDEX(K:K,MATCH(D384,J:J,0))","v":"Neurologi"},{"$f":"INDEX(L:L,MATCH(E384,K:K,0))","v":"Neurologi"}]
[263204,"Hovedpine","2632",{"$f":"INDEX(J:J,MATCH(C385,I:I,0))","v":3200},{"$f":"INDEX(K:K,MATCH(D385,J:J,0))","v":"Neurologi"},{"$f":"INDEX(L:L,MATCH(E385,K:K,0))","v":"Neurologi"}]
[263205,"Socialneurologi","2632",{"$f":"INDEX(J:J,MATCH(C386,I:I,0))","v":3200},{"$f":"INDEX(K:K,MATCH(D386,J:J,0))","v":"Neurologi"},{"$f":"INDEX(L:L,MATCH(E386,K:K,0))","v":"Neurologi"}]
[263206,"Klinisk neurologi 1 ","2632",{"$f":"INDEX(J:J,MATCH(C387,I:I,0))","v":3200},{"$f":"INDEX(K:K,MATCH(D387,J:J,0))","v":"Neurologi"},{"$f":"INDEX(L:L,MATCH(E387,K:K,0))","v":"Neurologi"}]
[263207,"Neuromuskulære sygdomme I ","2632",{"$f":"INDEX(J:J,MATCH(C388,I:I,0))","v":3200},{"$f":"INDEX(K:K,MATCH(D388,J:J,0))","v":"Neurologi"},{"$f":"INDEX(L:L,MATCH(E388,K:K,0))","v":"Neurologi"}]
[263208,"Neuromuskulære sygdomme II","2632",{"$f":"INDEX(J:J,MATCH(C389,I:I,0))","v":3200},{"$f":"INDEX(K:K,MATCH(D389,J:J,0))","v":"Neurologi"},{"$f":"INDEX(L:L,MATCH(E389,K:K,0))","v":"Neurologi"}]
[263209,"Neuroonkologi","2632",{"$f":"INDEX(J:J,MATCH(C390,I:I,0))","v":3200},{"$f":"INDEX(K:K,MATCH(D390,J:J,0))","v":"Neurologi"},{"$f":"INDEX(L:L,MATCH(E390,K:K,0))","v":"Neurologi"}]
[263210,"Anfaldsfænomener og søvn","2632",{"$f":"INDEX(J:J,MATCH(C391,I:I,0))","v":3200},{"$f":"INDEX(K:K,MATCH(D391,J:J,0))","v":"Neurologi"},{"$f":"INDEX(L:L,MATCH(E391,K:K,0))","v":"Neurologi"}]
[263211,"Klinisk neurologi 1 ","2632",{"$f":"INDEX(J:J,MATCH(C392,I:I,0))","v":3200},{"$f":"INDEX(K:K,MATCH(D392,J:J,0))","v":"Neurologi"},{"$f":"INDEX(L:L,MATCH(E392,K:K,0))","v":"Neurologi"}]
[263301,"I1, Vejle","2633",{"$f":"INDEX(J:J,MATCH(C393,I:I,0))","v":3300},{"$f":"INDEX(K:K,MATCH(D393,J:J,0))","v":"Oftalmologi"},{"$f":"INDEX(L:L,MATCH(E393,K:K,0))","v":"Oftalmologi"}]
[263302,"I1, Kbh","2633",{"$f":"INDEX(J:J,MATCH(C394,I:I,0))","v":3300},{"$f":"INDEX(K:K,MATCH(D394,J:J,0))","v":"Oftalmologi"},{"$f":"INDEX(L:L,MATCH(E394,K:K,0))","v":"Oftalmologi"}]
[263303,"HB2","2633",{"$f":"INDEX(J:J,MATCH(C395,I:I,0))","v":3300},{"$f":"INDEX(K:K,MATCH(D395,J:J,0))","v":"Oftalmologi"},{"$f":"INDEX(L:L,MATCH(E395,K:K,0))","v":"Oftalmologi"}]
[263304,"HB3, Ålborg","2633",{"$f":"INDEX(J:J,MATCH(C396,I:I,0))","v":3300},{"$f":"INDEX(K:K,MATCH(D396,J:J,0))","v":"Oftalmologi"},{"$f":"INDEX(L:L,MATCH(E396,K:K,0))","v":"Oftalmologi"}]
[263305,"HB3, Kbh",{"$f":"IF(LEN(A397)=5,LEFT(A397,3),LEFT(A397,4))","v":"2633"},{"$f":"INDEX(J:J,MATCH(C397,I:I,0))","v":3300},{"$f":"INDEX(K:K,MATCH(D397,J:J,0))","v":"Oftalmologi"},{"$f":"INDEX(L:L,MATCH(E397,K:K,0))","v":"Oftalmologi"}]
[263306,"HB4","2633",{"$f":"INDEX(J:J,MATCH(C398,I:I,0))","v":3300},{"$f":"INDEX(K:K,MATCH(D398,J:J,0))","v":"Oftalmologi"},{"$f":"INDEX(L:L,MATCH(E398,K:K,0))","v":"Oftalmologi"}]
[263307,"HK5","2633",{"$f":"INDEX(J:J,MATCH(C399,I:I,0))","v":3300},{"$f":"INDEX(K:K,MATCH(D399,J:J,0))","v":"Oftalmologi"},{"$f":"INDEX(L:L,MATCH(E399,K:K,0))","v":"Oftalmologi"}]
[263308,"HK6","2633",{"$f":"INDEX(J:J,MATCH(C400,I:I,0))","v":3300},{"$f":"INDEX(K:K,MATCH(D400,J:J,0))","v":"Oftalmologi"},{"$f":"INDEX(L:L,MATCH(E400,K:K,0))","v":"Oftalmologi"}]
[263309,"HK7","2633",{"$f":"INDEX(J:J,MATCH(C401,I:I,0))","v":3300},{"$f":"INDEX(K:K,MATCH(D401,J:J,0))","v":"Oftalmologi"},{"$f":"INDEX(L:L,MATCH(E401,K:K,0))","v":"Oftalmologi"}]
[263310,"HK8","2633",{"$f":"INDEX(J:J,MATCH(C402,I:I,0))","v":3300},{"$f":"INDEX(K:K,MATCH(D402,J:J,0))","v":"Oftalmologi"},{"$f":"INDEX(L:L,MATCH(E402,K:K,0))","v":"Oftalmologi"}]
[263311,"HK9","2633",{"$f":"INDEX(J:J,MATCH(C403,I:I,0))","v":3300},{"$f":"INDEX(K:K,MATCH(D403,J:J,0))","v":"Oftalmologi"},{"$f":"INDEX(L:L,MATCH(E403,K:K,0))","v":"Oftalmologi"}]
[263312,"HK10","2633",{"$f":"INDEX(J:J,MATCH(C404,I:I,0))","v":3300},{"$f":"INDEX(K:K,MATCH(D404,J:J,0))","v":"Oftalmologi"},{"$f":"INDEX(L:L,MATCH(E404,K:K,0))","v":"Oftalmologi"}]
[263313,"HK11, Ålborg","2633",{"$f":"INDEX(J:J,MATCH(C405,I:I,0))","v":3300},{"$f":"INDEX(K:K,MATCH(D405,J:J,0))","v":"Oftalmologi"},{"$f":"INDEX(L:L,MATCH(E405,K:K,0))","v":"Oftalmologi"}]
[263314,"HK11, Kbh","2633",{"$f":"INDEX(J:J,MATCH(C406,I:I,0))","v":3300},{"$f":"INDEX(K:K,MATCH(D406,J:J,0))","v":"Oftalmologi"},{"$f":"INDEX(L:L,MATCH(E406,K:K,0))","v":"Oftalmologi"}]
[263315,"HK12","2633",{"$f":"INDEX(J:J,MATCH(C407,I:I,0))","v":3300},{"$f":"INDEX(K:K,MATCH(D407,J:J,0))","v":"Oftalmologi"},{"$f":"INDEX(L:L,MATCH(E407,K:K,0))","v":"Oftalmologi"}]
[263316,"HK13","2633",{"$f":"INDEX(J:J,MATCH(C408,I:I,0))","v":3300},{"$f":"INDEX(K:K,MATCH(D408,J:J,0))","v":"Oftalmologi"},{"$f":"INDEX(L:L,MATCH(E408,K:K,0))","v":"Oftalmologi"}]
[263317,"HK14","2633",{"$f":"INDEX(J:J,MATCH(C409,I:I,0))","v":3300},{"$f":"INDEX(K:K,MATCH(D409,J:J,0))","v":"Oftalmologi"},{"$f":"INDEX(L:L,MATCH(E409,K:K,0))","v":"Oftalmologi"}]
[263318,"HK12","2633",{"$f":"INDEX(J:J,MATCH(C410,I:I,0))","v":3300},{"$f":"INDEX(K:K,MATCH(D410,J:J,0))","v":"Oftalmologi"},{"$f":"INDEX(L:L,MATCH(E410,K:K,0))","v":"Oftalmologi"}]
[263401,"Protesekirurgi","2634",{"$f":"INDEX(J:J,MATCH(C411,I:I,0))","v":3400},{"$f":"INDEX(K:K,MATCH(D411,J:J,0))","v":"Ortopædisk kirurgi"},{"$f":"INDEX(L:L,MATCH(E411,K:K,0))","v":"Ortopædisk_kirurgi"}]
[263402,"Børneortopædi","2634",{"$f":"INDEX(J:J,MATCH(C412,I:I,0))","v":3400},{"$f":"INDEX(K:K,MATCH(D412,J:J,0))","v":"Ortopædisk kirurgi"},{"$f":"INDEX(L:L,MATCH(E412,K:K,0))","v":"Ortopædisk_kirurgi"}]
[263403,"Idrætstraumatologi","2634",{"$f":"INDEX(J:J,MATCH(C413,I:I,0))","v":3400},{"$f":"INDEX(K:K,MATCH(D413,J:J,0))","v":"Ortopædisk kirurgi"},{"$f":"INDEX(L:L,MATCH(E413,K:K,0))","v":"Ortopædisk_kirurgi"}]
[263404,"Rygkirurgi","2634",{"$f":"INDEX(J:J,MATCH(C414,I:I,0))","v":3400},{"$f":"INDEX(K:K,MATCH(D414,J:J,0))","v":"Ortopædisk kirurgi"},{"$f":"INDEX(L:L,MATCH(E414,K:K,0))","v":"Ortopædisk_kirurgi"}]
[263405,"Introduktion til HU Forår","2634",{"$f":"INDEX(J:J,MATCH(C415,I:I,0))","v":3400},{"$f":"INDEX(K:K,MATCH(D415,J:J,0))","v":"Ortopædisk kirurgi"},{"$f":"INDEX(L:L,MATCH(E415,K:K,0))","v":"Ortopædisk_kirurgi"}]
[263406,"Håndkirurgi","2634",{"$f":"INDEX(J:J,MATCH(C416,I:I,0))","v":3400},{"$f":"INDEX(K:K,MATCH(D416,J:J,0))","v":"Ortopædisk kirurgi"},{"$f":"INDEX(L:L,MATCH(E416,K:K,0))","v":"Ortopædisk_kirurgi"}]
[263407,"Traumatologi I","2634",{"$f":"INDEX(J:J,MATCH(C417,I:I,0))","v":3400},{"$f":"INDEX(K:K,MATCH(D417,J:J,0))","v":"Ortopædisk kirurgi"},{"$f":"INDEX(L:L,MATCH(E417,K:K,0))","v":"Ortopædisk_kirurgi"}]
[263408,"Traumatologi II","2634",{"$f":"INDEX(J:J,MATCH(C418,I:I,0))","v":3400},{"$f":"INDEX(K:K,MATCH(D418,J:J,0))","v":"Ortopædisk kirurgi"},{"$f":"INDEX(L:L,MATCH(E418,K:K,0))","v":"Ortopædisk_kirurgi"}]
[263409,"Tumorkirurgi","2634",{"$f":"INDEX(J:J,MATCH(C419,I:I,0))","v":3400},{"$f":"INDEX(K:K,MATCH(D419,J:J,0))","v":"Ortopædisk kirurgi"},{"$f":"INDEX(L:L,MATCH(E419,K:K,0))","v":"Ortopædisk_kirurgi"}]
[263410,"Fod og Ankel Kirurgi","2634",{"$f":"INDEX(J:J,MATCH(C420,I:I,0))","v":3400},{"$f":"INDEX(K:K,MATCH(D420,J:J,0))","v":"Ortopædisk kirurgi"},{"$f":"INDEX(L:L,MATCH(E420,K:K,0))","v":"Ortopædisk_kirurgi"}]
[263411,"Introduktion til HU Efterår","2634",{"$f":"INDEX(J:J,MATCH(C421,I:I,0))","v":3400},{"$f":"INDEX(K:K,MATCH(D421,J:J,0))","v":"Ortopædisk kirurgi"},{"$f":"INDEX(L:L,MATCH(E421,K:K,0))","v":"Ortopædisk_kirurgi"}]
[263412,"Infektionskirurgi","2634",{"$f":"INDEX(J:J,MATCH(C422,I:I,0))","v":3400},{"$f":"INDEX(K:K,MATCH(D422,J:J,0))","v":"Ortopædisk kirurgi"},{"$f":"INDEX(L:L,MATCH(E422,K:K,0))","v":"Ortopædisk_kirurgi"}]
[263413,"Skulder og Albue Kirurgi","2634",{"$f":"INDEX(J:J,MATCH(C423,I:I,0))","v":3400},{"$f":"INDEX(K:K,MATCH(D423,J:J,0))","v":"Ortopædisk kirurgi"},{"$f":"INDEX(L:L,MATCH(E423,K:K,0))","v":"Ortopædisk_kirurgi"}]
[263501,"Mellemøret","2635",{"$f":"INDEX(J:J,MATCH(C424,I:I,0))","v":3500},{"$f":"INDEX(K:K,MATCH(D424,J:J,0))","v":"Oto-rhino-laryngologi"},{"$f":"INDEX(L:L,MATCH(E424,K:K,0))","v":"Oto_rhino_laryngologi"}]
[263502,"Næse- og bihuler","2635",{"$f":"INDEX(J:J,MATCH(C425,I:I,0))","v":3500},{"$f":"INDEX(K:K,MATCH(D425,J:J,0))","v":"Oto-rhino-laryngologi"},{"$f":"INDEX(L:L,MATCH(E425,K:K,0))","v":"Oto_rhino_laryngologi"}]
[263503,"Billeddiagnostik","2635",{"$f":"INDEX(J:J,MATCH(C426,I:I,0))","v":3500},{"$f":"INDEX(K:K,MATCH(D426,J:J,0))","v":"Oto-rhino-laryngologi"},{"$f":"INDEX(L:L,MATCH(E426,K:K,0))","v":"Oto_rhino_laryngologi"}]
[263504,"Hoved-Hals kirurgi","2635",{"$f":"INDEX(J:J,MATCH(C427,I:I,0))","v":3500},{"$f":"INDEX(K:K,MATCH(D427,J:J,0))","v":"Oto-rhino-laryngologi"},{"$f":"INDEX(L:L,MATCH(E427,K:K,0))","v":"Oto_rhino_laryngologi"}]
[263505,"Endoskopi","2635",{"$f":"INDEX(J:J,MATCH(C428,I:I,0))","v":3500},{"$f":"INDEX(K:K,MATCH(D428,J:J,0))","v":"Oto-rhino-laryngologi"},{"$f":"INDEX(L:L,MATCH(E428,K:K,0))","v":"Oto_rhino_laryngologi"}]
[263506,"Praksis","2635",{"$f":"INDEX(J:J,MATCH(C429,I:I,0))","v":3500},{"$f":"INDEX(K:K,MATCH(D429,J:J,0))","v":"Oto-rhino-laryngologi"},{"$f":"INDEX(L:L,MATCH(E429,K:K,0))","v":"Oto_rhino_laryngologi"}]
[263507,"Audiologi","2635",{"$f":"INDEX(J:J,MATCH(C430,I:I,0))","v":3500},{"$f":"INDEX(K:K,MATCH(D430,J:J,0))","v":"Oto-rhino-laryngologi"},{"$f":"INDEX(L:L,MATCH(E430,K:K,0))","v":"Oto_rhino_laryngologi"}]
[263508,"Paraklinik","2635",{"$f":"INDEX(J:J,MATCH(C431,I:I,0))","v":3500},{"$f":"INDEX(K:K,MATCH(D431,J:J,0))","v":"Oto-rhino-laryngologi"},{"$f":"INDEX(L:L,MATCH(E431,K:K,0))","v":"Oto_rhino_laryngologi"}]
[263509,"Vestibulogi","2635",{"$f":"INDEX(J:J,MATCH(C432,I:I,0))","v":3500},{"$f":"INDEX(K:K,MATCH(D432,J:J,0))","v":"Oto-rhino-laryngologi"},{"$f":"INDEX(L:L,MATCH(E432,K:K,0))","v":"Oto_rhino_laryngologi"}]
[263599,"Uddannelsesrådsmøde 2026","2635",{"$f":"INDEX(J:J,MATCH(C433,I:I,0))","v":3500},{"$f":"INDEX(K:K,MATCH(D433,J:J,0))","v":"Oto-rhino-laryngologi"},{"$f":"INDEX(L:L,MATCH(E433,K:K,0))","v":"Oto_rhino_laryngologi"}]
[263598,"Planlægningsmøde til Praksis kurset","2635",{"$f":"INDEX(J:J,MATCH(C434,I:I,0))","v":3500},{"$f":"INDEX(K:K,MATCH(D434,J:J,0))","v":"Oto-rhino-laryngologi"},{"$f":"INDEX(L:L,MATCH(E434,K:K,0))","v":"Oto_rhino_laryngologi"}]
[263601,"Introduktionskursus","2636",{"$f":"INDEX(J:J,MATCH(C435,I:I,0))","v":3600},{"$f":"INDEX(K:K,MATCH(D435,J:J,0))","v":"Patologisk anatomi og cytologi"},{"$f":"INDEX(L:L,MATCH(E435,K:K,0))","v":"Patologisk_anatomi_og_cytologi"}]
[263602,"Diagnostiske metoder","2636",{"$f":"INDEX(J:J,MATCH(C436,I:I,0))","v":3600},{"$f":"INDEX(K:K,MATCH(D436,J:J,0))","v":"Patologisk anatomi og cytologi"},{"$f":"INDEX(L:L,MATCH(E436,K:K,0))","v":"Patologisk_anatomi_og_cytologi"}]
[263603,"Gastrointestinal patologi","2636",{"$f":"INDEX(J:J,MATCH(C437,I:I,0))","v":3600},{"$f":"INDEX(K:K,MATCH(D437,J:J,0))","v":"Patologisk anatomi og cytologi"},{"$f":"INDEX(L:L,MATCH(E437,K:K,0))","v":"Patologisk_anatomi_og_cytologi"}]
[263604,"Mammapatologi","2636",{"$f":"INDEX(J:J,MATCH(C438,I:I,0))","v":3600},{"$f":"INDEX(K:K,MATCH(D438,J:J,0))","v":"Patologisk anatomi og cytologi"},{"$f":"INDEX(L:L,MATCH(E438,K:K,0))","v":"Patologisk_anatomi_og_cytologi"}]
[263605,"Uro- nyre- og testispatologi","2636",{"$f":"INDEX(J:J,MATCH(C439,I:I,0))","v":3600},{"$f":"INDEX(K:K,MATCH(D439,J:J,0))","v":"Patologisk anatomi og cytologi"},{"$f":"INDEX(L:L,MATCH(E439,K:K,0))","v":"Patologisk_anatomi_og_cytologi"}]
[263606,"Gynækopatologi","2636",{"$f":"INDEX(J:J,MATCH(C440,I:I,0))","v":3600},{"$f":"INDEX(K:K,MATCH(D440,J:J,0))","v":"Patologisk anatomi og cytologi"},{"$f":"INDEX(L:L,MATCH(E440,K:K,0))","v":"Patologisk_anatomi_og_cytologi"}]
[263607,"Nedre luftvejes patologi","2636",{"$f":"INDEX(J:J,MATCH(C441,I:I,0))","v":3600},{"$f":"INDEX(K:K,MATCH(D441,J:J,0))","v":"Patologisk anatomi og cytologi"},{"$f":"INDEX(L:L,MATCH(E441,K:K,0))","v":"Patologisk_anatomi_og_cytologi"}]
[263608,"Molekylærpatologi","2636",{"$f":"INDEX(J:J,MATCH(C442,I:I,0))","v":3600},{"$f":"INDEX(K:K,MATCH(D442,J:J,0))","v":"Patologisk anatomi og cytologi"},{"$f":"INDEX(L:L,MATCH(E442,K:K,0))","v":"Patologisk_anatomi_og_cytologi"}]
[263609,"Øvre luftvejes patologi","2636",{"$f":"INDEX(J:J,MATCH(C443,I:I,0))","v":3600},{"$f":"INDEX(K:K,MATCH(D443,J:J,0))","v":"Patologisk anatomi og cytologi"},{"$f":"INDEX(L:L,MATCH(E443,K:K,0))","v":"Patologisk_anatomi_og_cytologi"}]
[263610,"Dermatopatologi","2636",{"$f":"INDEX(J:J,MATCH(C444,I:I,0))","v":3600},{"$f":"INDEX(K:K,MATCH(D444,J:J,0))","v":"Patologisk anatomi og cytologi"},{"$f":"INDEX(L:L,MATCH(E444,K:K,0))","v":"Patologisk_anatomi_og_cytologi"}]
[263611,"Hæmatopatologi","2636",{"$f":"INDEX(J:J,MATCH(C445,I:I,0))","v":3600},{"$f":"INDEX(K:K,MATCH(D445,J:J,0))","v":"Patologisk anatomi og cytologi"},{"$f":"INDEX(L:L,MATCH(E445,K:K,0))","v":"Patologisk_anatomi_og_cytologi"}]
[263612,"CNS- og muskelpatologi","2636",{"$f":"INDEX(J:J,MATCH(C446,I:I,0))","v":3600},{"$f":"INDEX(K:K,MATCH(D446,J:J,0))","v":"Patologisk anatomi og cytologi"},{"$f":"INDEX(L:L,MATCH(E446,K:K,0))","v":"Patologisk_anatomi_og_cytologi"}]
[263613,"Lever- og pancreaspatologi","2636",{"$f":"INDEX(J:J,MATCH(C447,I:I,0))","v":3600},{"$f":"INDEX(K:K,MATCH(D447,J:J,0))","v":"Patologisk anatomi og cytologi"},{"$f":"INDEX(L:L,MATCH(E447,K:K,0))","v":"Patologisk_anatomi_og_cytologi"}]
[263614,"Knogle- og bløddelspatologi","2636",{"$f":"INDEX(J:J,MATCH(C448,I:I,0))","v":3600},{"$f":"INDEX(K:K,MATCH(D448,J:J,0))","v":"Patologisk anatomi og cytologi"},{"$f":"INDEX(L:L,MATCH(E448,K:K,0))","v":"Patologisk_anatomi_og_cytologi"}]
[263701,"Nordisk kursus I, Misdannelser","2637",{"$f":"INDEX(J:J,MATCH(C449,I:I,0))","v":3700},{"$f":"INDEX(K:K,MATCH(D449,J:J,0))","v":"Plastikkirurgi"},{"$f":"INDEX(L:L,MATCH(E449,K:K,0))","v":"Plastikkirurgi"}]
[263002,"Nordisk kursus II, Traume","2630",{"$f":"INDEX(J:J,MATCH(C450,I:I,0))","v":3000},{"$f":"INDEX(K:K,MATCH(D450,J:J,0))","v":"Klinisk Onkologi"},{"$f":"INDEX(L:L,MATCH(E450,K:K,0))","v":"Klinisk_Onkologi"}]
[263703,"Nordisk kursus III, Cancer","2637",{"$f":"INDEX(J:J,MATCH(C451,I:I,0))","v":3700},{"$f":"INDEX(K:K,MATCH(D451,J:J,0))","v":"Plastikkirurgi"},{"$f":"INDEX(L:L,MATCH(E451,K:K,0))","v":"Plastikkirurgi"}]
[263704,"Nordisk Kursus IV, Æstetisk","2637",{"$f":"INDEX(J:J,MATCH(C452,I:I,0))","v":3700},{"$f":"INDEX(K:K,MATCH(D452,J:J,0))","v":"Plastikkirurgi"},{"$f":"INDEX(L:L,MATCH(E452,K:K,0))","v":"Plastikkirurgi"}]
[263705,"Mikrokirurgi","2637",{"$f":"INDEX(J:J,MATCH(C453,I:I,0))","v":3700},{"$f":"INDEX(K:K,MATCH(D453,J:J,0))","v":"Plastikkirurgi"},{"$f":"INDEX(L:L,MATCH(E453,K:K,0))","v":"Plastikkirurgi"}]
[263706,"ATLS","2637",{"$f":"INDEX(J:J,MATCH(C454,I:I,0))","v":3700},{"$f":"INDEX(K:K,MATCH(D454,J:J,0))","v":"Plastikkirurgi"},{"$f":"INDEX(L:L,MATCH(E454,K:K,0))","v":"Plastikkirurgi"}]
[263707,"Nordisk kursusledermøde og nationale uddannelsesmøder","2637",{"$f":"INDEX(J:J,MATCH(C455,I:I,0))","v":3700},{"$f":"INDEX(K:K,MATCH(D455,J:J,0))","v":"Plastikkirurgi"},{"$f":"INDEX(L:L,MATCH(E455,K:K,0))","v":"Plastikkirurgi"}]
[263801,"Ældrepsykiatri","2638",{"$f":"INDEX(J:J,MATCH(C456,I:I,0))","v":3800},{"$f":"INDEX(K:K,MATCH(D456,J:J,0))","v":"Psykiatri"},{"$f":"INDEX(L:L,MATCH(E456,K:K,0))","v":"Psykiatri"}]
[263802,"Psykiatriens organisatoriske og sociale aspekter","2638",{"$f":"INDEX(J:J,MATCH(C457,I:I,0))","v":3800},{"$f":"INDEX(K:K,MATCH(D457,J:J,0))","v":"Psykiatri"},{"$f":"INDEX(L:L,MATCH(E457,K:K,0))","v":"Psykiatri"}]
[263803,"Teoretisk grundlag for psykoterapi","2638",{"$f":"INDEX(J:J,MATCH(C458,I:I,0))","v":3800},{"$f":"INDEX(K:K,MATCH(D458,J:J,0))","v":"Psykiatri"},{"$f":"INDEX(L:L,MATCH(E458,K:K,0))","v":"Psykiatri"}]
[263804,"Neuropsykiatri","2638",{"$f":"INDEX(J:J,MATCH(C459,I:I,0))","v":3800},{"$f":"INDEX(K:K,MATCH(D459,J:J,0))","v":"Psykiatri"},{"$f":"INDEX(L:L,MATCH(E459,K:K,0))","v":"Psykiatri"}]
[263805,"Børne- og ungdomspsyk. lidelser med forløb ind i voksenalderen (1 dag)","2638",{"$f":"INDEX(J:J,MATCH(C460,I:I,0))","v":3800},{"$f":"INDEX(K:K,MATCH(D460,J:J,0))","v":"Psykiatri"},{"$f":"INDEX(L:L,MATCH(E460,K:K,0))","v":"Psykiatri"}]
[263806,"Oligofreni ",{"$f":"IF(LEN(A461)=5,LEFT(A461,3),LEFT(A461,4))","v":"2638"},{"$f":"INDEX(J:J,MATCH(C461,I:I,0))","v":3800},{"$f":"INDEX(K:K,MATCH(D461,J:J,0))","v":"Psykiatri"},{"$f":"INDEX(L:L,MATCH(E461,K:K,0))","v":"Psykiatri"}]
[263807,"I Psykopatologi","2638",{"$f":"INDEX(J:J,MATCH(C462,I:I,0))","v":3800},{"$f":"INDEX(K:K,MATCH(D462,J:J,0))","v":"Psykiatri"},{"$f":"INDEX(L:L,MATCH(E462,K:K,0))","v":"Psykiatri"}]
[263808,"III Psykopatologi","2638",{"$f":"INDEX(J:J,MATCH(C463,I:I,0))","v":3800},{"$f":"INDEX(K:K,MATCH(D463,J:J,0))","v":"Psykiatri"},{"$f":"INDEX(L:L,MATCH(E463,K:K,0))","v":"Psykiatri"}]
[263809,"Ældrepsykiatri","2638",{"$f":"INDEX(J:J,MATCH(C464,I:I,0))","v":3800},{"$f":"INDEX(K:K,MATCH(D464,J:J,0))","v":"Psykiatri"},{"$f":"INDEX(L:L,MATCH(E464,K:K,0))","v":"Psykiatri"}]
[263810,"Misbrug (2 dage)","2638",{"$f":"INDEX(J:J,MATCH(C465,I:I,0))","v":3800},{"$f":"INDEX(K:K,MATCH(D465,J:J,0))","v":"Psykiatri"},{"$f":"INDEX(L:L,MATCH(E465,K:K,0))","v":"Psykiatri"}]
[263811,"Erklæringsudstedelse (1 dag)","2638",{"$f":"INDEX(J:J,MATCH(C466,I:I,0))","v":3800},{"$f":"INDEX(K:K,MATCH(D466,J:J,0))","v":"Psykiatri"},{"$f":"INDEX(L:L,MATCH(E466,K:K,0))","v":"Psykiatri"}]
[263812,"Biologiske behandlingsmetoder","2638",{"$f":"INDEX(J:J,MATCH(C467,I:I,0))","v":3800},{"$f":"INDEX(K:K,MATCH(D467,J:J,0))","v":"Psykiatri"},{"$f":"INDEX(L:L,MATCH(E467,K:K,0))","v":"Psykiatri"}]
[263813,"II Psykopatologi","2638",{"$f":"INDEX(J:J,MATCH(C468,I:I,0))","v":3800},{"$f":"INDEX(K:K,MATCH(D468,J:J,0))","v":"Psykiatri"},{"$f":"INDEX(L:L,MATCH(E468,K:K,0))","v":"Psykiatri"}]
[263814,"Børne- og ungdomspsyk. lidelser med forløb ind i voksenalderen (1 dag)","2638",{"$f":"INDEX(J:J,MATCH(C469,I:I,0))","v":3800},{"$f":"INDEX(K:K,MATCH(D469,J:J,0))","v":"Psykiatri"},{"$f":"INDEX(L:L,MATCH(E469,K:K,0))","v":"Psykiatri"}]
[263815,"Oligofreni ","2638",{"$f":"INDEX(J:J,MATCH(C470,I:I,0))","v":3800},{"$f":"INDEX(K:K,MATCH(D470,J:J,0))","v":"Psykiatri"},{"$f":"INDEX(L:L,MATCH(E470,K:K,0))","v":"Psykiatri"}]
[263816,"Retspsykiatri","2638",{"$f":"INDEX(J:J,MATCH(C471,I:I,0))","v":3800},{"$f":"INDEX(K:K,MATCH(D471,J:J,0))","v":"Psykiatri"},{"$f":"INDEX(L:L,MATCH(E471,K:K,0))","v":"Psykiatri"}]
[263817,"Psykiatriens organisatoriske og sociale aspekter","2638",{"$f":"INDEX(J:J,MATCH(C472,I:I,0))","v":3800},{"$f":"INDEX(K:K,MATCH(D472,J:J,0))","v":"Psykiatri"},{"$f":"INDEX(L:L,MATCH(E472,K:K,0))","v":"Psykiatri"}]
[263818,"Teoretisk grundlag for psykoterapi","2638",{"$f":"INDEX(J:J,MATCH(C473,I:I,0))","v":3800},{"$f":"INDEX(K:K,MATCH(D473,J:J,0))","v":"Psykiatri"},{"$f":"INDEX(L:L,MATCH(E473,K:K,0))","v":"Psykiatri"}]
[263819,"I Psykopatologi","2638",{"$f":"INDEX(J:J,MATCH(C474,I:I,0))","v":3800},{"$f":"INDEX(K:K,MATCH(D474,J:J,0))","v":"Psykiatri"},{"$f":"INDEX(L:L,MATCH(E474,K:K,0))","v":"Psykiatri"}]
[263820,"Misbrug (2 dage)","2638",{"$f":"INDEX(J:J,MATCH(C475,I:I,0))","v":3800},{"$f":"INDEX(K:K,MATCH(D475,J:J,0))","v":"Psykiatri"},{"$f":"INDEX(L:L,MATCH(E475,K:K,0))","v":"Psykiatri"}]
[263821,"Erklæringsudstedelse (1 dag)","2638",{"$f":"INDEX(J:J,MATCH(C476,I:I,0))","v":3800},{"$f":"INDEX(K:K,MATCH(D476,J:J,0))","v":"Psykiatri"},{"$f":"INDEX(L:L,MATCH(E476,K:K,0))","v":"Psykiatri"}]
[263822,"Neuropsykiatri","2638",{"$f":"INDEX(J:J,MATCH(C477,I:I,0))","v":3800},{"$f":"INDEX(K:K,MATCH(D477,J:J,0))","v":"Psykiatri"},{"$f":"INDEX(L:L,MATCH(E477,K:K,0))","v":"Psykiatri"}]
[263823,"III Psykopatologi","2638",{"$f":"INDEX(J:J,MATCH(C478,I:I,0))","v":3800},{"$f":"INDEX(K:K,MATCH(D478,J:J,0))","v":"Psykiatri"},{"$f":"INDEX(L:L,MATCH(E478,K:K,0))","v":"Psykiatri"}]
[263824,"II Psykopatologi","2638",{"$f":"INDEX(J:J,MATCH(C479,I:I,0))","v":3800},{"$f":"INDEX(K:K,MATCH(D479,J:J,0))","v":"Psykiatri"},{"$f":"INDEX(L:L,MATCH(E479,K:K,0))","v":"Psykiatri"}]
[263825,"Retspsykiatri","2638",{"$f":"INDEX(J:J,MATCH(C480,I:I,0))","v":3800},{"$f":"INDEX(K:K,MATCH(D480,J:J,0))","v":"Psykiatri"},{"$f":"INDEX(L:L,MATCH(E480,K:K,0))","v":"Psykiatri"}]
[263826,"Biologiske behandlingsmetoder","2638",{"$f":"INDEX(J:J,MATCH(C481,I:I,0))","v":3800},{"$f":"INDEX(K:K,MATCH(D481,J:J,0))","v":"Psykiatri"},{"$f":"INDEX(L:L,MATCH(E481,K:K,0))","v":"Psykiatri"}]
[263800,"Planlægningsmøder og temadag for UAO-ere","2638",{"$f":"INDEX(J:J,MATCH(C482,I:I,0))","v":3800},{"$f":"INDEX(K:K,MATCH(D482,J:J,0))","v":"Psykiatri"},{"$f":"INDEX(L:L,MATCH(E482,K:K,0))","v":"Psykiatri"}]
[263901,"Neuropædiatri ","2639",{"$f":"INDEX(J:J,MATCH(C483,I:I,0))","v":3900},{"$f":"INDEX(K:K,MATCH(D483,J:J,0))","v":"Pædiatri"},{"$f":"INDEX(L:L,MATCH(E483,K:K,0))","v":"Pædiatri"}]
[263902,"Socialpædiatri","2639",{"$f":"INDEX(J:J,MATCH(C484,I:I,0))","v":3900},{"$f":"INDEX(K:K,MATCH(D484,J:J,0))","v":"Pædiatri"},{"$f":"INDEX(L:L,MATCH(E484,K:K,0))","v":"Pædiatri"}]
[263903,"Neonatalogi og Børnekirurgi","2639",{"$f":"INDEX(J:J,MATCH(C485,I:I,0))","v":3900},{"$f":"INDEX(K:K,MATCH(D485,J:J,0))","v":"Pædiatri"},{"$f":"INDEX(L:L,MATCH(E485,K:K,0))","v":"Pædiatri"}]
[263904,"Børnepsykiatri","2639",{"$f":"INDEX(J:J,MATCH(C486,I:I,0))","v":3900},{"$f":"INDEX(K:K,MATCH(D486,J:J,0))","v":"Pædiatri"},{"$f":"INDEX(L:L,MATCH(E486,K:K,0))","v":"Pædiatri"}]
[263905,"Akut Pædiatri","2639",{"$f":"INDEX(J:J,MATCH(C487,I:I,0))","v":3900},{"$f":"INDEX(K:K,MATCH(D487,J:J,0))","v":"Pædiatri"},{"$f":"INDEX(L:L,MATCH(E487,K:K,0))","v":"Pædiatri"}]
[263906,"Genetik","2639",{"$f":"INDEX(J:J,MATCH(C488,I:I,0))","v":3900},{"$f":"INDEX(K:K,MATCH(D488,J:J,0))","v":"Pædiatri"},{"$f":"INDEX(L:L,MATCH(E488,K:K,0))","v":"Pædiatri"}]
[263907,"Pulmonologi og Allergologi","2639",{"$f":"INDEX(J:J,MATCH(C489,I:I,0))","v":3900},{"$f":"INDEX(K:K,MATCH(D489,J:J,0))","v":"Pædiatri"},{"$f":"INDEX(L:L,MATCH(E489,K:K,0))","v":"Pædiatri"}]
[263908,"Endokrinologi","2639",{"$f":"INDEX(J:J,MATCH(C490,I:I,0))","v":3900},{"$f":"INDEX(K:K,MATCH(D490,J:J,0))","v":"Pædiatri"},{"$f":"INDEX(L:L,MATCH(E490,K:K,0))","v":"Pædiatri"}]
[263909,"Infektionspædiatri, Immunologi og reumatologi ","2639",{"$f":"INDEX(J:J,MATCH(C491,I:I,0))","v":3900},{"$f":"INDEX(K:K,MATCH(D491,J:J,0))","v":"Pædiatri"},{"$f":"INDEX(L:L,MATCH(E491,K:K,0))","v":"Pædiatri"}]
[263910,"Nefrologi og urologisk børnekirurgi","2639",{"$f":"INDEX(J:J,MATCH(C492,I:I,0))","v":3900},{"$f":"INDEX(K:K,MATCH(D492,J:J,0))","v":"Pædiatri"},{"$f":"INDEX(L:L,MATCH(E492,K:K,0))","v":"Pædiatri"}]
[263912,"Hæmatologi og Onkologi","2639",{"$f":"INDEX(J:J,MATCH(C493,I:I,0))","v":3900},{"$f":"INDEX(K:K,MATCH(D493,J:J,0))","v":"Pædiatri"},{"$f":"INDEX(L:L,MATCH(E493,K:K,0))","v":"Pædiatri"}]
[263913,"Tværgående pædiatri","2639",{"$f":"INDEX(J:J,MATCH(C494,I:I,0))","v":3900},{"$f":"INDEX(K:K,MATCH(D494,J:J,0))","v":"Pædiatri"},{"$f":"INDEX(L:L,MATCH(E494,K:K,0))","v":"Pædiatri"}]
[263914,"Ungdomsmedicin","2639",{"$f":"INDEX(J:J,MATCH(C495,I:I,0))","v":3900},{"$f":"INDEX(K:K,MATCH(D495,J:J,0))","v":"Pædiatri"},{"$f":"INDEX(L:L,MATCH(E495,K:K,0))","v":"Pædiatri"}]
[263915,"Børnekardiologi","2639",{"$f":"INDEX(J:J,MATCH(C496,I:I,0))","v":3900},{"$f":"INDEX(K:K,MATCH(D496,J:J,0))","v":"Pædiatri"},{"$f":"INDEX(L:L,MATCH(E496,K:K,0))","v":"Pædiatri"}]
[263911,"Pædiatrisk Gastroentrologi og Hepatologi","2639",{"$f":"INDEX(J:J,MATCH(C497,I:I,0))","v":3900},{"$f":"INDEX(K:K,MATCH(D497,J:J,0))","v":"Pædiatri"},{"$f":"INDEX(L:L,MATCH(E497,K:K,0))","v":"Pædiatri"}]
[263916,"Temadag for delkursusledere ","2639",{"$f":"INDEX(J:J,MATCH(C498,I:I,0))","v":3900},{"$f":"INDEX(K:K,MATCH(D498,J:J,0))","v":"Pædiatri"},{"$f":"INDEX(L:L,MATCH(E498,K:K,0))","v":"Pædiatri"}]
[264001,"Klinisk retsmedicin, del 1","2640",{"$f":"INDEX(J:J,MATCH(C499,I:I,0))","v":4000},{"$f":"INDEX(K:K,MATCH(D499,J:J,0))","v":"Retsmedicin"},{"$f":"INDEX(L:L,MATCH(E499,K:K,0))","v":"Retsmedicin"}]
[264002,"Retsantropologi, odontologi og Jura","2640",{"$f":"INDEX(J:J,MATCH(C500,I:I,0))","v":4000},{"$f":"INDEX(K:K,MATCH(D500,J:J,0))","v":"Retsmedicin"},{"$f":"INDEX(L:L,MATCH(E500,K:K,0))","v":"Retsmedicin"}]
[264099,"Temadag for delkursusledere","2640",{"$f":"INDEX(J:J,MATCH(C501,I:I,0))","v":4000},{"$f":"INDEX(K:K,MATCH(D501,J:J,0))","v":"Retsmedicin"},{"$f":"INDEX(L:L,MATCH(E501,K:K,0))","v":"Retsmedicin"}]
[264101,"Sundhedsjura","2641",{"$f":"INDEX(J:J,MATCH(C502,I:I,0))","v":4100},{"$f":"INDEX(K:K,MATCH(D502,J:J,0))","v":"Samfundsmedicin"},{"$f":"INDEX(L:L,MATCH(E502,K:K,0))","v":"Samfundsmedicin"}]
[264102,"Kvalitetsudvikling i Sundhedsvæsenet","2641",{"$f":"INDEX(J:J,MATCH(C503,I:I,0))","v":4100},{"$f":"INDEX(K:K,MATCH(D503,J:J,0))","v":"Samfundsmedicin"},{"$f":"INDEX(L:L,MATCH(E503,K:K,0))","v":"Samfundsmedicin"}]
[264103,"Risikovurdering, risikostyring og risikokommunikation","2641",{"$f":"INDEX(J:J,MATCH(C504,I:I,0))","v":4100},{"$f":"INDEX(K:K,MATCH(D504,J:J,0))","v":"Samfundsmedicin"},{"$f":"INDEX(L:L,MATCH(E504,K:K,0))","v":"Samfundsmedicin"}]
[264104,"Sundhed og miljø","2641",{"$f":"INDEX(J:J,MATCH(C505,I:I,0))","v":4100},{"$f":"INDEX(K:K,MATCH(D505,J:J,0))","v":"Samfundsmedicin"},{"$f":"INDEX(L:L,MATCH(E505,K:K,0))","v":"Samfundsmedicin"}]
[264105,"Folkesundhed","2641",{"$f":"INDEX(J:J,MATCH(C506,I:I,0))","v":4100},{"$f":"INDEX(K:K,MATCH(D506,J:J,0))","v":"Samfundsmedicin"},{"$f":"INDEX(L:L,MATCH(E506,K:K,0))","v":"Samfundsmedicin"}]
[264201,"Fundamentals in Coronary Surgery","2642",{"$f":"INDEX(J:J,MATCH(C507,I:I,0))","v":4200},{"$f":"INDEX(K:K,MATCH(D507,J:J,0))","v":"Thoraxkirurgi"},{"$f":"INDEX(L:L,MATCH(E507,K:K,0))","v":"Thoraxkirurgi"}]
[264202,"Fundamentals in Thoracic Surgery","2642",{"$f":"INDEX(J:J,MATCH(C508,I:I,0))","v":4200},{"$f":"INDEX(K:K,MATCH(D508,J:J,0))","v":"Thoraxkirurgi"},{"$f":"INDEX(L:L,MATCH(E508,K:K,0))","v":"Thoraxkirurgi"}]
[264203,"Thorax kirurgisk onkologi","2642",{"$f":"INDEX(J:J,MATCH(C509,I:I,0))","v":4200},{"$f":"INDEX(K:K,MATCH(D509,J:J,0))","v":"Thoraxkirurgi"},{"$f":"INDEX(L:L,MATCH(E509,K:K,0))","v":"Thoraxkirurgi"}]
[264204,"VVU internat","2642",{"$f":"INDEX(J:J,MATCH(C510,I:I,0))","v":4200},{"$f":"INDEX(K:K,MATCH(D510,J:J,0))","v":"Thoraxkirurgi"},{"$f":"INDEX(L:L,MATCH(E510,K:K,0))","v":"Thoraxkirurgi"}]
[264205,"POCUS","2642",{"$f":"INDEX(J:J,MATCH(C511,I:I,0))","v":4200},{"$f":"INDEX(K:K,MATCH(D511,J:J,0))","v":"Thoraxkirurgi"},{"$f":"INDEX(L:L,MATCH(E511,K:K,0))","v":"Thoraxkirurgi"}]
[264206,"ATLS","2642",{"$f":"INDEX(J:J,MATCH(C512,I:I,0))","v":4200},{"$f":"INDEX(K:K,MATCH(D512,J:J,0))","v":"Thoraxkirurgi"},{"$f":"INDEX(L:L,MATCH(E512,K:K,0))","v":"Thoraxkirurgi"}]
[264207,"Erstatnings kursus for 254203","2642",{"$f":"INDEX(J:J,MATCH(C513,I:I,0))","v":4200},{"$f":"INDEX(K:K,MATCH(D513,J:J,0))","v":"Thoraxkirurgi"},{"$f":"INDEX(L:L,MATCH(E513,K:K,0))","v":"Thoraxkirurgi"}]
[264301,"Urologisk radiologi","2643",{"$f":"INDEX(J:J,MATCH(C514,I:I,0))","v":4300},{"$f":"INDEX(K:K,MATCH(D514,J:J,0))","v":"Urologi"},{"$f":"INDEX(L:L,MATCH(E514,K:K,0))","v":"Urologi"}]
[264302,"Urologisk radiologi","2643",{"$f":"INDEX(J:J,MATCH(C515,I:I,0))","v":4300},{"$f":"INDEX(K:K,MATCH(D515,J:J,0))","v":"Urologi"},{"$f":"INDEX(L:L,MATCH(E515,K:K,0))","v":"Urologi"}]
[264303,"Nefrologi","2643",{"$f":"INDEX(J:J,MATCH(C516,I:I,0))","v":4300},{"$f":"INDEX(K:K,MATCH(D516,J:J,0))","v":"Urologi"},{"$f":"INDEX(L:L,MATCH(E516,K:K,0))","v":"Urologi"}]
[264304,"Urolithiasis","2643",{"$f":"INDEX(J:J,MATCH(C517,I:I,0))","v":4300},{"$f":"INDEX(K:K,MATCH(D517,J:J,0))","v":"Urologi"},{"$f":"INDEX(L:L,MATCH(E517,K:K,0))","v":"Urologi"}]
[264305,"Urolithiasis","2643",{"$f":"INDEX(J:J,MATCH(C518,I:I,0))","v":4300},{"$f":"INDEX(K:K,MATCH(D518,J:J,0))","v":"Urologi"},{"$f":"INDEX(L:L,MATCH(E518,K:K,0))","v":"Urologi"}]
[264306,"Urologisk mikrobiologi","2643",{"$f":"INDEX(J:J,MATCH(C519,I:I,0))","v":4300},{"$f":"INDEX(K:K,MATCH(D519,J:J,0))","v":"Urologi"},{"$f":"INDEX(L:L,MATCH(E519,K:K,0))","v":"Urologi"}]
[264307,"Urologisk mikrobiologi","2643",{"$f":"INDEX(J:J,MATCH(C520,I:I,0))","v":4300},{"$f":"INDEX(K:K,MATCH(D520,J:J,0))","v":"Urologi"},{"$f":"INDEX(L:L,MATCH(E520,K:K,0))","v":"Urologi"}]
[264308,"LUTS (urodynamik)","2643",{"$f":"INDEX(J:J,MATCH(C521,I:I,0))","v":4300},{"$f":"INDEX(K:K,MATCH(D521,J:J,0))","v":"Urologi"},{"$f":"INDEX(L:L,MATCH(E521,K:K,0))","v":"Urologi"}]
[264309,"LUTS (urodynamik)","2643",{"$f":"INDEX(J:J,MATCH(C522,I:I,0))","v":4300},{"$f":"INDEX(K:K,MATCH(D522,J:J,0))","v":"Urologi"},{"$f":"INDEX(L:L,MATCH(E522,K:K,0))","v":"Urologi"}]
[264310,"Uroonkologi","2643",{"$f":"INDEX(J:J,MATCH(C523,I:I,0))","v":4300},{"$f":"INDEX(K:K,MATCH(D523,J:J,0))","v":"Urologi"},{"$f":"INDEX(L:L,MATCH(E523,K:K,0))","v":"Urologi"}]
[264311,"Androlog/fertilitet","2643",{"$f":"INDEX(J:J,MATCH(C524,I:I,0))","v":4300},{"$f":"INDEX(K:K,MATCH(D524,J:J,0))","v":"Urologi"},{"$f":"INDEX(L:L,MATCH(E524,K:K,0))","v":"Urologi"}]
[264312,"Androlog/fertilitet","2643",{"$f":"INDEX(J:J,MATCH(C525,I:I,0))","v":4300},{"$f":"INDEX(K:K,MATCH(D525,J:J,0))","v":"Urologi"},{"$f":"INDEX(L:L,MATCH(E525,K:K,0))","v":"Urologi"}]
[264313,"Børneurologi","2643",{"$f":"INDEX(J:J,MATCH(C526,I:I,0))","v":4300},{"$f":"INDEX(K:K,MATCH(D526,J:J,0))","v":"Urologi"},{"$f":"INDEX(L:L,MATCH(E526,K:K,0))","v":"Urologi"}]
[264314,"Børneurologi","2643",{"$f":"INDEX(J:J,MATCH(C527,I:I,0))","v":4300},{"$f":"INDEX(K:K,MATCH(D527,J:J,0))","v":"Urologi"},{"$f":"INDEX(L:L,MATCH(E527,K:K,0))","v":"Urologi"}]
[264315,"Færdighedskursus endourologi","2643",{"$f":"INDEX(J:J,MATCH(C528,I:I,0))","v":4300},{"$f":"INDEX(K:K,MATCH(D528,J:J,0))","v":"Urologi"},{"$f":"INDEX(L:L,MATCH(E528,K:K,0))","v":"Urologi"}]
[264316,"Færdighedskursus endourologi","2643",{"$f":"INDEX(J:J,MATCH(C529,I:I,0))","v":4300},{"$f":"INDEX(K:K,MATCH(D529,J:J,0))","v":"Urologi"},{"$f":"INDEX(L:L,MATCH(E529,K:K,0))","v":"Urologi"}]
[264317,"Færdighedskursus endourologi",{"$f":"IF(LEN(A530)=5,LEFT(A530,3),LEFT(A530,4))","v":"2643"},{"$f":"INDEX(J:J,MATCH(C530,I:I,0))","v":4300},{"$f":"INDEX(K:K,MATCH(D530,J:J,0))","v":"Urologi"},{"$f":"INDEX(L:L,MATCH(E530,K:K,0))","v":"Urologi"}]
[264318,"Færdighedskursus endourologi","2643",{"$f":"INDEX(J:J,MATCH(C531,I:I,0))","v":4300},{"$f":"INDEX(K:K,MATCH(D531,J:J,0))","v":"Urologi"},{"$f":"INDEX(L:L,MATCH(E531,K:K,0))","v":"Urologi"}]
[264319,"Færdighedskursus urologisk ultralyd","2643",{"$f":"INDEX(J:J,MATCH(C532,I:I,0))","v":4300},{"$f":"INDEX(K:K,MATCH(D532,J:J,0))","v":"Urologi"},{"$f":"INDEX(L:L,MATCH(E532,K:K,0))","v":"Urologi"}]
[264320,"Færdighedskursus urologisk laparoskopi/robot","2643",{"$f":"INDEX(J:J,MATCH(C533,I:I,0))","v":4300},{"$f":"INDEX(K:K,MATCH(D533,J:J,0))","v":"Urologi"},{"$f":"INDEX(L:L,MATCH(E533,K:K,0))","v":"Urologi"}]
[264321,"Færdighedskursus urologisk laparoskopi/robot","2643",{"$f":"INDEX(J:J,MATCH(C534,I:I,0))","v":4300},{"$f":"INDEX(K:K,MATCH(D534,J:J,0))","v":"Urologi"},{"$f":"INDEX(L:L,MATCH(E534,K:K,0))","v":"Urologi"}]
[264322,"Færdighedskursus urologisk laparoskopi/robot","2643",{"$f":"INDEX(J:J,MATCH(C535,I:I,0))","v":4300},{"$f":"INDEX(K:K,MATCH(D535,J:J,0))","v":"Urologi"},{"$f":"INDEX(L:L,MATCH(E535,K:K,0))","v":"Urologi"}]
[264323,"Færdighedskursus urologisk laparoskopi/robot","2643",{"$f":"INDEX(J:J,MATCH(C536,I:I,0))","v":4300},{"$f":"INDEX(K:K,MATCH(D536,J:J,0))","v":"Urologi"},{"$f":"INDEX(L:L,MATCH(E536,K:K,0))","v":"Urologi"}]
[264324,"Urologisk simulationstræning","2643",{"$f":"INDEX(J:J,MATCH(C537,I:I,0))","v":4300},{"$f":"INDEX(K:K,MATCH(D537,J:J,0))","v":"Urologi"},{"$f":"INDEX(L:L,MATCH(E537,K:K,0))","v":"Urologi"}]
[264325,"Urologisk simulationstræning","2643",{"$f":"INDEX(J:J,MATCH(C538,I:I,0))","v":4300},{"$f":"INDEX(K:K,MATCH(D538,J:J,0))","v":"Urologi"},{"$f":"INDEX(L:L,MATCH(E538,K:K,0))","v":"Urologi"}]
[264401,"5.-7. januar 2026","2644",{"$f":"INDEX(J:J,MATCH(C539,I:I,0))","v":4400},{"$f":"INDEX(K:K,MATCH(D539,J:J,0))","v":"SOL"},{"$f":"INDEX(L:L,MATCH(E539,K:K,0))","v":"SOL_2"}]
[264402,"12.-14. januar 2026","2644",{"$f":"INDEX(J:J,MATCH(C540,I:I,0))","v":4400},{"$f":"INDEX(K:K,MATCH(D540,J:J,0))","v":"SOL"},{"$f":"INDEX(L:L,MATCH(E540,K:K,0))","v":"SOL_2"}]
[264403,"26.-28. januar 2026","2644",{"$f":"INDEX(J:J,MATCH(C541,I:I,0))","v":4400},{"$f":"INDEX(K:K,MATCH(D541,J:J,0))","v":"SOL"},{"$f":"INDEX(L:L,MATCH(E541,K:K,0))","v":"SOL_2"}]
[264404,"2.-4. februar 2026","2644",{"$f":"INDEX(J:J,MATCH(C542,I:I,0))","v":4400},{"$f":"INDEX(K:K,MATCH(D542,J:J,0))","v":"SOL"},{"$f":"INDEX(L:L,MATCH(E542,K:K,0))","v":"SOL_2"}]
[264405,"23.-25. februar 2026","2644",{"$f":"INDEX(J:J,MATCH(C543,I:I,0))","v":4400},{"$f":"INDEX(K:K,MATCH(D543,J:J,0))","v":"SOL"},{"$f":"INDEX(L:L,MATCH(E543,K:K,0))","v":"SOL_2"}]
[264406,"2.-4. marts 2026","2644",{"$f":"INDEX(J:J,MATCH(C544,I:I,0))","v":4400},{"$f":"INDEX(K:K,MATCH(D544,J:J,0))","v":"SOL"},{"$f":"INDEX(L:L,MATCH(E544,K:K,0))","v":"SOL_2"}]
[264407,"16.-18. marts 2026","2644",{"$f":"INDEX(J:J,MATCH(C545,I:I,0))","v":4400},{"$f":"INDEX(K:K,MATCH(D545,J:J,0))","v":"SOL"},{"$f":"INDEX(L:L,MATCH(E545,K:K,0))","v":"SOL_2"}]
[264408,"23.-25. marts 2026","2644",{"$f":"INDEX(J:J,MATCH(C546,I:I,0))","v":4400},{"$f":"INDEX(K:K,MATCH(D546,J:J,0))","v":"SOL"},{"$f":"INDEX(L:L,MATCH(E546,K:K,0))","v":"SOL_2"}]
[264409,"13.-15. april 2026","2644",{"$f":"INDEX(J:J,MATCH(C547,I:I,0))","v":4400},{"$f":"INDEX(K:K,MATCH(D547,J:J,0))","v":"SOL"},{"$f":"INDEX(L:L,MATCH(E547,K:K,0))","v":"SOL_2"}]
[264410,"27.-29. april 2026","2644",{"$f":"INDEX(J:J,MATCH(C548,I:I,0))","v":4400},{"$f":"INDEX(K:K,MATCH(D548,J:J,0))","v":"SOL"},{"$f":"INDEX(L:L,MATCH(E548,K:K,0))","v":"SOL_2"}]
[264411,"4.-6. maj 2026","2644",{"$f":"INDEX(J:J,MATCH(C549,I:I,0))","v":4400},{"$f":"INDEX(K:K,MATCH(D549,J:J,0))","v":"SOL"},{"$f":"INDEX(L:L,MATCH(E549,K:K,0))","v":"SOL_2"}]
[264412,"18.-20. maj 2026","2644",{"$f":"INDEX(J:J,MATCH(C550,I:I,0))","v":4400},{"$f":"INDEX(K:K,MATCH(D550,J:J,0))","v":"SOL"},{"$f":"INDEX(L:L,MATCH(E550,K:K,0))","v":"SOL_2"}]
[264413,"1.-3. juni 2026","2644",{"$f":"INDEX(J:J,MATCH(C551,I:I,0))","v":4400},{"$f":"INDEX(K:K,MATCH(D551,J:J,0))","v":"SOL"},{"$f":"INDEX(L:L,MATCH(E551,K:K,0))","v":"SOL_2"}]
[264414,"15.-17. juni 2026","2644",{"$f":"INDEX(J:J,MATCH(C552,I:I,0))","v":4400},{"$f":"INDEX(K:K,MATCH(D552,J:J,0))","v":"SOL"},{"$f":"INDEX(L:L,MATCH(E552,K:K,0))","v":"SOL_2"}]
[264415,"17.-19. august 2026","2644",{"$f":"INDEX(J:J,MATCH(C553,I:I,0))","v":4400},{"$f":"INDEX(K:K,MATCH(D553,J:J,0))","v":"SOL"},{"$f":"INDEX(L:L,MATCH(E553,K:K,0))","v":"SOL_2"}]
[264416,"24.-26. august 2026","2644",{"$f":"INDEX(J:J,MATCH(C554,I:I,0))","v":4400},{"$f":"INDEX(K:K,MATCH(D554,J:J,0))","v":"SOL"},{"$f":"INDEX(L:L,MATCH(E554,K:K,0))","v":"SOL_2"}]
[264417,"7.-9. september 2026","2644",{"$f":"INDEX(J:J,MATCH(C555,I:I,0))","v":4400},{"$f":"INDEX(K:K,MATCH(D555,J:J,0))","v":"SOL"},{"$f":"INDEX(L:L,MATCH(E555,K:K,0))","v":"SOL_2"}]
[264418,"14.-16. september 2026","2644",{"$f":"INDEX(J:J,MATCH(C556,I:I,0))","v":4400},{"$f":"INDEX(K:K,MATCH(D556,J:J,0))","v":"SOL"},{"$f":"INDEX(L:L,MATCH(E556,K:K,0))","v":"SOL_2"}]
[264419,"28.-30. september 2026","2644",{"$f":"INDEX(J:J,MATCH(C557,I:I,0))","v":4400},{"$f":"INDEX(K:K,MATCH(D557,J:J,0))","v":"SOL"},{"$f":"INDEX(L:L,MATCH(E557,K:K,0))","v":"SOL_2"}]
[264420,"5.-7. oktober 2026","2644",{"$f":"INDEX(J:J,MATCH(C558,I:I,0))","v":4400},{"$f":"INDEX(K:K,MATCH(D558,J:J,0))","v":"SOL"},{"$f":"INDEX(L:L,MATCH(E558,K:K,0))","v":"SOL_2"}]
[264421,"19.-21. oktober 2026","2644",{"$f":"INDEX(J:J,MATCH(C559,I:I,0))","v":4400},{"$f":"INDEX(K:K,MATCH(D559,J:J,0))","v":"SOL"},{"$f":"INDEX(L:L,MATCH(E559,K:K,0))","v":"SOL_2"}]
[264422,"26.-28. oktober 2026","2644",{"$f":"INDEX(J:J,MATCH(C560,I:I,0))","v":4400},{"$f":"INDEX(K:K,MATCH(D560,J:J,0))","v":"SOL"},{"$f":"INDEX(L:L,MATCH(E560,K:K,0))","v":"SOL_2"}]
[264423,"9.-11. november 2026","2644",{"$f":"INDEX(J:J,MATCH(C561,I:I,0))","v":4400},{"$f":"INDEX(K:K,MATCH(D561,J:J,0))","v":"SOL"},{"$f":"INDEX(L:L,MATCH(E561,K:K,0))","v":"SOL_2"}]
[264424,"16.-18. november 2026","2644",{"$f":"INDEX(J:J,MATCH(C562,I:I,0))","v":4400},{"$f":"INDEX(K:K,MATCH(D562,J:J,0))","v":"SOL"},{"$f":"INDEX(L:L,MATCH(E562,K:K,0))","v":"SOL_2"}]
[264425,"30. november-2. december 2026","2644",{"$f":"INDEX(J:J,MATCH(C563,I:I,0))","v":4400},{"$f":"INDEX(K:K,MATCH(D563,J:J,0))","v":"SOL"},{"$f":"INDEX(L:L,MATCH(E563,K:K,0))","v":"SOL_2"}]
[264601,"Resprations- og kredsløbsfysiologi","2646",{"$f":"INDEX(J:J,MATCH(C564,I:I,0))","v":4600},{"$f":"INDEX(K:K,MATCH(D564,J:J,0))","v":"Tand-, mund- og kæbekirurgi"},{"$f":"INDEX(L:L,MATCH(E564,K:K,0))","v":"Tand_mund_og_kæbekirurgi"}]
[264602,"Onkologi","2646",{"$f":"INDEX(J:J,MATCH(C565,I:I,0))","v":4600},{"$f":"INDEX(K:K,MATCH(D565,J:J,0))","v":"Tand-, mund- og kæbekirurgi"},{"$f":"INDEX(L:L,MATCH(E565,K:K,0))","v":"Tand_mund_og_kæbekirurgi"}]
[264603,"Oral- &Maksillofacial Traumatologi","2646",{"$f":"INDEX(J:J,MATCH(C566,I:I,0))","v":4600},{"$f":"INDEX(K:K,MATCH(D566,J:J,0))","v":"Tand-, mund- og kæbekirurgi"},{"$f":"INDEX(L:L,MATCH(E566,K:K,0))","v":"Tand_mund_og_kæbekirurgi"}]
[264701,"Ledelse, samarbejde og kommunikation","2647",{"$f":"INDEX(J:J,MATCH(C567,I:I,0))","v":4700},{"$f":"INDEX(K:K,MATCH(D567,J:J,0))","v":"Ortodonti"},{"$f":"INDEX(L:L,MATCH(E567,K:K,0))","v":"Ortodonti"}]
[264702,"Klinisk oral fysiologi og smertebehandling","2647",{"$f":"INDEX(J:J,MATCH(C568,I:I,0))","v":4700},{"$f":"INDEX(K:K,MATCH(D568,J:J,0))","v":"Ortodonti"},{"$f":"INDEX(L:L,MATCH(E568,K:K,0))","v":"Ortodonti"}]
[264703,"Samfundsodontologi og epidemiologi","2647",{"$f":"INDEX(J:J,MATCH(C569,I:I,0))","v":4700},{"$f":"INDEX(K:K,MATCH(D569,J:J,0))","v":"Ortodonti"},{"$f":"INDEX(L:L,MATCH(E569,K:K,0))","v":"Ortodonti"}]
[264704,"Avanceret røntgenteknologi og digitale teknikker","2647",{"$f":"INDEX(J:J,MATCH(C570,I:I,0))","v":4700},{"$f":"INDEX(K:K,MATCH(D570,J:J,0))","v":"Ortodonti"},{"$f":"INDEX(L:L,MATCH(E570,K:K,0))","v":"Ortodonti"}]
[265001,"Operativ Gynækologi I","2650",{"$f":"INDEX(J:J,MATCH(C571,I:I,0))","v":5000},{"$f":"INDEX(K:K,MATCH(D571,J:J,0))","v":"Kir. Færdighedskursus operativ gynækologi"},{"$f":"INDEX(L:L,MATCH(E571,K:K,0))","v":"Færdighedskurser_operativ_gynækologi"}]
[265002,"Operativ Gynækologi II","2650",{"$f":"INDEX(J:J,MATCH(C572,I:I,0))","v":5000},{"$f":"INDEX(K:K,MATCH(D572,J:J,0))","v":"Kir. Færdighedskursus operativ gynækologi"},{"$f":"INDEX(L:L,MATCH(E572,K:K,0))","v":"Færdighedskurser_operativ_gynækologi"}]
[265101,"færdighedskursus","2651",{"$f":"INDEX(J:J,MATCH(C573,I:I,0))","v":5100},{"$f":"INDEX(K:K,MATCH(D573,J:J,0))","v":"Kir. Færdighedskursus otopædisk kirurgi"},{"$f":"INDEX(L:L,MATCH(E573,K:K,0))","v":"Færdighedskurser_ort._kir."}]
[265102,"færdighedskursus","2651",{"$f":"INDEX(J:J,MATCH(C574,I:I,0))","v":5100},{"$f":"INDEX(K:K,MATCH(D574,J:J,0))","v":"Kir. Færdighedskursus otopædisk kirurgi"},{"$f":"INDEX(L:L,MATCH(E574,K:K,0))","v":"Færdighedskurser_ort._kir."}]
[266001,"Hjertelungeredningskursus (ALS) 1","2660",{"$f":"INDEX(J:J,MATCH(C575,I:I,0))","v":6000},{"$f":"INDEX(K:K,MATCH(D575,J:J,0))","v":"Akutmedicin"},{"$f":"INDEX(L:L,MATCH(E575,K:K,0))","v":"Akutmedicin"}]
[266002,"Hjertelungeredningskursus (ALS) 2","2660",{"$f":"INDEX(J:J,MATCH(C576,I:I,0))","v":6000},{"$f":"INDEX(K:K,MATCH(D576,J:J,0))","v":"Akutmedicin"},{"$f":"INDEX(L:L,MATCH(E576,K:K,0))","v":"Akutmedicin"}]
[266003,"Akut radiologi for akutlæger","2660",{"$f":"INDEX(J:J,MATCH(C577,I:I,0))","v":6000},{"$f":"INDEX(K:K,MATCH(D577,J:J,0))","v":"Akutmedicin"},{"$f":"INDEX(L:L,MATCH(E577,K:K,0))","v":"Akutmedicin"}]
[266004,"Flowmaster","2660",{"$f":"INDEX(J:J,MATCH(C578,I:I,0))","v":6000},{"$f":"INDEX(K:K,MATCH(D578,J:J,0))","v":"Akutmedicin"},{"$f":"INDEX(L:L,MATCH(E578,K:K,0))","v":"Akutmedicin"}]
[266005,"Akutmedicinsk ultralyd øst","2660",{"$f":"INDEX(J:J,MATCH(C579,I:I,0))","v":6000},{"$f":"INDEX(K:K,MATCH(D579,J:J,0))","v":"Akutmedicin"},{"$f":"INDEX(L:L,MATCH(E579,K:K,0))","v":"Akutmedicin"}]
[266006,"Akutmedicinsk ultralyd syd","2660",{"$f":"INDEX(J:J,MATCH(C580,I:I,0))","v":6000},{"$f":"INDEX(K:K,MATCH(D580,J:J,0))","v":"Akutmedicin"},{"$f":"INDEX(L:L,MATCH(E580,K:K,0))","v":"Akutmedicin"}]
[266007,"Akutmedicinsk ultralyd nord","2660",{"$f":"INDEX(J:J,MATCH(C581,I:I,0))","v":6000},{"$f":"INDEX(K:K,MATCH(D581,J:J,0))","v":"Akutmedicin"},{"$f":"INDEX(L:L,MATCH(E581,K:K,0))","v":"Akutmedicin"}]
[266008,"ABCDE","2660",{"$f":"INDEX(J:J,MATCH(C582,I:I,0))","v":6000},{"$f":"INDEX(K:K,MATCH(D582,J:J,0))","v":"Akutmedicin"},{"$f":"INDEX(L:L,MATCH(E582,K:K,0))","v":"Akutmedicin"}]
[266009,"Akutte kirurgiske tilstande","2660",{"$f":"INDEX(J:J,MATCH(C583,I:I,0))","v":6000},{"$f":"INDEX(K:K,MATCH(D583,J:J,0))","v":"Akutmedicin"},{"$f":"INDEX(L:L,MATCH(E583,K:K,0))","v":"Akutmedicin"}]
[266010,"Akut pædiatri","2660",{"$f":"INDEX(J:J,MATCH(C584,I:I,0))","v":6000},{"$f":"INDEX(K:K,MATCH(D584,J:J,0))","v":"Akutmedicin"},{"$f":"INDEX(L:L,MATCH(E584,K:K,0))","v":"Akutmedicin"}]
[266011,"Traumekurset","2660",{"$f":"INDEX(J:J,MATCH(C585,I:I,0))","v":6000},{"$f":"INDEX(K:K,MATCH(D585,J:J,0))","v":"Akutmedicin"},{"$f":"INDEX(L:L,MATCH(E585,K:K,0))","v":"Akutmedicin"}]
[266012,"Symptomer","2660",{"$f":"INDEX(J:J,MATCH(C586,I:I,0))","v":6000},{"$f":"INDEX(K:K,MATCH(D586,J:J,0))","v":"Akutmedicin"},{"$f":"INDEX(L:L,MATCH(E586,K:K,0))","v":"Akutmedicin"}]
[266013,"Katastrofemedicin og transport 1","2660",{"$f":"INDEX(J:J,MATCH(C587,I:I,0))","v":6000},{"$f":"INDEX(K:K,MATCH(D587,J:J,0))","v":"Akutmedicin"},{"$f":"INDEX(L:L,MATCH(E587,K:K,0))","v":"Akutmedicin"}]
[266014,"Katastrofemedicin og transport 2","2660",{"$f":"INDEX(J:J,MATCH(C588,I:I,0))","v":6000},{"$f":"INDEX(K:K,MATCH(D588,J:J,0))","v":"Akutmedicin"},{"$f":"INDEX(L:L,MATCH(E588,K:K,0))","v":"Akutmedicin"}]
[null,null,"",{"$f":"INDEX(J:J,MATCH(C589,I:I,0))","v":{"$error":"#N/A"}},{"$f":"INDEX(K:K,MATCH(D589,J:J,0))","v":{"$error":"#N/A"}},{"$f":"INDEX(L:L,MATCH(E589,K:K,0))","v":{"$error":"#N/A"}}]
[null,null,"",{"$f":"INDEX(J:J,MATCH(C590,I:I,0))","v":{"$error":"#N/A"}},{"$f":"INDEX(K:K,MATCH(D590,J:J,0))","v":{"$error":"#N/A"}},{"$f":"INDEX(L:L,MATCH(E590,K:K,0))","v":{"$error":"#N/A"}}]
[null,null,"",{"$f":"INDEX(J:J,MATCH(C591,I:I,0))","v":{"$error":"#N/A"}},{"$f":"INDEX(K:K,MATCH(D591,J:J,0))","v":{"$error":"#N/A"}},{"$f":"INDEX(L:L,MATCH(E591,K:K,0))","v":{"$error":"#N/A"}}]
[null,null,"",{"$f":"INDEX(J:J,MATCH(C592,I:I,0))","v":{"$error":"#N/A"}},{"$f":"INDEX(K:K,MATCH(D592,J:J,0))","v":{"$error":"#N/A"}},{"$f":"INDEX(L:L,MATCH(E592,K:K,0))","v":{"$error":"#N/A"}}]
[null,null,{"$f":"IF(LEN(A593)=5,LEFT(A593,3),LEFT(A593,4))","v":""},{"$f":"INDEX(J:J,MATCH(C593,I:I,0))","v":{"$error":"#N/A"}},{"$f":"INDEX(K:K,MATCH(D593,J:J,0))","v":{"$error":"#N/A"}},{"$f":"INDEX(L:L,MATCH(E593,K:K,0))","v":{"$error":"#N/A"}}]
[null,null,"",{"$f":"INDEX(J:J,MATCH(C594,I:I,0))","v":{"$error":"#N/A"}},{"$f":"INDEX(K:K,MATCH(D594,J:J,0))","v":{"$error":"#N/A"}},{"$f":"INDEX(L:L,MATCH(E594,K:K,0))","v":{"$error":"#N/A"}}]
[null,null,"",{"$f":"INDEX(J:J,MATCH(C595,I:I,0))","v":{"$error":"#N/A"}},{"$f":"INDEX(K:K,MATCH(D595,J:J,0))","v":{"$error":"#N/A"}},{"$f":"INDEX(L:L,MATCH(E595,K:K,0))","v":{"$error":"#N/A"}}]
[null,null,"",{"$f":"INDEX(J:J,MATCH(C596,I:I,0))","v":{"$error":"#N/A"}},{"$f":"INDEX(K:K,MATCH(D596,J:J,0))","v":{"$error":"#N/A"}},{"$f":"INDEX(L:L,MATCH(E596,K:K,0))","v":{"$error":"#N/A"}}]
[null,null,"",{"$f":"INDEX(J:J,MATCH(C597,I:I,0))","v":{"$error":"#N/A"}},{"$f":"INDEX(K:K,MATCH(D597,J:J,0))","v":{"$error":"#N/A"}},{"$f":"INDEX(L:L,MATCH(E597,K:K,0))","v":{"$error":"#N/A"}}]
[null,null,"",{"$f":"INDEX(J:J,MATCH(C598,I:I,0))","v":{"$error":"#N/A"}},{"$f":"INDEX(K:K,MATCH(D598,J:J,0))","v":{"$error":"#N/A"}},{"$f":"INDEX(L:L,MATCH(E598,K:K,0))","v":{"$error":"#N/A"}}]
[null,null,"",{"$f":"INDEX(J:J,MATCH(C599,I:I,0))","v":{"$error":"#N/A"}},{"$f":"INDEX(K:K,MATCH(D599,J:J,0))","v":{"$error":"#N/A"}},{"$f":"INDEX(L:L,MATCH(E599,K:K,0))","v":{"$error":"#N/A"}}]
[null,null,"",{"$f":"INDEX(J:J,MATCH(C600,I:I,0))","v":{"$error":"#N/A"}},{"$f":"INDEX(K:K,MATCH(D600,J:J,0))","v":{"$error":"#N/A"}},{"$f":"INDEX(L:L,MATCH(E600,K:K,0))","v":{"$error":"#N/A"}}]
[null,null,"",{"$f":"INDEX(J:J,MATCH(C601,I:I,0))","v":{"$error":"#N/A"}},{"$f":"INDEX(K:K,MATCH(D601,J:J,0))","v":{"$error":"#N/A"}},{"$f":"INDEX(L:L,MATCH(E601,K:K,0))","v":{"$error":"#N/A"}}]
[null,null,"",{"$f":"INDEX(J:J,MATCH(C602,I:I,0))","v":{"$error":"#N/A"}},{"$f":"INDEX(K:K,MATCH(D602,J:J,0))","v":{"$error":"#N/A"}},{"$f":"INDEX(L:L,MATCH(E602,K:K,0))","v":{"$error":"#N/A"}}]
[null,null,"",{"$f":"INDEX(J:J,MATCH(C603,I:I,0))","v":{"$error":"#N/A"}},{"$f":"INDEX(K:K,MATCH(D603,J:J,0))","v":{"$error":"#N/A"}},{"$f":"INDEX(L:L,MATCH(E603,K:K,0))","v":{"$error":"#N/A"}}]
[null,null,"",{"$f":"INDEX(J:J,MATCH(C604,I:I,0))","v":{"$error":"#N/A"}},{"$f":"INDEX(K:K,MATCH(D604,J:J,0))","v":{"$error":"#N/A"}},{"$f":"INDEX(L:L,MATCH(E604,K:K,0))","v":{"$error":"#N/A"}}]
[null,null,"",{"$f":"INDEX(J:J,MATCH(C605,I:I,0))","v":{"$error":"#N/A"}},{"$f":"INDEX(K:K,MATCH(D605,J:J,0))","v":{"$error":"#N/A"}},{"$f":"INDEX(L:L,MATCH(E605,K:K,0))","v":{"$error":"#N/A"}}]
[null,null,"",{"$f":"INDEX(J:J,MATCH(C606,I:I,0))","v":{"$error":"#N/A"}},{"$f":"INDEX(K:K,MATCH(D606,J:J,0))","v":{"$error":"#N/A"}},{"$f":"INDEX(L:L,MATCH(E606,K:K,0))","v":{"$error":"#N/A"}}]
[null,null,"",{"$f":"INDEX(J:J,MATCH(C607,I:I,0))","v":{"$error":"#N/A"}},{"$f":"INDEX(K:K,MATCH(D607,J:J,0))","v":{"$error":"#N/A"}},{"$f":"INDEX(L:L,MATCH(E607,K:K,0))","v":{"$error":"#N/A"}}]
[null,null,"",{"$f":"INDEX(J:J,MATCH(C608,I:I,0))","v":{"$error":"#N/A"}},{"$f":"INDEX(K:K,MATCH(D608,J:J,0))","v":{"$error":"#N/A"}},{"$f":"INDEX(L:L,MATCH(E608,K:K,0))","v":{"$error":"#N/A"}}]
[null,null,"",{"$f":"INDEX(J:J,MATCH(C609,I:I,0))","v":{"$error":"#N/A"}},{"$f":"INDEX(K:K,MATCH(D609,J:J,0))","v":{"$error":"#N/A"}},{"$f":"INDEX(L:L,MATCH(E609,K:K,0))","v":{"$error":"#N/A"}}]
[null,null,"",{"$f":"INDEX(J:J,MATCH(C610,I:I,0))","v":{"$error":"#N/A"}},{"$f":"INDEX(K:K,MATCH(D610,J:J,0))","v":{"$error":"#N/A"}},{"$f":"INDEX(L:L,MATCH(E610,K:K,0))","v":{"$error":"#N/A"}}]
[null,null,"",{"$f":"INDEX(J:J,MATCH(C611,I:I,0))","v":{"$error":"#N/A"}},{"$f":"INDEX(K:K,MATCH(D611,J:J,0))","v":{"$error":"#N/A"}},{"$f":"INDEX(L:L,MATCH(E611,K:K,0))","v":{"$error":"#N/A"}}]
[null,null,"",{"$f":"INDEX(J:J,MATCH(C612,I:I,0))","v":{"$error":"#N/A"}},{"$f":"INDEX(K:K,MATCH(D612,J:J,0))","v":{"$error":"#N/A"}},{"$f":"INDEX(L:L,MATCH(E612,K:K,0))","v":{"$error":"#N/A"}}]
[null,null,"",{"$f":"INDEX(J:J,MATCH(C613,I:I,0))","v":{"$error":"#N/A"}},{"$f":"INDEX(K:K,MATCH(D613,J:J,0))","v":{"$error":"#N/A"}},{"$f":"INDEX(L:L,MATCH(E613,K:K,0))","v":{"$error":"#N/A"}}]
[null,null,"",{"$f":"INDEX(J:J,MATCH(C614,I:I,0))","v":{"$error":"#N/A"}},{"$f":"INDEX(K:K,MATCH(D614,J:J,0))","v":{"$error":"#N/A"}},{"$f":"INDEX(L:L,MATCH(E614,K:K,0))","v":{"$error":"#N/A"}}]
[null,null,"",{"$f":"INDEX(J:J,MATCH(C615,I:I,0))","v":{"$error":"#N/A"}},{"$f":"INDEX(K:K,MATCH(D615,J:J,0))","v":{"$error":"#N/A"}},{"$f":"INDEX(L:L,MATCH(E615,K:K,0))","v":{"$error":"#N/A"}}]
[null,null,"",{"$f":"INDEX(J:J,MATCH(C616,I:I,0))","v":{"$error":"#N/A"}},{"$f":"INDEX(K:K,MATCH(D616,J:J,0))","v":{"$error":"#N/A"}},{"$f":"INDEX(L:L,MATCH(E616,K:K,0))","v":{"$error":"#N/A"}}]
[null,null,"",{"$f":"INDEX(J:J,MATCH(C617,I:I,0))","v":{"$error":"#N/A"}},{"$f":"INDEX(K:K,MATCH(D617,J:J,0))","v":{"$error":"#N/A"}},{"$f":"INDEX(L:L,MATCH(E617,K:K,0))","v":{"$error":"#N/A"}}]
[null,null,"",{"$f":"INDEX(J:J,MATCH(C618,I:I,0))","v":{"$error":"#N/A"}},{"$f":"INDEX(K:K,MATCH(D618,J:J,0))","v":{"$error":"#N/A"}},{"$f":"INDEX(L:L,MATCH(E618,K:K,0))","v":{"$error":"#N/A"}}]
[null,null,"",{"$f":"INDEX(J:J,MATCH(C619,I:I,0))","v":{"$error":"#N/A"}},{"$f":"INDEX(K:K,MATCH(D619,J:J,0))","v":{"$error":"#N/A"}},{"$f":"INDEX(L:L,MATCH(E619,K:K,0))","v":{"$error":"#N/A"}}]
[null,null,"",{"$f":"INDEX(J:J,MATCH(C620,I:I,0))","v":{"$error":"#N/A"}},{"$f":"INDEX(K:K,MATCH(D620,J:J,0))","v":{"$error":"#N/A"}},{"$f":"INDEX(L:L,MATCH(E620,K:K,0))","v":{"$error":"#N/A"}}]
[null,null,"",{"$f":"INDEX(J:J,MATCH(C621,I:I,0))","v":{"$error":"#N/A"}},{"$f":"INDEX(K:K,MATCH(D621,J:J,0))","v":{"$error":"#N/A"}},{"$f":"INDEX(L:L,MATCH(E621,K:K,0))","v":{"$error":"#N/A"}}]
[null,null,"",{"$f":"INDEX(J:J,MATCH(C622,I:I,0))","v":{"$error":"#N/A"}},{"$f":"INDEX(K:K,MATCH(D622,J:J,0))","v":{"$error":"#N/A"}},{"$f":"INDEX(L:L,MATCH(E622,K:K,0))","v":{"$error":"#N/A"}}]
[null,null,"",{"$f":"INDEX(J:J,MATCH(C623,I:I,0))","v":{"$error":"#N/A"}},{"$f":"INDEX(K:K,MATCH(D623,J:J,0))","v":{"$error":"#N/A"}},{"$f":"INDEX(L:L,MATCH(E623,K:K,0))","v":{"$error":"#N/A"}}]
[null,null,"",{"$f":"INDEX(J:J,MATCH(C624,I:I,0))","v":{"$error":"#N/A"}},{"$f":"INDEX(K:K,MATCH(D624,J:J,0))","v":{"$error":"#N/A"}},{"$f":"INDEX(L:L,MATCH(E624,K:K,0))","v":{"$error":"#N/A"}}]
[null,null,"",{"$f":"INDEX(J:J,MATCH(C625,I:I,0))","v":{"$error":"#N/A"}},{"$f":"INDEX(K:K,MATCH(D625,J:J,0))","v":{"$error":"#N/A"}},{"$f":"INDEX(L:L,MATCH(E625,K:K,0))","v":{"$error":"#N/A"}}]
[null,null,"",{"$f":"INDEX(J:J,MATCH(C626,I:I,0))","v":{"$error":"#N/A"}},{"$f":"INDEX(K:K,MATCH(D626,J:J,0))","v":{"$error":"#N/A"}},{"$f":"INDEX(L:L,MATCH(E626,K:K,0))","v":{"$error":"#N/A"}}]
[null,null,"",{"$f":"INDEX(J:J,MATCH(C627,I:I,0))","v":{"$error":"#N/A"}},{"$f":"INDEX(K:K,MATCH(D627,J:J,0))","v":{"$error":"#N/A"}},{"$f":"INDEX(L:L,MATCH(E627,K:K,0))","v":{"$error":"#N/A"}}]
[null,null,"",{"$f":"INDEX(J:J,MATCH(C628,I:I,0))","v":{"$error":"#N/A"}},{"$f":"INDEX(K:K,MATCH(D628,J:J,0))","v":{"$error":"#N/A"}},{"$f":"INDEX(L:L,MATCH(E628,K:K,0))","v":{"$error":"#N/A"}}]
[null,null,"",{"$f":"INDEX(J:J,MATCH(C629,I:I,0))","v":{"$error":"#N/A"}},{"$f":"INDEX(K:K,MATCH(D629,J:J,0))","v":{"$error":"#N/A"}},{"$f":"INDEX(L:L,MATCH(E629,K:K,0))","v":{"$error":"#N/A"}}]
[null,null,"",{"$f":"INDEX(J:J,MATCH(C630,I:I,0))","v":{"$error":"#N/A"}},{"$f":"INDEX(K:K,MATCH(D630,J:J,0))","v":{"$error":"#N/A"}},{"$f":"INDEX(L:L,MATCH(E630,K:K,0))","v":{"$error":"#N/A"}}]
[null,null,"",{"$f":"INDEX(J:J,MATCH(C631,I:I,0))","v":{"$error":"#N/A"}},{"$f":"INDEX(K:K,MATCH(D631,J:J,0))","v":{"$error":"#N/A"}},{"$f":"INDEX(L:L,MATCH(E631,K:K,0))","v":{"$error":"#N/A"}}]
[null,null,"",{"$f":"INDEX(J:J,MATCH(C632,I:I,0))","v":{"$error":"#N/A"}},{"$f":"INDEX(K:K,MATCH(D632,J:J,0))","v":{"$error":"#N/A"}},{"$f":"INDEX(L:L,MATCH(E632,K:K,0))","v":{"$error":"#N/A"}}]
[null,null,"",{"$f":"INDEX(J:J,MATCH(C633,I:I,0))","v":{"$error":"#N/A"}},{"$f":"INDEX(K:K,MATCH(D633,J:J,0))","v":{"$error":"#N/A"}},{"$f":"INDEX(L:L,MATCH(E633,K:K,0))","v":{"$error":"#N/A"}}]
[null,null,"",{"$f":"INDEX(J:J,MATCH(C634,I:I,0))","v":{"$error":"#N/A"}},{"$f":"INDEX(K:K,MATCH(D634,J:J,0))","v":{"$error":"#N/A"}},{"$f":"INDEX(L:L,MATCH(E634,K:K,0))","v":{"$error":"#N/A"}}]
[null,null,"",{"$f":"INDEX(J:J,MATCH(C635,I:I,0))","v":{"$error":"#N/A"}},{"$f":"INDEX(K:K,MATCH(D635,J:J,0))","v":{"$error":"#N/A"}},{"$f":"INDEX(L:L,MATCH(E635,K:K,0))","v":{"$error":"#N/A"}}]
[null,null,"",{"$f":"INDEX(J:J,MATCH(C636,I:I,0))","v":{"$error":"#N/A"}},{"$f":"INDEX(K:K,MATCH(D636,J:J,0))","v":{"$error":"#N/A"}},{"$f":"INDEX(L:L,MATCH(E636,K:K,0))","v":{"$error":"#N/A"}}]
[null,null,"",{"$f":"INDEX(J:J,MATCH(C637,I:I,0))","v":{"$error":"#N/A"}},{"$f":"INDEX(K:K,MATCH(D637,J:J,0))","v":{"$error":"#N/A"}},{"$f":"INDEX(L:L,MATCH(E637,K:K,0))","v":{"$error":"#N/A"}}]
[null,null,"",{"$f":"INDEX(J:J,MATCH(C638,I:I,0))","v":{"$error":"#N/A"}},{"$f":"INDEX(K:K,MATCH(D638,J:J,0))","v":{"$error":"#N/A"}},{"$f":"INDEX(L:L,MATCH(E638,K:K,0))","v":{"$error":"#N/A"}}]
[null,null,"",{"$f":"INDEX(J:J,MATCH(C639,I:I,0))","v":{"$error":"#N/A"}},{"$f":"INDEX(K:K,MATCH(D639,J:J,0))","v":{"$error":"#N/A"}},{"$f":"INDEX(L:L,MATCH(E639,K:K,0))","v":{"$error":"#N/A"}}]
[null,null,"",{"$f":"INDEX(J:J,MATCH(C640,I:I,0))","v":{"$error":"#N/A"}},{"$f":"INDEX(K:K,MATCH(D640,J:J,0))","v":{"$error":"#N/A"}},{"$f":"INDEX(L:L,MATCH(E640,K:K,0))","v":{"$error":"#N/A"}}]
[null,null,"",{"$f":"INDEX(J:J,MATCH(C641,I:I,0))","v":{"$error":"#N/A"}},{"$f":"INDEX(K:K,MATCH(D641,J:J,0))","v":{"$error":"#N/A"}},{"$f":"INDEX(L:L,MATCH(E641,K:K,0))","v":{"$error":"#N/A"}}]
[null,null,"",{"$f":"INDEX(J:J,MATCH(C642,I:I,0))","v":{"$error":"#N/A"}},{"$f":"INDEX(K:K,MATCH(D642,J:J,0))","v":{"$error":"#N/A"}},{"$f":"INDEX(L:L,MATCH(E642,K:K,0))","v":{"$error":"#N/A"}}]
[null,null,"",{"$f":"INDEX(J:J,MATCH(C643,I:I,0))","v":{"$error":"#N/A"}},{"$f":"INDEX(K:K,MATCH(D643,J:J,0))","v":{"$error":"#N/A"}},{"$f":"INDEX(L:L,MATCH(E643,K:K,0))","v":{"$error":"#N/A"}}]
[null,null,"",{"$f":"INDEX(J:J,MATCH(C644,I:I,0))","v":{"$error":"#N/A"}},{"$f":"INDEX(K:K,MATCH(D644,J:J,0))","v":{"$error":"#N/A"}},{"$f":"INDEX(L:L,MATCH(E644,K:K,0))","v":{"$error":"#N/A"}}]
[null,null,"",{"$f":"INDEX(J:J,MATCH(C645,I:I,0))","v":{"$error":"#N/A"}},{"$f":"INDEX(K:K,MATCH(D645,J:J,0))","v":{"$error":"#N/A"}},{"$f":"INDEX(L:L,MATCH(E645,K:K,0))","v":{"$error":"#N/A"}}]
[null,null,"",{"$f":"INDEX(J:J,MATCH(C646,I:I,0))","v":{"$error":"#N/A"}},{"$f":"INDEX(K:K,MATCH(D646,J:J,0))","v":{"$error":"#N/A"}},{"$f":"INDEX(L:L,MATCH(E646,K:K,0))","v":{"$error":"#N/A"}}]
[null,null,"",{"$f":"INDEX(J:J,MATCH(C647,I:I,0))","v":{"$error":"#N/A"}},{"$f":"INDEX(K:K,MATCH(D647,J:J,0))","v":{"$error":"#N/A"}},{"$f":"INDEX(L:L,MATCH(E647,K:K,0))","v":{"$error":"#N/A"}}]
[null,null,"",{"$f":"INDEX(J:J,MATCH(C648,I:I,0))","v":{"$error":"#N/A"}},{"$f":"INDEX(K:K,MATCH(D648,J:J,0))","v":{"$error":"#N/A"}},{"$f":"INDEX(L:L,MATCH(E648,K:K,0))","v":{"$error":"#N/A"}}]
[null,null,"",{"$f":"INDEX(J:J,MATCH(C649,I:I,0))","v":{"$error":"#N/A"}},{"$f":"INDEX(K:K,MATCH(D649,J:J,0))","v":{"$error":"#N/A"}},{"$f":"INDEX(L:L,MATCH(E649,K:K,0))","v":{"$error":"#N/A"}}]
[null,null,"",{"$f":"INDEX(J:J,MATCH(C650,I:I,0))","v":{"$error":"#N/A"}},{"$f":"INDEX(K:K,MATCH(D650,J:J,0))","v":{"$error":"#N/A"}},{"$f":"INDEX(L:L,MATCH(E650,K:K,0))","v":{"$error":"#N/A"}}]
[null,null,"",{"$f":"INDEX(J:J,MATCH(C651,I:I,0))","v":{"$error":"#N/A"}},{"$f":"INDEX(K:K,MATCH(D651,J:J,0))","v":{"$error":"#N/A"}},{"$f":"INDEX(L:L,MATCH(E651,K:K,0))","v":{"$error":"#N/A"}}]
[null,null,"",{"$f":"INDEX(J:J,MATCH(C652,I:I,0))","v":{"$error":"#N/A"}},{"$f":"INDEX(K:K,MATCH(D652,J:J,0))","v":{"$error":"#N/A"}},{"$f":"INDEX(L:L,MATCH(E652,K:K,0))","v":{"$error":"#N/A"}}]
[null,null,"",{"$f":"INDEX(J:J,MATCH(C653,I:I,0))","v":{"$error":"#N/A"}},{"$f":"INDEX(K:K,MATCH(D653,J:J,0))","v":{"$error":"#N/A"}},{"$f":"INDEX(L:L,MATCH(E653,K:K,0))","v":{"$error":"#N/A"}}]
[null,null,"",{"$f":"INDEX(J:J,MATCH(C654,I:I,0))","v":{"$error":"#N/A"}},{"$f":"INDEX(K:K,MATCH(D654,J:J,0))","v":{"$error":"#N/A"}},{"$f":"INDEX(L:L,MATCH(E654,K:K,0))","v":{"$error":"#N/A"}}]
[null,null,"",{"$f":"INDEX(J:J,MATCH(C655,I:I,0))","v":{"$error":"#N/A"}},{"$f":"INDEX(K:K,MATCH(D655,J:J,0))","v":{"$error":"#N/A"}},{"$f":"INDEX(L:L,MATCH(E655,K:K,0))","v":{"$error":"#N/A"}}]
[null,null,"",{"$f":"INDEX(J:J,MATCH(C656,I:I,0))","v":{"$error":"#N/A"}},{"$f":"INDEX(K:K,MATCH(D656,J:J,0))","v":{"$error":"#N/A"}},{"$f":"INDEX(L:L,MATCH(E656,K:K,0))","v":{"$error":"#N/A"}}]
[null,null,{"$f":"IF(LEN(A657)=5,LEFT(A657,3),LEFT(A657,4))","v":""},{"$f":"INDEX(J:J,MATCH(C657,I:I,0))","v":{"$error":"#N/A"}},{"$f":"INDEX(K:K,MATCH(D657,J:J,0))","v":{"$error":"#N/A"}},{"$f":"INDEX(L:L,MATCH(E657,K:K,0))","v":{"$error":"#N/A"}}]
[null,null,"",{"$f":"INDEX(J:J,MATCH(C658,I:I,0))","v":{"$error":"#N/A"}},{"$f":"INDEX(K:K,MATCH(D658,J:J,0))","v":{"$error":"#N/A"}},{"$f":"INDEX(L:L,MATCH(E658,K:K,0))","v":{"$error":"#N/A"}}]
[null,null,"",{"$f":"INDEX(J:J,MATCH(C659,I:I,0))","v":{"$error":"#N/A"}},{"$f":"INDEX(K:K,MATCH(D659,J:J,0))","v":{"$error":"#N/A"}},{"$f":"INDEX(L:L,MATCH(E659,K:K,0))","v":{"$error":"#N/A"}}]
[null,null,"",{"$f":"INDEX(J:J,MATCH(C660,I:I,0))","v":{"$error":"#N/A"}},{"$f":"INDEX(K:K,MATCH(D660,J:J,0))","v":{"$error":"#N/A"}},{"$f":"INDEX(L:L,MATCH(E660,K:K,0))","v":{"$error":"#N/A"}}]
[null,null,"",{"$f":"INDEX(J:J,MATCH(C661,I:I,0))","v":{"$error":"#N/A"}},{"$f":"INDEX(K:K,MATCH(D661,J:J,0))","v":{"$error":"#N/A"}},{"$f":"INDEX(L:L,MATCH(E661,K:K,0))","v":{"$error":"#N/A"}}]
[null,null,"",{"$f":"INDEX(J:J,MATCH(C662,I:I,0))","v":{"$error":"#N/A"}},{"$f":"INDEX(K:K,MATCH(D662,J:J,0))","v":{"$error":"#N/A"}},{"$f":"INDEX(L:L,MATCH(E662,K:K,0))","v":{"$error":"#N/A"}}]
[null,null,"",{"$f":"INDEX(J:J,MATCH(C663,I:I,0))","v":{"$error":"#N/A"}},{"$f":"INDEX(K:K,MATCH(D663,J:J,0))","v":{"$error":"#N/A"}},{"$f":"INDEX(L:L,MATCH(E663,K:K,0))","v":{"$error":"#N/A"}}]
[null,null,"",{"$f":"INDEX(J:J,MATCH(C664,I:I,0))","v":{"$error":"#N/A"}},{"$f":"INDEX(K:K,MATCH(D664,J:J,0))","v":{"$error":"#N/A"}},{"$f":"INDEX(L:L,MATCH(E664,K:K,0))","v":{"$error":"#N/A"}}]
[null,null,"",{"$f":"INDEX(J:J,MATCH(C665,I:I,0))","v":{"$error":"#N/A"}},{"$f":"INDEX(K:K,MATCH(D665,J:J,0))","v":{"$error":"#N/A"}},{"$f":"INDEX(L:L,MATCH(E665,K:K,0))","v":{"$error":"#N/A"}}]
[null,null,"",{"$f":"INDEX(J:J,MATCH(C666,I:I,0))","v":{"$error":"#N/A"}},{"$f":"INDEX(K:K,MATCH(D666,J:J,0))","v":{"$error":"#N/A"}},{"$f":"INDEX(L:L,MATCH(E666,K:K,0))","v":{"$error":"#N/A"}}]
[null,null,"",{"$f":"INDEX(J:J,MATCH(C667,I:I,0))","v":{"$error":"#N/A"}},{"$f":"INDEX(K:K,MATCH(D667,J:J,0))","v":{"$error":"#N/A"}},{"$f":"INDEX(L:L,MATCH(E667,K:K,0))","v":{"$error":"#N/A"}}]
[null,null,"",{"$f":"INDEX(J:J,MATCH(C668,I:I,0))","v":{"$error":"#N/A"}},{"$f":"INDEX(K:K,MATCH(D668,J:J,0))","v":{"$error":"#N/A"}},{"$f":"INDEX(L:L,MATCH(E668,K:K,0))","v":{"$error":"#N/A"}}]
[null,null,"",{"$f":"INDEX(J:J,MATCH(C669,I:I,0))","v":{"$error":"#N/A"}},{"$f":"INDEX(K:K,MATCH(D669,J:J,0))","v":{"$error":"#N/A"}},{"$f":"INDEX(L:L,MATCH(E669,K:K,0))","v":{"$error":"#N/A"}}]
[null,null,"",{"$f":"INDEX(J:J,MATCH(C670,I:I,0))","v":{"$error":"#N/A"}},{"$f":"INDEX(K:K,MATCH(D670,J:J,0))","v":{"$error":"#N/A"}},{"$f":"INDEX(L:L,MATCH(E670,K:K,0))","v":{"$error":"#N/A"}}]
[null,null,"",{"$f":"INDEX(J:J,MATCH(C671,I:I,0))","v":{"$error":"#N/A"}},{"$f":"INDEX(K:K,MATCH(D671,J:J,0))","v":{"$error":"#N/A"}},{"$f":"INDEX(L:L,MATCH(E671,K:K,0))","v":{"$error":"#N/A"}}]
[null,null,"",{"$f":"INDEX(J:J,MATCH(C672,I:I,0))","v":{"$error":"#N/A"}},{"$f":"INDEX(K:K,MATCH(D672,J:J,0))","v":{"$error":"#N/A"}},{"$f":"INDEX(L:L,MATCH(E672,K:K,0))","v":{"$error":"#N/A"}}]
[null,null,"",{"$f":"INDEX(J:J,MATCH(C673,I:I,0))","v":{"$error":"#N/A"}},{"$f":"INDEX(K:K,MATCH(D673,J:J,0))","v":{"$error":"#N/A"}},{"$f":"INDEX(L:L,MATCH(E673,K:K,0))","v":{"$error":"#N/A"}}]
[null,null,"",{"$f":"INDEX(J:J,MATCH(C674,I:I,0))","v":{"$error":"#N/A"}},{"$f":"INDEX(K:K,MATCH(D674,J:J,0))","v":{"$error":"#N/A"}},{"$f":"INDEX(L:L,MATCH(E674,K:K,0))","v":{"$error":"#N/A"}}]
[null,null,"",{"$f":"INDEX(J:J,MATCH(C675,I:I,0))","v":{"$error":"#N/A"}},{"$f":"INDEX(K:K,MATCH(D675,J:J,0))","v":{"$error":"#N/A"}},{"$f":"INDEX(L:L,MATCH(E675,K:K,0))","v":{"$error":"#N/A"}}]
[null,null,"",{"$f":"INDEX(J:J,MATCH(C676,I:I,0))","v":{"$error":"#N/A"}},{"$f":"INDEX(K:K,MATCH(D676,J:J,0))","v":{"$error":"#N/A"}},{"$f":"INDEX(L:L,MATCH(E676,K:K,0))","v":{"$error":"#N/A"}}]
[null,null,"",{"$f":"INDEX(J:J,MATCH(C677,I:I,0))","v":{"$error":"#N/A"}},{"$f":"INDEX(K:K,MATCH(D677,J:J,0))","v":{"$error":"#N/A"}},{"$f":"INDEX(L:L,MATCH(E677,K:K,0))","v":{"$error":"#N/A"}}]
[null,null,"",{"$f":"INDEX(J:J,MATCH(C678,I:I,0))","v":{"$error":"#N/A"}},{"$f":"INDEX(K:K,MATCH(D678,J:J,0))","v":{"$error":"#N/A"}},{"$f":"INDEX(L:L,MATCH(E678,K:K,0))","v":{"$error":"#N/A"}}]
[null,null,"",{"$f":"INDEX(J:J,MATCH(C679,I:I,0))","v":{"$error":"#N/A"}},{"$f":"INDEX(K:K,MATCH(D679,J:J,0))","v":{"$error":"#N/A"}},{"$f":"INDEX(L:L,MATCH(E679,K:K,0))","v":{"$error":"#N/A"}}]
[null,null,"",{"$f":"INDEX(J:J,MATCH(C680,I:I,0))","v":{"$error":"#N/A"}},{"$f":"INDEX(K:K,MATCH(D680,J:J,0))","v":{"$error":"#N/A"}},{"$f":"INDEX(L:L,MATCH(E680,K:K,0))","v":{"$error":"#N/A"}}]
[null,null,"",{"$f":"INDEX(J:J,MATCH(C681,I:I,0))","v":{"$error":"#N/A"}},{"$f":"INDEX(K:K,MATCH(D681,J:J,0))","v":{"$error":"#N/A"}},{"$f":"INDEX(L:L,MATCH(E681,K:K,0))","v":{"$error":"#N/A"}}]
[null,null,"",{"$f":"INDEX(J:J,MATCH(C682,I:I,0))","v":{"$error":"#N/A"}},{"$f":"INDEX(K:K,MATCH(D682,J:J,0))","v":{"$error":"#N/A"}},{"$f":"INDEX(L:L,MATCH(E682,K:K,0))","v":{"$error":"#N/A"}}]
[null,null,"",{"$f":"INDEX(J:J,MATCH(C683,I:I,0))","v":{"$error":"#N/A"}},{"$f":"INDEX(K:K,MATCH(D683,J:J,0))","v":{"$error":"#N/A"}},{"$f":"INDEX(L:L,MATCH(E683,K:K,0))","v":{"$error":"#N/A"}}]
[null,null,"",{"$f":"INDEX(J:J,MATCH(C684,I:I,0))","v":{"$error":"#N/A"}},{"$f":"INDEX(K:K,MATCH(D684,J:J,0))","v":{"$error":"#N/A"}},{"$f":"INDEX(L:L,MATCH(E684,K:K,0))","v":{"$error":"#N/A"}}]
[null,null,"",{"$f":"INDEX(J:J,MATCH(C685,I:I,0))","v":{"$error":"#N/A"}},{"$f":"INDEX(K:K,MATCH(D685,J:J,0))","v":{"$error":"#N/A"}},{"$f":"INDEX(L:L,MATCH(E685,K:K,0))","v":{"$error":"#N/A"}}]
[null,null,"",{"$f":"INDEX(J:J,MATCH(C686,I:I,0))","v":{"$error":"#N/A"}},{"$f":"INDEX(K:K,MATCH(D686,J:J,0))","v":{"$error":"#N/A"}},{"$f":"INDEX(L:L,MATCH(E686,K:K,0))","v":{"$error":"#N/A"}}]
[null,null,"",{"$f":"INDEX(J:J,MATCH(C687,I:I,0))","v":{"$error":"#N/A"}},{"$f":"INDEX(K:K,MATCH(D687,J:J,0))","v":{"$error":"#N/A"}},{"$f":"INDEX(L:L,MATCH(E687,K:K,0))","v":{"$error":"#N/A"}}]
[null,null,"",{"$f":"INDEX(J:J,MATCH(C688,I:I,0))","v":{"$error":"#N/A"}},{"$f":"INDEX(K:K,MATCH(D688,J:J,0))","v":{"$error":"#N/A"}},{"$f":"INDEX(L:L,MATCH(E688,K:K,0))","v":{"$error":"#N/A"}}]
[null,null,"",{"$f":"INDEX(J:J,MATCH(C689,I:I,0))","v":{"$error":"#N/A"}},{"$f":"INDEX(K:K,MATCH(D689,J:J,0))","v":{"$error":"#N/A"}},{"$f":"INDEX(L:L,MATCH(E689,K:K,0))","v":{"$error":"#N/A"}}]
[null,null,"",{"$f":"INDEX(J:J,MATCH(C690,I:I,0))","v":{"$error":"#N/A"}},{"$f":"INDEX(K:K,MATCH(D690,J:J,0))","v":{"$error":"#N/A"}},{"$f":"INDEX(L:L,MATCH(E690,K:K,0))","v":{"$error":"#N/A"}}]
[null,null,"",{"$f":"INDEX(J:J,MATCH(C691,I:I,0))","v":{"$error":"#N/A"}},{"$f":"INDEX(K:K,MATCH(D691,J:J,0))","v":{"$error":"#N/A"}},{"$f":"INDEX(L:L,MATCH(E691,K:K,0))","v":{"$error":"#N/A"}}]
[null,null,"",{"$f":"INDEX(J:J,MATCH(C692,I:I,0))","v":{"$error":"#N/A"}},{"$f":"INDEX(K:K,MATCH(D692,J:J,0))","v":{"$error":"#N/A"}},{"$f":"INDEX(L:L,MATCH(E692,K:K,0))","v":{"$error":"#N/A"}}]
[null,null,"",{"$f":"INDEX(J:J,MATCH(C693,I:I,0))","v":{"$error":"#N/A"}},{"$f":"INDEX(K:K,MATCH(D693,J:J,0))","v":{"$error":"#N/A"}},{"$f":"INDEX(L:L,MATCH(E693,K:K,0))","v":{"$error":"#N/A"}}]
[null,null,"",{"$f":"INDEX(J:J,MATCH(C694,I:I,0))","v":{"$error":"#N/A"}},{"$f":"INDEX(K:K,MATCH(D694,J:J,0))","v":{"$error":"#N/A"}},{"$f":"INDEX(L:L,MATCH(E694,K:K,0))","v":{"$error":"#N/A"}}]
[null,null,"",{"$f":"INDEX(J:J,MATCH(C695,I:I,0))","v":{"$error":"#N/A"}},{"$f":"INDEX(K:K,MATCH(D695,J:J,0))","v":{"$error":"#N/A"}},{"$f":"INDEX(L:L,MATCH(E695,K:K,0))","v":{"$error":"#N/A"}}]
[null,null,"",{"$f":"INDEX(J:J,MATCH(C696,I:I,0))","v":{"$error":"#N/A"}},{"$f":"INDEX(K:K,MATCH(D696,J:J,0))","v":{"$error":"#N/A"}},{"$f":"INDEX(L:L,MATCH(E696,K:K,0))","v":{"$error":"#N/A"}}]
[null,null,"",{"$f":"INDEX(J:J,MATCH(C697,I:I,0))","v":{"$error":"#N/A"}},{"$f":"INDEX(K:K,MATCH(D697,J:J,0))","v":{"$error":"#N/A"}},{"$f":"INDEX(L:L,MATCH(E697,K:K,0))","v":{"$error":"#N/A"}}]
[null,null,"",{"$f":"INDEX(J:J,MATCH(C698,I:I,0))","v":{"$error":"#N/A"}},{"$f":"INDEX(K:K,MATCH(D698,J:J,0))","v":{"$error":"#N/A"}},{"$f":"INDEX(L:L,MATCH(E698,K:K,0))","v":{"$error":"#N/A"}}]
[null,null,"",{"$f":"INDEX(J:J,MATCH(C699,I:I,0))","v":{"$error":"#N/A"}},{"$f":"INDEX(K:K,MATCH(D699,J:J,0))","v":{"$error":"#N/A"}},{"$f":"INDEX(L:L,MATCH(E699,K:K,0))","v":{"$error":"#N/A"}}]
[null,null,"",{"$f":"INDEX(J:J,MATCH(C700,I:I,0))","v":{"$error":"#N/A"}},{"$f":"INDEX(K:K,MATCH(D700,J:J,0))","v":{"$error":"#N/A"}},{"$f":"INDEX(L:L,MATCH(E700,K:K,0))","v":{"$error":"#N/A"}}]
[null,null,"",{"$f":"INDEX(J:J,MATCH(C701,I:I,0))","v":{"$error":"#N/A"}},{"$f":"INDEX(K:K,MATCH(D701,J:J,0))","v":{"$error":"#N/A"}},{"$f":"INDEX(L:L,MATCH(E701,K:K,0))","v":{"$error":"#N/A"}}]
[null,null,"",{"$f":"INDEX(J:J,MATCH(C702,I:I,0))","v":{"$error":"#N/A"}},{"$f":"INDEX(K:K,MATCH(D702,J:J,0))","v":{"$error":"#N/A"}},{"$f":"INDEX(L:L,MATCH(E702,K:K,0))","v":{"$error":"#N/A"}}]
[null,null,"",{"$f":"INDEX(J:J,MATCH(C703,I:I,0))","v":{"$error":"#N/A"}},{"$f":"INDEX(K:K,MATCH(D703,J:J,0))","v":{"$error":"#N/A"}},{"$f":"INDEX(L:L,MATCH(E703,K:K,0))","v":{"$error":"#N/A"}}]
[null,null,"",{"$f":"INDEX(J:J,MATCH(C704,I:I,0))","v":{"$error":"#N/A"}},{"$f":"INDEX(K:K,MATCH(D704,J:J,0))","v":{"$error":"#N/A"}},{"$f":"INDEX(L:L,MATCH(E704,K:K,0))","v":{"$error":"#N/A"}}]
[null,null,"",{"$f":"INDEX(J:J,MATCH(C705,I:I,0))","v":{"$error":"#N/A"}},{"$f":"INDEX(K:K,MATCH(D705,J:J,0))","v":{"$error":"#N/A"}},{"$f":"INDEX(L:L,MATCH(E705,K:K,0))","v":{"$error":"#N/A"}}]
[null,null,"",{"$f":"INDEX(J:J,MATCH(C706,I:I,0))","v":{"$error":"#N/A"}},{"$f":"INDEX(K:K,MATCH(D706,J:J,0))","v":{"$error":"#N/A"}},{"$f":"INDEX(L:L,MATCH(E706,K:K,0))","v":{"$error":"#N/A"}}]
[null,null,"",{"$f":"INDEX(J:J,MATCH(C707,I:I,0))","v":{"$error":"#N/A"}},{"$f":"INDEX(K:K,MATCH(D707,J:J,0))","v":{"$error":"#N/A"}},{"$f":"INDEX(L:L,MATCH(E707,K:K,0))","v":{"$error":"#N/A"}}]
[null,null,"",{"$f":"INDEX(J:J,MATCH(C708,I:I,0))","v":{"$error":"#N/A"}},{"$f":"INDEX(K:K,MATCH(D708,J:J,0))","v":{"$error":"#N/A"}},{"$f":"INDEX(L:L,MATCH(E708,K:K,0))","v":{"$error":"#N/A"}}]
[null,null,"",{"$f":"INDEX(J:J,MATCH(C709,I:I,0))","v":{"$error":"#N/A"}},{"$f":"INDEX(K:K,MATCH(D709,J:J,0))","v":{"$error":"#N/A"}},{"$f":"INDEX(L:L,MATCH(E709,K:K,0))","v":{"$error":"#N/A"}}]
[null,null,"",{"$f":"INDEX(J:J,MATCH(C710,I:I,0))","v":{"$error":"#N/A"}},{"$f":"INDEX(K:K,MATCH(D710,J:J,0))","v":{"$error":"#N/A"}},{"$f":"INDEX(L:L,MATCH(E710,K:K,0))","v":{"$error":"#N/A"}}]
[null,null,"",{"$f":"INDEX(J:J,MATCH(C711,I:I,0))","v":{"$error":"#N/A"}},{"$f":"INDEX(K:K,MATCH(D711,J:J,0))","v":{"$error":"#N/A"}},{"$f":"INDEX(L:L,MATCH(E711,K:K,0))","v":{"$error":"#N/A"}}]
[null,null,"",{"$f":"INDEX(J:J,MATCH(C712,I:I,0))","v":{"$error":"#N/A"}},{"$f":"INDEX(K:K,MATCH(D712,J:J,0))","v":{"$error":"#N/A"}},{"$f":"INDEX(L:L,MATCH(E712,K:K,0))","v":{"$error":"#N/A"}}]
[null,null,"",{"$f":"INDEX(J:J,MATCH(C713,I:I,0))","v":{"$error":"#N/A"}},{"$f":"INDEX(K:K,MATCH(D713,J:J,0))","v":{"$error":"#N/A"}},{"$f":"INDEX(L:L,MATCH(E713,K:K,0))","v":{"$error":"#N/A"}}]
[null,null,"",{"$f":"INDEX(J:J,MATCH(C714,I:I,0))","v":{"$error":"#N/A"}},{"$f":"INDEX(K:K,MATCH(D714,J:J,0))","v":{"$error":"#N/A"}},{"$f":"INDEX(L:L,MATCH(E714,K:K,0))","v":{"$error":"#N/A"}}]
[null,null,"",{"$f":"INDEX(J:J,MATCH(C715,I:I,0))","v":{"$error":"#N/A"}},{"$f":"INDEX(K:K,MATCH(D715,J:J,0))","v":{"$error":"#N/A"}},{"$f":"INDEX(L:L,MATCH(E715,K:K,0))","v":{"$error":"#N/A"}}]
[null,null,"",{"$f":"INDEX(J:J,MATCH(C716,I:I,0))","v":{"$error":"#N/A"}},{"$f":"INDEX(K:K,MATCH(D716,J:J,0))","v":{"$error":"#N/A"}},{"$f":"INDEX(L:L,MATCH(E716,K:K,0))","v":{"$error":"#N/A"}}]
[null,null,"",{"$f":"INDEX(J:J,MATCH(C717,I:I,0))","v":{"$error":"#N/A"}},{"$f":"INDEX(K:K,MATCH(D717,J:J,0))","v":{"$error":"#N/A"}},{"$f":"INDEX(L:L,MATCH(E717,K:K,0))","v":{"$error":"#N/A"}}]
[null,null,"",{"$f":"INDEX(J:J,MATCH(C718,I:I,0))","v":{"$error":"#N/A"}},{"$f":"INDEX(K:K,MATCH(D718,J:J,0))","v":{"$error":"#N/A"}},{"$f":"INDEX(L:L,MATCH(E718,K:K,0))","v":{"$error":"#N/A"}}]
[null,null,"",{"$f":"INDEX(J:J,MATCH(C719,I:I,0))","v":{"$error":"#N/A"}},{"$f":"INDEX(K:K,MATCH(D719,J:J,0))","v":{"$error":"#N/A"}},{"$f":"INDEX(L:L,MATCH(E719,K:K,0))","v":{"$error":"#N/A"}}]
[null,null,"",{"$f":"INDEX(J:J,MATCH(C720,I:I,0))","v":{"$error":"#N/A"}},{"$f":"INDEX(K:K,MATCH(D720,J:J,0))","v":{"$error":"#N/A"}},{"$f":"INDEX(L:L,MATCH(E720,K:K,0))","v":{"$error":"#N/A"}}]
[null,null,{"$f":"IF(LEN(A721)=5,LEFT(A721,3),LEFT(A721,4))","v":""},{"$f":"INDEX(J:J,MATCH(C721,I:I,0))","v":{"$error":"#N/A"}},{"$f":"INDEX(K:K,MATCH(D721,J:J,0))","v":{"$error":"#N/A"}},{"$f":"INDEX(L:L,MATCH(E721,K:K,0))","v":{"$error":"#N/A"}}]
[null,null,"",{"$f":"INDEX(J:J,MATCH(C722,I:I,0))","v":{"$error":"#N/A"}},{"$f":"INDEX(K:K,MATCH(D722,J:J,0))","v":{"$error":"#N/A"}},{"$f":"INDEX(L:L,MATCH(E722,K:K,0))","v":{"$error":"#N/A"}}]
[null,null,"",{"$f":"INDEX(J:J,MATCH(C723,I:I,0))","v":{"$error":"#N/A"}},{"$f":"INDEX(K:K,MATCH(D723,J:J,0))","v":{"$error":"#N/A"}},{"$f":"INDEX(L:L,MATCH(E723,K:K,0))","v":{"$error":"#N/A"}}]
[null,null,"",{"$f":"INDEX(J:J,MATCH(C724,I:I,0))","v":{"$error":"#N/A"}},{"$f":"INDEX(K:K,MATCH(D724,J:J,0))","v":{"$error":"#N/A"}},{"$f":"INDEX(L:L,MATCH(E724,K:K,0))","v":{"$error":"#N/A"}}]
[null,null,"",{"$f":"INDEX(J:J,MATCH(C725,I:I,0))","v":{"$error":"#N/A"}},{"$f":"INDEX(K:K,MATCH(D725,J:J,0))","v":{"$error":"#N/A"}},{"$f":"INDEX(L:L,MATCH(E725,K:K,0))","v":{"$error":"#N/A"}}]
[null,null,"",{"$f":"INDEX(J:J,MATCH(C726,I:I,0))","v":{"$error":"#N/A"}},{"$f":"INDEX(K:K,MATCH(D726,J:J,0))","v":{"$error":"#N/A"}},{"$f":"INDEX(L:L,MATCH(E726,K:K,0))","v":{"$error":"#N/A"}}]
[null,null,"",{"$f":"INDEX(J:J,MATCH(C727,I:I,0))","v":{"$error":"#N/A"}},{"$f":"INDEX(K:K,MATCH(D727,J:J,0))","v":{"$error":"#N/A"}},{"$f":"INDEX(L:L,MATCH(E727,K:K,0))","v":{"$error":"#N/A"}}]
[null,null,"",{"$f":"INDEX(J:J,MATCH(C728,I:I,0))","v":{"$error":"#N/A"}},{"$f":"INDEX(K:K,MATCH(D728,J:J,0))","v":{"$error":"#N/A"}},{"$f":"INDEX(L:L,MATCH(E728,K:K,0))","v":{"$error":"#N/A"}}]
[null,null,"",{"$f":"INDEX(J:J,MATCH(C729,I:I,0))","v":{"$error":"#N/A"}},{"$f":"INDEX(K:K,MATCH(D729,J:J,0))","v":{"$error":"#N/A"}},{"$f":"INDEX(L:L,MATCH(E729,K:K,0))","v":{"$error":"#N/A"}}]
[null,null,"",{"$f":"INDEX(J:J,MATCH(C730,I:I,0))","v":{"$error":"#N/A"}},{"$f":"INDEX(K:K,MATCH(D730,J:J,0))","v":{"$error":"#N/A"}},{"$f":"INDEX(L:L,MATCH(E730,K:K,0))","v":{"$error":"#N/A"}}]
[null,null,"",{"$f":"INDEX(J:J,MATCH(C731,I:I,0))","v":{"$error":"#N/A"}},{"$f":"INDEX(K:K,MATCH(D731,J:J,0))","v":{"$error":"#N/A"}},{"$f":"INDEX(L:L,MATCH(E731,K:K,0))","v":{"$error":"#N/A"}}]
[null,null,"",{"$f":"INDEX(J:J,MATCH(C732,I:I,0))","v":{"$error":"#N/A"}},{"$f":"INDEX(K:K,MATCH(D732,J:J,0))","v":{"$error":"#N/A"}},{"$f":"INDEX(L:L,MATCH(E732,K:K,0))","v":{"$error":"#N/A"}}]
[null,null,"",{"$f":"INDEX(J:J,MATCH(C733,I:I,0))","v":{"$error":"#N/A"}},{"$f":"INDEX(K:K,MATCH(D733,J:J,0))","v":{"$error":"#N/A"}},{"$f":"INDEX(L:L,MATCH(E733,K:K,0))","v":{"$error":"#N/A"}}]
[null,null,"",{"$f":"INDEX(J:J,MATCH(C734,I:I,0))","v":{"$error":"#N/A"}},{"$f":"INDEX(K:K,MATCH(D734,J:J,0))","v":{"$error":"#N/A"}},{"$f":"INDEX(L:L,MATCH(E734,K:K,0))","v":{"$error":"#N/A"}}]
[null,null,"",{"$f":"INDEX(J:J,MATCH(C735,I:I,0))","v":{"$error":"#N/A"}},{"$f":"INDEX(K:K,MATCH(D735,J:J,0))","v":{"$error":"#N/A"}},{"$f":"INDEX(L:L,MATCH(E735,K:K,0))","v":{"$error":"#N/A"}}]
[null,null,"",{"$f":"INDEX(J:J,MATCH(C736,I:I,0))","v":{"$error":"#N/A"}},{"$f":"INDEX(K:K,MATCH(D736,J:J,0))","v":{"$error":"#N/A"}},{"$f":"INDEX(L:L,MATCH(E736,K:K,0))","v":{"$error":"#N/A"}}]
[null,null,"",{"$f":"INDEX(J:J,MATCH(C737,I:I,0))","v":{"$error":"#N/A"}},{"$f":"INDEX(K:K,MATCH(D737,J:J,0))","v":{"$error":"#N/A"}},{"$f":"INDEX(L:L,MATCH(E737,K:K,0))","v":{"$error":"#N/A"}}]
[null,null,"",{"$f":"INDEX(J:J,MATCH(C738,I:I,0))","v":{"$error":"#N/A"}},{"$f":"INDEX(K:K,MATCH(D738,J:J,0))","v":{"$error":"#N/A"}},{"$f":"INDEX(L:L,MATCH(E738,K:K,0))","v":{"$error":"#N/A"}}]
[null,null,"",{"$f":"INDEX(J:J,MATCH(C739,I:I,0))","v":{"$error":"#N/A"}},{"$f":"INDEX(K:K,MATCH(D739,J:J,0))","v":{"$error":"#N/A"}},{"$f":"INDEX(L:L,MATCH(E739,K:K,0))","v":{"$error":"#N/A"}}]
[null,null,"",{"$f":"INDEX(J:J,MATCH(C740,I:I,0))","v":{"$error":"#N/A"}},{"$f":"INDEX(K:K,MATCH(D740,J:J,0))","v":{"$error":"#N/A"}},{"$f":"INDEX(L:L,MATCH(E740,K:K,0))","v":{"$error":"#N/A"}}]
[null,null,"",{"$f":"INDEX(J:J,MATCH(C741,I:I,0))","v":{"$error":"#N/A"}},{"$f":"INDEX(K:K,MATCH(D741,J:J,0))","v":{"$error":"#N/A"}},{"$f":"INDEX(L:L,MATCH(E741,K:K,0))","v":{"$error":"#N/A"}}]
[null,null,"",{"$f":"INDEX(J:J,MATCH(C742,I:I,0))","v":{"$error":"#N/A"}},{"$f":"INDEX(K:K,MATCH(D742,J:J,0))","v":{"$error":"#N/A"}},{"$f":"INDEX(L:L,MATCH(E742,K:K,0))","v":{"$error":"#N/A"}}]
[null,null,"",{"$f":"INDEX(J:J,MATCH(C743,I:I,0))","v":{"$error":"#N/A"}},{"$f":"INDEX(K:K,MATCH(D743,J:J,0))","v":{"$error":"#N/A"}},{"$f":"INDEX(L:L,MATCH(E743,K:K,0))","v":{"$error":"#N/A"}}]
[null,null,"",{"$f":"INDEX(J:J,MATCH(C744,I:I,0))","v":{"$error":"#N/A"}},{"$f":"INDEX(K:K,MATCH(D744,J:J,0))","v":{"$error":"#N/A"}},{"$f":"INDEX(L:L,MATCH(E744,K:K,0))","v":{"$error":"#N/A"}}]
[null,null,"",{"$f":"INDEX(J:J,MATCH(C745,I:I,0))","v":{"$error":"#N/A"}},{"$f":"INDEX(K:K,MATCH(D745,J:J,0))","v":{"$error":"#N/A"}},{"$f":"INDEX(L:L,MATCH(E745,K:K,0))","v":{"$error":"#N/A"}}]
[null,null,"",{"$f":"INDEX(J:J,MATCH(C746,I:I,0))","v":{"$error":"#N/A"}},{"$f":"INDEX(K:K,MATCH(D746,J:J,0))","v":{"$error":"#N/A"}},{"$f":"INDEX(L:L,MATCH(E746,K:K,0))","v":{"$error":"#N/A"}}]
[null,null,"",{"$f":"INDEX(J:J,MATCH(C747,I:I,0))","v":{"$error":"#N/A"}},{"$f":"INDEX(K:K,MATCH(D747,J:J,0))","v":{"$error":"#N/A"}},{"$f":"INDEX(L:L,MATCH(E747,K:K,0))","v":{"$error":"#N/A"}}]
[null,null,"",{"$f":"INDEX(J:J,MATCH(C748,I:I,0))","v":{"$error":"#N/A"}},{"$f":"INDEX(K:K,MATCH(D748,J:J,0))","v":{"$error":"#N/A"}},{"$f":"INDEX(L:L,MATCH(E748,K:K,0))","v":{"$error":"#N/A"}}]
[null,null,"",{"$f":"INDEX(J:J,MATCH(C749,I:I,0))","v":{"$error":"#N/A"}},{"$f":"INDEX(K:K,MATCH(D749,J:J,0))","v":{"$error":"#N/A"}},{"$f":"INDEX(L:L,MATCH(E749,K:K,0))","v":{"$error":"#N/A"}}]
[null,null,"",{"$f":"INDEX(J:J,MATCH(C750,I:I,0))","v":{"$error":"#N/A"}},{"$f":"INDEX(K:K,MATCH(D750,J:J,0))","v":{"$error":"#N/A"}},{"$f":"INDEX(L:L,MATCH(E750,K:K,0))","v":{"$error":"#N/A"}}]
[null,null,"",{"$f":"INDEX(J:J,MATCH(C751,I:I,0))","v":{"$error":"#N/A"}},{"$f":"INDEX(K:K,MATCH(D751,J:J,0))","v":{"$error":"#N/A"}},{"$f":"INDEX(L:L,MATCH(E751,K:K,0))","v":{"$error":"#N/A"}}]
[null,null,"",{"$f":"INDEX(J:J,MATCH(C752,I:I,0))","v":{"$error":"#N/A"}},{"$f":"INDEX(K:K,MATCH(D752,J:J,0))","v":{"$error":"#N/A"}},{"$f":"INDEX(L:L,MATCH(E752,K:K,0))","v":{"$error":"#N/A"}}]
[null,null,"",{"$f":"INDEX(J:J,MATCH(C753,I:I,0))","v":{"$error":"#N/A"}},{"$f":"INDEX(K:K,MATCH(D753,J:J,0))","v":{"$error":"#N/A"}},{"$f":"INDEX(L:L,MATCH(E753,K:K,0))","v":{"$error":"#N/A"}}]
[null,null,"",{"$f":"INDEX(J:J,MATCH(C754,I:I,0))","v":{"$error":"#N/A"}},{"$f":"INDEX(K:K,MATCH(D754,J:J,0))","v":{"$error":"#N/A"}},{"$f":"INDEX(L:L,MATCH(E754,K:K,0))","v":{"$error":"#N/A"}}]
[null,null,"",{"$f":"INDEX(J:J,MATCH(C755,I:I,0))","v":{"$error":"#N/A"}},{"$f":"INDEX(K:K,MATCH(D755,J:J,0))","v":{"$error":"#N/A"}},{"$f":"INDEX(L:L,MATCH(E755,K:K,0))","v":{"$error":"#N/A"}}]
[null,null,"",{"$f":"INDEX(J:J,MATCH(C756,I:I,0))","v":{"$error":"#N/A"}},{"$f":"INDEX(K:K,MATCH(D756,J:J,0))","v":{"$error":"#N/A"}},{"$f":"INDEX(L:L,MATCH(E756,K:K,0))","v":{"$error":"#N/A"}}]
[null,null,"",{"$f":"INDEX(J:J,MATCH(C757,I:I,0))","v":{"$error":"#N/A"}},{"$f":"INDEX(K:K,MATCH(D757,J:J,0))","v":{"$error":"#N/A"}},{"$f":"INDEX(L:L,MATCH(E757,K:K,0))","v":{"$error":"#N/A"}}]
[null,null,"",{"$f":"INDEX(J:J,MATCH(C758,I:I,0))","v":{"$error":"#N/A"}},{"$f":"INDEX(K:K,MATCH(D758,J:J,0))","v":{"$error":"#N/A"}},{"$f":"INDEX(L:L,MATCH(E758,K:K,0))","v":{"$error":"#N/A"}}]
[null,null,"",{"$f":"INDEX(J:J,MATCH(C759,I:I,0))","v":{"$error":"#N/A"}},{"$f":"INDEX(K:K,MATCH(D759,J:J,0))","v":{"$error":"#N/A"}},{"$f":"INDEX(L:L,MATCH(E759,K:K,0))","v":{"$error":"#N/A"}}]
[null,null,"",{"$f":"INDEX(J:J,MATCH(C760,I:I,0))","v":{"$error":"#N/A"}},{"$f":"INDEX(K:K,MATCH(D760,J:J,0))","v":{"$error":"#N/A"}},{"$f":"INDEX(L:L,MATCH(E760,K:K,0))","v":{"$error":"#N/A"}}]
[null,null,"",{"$f":"INDEX(J:J,MATCH(C761,I:I,0))","v":{"$error":"#N/A"}},{"$f":"INDEX(K:K,MATCH(D761,J:J,0))","v":{"$error":"#N/A"}},{"$f":"INDEX(L:L,MATCH(E761,K:K,0))","v":{"$error":"#N/A"}}]
[null,null,"",{"$f":"INDEX(J:J,MATCH(C762,I:I,0))","v":{"$error":"#N/A"}},{"$f":"INDEX(K:K,MATCH(D762,J:J,0))","v":{"$error":"#N/A"}},{"$f":"INDEX(L:L,MATCH(E762,K:K,0))","v":{"$error":"#N/A"}}]
[null,null,"",{"$f":"INDEX(J:J,MATCH(C763,I:I,0))","v":{"$error":"#N/A"}},{"$f":"INDEX(K:K,MATCH(D763,J:J,0))","v":{"$error":"#N/A"}},{"$f":"INDEX(L:L,MATCH(E763,K:K,0))","v":{"$error":"#N/A"}}]
[null,null,"",{"$f":"INDEX(J:J,MATCH(C764,I:I,0))","v":{"$error":"#N/A"}},{"$f":"INDEX(K:K,MATCH(D764,J:J,0))","v":{"$error":"#N/A"}},{"$f":"INDEX(L:L,MATCH(E764,K:K,0))","v":{"$error":"#N/A"}}]

{"sheet":"Adm.ark specialer","index":2,"n_rows":90,"n_cols":151,"rows_kept":90,"cut":false,"hidden":false,"merged":[]}
["Speciale",null,"Nr.","Almen_Medicin_Kbh",null,"Nr.","Almen_Medicin_Odense",null,"Nr.","Almen_Medicin_Aarhus",null,"Nr.","Anæstesiologi",null,"Nr.","Arbejdsmedicin",null,"Nr.","Børne_og_ungdomspsykiatri",null,"Nr.","Dermato_venerologi",null,"Nr.","Diagnostisk_radiologi",null,"Nr.","Gynækologi_og_obstetrik",null,"Nr.","IM_Endokrinologi",null,"Nr.","IM_Fælleskurser",null,"Nr.","IM_Gastroenterologi_og_Hepatologi",null,"Nr.","IM_Geriatri",null,"Nr.","IM_Hæmatologi",null,"Nr.","IM_Infektionsmedicin",null,"Nr.","IM_Kardiologi",null,"Nr.","IM_Lungesygdomme",null,"Nr.","IM_Nefrologi",null,"Nr.","IM_Reumatologi",null,"Nr.","Karkirurgi",null,"Nr.","Kirurgi",null,"Nr.","Kir._færdighedskurser_KBH_Odense_og_Århus",null,"Nr.","Kir._Færdighedskurser_Århus",null,"Nr.","Klinisk_Biokemi",null,"Nr.","Klinisk_Farmakologi",null,"Nr.","Klinisk_Fysiologi_og_Nuklearmedicin",null,"Nr.","Klinisk_Genetik",null,"Nr.","Klinisk_Immunologi",null,"Nr.","Klinisk_Mikrobiologi",null,"Nr.","Klinisk_Onkologi",null,"Nr.","Neurokirurgi",null,"Nr.","Neurologi",null,"Nr.","Oftalmologi",null,"Nr.","Ortopædisk_kirurgi",null,"Nr.","Oto_rhino_laryngologi",null,"Nr.","Patologisk_anatomi_og_cytologi",null,"Nr.","Plastikkirurgi",null,"Nr.","Psykiatri",null,"Nr.","Pædiatri",null,"Nr.","Retsmedicin",null,"Nr.","Samfundsmedicin",null,"Nr.","Thoraxkirurgi",null,"Nr.","Urologi",null,"Nr.","SOL_2",null,"Nr.","Kommunallægekurser",null,"Nr.","Tand_mund_og_kæbekirurgi",null,"Nr.","Ortodonti",null,"Nr.","Færdighedskurser_operativ_gynækologi",null,"Nr.","Færdighedskurser_ort._kir.",null,"Nr.","Akutmedicin"]
["[vælg fra liste]",null,null,"[vælg fra liste]",null,null,"[vælg fra liste]",null,null,"[vælg fra liste]",null,null,"[vælg fra liste]",null,null,"[vælg fra liste]",null,null,"[vælg fra liste]",null,null,"[vælg fra liste]",null,null,"[vælg fra liste]",null,null,"[vælg fra liste]",null,null,"[vælg fra liste]",null,null,"[vælg fra liste]",null,null,"[vælg fra liste]",null,null,"[vælg fra liste]",null,null,"[vælg fra liste]",null,null,"[vælg fra liste]",null,null,"[vælg fra liste]",null,null,"[vælg fra liste]",null,null,"[vælg fra liste]",null,null,"[vælg fra liste]",null,null,"[vælg fra liste]",null,null,"[vælg fra liste]",null,null,"[vælg fra liste]",null,null,"Udgået",null,null,"[vælg fra liste]",null,null,"[vælg fra liste]",null,null,"[vælg fra liste]",null,null,"[vælg fra liste]",null,null,"[vælg fra liste]",null,null,"[vælg fra liste]",null,null,"[vælg fra liste]",null,null,"[vælg fra liste]",null,null,"[vælg fra liste]",null,null,"[vælg fra liste]",null,null,"[vælg fra liste]",null,null,"[vælg fra liste]",null,null,"[vælg fra liste]",null,null,"[vælg fra liste]",null,null,"[vælg fra liste]",null,null,"[vælg fra liste]",null,null,"[vælg fra liste]",null,null,"[vælg fra liste]",null,null,"[vælg fra liste]",null,null,"[vælg fra liste]",null,null,"[vælg fra liste]",null,null,"[vælg fra liste]",null,null,"[vælg fra liste]",null,null,"[vælg fra liste]",null,null,"[vælg fra liste]",null,null,"[vælg fra liste]",null,null,"[vælg fra liste]"]
["Akutmedicin",null,26101,"ØST33 modul 13",null,26201,"SYD 2022-1",null,26301,"Nord 52",null,26401,"Luftvejshåndtering",null,26501,"Eksponerings-, årsags- og risikovurdering, modul 3",null,26601,"Teoretisk kursus psykoterapi ",null,26701,"Basal dermatologi (delkursus 0 - øst)",null,26801,"Abdominal radiologi",null,26901,"Intrapartal Obstetrik",null,261001,"Binyresygdomme",null,261101,"Akut medicin, Nord - Maj",null,261201,"Gastrointestinal Endoskopi",null,261301,"Geriatriske sygdomme 2; Fald m.m.",null,261401,"Akut leukæmi, myelodysplasi og transplantation",null,261501,"Immundefekt + Feber af ukendt årsag",null,261601,"TEE simulation",null,261701,"Kursus i Klinisk respirationsfysiologi"," ",261801,"Transplantation og Immunologi"," ",261901,"Delkursus 1 Inflammatoriske lidelser 1",null,262001,"Basalt Ultralydskursus ESVS (9000)",null,262101,"Mammakursus, Aarhus",null,262201,"Praktisk fælleskirurgisk kursus, Århus",null,null,null,null,262401,"Endokrinologi",null,262501,"Lægemiddeludvikling og administrativ farmakologi",null,262601,"Isotopteknik 1 - \"Radioaktive isotoper og \nioniserende stråling\" (Kbh)",null,262701,"Genetisk epidemiologi",null,262801,"Transplantationsimmunologi",null,262901,"Kursus i epidemiologi",null,263001,"Radioterapi 1, 2 og 3",null,263101,"Internationalt kursus Beitostølen/EANS inklusiv undervisere",null,263201,"Neurorehabilitering og smerter",null,263301,"I1, Vejle",null,263401,"Protesekirurgi",null,263501,"Mellemøret",null,263601,"Introduktionskursus",null,263701,"Nordisk kursus I, Misdannelser",null,263801,"Ældrepsykiatri",null,263901,"Neuropædiatri ",null,264001,"Klinisk retsmedicin, del 1",null,264101,"Sundhedsjura",null,264201,"Fundamentals in Coronary Surgery",null,264301,"Urologisk radiologi",null,null,null,null,null,null,null,264601,"Resprations- og kredsløbsfysiologi",null,264701,"Ledelse, samarbejde og kommunikation",null,265001,"Operativ Gynækologi I",null,265101,"færdighedskursus",null,266001,"Hjertelungeredningskursus (ALS) 1"]
["Almen_Medicin_Aarhus",null,26102,"ØST33 modul 14",null,26202,"SYD2022-2",null,26302,"Nord 51",null,26402,"Avanceret Intensiv terapi",null,26502,"Individuel risikokommunikation og Pressehåndtering",null,26602,"ADHD, Komorbiditet og differentialdiagnostik ",null,26702,"Dermatologiske manifestationer ved interne medicinske sygd. (delkursus 7)",null,26802,"Fysik og radiobiologi",null,26902,"Urogynækologi",null,261002,"Laboratorieteknik",null,261102,"Akut medicin, Syd - Maj",null,261202,"Gastrointestinal Billeddiagnostik",null,261302,"Aldring og Samfund",null,261402,"Myeloproliferativ neoplasi og trombofili",null,261502,"Kardiopulmonale infektioner + TB",null,261602,"TEE simulation",null,261702,"Kursus i KOL og NIV",null,261802,"Sekundær og kompliceret primær arteriel hypertension",null,261902,"Delkursus 2 Inflammatoriske lidelser 2",null,262002,"ENHANCE EVAR ESVS (15666)",null,262102,"Teoretisk fælleskirurgisk kursus",null,262202,"Praktisk fælleskirurgisk kursus, Odense",null,null,null,null,262402,"Molekylærbiologi i klinisk biokemi",null,262502,"Evidensbaseret farmakoterapi",null,262602,"Lungepatofysiologi ",null,262702,"Cytogenetik",null,262802,"Produktion og anvendelse af celler og væv (SoHO) samt cellulær terapi",null,262902,"Kursus i klinisk virologi og serologi",null,263002,"Medicinsk Kræftbehandling",null,263103,"Beslutningsteori og kommunikation",null,263202,"Bevægeforstyrrelser 1",null,263302,"I1, Kbh",null,263402,"Børneortopædi",null,263502,"Næse- og bihuler",null,263602,"Diagnostiske metoder",null,263002,"Nordisk kursus II, Traume",null,263802,"Psykiatriens organisatoriske og sociale aspekter",null,263902,"Socialpædiatri",null,264002,"Retsantropologi, odontologi og Jura",null,264102,"Kvalitetsudvikling i Sundhedsvæsenet",null,264202,"Fundamentals in Thoracic Surgery",null,264302,"Urologisk radiologi",null,null,null,null,null,null,null,264602,"Onkologi",null,264702,"Klinisk oral fysiologi og smertebehandling",null,265002,"Operativ Gynækologi II",null,265102,"færdighedskursus",null,266002,"Hjertelungeredningskursus (ALS) 2"]
["Almen_Medicin_Kbh",null,26103,"ØST33 modul 15",null,26203,"SYD2022-3",null,26303,"Nord 50",null,26403,"Obstetrisk anæstesi og det nyfødte barn - Aarhus",null,26503,"Forebyggelse og tilbage til arbejde",null,26603,"Farmakologisk behandling af ADHD (Psykofarmakologi 2",null,26703,"Den prof. dermatolog og infektioner i huden (delkursus 6)",null,26803,"Kar og interventionsradiologi",null,26903,"Benign gynækologi",null,261003,"Knogle- og calciummetaboliske sygdomme",null,261103,"Akut medicin, Øst - Maj",null,261203,"Gastroenterologi",null,null,null,null,261403,"Den hæmatologiske patient",null,261503,"Gastroenterologiske infektioner og kronisk hepatitis",null,261603,"ÅR 1 KURSUS (HU1)",null,261703,"Kursus i Astma",null,null,null," ",261903,"Delkursus 3, Den patologiske underekstremitet og degenerative rygsygdomme",null,262003,"ENHANCE OPEN ESVS (17500)",null,262103,"Den kirurgiske kræftpatient",null,262203,"Laparoskopisk kirurgi, København",null,null,null,null,null,null,null,262503,"Farmakoterapi til risikogrupper",null,262603,"Metodekursus 2 (CT og hybridteknikker)",null,262703,"Klinisk Genetik 2 ",null,null,null,null,262903,"Fremmedkursus - Optimised Dosing of Antibiotics",null,263003,"Kommunikation",null,null,null,null,263203,"Bevægeforstyrrelser 2",null,263303,"HB2",null,263403,"Idrætstraumatologi",null,263503,"Billeddiagnostik",null,263603,"Gastrointestinal patologi",null,263703,"Nordisk kursus III, Cancer",null,263803,"Teoretisk grundlag for psykoterapi",null,263903,"Neonatalogi og Børnekirurgi",null,264099,"Temadag for delkursusledere",null,264103,"Risikovurdering, risikostyring og risikokommunikation",null,264203,"Thorax kirurgisk onkologi",null,264303,"Nefrologi",null,null,null,null,null,null,null,264603,"Oral- &Maksillofacial Traumatologi",null,264703,"Samfundsodontologi og epidemiologi",null,null,null,null,null,null,null,266003,"Akut radiologi for akutlæger"]
["Almen_Medicin_Odense",null,26104,"ØST33 modul 16",null,26204,"SYD2022-4",null,26304,"Nord 49",null,26404,"Ultralyd ",null,null,null,null,26604,"Spiseforstyrrelser ",null,26704,"Eksemer (delkursus 8)",null,26804,"Mammaradiologi",null,26904,"Reproduktionsmedicin",null,261004,"Thyroideasygdomme",null,261104,"Akut medicin, Nord - November",null,261204,"Avanceret gastroenterologi",null,null,null,null,261404,"Kommunikation i hæmatologi",null,261504,"Diplomkursus i tropemedicin",null,261604,"ÅR 2 KURSUS (HU2)",null,261704,"Kursus i Allergi ",null,null,null,null,261904,"Delkursus 4. Den patologiske overekstremitet",null,262004,"Kursus i endovaskulære teknikker (15000)",null,262104,"Avanceret kirurgisk endoskopi, Kbh",null,262204,"Åben kirurgi, Odense",null,null,null,null,null,null,null,262504,"Temadag for delkursusedere",null,262604,"Onkologisk diagnostik og behandling",null,262704,"Dysmorfologi",null,null,null,null,262904,"Fremmedkursus - Clinical Parasitology",null,263004,"Onkologiske Sygdomme",null,null,null,null,263204,"Hovedpine",null,263304,"HB3, Ålborg",null,263404,"Rygkirurgi",null,263504,"Hoved-Hals kirurgi",null,263604,"Mammapatologi",null,263704,"Nordisk Kursus IV, Æstetisk",null,263804,"Neuropsykiatri",null,263904,"Børnepsykiatri",null,null,null,null,264104,"Sundhed og miljø",null,264204,"VVU internat",null,264304,"Urolithiasis",null,null,null,null,null,null,null,null,null,null,264704,"Avanceret røntgenteknologi og digitale teknikker",null,null,null,null,null,null,null,266004,"Flowmaster"]
["Anæstesiologi",null,26105,"ØST34 modul 11",null,26205,"SYD2023-1",null,26305,"Nord 48",null,26405,"Anæstesi ",null,null,null,null,26605,"Retspsykiatri",null,26705,"Kron. inflam. hudsygd. (undtagen eksem og AD) (delkursus 9)",null,26805,"Muskuloskeletal radiologi",null,26905,"Kommunikation A",null,261005,"Diabetes og ernæringsbetingede sygdomme",null,261105,"Akut medicin, Syd - November",null,null,null,null,null,null,null,261405,"Behandlingsmodaliteter i hæmatologi",null,null,null,null,261605,"ÅR 3 KURSUS (HU3)",null,261705,"Kursus i Pulmonale infektioner ",null,null,null,null,261905,"Delkursus 5. Vaskulit og bindevævssygdomme",null,262005,"ENHANCE PAD ESVS",null,262105,"Den akutte kirurgiske patient",null,262205,"Åben kirurgi, København",null,null,null,null,null,null,null,null,null,null,262605,"Nyrernes og urinvejenes patofysiologi",null,null,null,null,null,null,null,null,null,null,263005,"Intern Medicin & Komorbiditet",null,null,null,null,263205,"Socialneurologi",null,263305,"HB3, Kbh",null,263405,"Introduktion til HU Forår",null,263505,"Endoskopi",null,263605,"Uro- nyre- og testispatologi",null,263705,"Mikrokirurgi",null,263805,"Børne- og ungdomspsyk. lidelser med forløb ind i voksenalderen (1 dag)",null,263905,"Akut Pædiatri",null,null,null,null,264105,"Folkesundhed",null,264205,"POCUS",null,264305,"Urolithiasis",null,null,null,null,null,null,null,null,null,null,null,null,null,null,null,null,null,null,null,266005,"Akutmedicinsk ultralyd øst"]
["Arbejdsmedicin",null,26106,"ØST34 modul 12",null,26206,"SYD2023-2",null,26306,"Nord 47",null,26406,"Intensiv terapi -NORD & SYD - Aalborg",null,null,null,null,26606,"Adfærds- og personlighedsforstyrrelser ",null,26706,"Basal dermatologi (delkursus 0 - vest)",null,26806,"Neuroradiologi",null,26906,"Endokrin gynækologi",null,null,null,null,261106,"Akut medicin, Øst - November",null,null,null,null,null,null,null,null,null,null,null,null,null,261606,"ÅR 4 KURSUS (HU4)",null,261706,"Kursus i Infiltratudredning, pleuraeffusioner, mesotheliom og hæmoptyse "," ",null,null,null,261906,"Delkursus 6. Komplekse reumatologiske tilstande",null,262006,"Kursus i venesygdomme for karkirurger",null,262106,"Børnekirurgi",null,262206,"Praktisk fælleskirurgisk kursus, København",null,null,null,null,null,null,null,null,null,null,262606,"Møde for kursusudvalget",null,null,null,null,null,null,null,null,null,null,263006,"Understøttende Behandling",null,null,null,null,263206,"Klinisk neurologi 1 ",null,263306,"HB4",null,263406,"Håndkirurgi",null,263506,"Praksis",null,263606,"Gynækopatologi",null,263706,"ATLS",null,263806,"Oligofreni ",null,263906,"Genetik",null,null,null,null,null,null,null,264206,"ATLS",null,264306,"Urologisk mikrobiologi",null,null,null,null,null,null,null,null,null,null,null,null,null,null,null,null,null,null,null,266006,"Akutmedicinsk ultralyd syd"]
["Børne_og_ungdomspsykiatri",null,26107,"ØST34 modul 13",null,26207,"SYD2023-3 (FT)",null,26307,"Nord 46",null,26407,"Intensiv terapi - ØST",null,null,null,null,26607,"Misbrug",null,26707,"Dermatopatologi og laser (delkursus 10)",null,26807,"Pædiatrisk radiologi",null,26907,"Føtalmedicin",null,null,null,null,261107,"De 8 selskabers kursusdag, Nord - Maj",null,null,null,null,null,null,null,null,null,null,null,null,null,261607,"ÅR 5 KURSUS (HU5)",null,261707,"Kursus i Invasiv diagnostik ",null,null,null,null,261907,"USU-møder",null,262007,"Kursus i dialyse-adgange samt kar-relateret mikrobiologi og infektioner",null,262107,"Traumatologi Aarhus",null,262207,"Laparoskopisk kursus, Århus",null,null,null,null,null,null,null,null,null,null,null,null,null,null,null,null,null,null,null,null,null,null,263007,"MDT",null,null,null,null,263207,"Neuromuskulære sygdomme I ",null,263307,"HK5",null,263407,"Traumatologi I",null,263507,"Audiologi",null,263607,"Nedre luftvejes patologi",null,263707,"Nordisk kursusledermøde og nationale uddannelsesmøder",null,263807,"I Psykopatologi",null,263907,"Pulmonologi og Allergologi",null,null,null,null,null,null,null,264207,"Erstatnings kursus for 254203",null,264307,"Urologisk mikrobiologi",null,null,null,null,null,null,null,null,null,null,null,null,null,null,null,null,null,null,null,266007,"Akutmedicinsk ultralyd nord"]
["Dermato_venerologi",null,26108,"ØST34 modul 14",null,26208,"SYD2023-4 (FT)",null,26308,"Nord 45",null,26408,"Pædiatrisk anæstesi  - Aarhus",null,null,null,null,26608,"Teoretisk kursus psykopatologi ",null,null,null,null,26808,"Thorax radiologi",null,26908,"Gynækologisk Onkologi",null,null,null,null,261108,"De 8 selskabers kursusdag, Syd - Maj",null,null,null,null,null,null,null,null,null,null,null,null,null,null,null,null,261708,"Kursus i Interstitielle Lungesygdomme "," ",null,null,null,null,null,null,null,null,null,262108,"Traumatologi ekstra pga. aflysning 2025, Aarhus",null,262208,"Praktisk fælleskirurgisk kursus, Århus",null,null,null,null,null,null,null,null,null,null,null,null,null,null,null,null,null,null,null,null,null,null,null,null,null,null,null,null,263208,"Neuromuskulære sygdomme II",null,263308,"HK6",null,263408,"Traumatologi II",null,263508,"Paraklinik",null,263608,"Molekylærpatologi",null,null,null,null,263808,"III Psykopatologi",null,263908,"Endokrinologi",null,null,null,null,null,null,null,null,null,null,264308,"LUTS (urodynamik)",null,null,null,null,null,null,null,null,null,null,null,null,null,null,null,null,null,null,null,266008,"ABCDE"]
["Diagnostisk_radiologi",null,26109,"ØST34 modul 15",null,26209,"SYD2023-5",null,26309,"Nord 44",null,26409,"Klinisk beslutningstagning ",null,null,null,null,26609,"Biologisk Psykiatri ",null,null,null,null,26809,"Onkoradiologi",null,26909,"Antepartal obstetrik",null,null,null,null,261109,"De 8 selskabers kursusdag, Øst - Maj",null,null,null,null,null,null,null,null,null,null,null,null,null,null,null,null,null,null,null,null,null,null,null,null,null,null,null,null,262109,"Den akutte patient Aarhus",null,262209,"Åben kirurgi, Århus",null,null,null,null,null,null,null,null,null,null,null,null,null,null,null,null,null,null,null,null,null,null,null,null,null,null,null,null,263209,"Neuroonkologi",null,263309,"HK7",null,263409,"Tumorkirurgi",null,263509,"Vestibulogi",null,263609,"Øvre luftvejes patologi",null,null,null,null,263809,"Ældrepsykiatri",null,263909,"Infektionspædiatri, Immunologi og reumatologi ",null,null,null,null,null,null,null,null,null,null,264309,"LUTS (urodynamik)",null,null,null,null,null,null,null,null,null,null,null,null,null,null,null,null,null,null,null,266009,"Akutte kirurgiske tilstande"]
["Færdighedskurser_operativ_gynækologi",null,26110,"ØST34 modul 16",null,26210,"SYD2024-1",null,26310,"Nord 43",null,26410,"Akutte og kroniske smerter",null,null,null,null,26610,"Autismespektrumforstyrrelser, generelle udviklingsforstyrrelser og sjældne neuropsykiatriske lidelser ",null,null,null,null,26810,"Teknik og strålebeskyttelse",null,26910,"Kommunikation B ",null,null,null,null,261110,"De 8 selskabers kursusdag, Nord - November",null,null,null,null,null,null,null,null,null,null,null,null,null,null,null,null,null,null,null,null,null,null,null,null,null,null,null,null,262110,"Avanceret kirurgisk endoskopi, ",null,262210,"Praktisk fælleskirurgisk kursus, København",null,null,null,null,null,null,null,null,null,null,null,null,null,null,null,null,null,null,null,null,null,null,null,null,null,null,null,null,263210,"Anfaldsfænomener og søvn",null,263310,"HK8",null,263410,"Fod og Ankel Kirurgi",null,263599,"Uddannelsesrådsmøde 2026",null,263610,"Dermatopatologi",null,null,null,null,263810,"Misbrug (2 dage)",null,263910,"Nefrologi og urologisk børnekirurgi",null,null,null,null,null,null,null,null,null,null,264310,"Uroonkologi",null,null,null,null,null,null,null,null,null,null,null,null,null,null,null,null,null,null,null,266010,"Akut pædiatri"]
["Færdighedskurser_ort._kir.",null,26111,"ØST35 modul 10",null,26211,"SYD2024-2",null,26311,"Nord 42",null,26411,"Neuro, traume, præhospital",null,null,null,null,26611,"Psykofarmakologi, interaktion og bivirkninger (Psykofarmakologi 1",null,null,null,null,26811,"Urogenital radiologi",null,26911,"Temadag",null,null,null,null,261111,"De 8 selskabers kursusdag, Syd - November",null,null,null,null,null,null,null,null,null,null,null,null,null,null,null,null,null,null,null,null,null,null,null,null,null,null,null,null,262111,"Teoretisk fælleskirurgisk kursus",null,262211,"Laparoskopisk kirurgi, Odense",null,null,null,null,null,null,null,null,null,null,null,null,null,null,null,null,null,null,null,null,null,null,null,null,null,null,null,null,263211,"Klinisk neurologi 1 ",null,263311,"HK9",null,263411,"Introduktion til HU Efterår",null,263598,"Planlægningsmøde til Praksis kurset",null,263611,"Hæmatopatologi",null,null,null,null,263811,"Erklæringsudstedelse (1 dag)",null,263912,"Hæmatologi og Onkologi",null,null,null,null,null,null,null,null,null,null,264311,"Androlog/fertilitet",null,null,null,null,null,null,null,null,null,null,null,null,null,null,null,null,null,null,null,266011,"Traumekurset"]
["Gynækologi_og_obstetrik",null,26112,"ØST35 modul 11",null,26212,"SYD2024-3",null,26312,"Nord 41",null,26412,"Patientsikkerhed og kom.",null,null,null,null,26612,"Seksualitet og seksuelle overgreb ",null,null,null,null,26898,"kursusdag for delkursusledere",null,null,null,null,null,null,null,261112,"De 8 selskabers kursusdag, Øst - November",null,null,null,null,null,null,null,null,null,null,null,null,null,null,null,null,null,null,null,null,null,null,null,null,null,null,null,null,262112,"Mammakursus, Aarhus",null,null,null,null,null,null,null,null,null,null,null,null,null,null,null,null,null,null,null,null,null,null,null,null,null,null,null,null,null,null,null,null,null,null,263312,"HK10",null,263412,"Infektionskirurgi",null,null,null,null,263612,"CNS- og muskelpatologi",null,null,null,null,263812,"Biologiske behandlingsmetoder",null,263913,"Tværgående pædiatri",null,null,null,null,null,null,null,null,null,null,264312,"Androlog/fertilitet",null,null,null,null,null,null,null,null,null,null,null,null,null,null,null,null,null,null,null,266012,"Symptomer"]
["IM_Endokrinologi",null,26113,"ØST35 modul 12",null,26213,"SYD2024-4",null,26313,"Nord 40",null,26413,"Luftvejshåndtering",null,null,null,null,26613,"Belastningsreaktioner og PTSD ",null,null,null,null,null,null,null,null,null,null,null,null,null,261113,"Rationel farmakoterapi, Nord - Maj",null,null,null,null,null,null,null,null,null,null,null,null,null,null,null,null,null,null,null,null,null,null,null,null,null,null,null,null,262113,"Traumatologi Kbh",null,null,null,null,null,null,null,null,null,null,null,null,null,null,null,null,null,null,null,null,null,null,null,null,null,null,null,null,null,null,null,null,null,null,263313,"HK11, Ålborg",null,263413,"Skulder og Albue Kirurgi",null,null,null,null,263613,"Lever- og pancreaspatologi",null,null,null,null,263813,"II Psykopatologi",null,263914,"Ungdomsmedicin",null,null,null,null,null,null,null,null,null,null,264313,"Børneurologi",null,null,null,null,null,null,null,null,null,null,null,null,null,null,null,null,null,null,null,266013,"Katastrofemedicin og transport 1"]
["IM_Fælleskurser",null,26114,"ØST35 modul 13",null,26214,"SYD2025-1",null,26314,"Nord 39",null,26414,"Avanceret Intensiv terapi",null,null,null,null,26614,"Spædbarnspsykiatri ",null,null,null,null,null,null,null,null,null,null,null,null,null,261114,"Rationel farmakoterapi, Syd - Maj",null,null,null,null,null,null,null,null,null,null,null,null,null,null,null,null,null,null,null,null,null,null,null,null,null,null,null,null,262114,"Den kirurgiske kræftpatient Aarhus",null,null,null,null,null,null,null,null,null,null,null,null,null,null,null,null,null,null,null,null,null,null,null,null,null,null,null,null,null,null,null,null,null,null,263314,"HK11, Kbh",null,null,null,null,null,null,null,263614,"Knogle- og bløddelspatologi",null,null,null,null,263814,"Børne- og ungdomspsyk. lidelser med forløb ind i voksenalderen (1 dag)",null,263915,"Børnekardiologi",null,null,null,null,null,null,null,null,null,null,264314,"Børneurologi",null,null,null,null,null,null,null,null,null,null,null,null,null,null,null,null,null,null,null,266014,"Katastrofemedicin og transport 2"]
["IM_Gastroenterologi_og_Hepatologi",null,26115,"ØST35 modul 14",null,26215,"SYD2025-2",null,26315,"Nord 38",null,26415,"Anæstesi ",null,null,null,null,26615,"Teoretisk kursus udviklingspsykopatologi ",null,null,null,null,null,null,null,null,null,null,null,null,null,261115,"Rationel farmakoterapi, Øst - Maj",null,null,null,null,null,null,null,null,null,null,null,null,null,null,null,null,null,null,null,null,null,null,null,null,null,null,null,null,262115,"traumatologi Odense",null,null,null,null,null,null,null,null,null,null,null,null,null,null,null,null,null,null,null,null,null,null,null,null,null,null,null,null,null,null,null,null,null,null,263315,"HK12",null,null,null,null,null,null,null,null,null,null,null,null,null,263815,"Oligofreni ",null,263911,"Pædiatrisk Gastroentrologi og Hepatologi",null,null,null,null,null,null,null,null,null,null,264315,"Færdighedskursus endourologi"]
["IM_Geriatri",null,26116,"ØST35 modul 15",null,26216,"SYD2025-3",null,26316,"Nord 37",null,26416,"Intensiv terapi - ØST",null,null,null,null,26616,"Affektive lidelser",null,null,null,null,null,null,null,null,null,null,null,null,null,261116,"Rationel farmakoterapi, Nord - November",null,null,null,null,null,null,null,null,null,null,null,null,null,null,null,null,null,null,null,null,null,null,null,null,null,null,null,null,262116,"Børnekirurgi",null,null,null,null,null,null,null,null,null,null,null,null,null,null,null,null,null,null,null,null,null,null,null,null,null,null,null,null,null,null,null,null,null,null,263316,"HK13",null,null,null,null,null,null,null,null,null,null,null,null,null,263816,"Retspsykiatri",null,263916,"Temadag for delkursusledere ",null,null,null,null,null,null,null,null,null,null,264316,"Færdighedskursus endourologi"]
["IM_Hæmatologi",null,26117,"ØST35 modul 16",null,26217,"SYD2025-4",null,26317,"Nord 36",null,26417,"Intensiv terapi -Nord og Syd- odense",null,null,null,null,26617,"OCD, tics og Tourette ",null,null,null,null,null,null,null,null,null,null,null,null,null,261117,"Rationel farmakoterapi, Syd - November",null,null,null,null,null,null,null,null,null,null,null,null,null,null,null,null,null,null,null,null,null,null,null,null,null,null,null,null,null,null,null,null,null,null,null,null,null,null,null,null,null,null,null,null,null,null,null,null,null,null,null,null,null,null,null,null,null,null,null,null,null,null,null,null,263317,"HK14",null,null,null,null,null,null,null,null,null,null,null,null,null,263817,"Psykiatriens organisatoriske og sociale aspekter",null,null,null,null,null,null,null,null,null,null,null,null,null,264317,"Færdighedskursus endourologi"]
["IM_Infektionsmedicin",null,26118,"ØST36 modul 10",null,26218,"SYD2026-1",null,26318,"Nord 35",null,26418,"Obstetrisk anæstesi og det nyfødte barn - Kbh",null,null,null,null,26618,"Angst og psykosomatik ",null,null,null,null,null,null,null,null,null,null,null,null,null,261118,"Rationel farmakoterapi, Øst - November",null,null,null,null,null,null,null,null,null,null,null,null,null,null,null,null,null,null,null,null,null,null,null,null,null,null,null,null,null,null,null,null,null,null,null,null,null,null,null,null,null,null,null,null,null,null,null,null,null,null,null,null,null,null,null,null,null,null,null,null,null,null,null,null,263318,"HK12",null,null,null,null,null,null,null,null,null,null,null,null,null,263818,"Teoretisk grundlag for psykoterapi",null,null,null,null,null,null,null,null,null,null,null,null,null,264318,"Færdighedskursus endourologi"]
["IM_Kardiologi",null,26119,"ØST36 modul 11",null,26219,"SYD2026-2",null,26319,"Nord 34",null,26419,"Klinisk beslutningstagning ",null,null,null,null,26619,"Skizofreni ",null,null,null,null,null,null,null,null,null,null,null,null,null,261119,"Neurologi for intern medicinere, Nord - Maj",null,null,null,null,null,null,null,null,null,null,null,null,null,null,null,null,null,null,null,null,null,null,null,null,null,null,null,null,null,null,null,null,null,null,null,null,null,null,null,null,null,null,null,null,null,null,null,null,null,null,null,null,null,null,null,null,null,null,null,null,null,null,null,null,null,null,null,null,null,null,null,null,null,null,null,null,null,null,null,263819,"I Psykopatologi",null,null,null,null,null,null,null,null,null,null,null,null,null,264319,"Færdighedskursus urologisk ultralyd"]
["IM_Lungesygdomme",null,26120,"ØST36 modul 12",null,26220,"SYD2026-3",null,26320,"Nord 33",null,26420,"Ultralyd ",null,null,null,null,26620,"Spiseforstyrrelser kursus 2",null,null,null,null,null,null,null,null,null,null,null,null,null,261120,"Neurologi for intern medicinere, Syd - Maj",null,null,null,null,null,null,null,null,null,null,null,null,null,null,null,null,null,null,null,null,null,null,null,null,null,null,null,null,null,null,null,null,null,null,null,null,null,null,null,null,null,null,null,null,null,null,null,null,null,null,null,null,null,null,null,null,null,null,null,null,null,null,null,null,null,null,null,null,null,null,null,null,null,null,null,null,null,null,null,263820,"Misbrug (2 dage)",null,null,null,null,null,null,null,null,null,null,null,null,null,264320,"Færdighedskursus urologisk laparoskopi/robot"]
["IM_Nefrologi",null,26121,"ØST36 modul 13",null,26221,"SYD2026-4",null,26321,"Nord 32",null,26421,"Akutte og kroniske smerter",null,null,null,null,null,null,null,null,null,null,null,null,null,null,null,null,null,null,null,261121,"Neurologi for intern medicinere, Øst - Maj",null,null,null,null,null,null,null,null,null,null,null,null,null,null,null,null,null,null,null,null,null,null,null,null,null,null,null,null,null,null,null,null,null,null,null,null,null,null,null,null,null,null,null,null,null,null,null,null,null,null,null,null,null,null,null,null,null,null,null,null,null,null,null,null,null,null,null,null,null,null,null,null,null,null,null,null,null,null,null,263821,"Erklæringsudstedelse (1 dag)",null,null,null,null,null,null,null,null,null,null,null,null,null,264321,"Færdighedskursus urologisk laparoskopi/robot"]
["IM_Reumatologi",null,26122,"ØST36 modul 14",null,null,null,null,26399,"Underviserseminar 2026",null,26422,"Pædiatrisk anæstesi, KBH",null,null,null,null,null,null,null,null,null,null,null,null,null,null,null,null,null,null,null,261122,"Neurologi for intern medicinere, Nord - November",null,null,null,null,null,null,null,null,null,null,null,null,null,null,null,null,null,null,null,null,null,null,null,null,null,null,null,null,null,null,null,null,null,null,null,null,null,null,null,null,null,null,null,null,null,null,null,null,null,null,null,null,null,null,null,null,null,null,null,null,null,null,null,null,null,null,null,null,null,null,null,null,null,null,null,null,null,null,null,263822,"Neuropsykiatri",null,null,null,null,null,null,null,null,null,null,null,null,null,264322,"Færdighedskursus urologisk laparoskopi/robot"]
["Karkirurgi",null,26123,"ØST36 modul 15",null,null,null,null,null,null,null,26423,"Patientsikkerhed og kom.",null,null,null,null,null,null,null,null,null,null,null,null,null,null,null,null,null,null,null,261123,"Neurologi for intern medicinere, Syd - November",null,null,null,null,null,null,null,null,null,null,null,null,null,null,null,null,null,null,null,null,null,null,null,null,null,null,null,null,null,null,null,null,null,null,null,null,null,null,null,null,null,null,null,null,null,null,null,null,null,null,null,null,null,null,null,null,null,null,null,null,null,null,null,null,null,null,null,null,null,null,null,null,null,null,null,null,null,null,null,263823,"III Psykopatologi",null,null,null,null,null,null,null,null,null,null,null,null,null,264323,"Færdighedskursus urologisk laparoskopi/robot"]
["Kir._færdighedskurser_KBH_Odense_og_Århus",null,26124,"ØST36 modul 16",null,null,null,null,null,null,null,26424,"Neuro, traume, præhospital",null,null,null,null,null,null,null,null,null,null,null,null,null,null,null,null,null,null,null,261124,"Neurologi for intern medicinere, Øst - November",null,null,null,null,null,null,null,null,null,null,null,null,null,null,null,null,null,null,null,null,null,null,null,null,null,null,null,null,null,null,null,null,null,null,null,null,null,null,null,null,null,null,null,null,null,null,null,null,null,null,null,null,null,null,null,null,null,null,null,null,null,null,null,null,null,null,null,null,null,null,null,null,null,null,null,null,null,null,null,263824,"II Psykopatologi",null,null,null,null,null,null,null,null,null,null,null,null,null,264324,"Urologisk simulationstræning"]
["Kirurgi",null,26125,"ØST37 modul 10",null,null,null,null,null,null,null,26499,"Delkursusleder møde årligt 10 delkursusledere, 5 timer",null,null,null,null,null,null,null,null,null,null,null,null,null,null,null,null,null,null,null,261125,"Psykiatri for intern medicinere, Nord - Maj",null,null,null,null,null,null,null,null,null,null,null,null,null,null,null,null,null,null,null,null,null,null,null,null,null,null,null,null,null,null,null,null,null,null,null,null,null,null,null,null,null,null,null,null,null,null,null,null,null,null,null,null,null,null,null,null,null,null,null,null,null,null,null,null,null,null,null,null,null,null,null,null,null,null,null,null,null,null,null,263825,"Retspsykiatri",null,null,null,null,null,null,null,null,null,null,null,null,null,264325,"Urologisk simulationstræning"]
["Klinisk_Biokemi",null,26126,"ØST37 modul 11",null,null,null,null,null,null,null,null,null,null,null,null,null,null,null,null,null,null,null,null,null,null,null,null,null,null,null,null,261126,"Psykiatri for intern medicinere, Syd - Maj",null,null,null,null,null,null,null,null,null,null,null,null,null,null,null,null,null,null,null,null,null,null,null,null,null,null,null,null,null,null,null,null,null,null,null,null,null,null,null,null,null,null,null,null,null,null,null,null,null,null,null,null,null,null,null,null,null,null,null,null,null,null,null,null,null,null,null,null,null,null,null,null,null,null,null,null,null,null,null,263826,"Biologiske behandlingsmetoder"]
["Klinisk_Farmakologi",null,26127,"ØST37 modul 12",null,null,null,null,null,null,null,null,null,null,null,null,null,null,null,null,null,null,null,null,null,null,null,null,null,null,null,null,261127,"Psykiatri for intern medicinere, Øst - Maj",null,null,null,null,null,null,null,null,null,null,null,null,null,null,null,null,null,null,null,null,null,null,null,null,null,null,null,null,null,null,null,null,null,null,null,null,null,null,null,null,null,null,null,null,null,null,null,null,null,null,null,null,null,null,null,null,null,null,null,null,null,null,null,null,null,null,null,null,null,null,null,null,null,null,null,null,null,null,null,263800,"Planlægningsmøder og temadag for UAO-ere"]
["Klinisk_Fysiologi_og_Nuklearmedicin",null,26128,"ØST38 modul 10",null,null,null,null,null,null,null,null,null,null,null,null,null,null,null,null,null,null,null,null,null,null,null,null,null,null,null,null,261128,"Psykiatri for intern medicinere, Nord - November"]
["Klinisk_Genetik",null,26129,"ØST41 modul 9",null,null,null,null,null,null,null,null,null,null,null,null,null,null,null,null,null,null,null,null,null,null,null,null,null,null,null,null,261129,"Psykiatri for intern medicinere, Syd - November"]
["Klinisk_Immunologi",null,26130,"ØST42 modul 9",null,null,null,null,null,null,null,null,null,null,null,null,null,null,null,null,null,null,null,null,null,null,null,null,null,null,null,null,261130,"Psykiatri for intern medicinere, Øst - November"]
["Klinisk_Mikrobiologi",null,26131,"ØST42X modul 9",null,null,null,null,null,null,null,null,null,null,null,null,null,null,null,null,null,null,null,null,null,null,null,null,null,null,null,null,261131,"Rationel klinisk beslutningsteori, Nord - Maj"]
["Klinisk_Onkologi",null,26132,"ØST43 modul 8",null,null,null,null,null,null,null,null,null,null,null,null,null,null,null,null,null,null,null,null,null,null,null,null,null,null,null,null,261132,"Rationel klinisk beslutningsteori, Syd - Maj"]
["Kommunallægekurser",null,26133,"ØST43 modul 9",null,null,null,null,null,null,null,null,null,null,null,null,null,null,null,null,null,null,null,null,null,null,null,null,null,null,null,null,261133,"Rationel klinisk beslutningsteori, Øst - Maj"]
["Neurokirurgi",null,26134,"ØST44 modul 8",null,null,null,null,null,null,null,null,null,null,null,null,null,null,null,null,null,null,null,null,null,null,null,null,null,null,null,null,261134,"Rationel klinisk beslutningsteori, Nord - November"]
["Neurologi",null,26135,"ØST44 modul 9",null,null,null,null,null,null,null,null,null,null,null,null,null,null,null,null,null,null,null,null,null,null,null,null,null,null,null,null,261135,"Rationel klinisk beslutningsteori, Syd - November"]
["Oftalmologi",null,26136,"ØST44X modul 8",null,null,null,null,null,null,null,null,null,null,null,null,null,null,null,null,null,null,null,null,null,null,null,null,null,null,null,null,261136,"Rationel klinisk beslutningsteori, Øst - November"]
["Ortodonti",null,26137,"ØST44X modul 9",null,null,null,null,null,null,null,null,null,null,null,null,null,null,null,null,null,null,null,null,null,null,null,null,null,null,null,null,261137,"Onkologi for intern medicinere, Nord - Maj"]
["Ortopædisk_kirurgi",null,26138,"ØST45 modul 7",null,null,null,null,null,null,null,null,null,null,null,null,null,null,null,null,null,null,null,null,null,null,null,null,null,null,null,null,261138,"Onkologi for intern medicinere, Syd - Maj"]
["Oto_rhino_laryngologi",null,26139,"ØST45 modul 8",null,null,null,null,null,null,null,null,null,null,null,null,null,null,null,null,null,null,null,null,null,null,null,null,null,null,null,null,261139,"Onkologi for intern medicinere, Øst - Maj"]
["Patologisk_anatomi_og_cytologi",null,26140,"ØST46 modul 7",null,null,null,null,null,null,null,null,null,null,null,null,null,null,null,null,null,null,null,null,null,null,null,null,null,null,null,null,261140,"Onkologi for intern medicinere, Nord - November"]
["Plastikkirurgi",null,26141,"ØST46 modul 8",null,null,null,null,null,null,null,null,null,null,null,null,null,null,null,null,null,null,null,null,null,null,null,null,null,null,null,null,261141,"Onkologi for intern medicinere, Syd - November"]
["Psykiatri",null,26142,"ØST46X modul 7",null,null,null,null,null,null,null,null,null,null,null,null,null,null,null,null,null,null,null,null,null,null,null,null,null,null,null,null,261142,"Onkologi for intern medicinere, Øst - November"]
["Pædiatri",null,26143,"ØST46X modul 8",null,null,null,null,null,null,null,null,null,null,null,null,null,null,null,null,null,null,null,null,null,null,null,null,null,null,null,null,261143,"Den terminale patient, palliativ behandling, Nord - Maj"]
["Retsmedicin",null,26144,"ØST47 modul 6",null,null,null,null,null,null,null,null,null,null,null,null,null,null,null,null,null,null,null,null,null,null,null,null,null,null,null,null,261144,"Den terminale patient, palliativ behandling, Syd - Maj"]
["Samfundsmedicin",null,26145,"ØST47 modul 7",null,null,null,null,null,null,null,null,null,null,null,null,null,null,null,null,null,null,null,null,null,null,null,null,null,null,null,null,261145,"Den terminale patient, palliativ behandling, Øst - Maj"]
["SOL_2",null,26146,"ØST48 modul 4",null,null,null,null,null,null,null,null,null,null,null,null,null,null,null,null,null,null,null,null,null,null,null,null,null,null,null,null,261146,"Den terminale patient, palliativ behandling, Nord - November"]
["Tand_mund_og_kæbekirurgi",null,26147,"ØST48 modul 5",null,null,null,null,null,null,null,null,null,null,null,null,null,null,null,null,null,null,null,null,null,null,null,null,null,null,null,null,261147,"Den terminale patient, palliativ behandling, Syd - November"]
["Thoraxkirurgi",null,26148,"ØST48 modul 6",null,null,null,null,null,null,null,null,null,null,null,null,null,null,null,null,null,null,null,null,null,null,null,null,null,null,null,null,261148,"Den terminale patient, palliativ behandling, Øst - November"]
["Urologi",null,26149,"ØST48 modul 7",null,null,null,null,null,null,null,null,null,null,null,null,null,null,null,null,null,null,null,null,null,null,null,null,null,null,null,null,261149,"Den ældre patient, Nord - Maj"]
[null,null,26150,"ØST48X modul 3",null,null,null,null,null,null,null,null,null,null,null,null,null,null,null,null,null,null,null,null,null,null,null,null,null,null,null,null,261150,"Den ældre patient, Syd - Maj"]
[null,null,26151,"ØST48X modul 4",null,null,null,null,null,null,null,null,null,null,null,null,null,null,null,null,null,null,null,null,null,null,null,null,null,null,null,null,261151,"Den ældre patient, Øst - Maj"]
[null,null,26152,"ØST48X modul 5",null,null,null,null,null,null,null,null,null,null,null,null,null,null,null,null,null,null,null,null,null,null,null,null,null,null,null,null,261152,"Den ældre patient, Nord - November"]
[null,null,26153,"ØST48X modul 6",null,null,null,null,null,null,null,null,null,null,null,null,null,null,null,null,null,null,null,null,null,null,null,null,null,null,null,null,261153,"Den ældre patient, Syd - November"]
[null,null,26154,"ØST48X modul 7",null,null,null,null,null,null,null,null,null,null,null,null,null,null,null,null,null,null,null,null,null,null,null,null,null,null,null,null,261154,"Den ældre patient, Øst - November"]
[null,null,26155,"ØST49 modul 1",null,null,null,null,null,null,null,null,null,null,null,null,null,null,null,null,null,null,null,null,null,null,null,null,null,null,null,null,261155,"rationel farmakoterapi, øst ekstra"]
[null,null,26156,"ØST49 modul 2",null,null,null,null,null,null,null,null,null,null,null,null,null,null,null,null,null,null,null,null,null,null,null,null,null,null,null,null,261156,"Neurologi for intern medicinere, Øst ekstra "]
[null,null,26157,"ØST49 modul 3",null,null,null,null,null,null,null,null,null,null,null,null,null,null,null,null,null,null,null,null,null,null,null,null,null,null,null,null,261157,"Psykiatri for intern medicinerer, Øst ekstra "]
[null,null,26158,"ØST49 modul 4"]
[null,null,26159,"ØST49 modul 5"]
[null,null,26160,"ØST49 modul 6"]
[null,null,26161,"ØST49 modul 7"]
[null,null,26162,"ØST49 modul 8"]
[null,null,26163,"ØST50 modul 1"]
[null,null,26164,"ØST50 modul 2"]
[null,null,26165,"ØST50 modul 3"]
[null,null,26166,"ØST50 modul 4"]
[null,null,26167,"ØST50 modul 5"]
[null,null,26168,"ØST50 modul 6"]
[null,null,26169,"ØST50 modul 7"]
[null,null,26170,"ØST50 modul 8"]
[null,null,26171,"ØST50X modul 1"]
[null,null,26172,"ØST50X modul 2"]
[null,null,26173,"ØST50X modul 3"]
[null,null,26174,"ØST50X modul 4"]
[null,null,26175,"ØST50X modul 5"]
[null,null,26176,"ØST50X modul 6"]
[null,null,26177,"ØST50X modul 7"]
[null,null,26178,"ØST51 modul 1"]
[null,null,26179,"ØST51 modul 2"]
[null,null,26180,"ØST51 modul 3"]
[null,null,26181,"ØST51 modul 4"]
[null,null,26182,"ØST51 modul 5"]
[null,null,26183,"ØST51 modul 6"]
[null,null,26184,"ØST52 modul 1"]
[null,null,26185,"ØST52 modul 2"]
[null,null,26186,"ØST52 modul 3"]
[null,null,26187,"ØST52X modul 1"]
[null,null,26188,"ØST52X modul 2"]

{"sheet":"Delkursusleder 1","index":3,"n_rows":46,"n_cols":4,"rows_kept":46,"cut":false,"hidden":false,"merged":[[45,0,45,3],[41,0,43,3],[17,1,17,3],[0,1,0,3],[13,1,13,3],[11,1,11,3],[20,1,20,3],[39,0,39,3],[7,1,7,3],[5,1,5,3],[10,0,10,3]]}
[null,"Honorar Delkursusleder 1"]
[null,null,"       Læs mere om de specialespecifikke kurser på Sundhedsstyrelsens","hjemmeside"]
[null,"NB. Skemaet SKAL udfyldes elektronisk"]
["Udfyldes af delkursusleder inden kurset"]
[]
["Speciale:","[vælg fra liste]"]
[]
["Kursusnavn:","[vælg fra liste]"]
[]
["Kursusnummer:",{"$f":"IF(B6=\"[vælg fra liste]\",\"Kursusnummer findes automatisk efter du har indtastet speciale/kursusnavn\",IFERROR(INDEX(Kodefinder!A:A,MATCH(1,(B6=Kodefinder!F:F)*(B8=Kodefinder!B:B),0)),\"Der findes flere kurser med samme navn. Skriv selv kursusnummer i denne celle\"))","v":"Kursusnummer findes automatisk efter du har indtastet speciale/kursusnavn"}]
["Udfyldes manuelt af kursusleder hvis formlen ikke selv finder kursusnummer(se evt. arket \"Adm.ark for specialer\" til venstre for dette ark)"]
["Kursussted, by:"]
[]
["Navn delkursusleder:"]
[]
["Cpr.nr.:",null,{"$f":"IFERROR(IF(LEN(B16)>10,\"CPR-nummer ikke gyldigt - du har mere end 10 tegn med. Husk ikke at inkludere bindestreg\",IF(LEN(B16)=0,\"\",IF(LEN(B16)<10,\"CPR-nummer ikke gyldigt - Du har indtastet for få tegn\",IF(0=MOD(LEFT(B16)*4+MID(B16,2,1)*3+MID(B16,3,1)*2+MID(B16,4,1)*7+MID(B16,5,1)*6+MID(B16,6,1)*5+(MID(B16,7,1)*4+MID(B16,8,1)*3)+MID(B16,9,1)*2+MID(B16,10,1),11),\"\",\"CPR-nummer ikke gyldigt - Tjek cifrene i dit CPR igennem igen\")))),\"CPR-nummer ikke gyldigt - Et af cifrene i dit CPR er ikke et tal\")","v":""}]
["Ingen bindestreg. CPR-nummer fremgår af formellinje under tastning, hvorefter det skjules."]
["Rolle","Kursusleder"]
["Jeg sender en faktura"]
[]
["E-mail"]
[]
["Dato for første undervisningsdag DD-MM-ÅÅ:",null,{"$f":"IF(B23=\"\",\"\",IF(D24>B23,\"Datoen ser ud til ikke at passe i enten format eller til perioden\",\"\"))","v":""},"Aktuel sats"]
[null,null,null,{"$f":"'Adm.ark satser'!G1","v":"2026-04-01"}]
[]
[]
[]
["Udfyldes HVIS også underviser","Obligatorisk",null,"Udfyldes automatisk"]
["Antal forelæsningstimer",null,"Udgift til forelæsningstimer ",{"$f":"B29*'Adm.ark satser'!C2","v":0}]
["Antal diskussionstimer",null,"Udgift til diskussionstimer ",{"$f":"B30*'Adm.ark satser'!C3","v":0}]
["Antal medhjælper timer",null,"Udgift til medhjælpertimer",{"$f":"B31*'Adm.ark satser'!C4","v":0}]
[null,null,"Beløb i alt",{"$f":"SUM(D29+D30+D31)","v":0}]
[]
[]
[]
[]
["Udfyldes af delkursusleder"]
["Honorar"]
[null,"Fast honorar på kr. 8.000 - evt. til deling mellem flere delkursusledere"]
["Der udbetales til NemKonto. Lønsedlen sendes til din e-boks. Ved CVR./SE-nr. SKAL der sendes e-faktura til EAN nr: 5798000362147 via sundhedsstyrelsens hjemmeside."]
["Evt. bemærkninger"]
[]
[]
[]
[]
["Den nederste række i fanen Samlingsark skal kopieres med i mail til hovedkursusleder, når delkursusleder kvitterer for oplysningernes rigtighed. "]

{"sheet":"(Evt. delkursusleder 2)","index":4,"n_rows":45,"n_cols":4,"rows_kept":45,"cut":false,"hidden":false,"merged":[[30,1,30,3],[45,0,48,6],[0,1,0,3],[5,1,5,3],[9,1,9,3],[7,2,7,3],[11,1,11,3],[24,1,24,3],[26,1,26,3],[28,2,28,3]]}
[null,"Honorar Delkursusleder 2"]
[null,null,"       Læs mere om de specialespecifikke kurser på Sundhedsstyrelsens","hjemmeside"]
[null,"NB. Skemaet SKAL udfyldes elektronisk"]
["Udfyldes af evt. delkursusleder 2"]
[]
["Navn delkursusleder:"]
[]
["Cpr.nr.:",null,"Jeg sender en faktura"]
["Ingen bindestreg. CPR-nummer fremgår af formellinje under tastning, hvorefter det skjules."]
["Rolle","Kursusleder"]
[{"$f":"IFERROR(IF(LEN(B8)>10,\"CPR-nummer ikke gyldigt - du har mere end 10 tegn med. Husk ikke at inkludere bindestreg\",IF(LEN(B8)=0,\"\",IF(LEN(B8)<10,\"CPR-nummer ikke gyldigt - Du har indtastet for få tegn\",IF(0=MOD(LEFT(B8)*4+MID(B8,2,1)*3+MID(B8,3,1)*2+MID(B8,4,1)*7+MID(B8,5,1)*6+MID(B8,6,1)*5+(MID(B8,7,1)*4+MID(B8,8,1)*3)+MID(B8,9,1)*2+MID(B8,10,1),11),\"\",\"CPR-nummer ikke gyldigt - Tjek cifrene i dit CPR igennem igen\")))),\"CPR-nummer ikke gyldigt - Et af cifrene i dit CPR er ikke et tal\")","v":""}]
["E-mail"]
[]
[]
[]
[]
["Der udbetales til NemKonto. Lønsedlen sendes til din e-boks. "]
["Ved CVR./SE-nr. SKAL der sendes e-faktura til EAN nr: 5798000362147 via sundhedsstyrelsens hjemmeside"]
[]
["Udfyldes af delkursusleder",null,"Max beløb til deling mellem delkursusledere",8000]
["Honorar",null,"Total beløb for delkursusleder 1 og 2",{"$f":"A22+'Delkursusleder 1'!A39","v":0}]
[]
["Udfyldes automatisk, trækkes fra delkursuslederark"]
[]
["Speciale:",{"$f":"'Delkursusleder 1'!B6","v":"[vælg fra liste]"}]
[]
["Kursusnavn:",{"$f":"'Delkursusleder 1'!B8","v":"[vælg fra liste]"}]
[]
["Dato for første undervisningsdag DD-MM-ÅÅ:",{"$f":"'Delkursusleder 1'!B23","v":"00:00:00"},{"$f":"'Delkursusleder 1'!C23","v":""}]
[]
["Kursussted, by:",{"$f":"'Delkursusleder 1'!B12:D12","v":0}]
[]
["Udfyldes HVIS også underviser","Obligatorisk",null,"Udfyldes automatisk"]
["Antal forelæsningstimer",null,"Udgift til forelæsningstimer ",{"$f":"B34*'Adm.ark satser'!C2","v":0}]
["Antal diskussionstimer",null,"Udgift til diskussionstimer ",{"$f":"B35*'Adm.ark satser'!C3","v":0}]
["Antal medhjælper timer",null,"Udgift til medhjælpertimer",{"$f":"B36*'Adm.ark satser'!C4","v":0}]
[null,null,"Beløb i alt",{"$f":"SUM(D34+D35+D36)","v":0}]
[]
[null,null,null,"Aktuel sats"]
[null,null,null,{"$f":"'Adm.ark satser'!G1","v":"2026-04-01"}]
[]
["Dit honorar udbetales til NemKonto. Lønsedlen sendes til din e-boks. "]
["Ved CVR./SE-nr. SKAL der sendes e-faktura til EAN nr: 5798000362147 via sundhedsstyrelsens hjemmeside."]
[]
["Evt. bemærkninger"]

{"sheet":"Honorarlønnet 1","index":5,"n_rows":30,"n_cols":7,"rows_kept":30,"cut":false,"hidden":false,"merged":[[0,1,0,4],[30,0,33,4],[1,2,1,4],[24,1,24,3],[6,2,6,3],[4,1,4,3],[8,1,8,3],[18,1,18,3],[20,1,20,3]]}
[null,"Honorar"]
[null,null,"NB. Skemaet SKAL udfyldes elektronisk"]
["Udfyldes af underviser"]
[{"$f":"IFERROR(IF(LEN(B7)>10,\"CPR-nummer ikke gyldigt - du har mere end 10 tegn med. Husk ikke at inkludere bindestreg\",IF(LEN(B7)=0,\"\",IF(LEN(B7)<10,\"CPR-nummer ikke gyldigt - Du har indtastet for få tegn\",IF(0=MOD(LEFT(B7)*4+MID(B7,2,1)*3+MID(B7,3,1)*2+MID(B7,4,1)*7+MID(B7,5,1)*6+MID(B7,6,1)*5+(MID(B7,7,1)*4+MID(B7,8,1)*3)+MID(B7,9,1)*2+MID(B7,10,1),11),\"\",\"CPR-nummer ikke gyldigt - Tjek cifrene i dit CPR igennem igen\")))),\"CPR-nummer ikke gyldigt - Et af cifrene i dit CPR er ikke et tal\")","v":""}]
["Navn:"]
[]
["Cpr.nr.:",null,"Jeg sender en faktura",null,null,null,"Ja"]
["Ingen bindestreg. CPR-nummer fremgår af formellinje under tastning, hvorefter det skjules.",null,null,null,null,null,"Nej"]
["E-mail"]
[]
["Udfyldes af underviser","Obligatorisk",null,"Udfyldes automatisk","Aktuel sats"]
["Antal forelæsningstimer",null,"Udgift til forelæsningstimer ",{"$f":"B12*'Adm.ark satser'!C2","v":0},{"$f":"'Adm.ark satser'!G1","v":"2026-04-01"}]
["Antal diskussionstimer",null,"Udgift til diskussionstimer ",{"$f":"B13*'Adm.ark satser'!C3","v":0}]
["Antal medhjælper timer",null,"Udgift til medhjælpertimer",{"$f":"B14*'Adm.ark satser'!C4","v":0}]
[null,null,"Beløb i alt",{"$f":"SUM(D12+D13+D14)","v":0}]
[]
["Udfyldes automatisk, trækkes fra delkursuslederark"]
[]
["Speciale:",{"$f":"'Delkursusleder 1'!B6","v":"[vælg fra liste]"}]
[]
["Kursusnavn:",{"$f":"'Delkursusleder 1'!B8","v":"[vælg fra liste]"}]
[]
["Dato for første undervisningsdag DD-MM-ÅÅ:",{"$f":"+'Delkursusleder 1'!B23","v":"00:00:00"},{"$f":"'Delkursusleder 1'!C23","v":""}]
[]
["Kursussted, by:",{"$f":"'Delkursusleder 1'!B12:D12","v":0}]
[]
["Dit honorar udbetales til NemKonto. Lønsedlen sendes til din e-boks. "]
["Ved CVR./SE-nr. SKAL der sendes e-faktura til EAN nr: 5798000362147 via sundhedsstyrelsens hjemmeside."]
[]
["Evt. bemærkninger"]

{"sheet":"Honorarlønnet 2","index":6,"n_rows":30,"n_cols":7,"rows_kept":30,"cut":false,"hidden":false,"merged":[[1,2,1,4],[24,1,24,3],[30,0,33,4],[0,1,0,4],[6,2,6,3],[4,1,4,3],[8,1,8,3],[20,1,20,3],[18,1,18,3]]}
[null,"Honorar"]
[null,null,"NB. Skemaet SKAL udfyldes elektronisk"]
["Udfyldes af underviser"]
[{"$f":"IFERROR(IF(LEN(B7)>10,\"CPR-nummer ikke gyldigt - du har mere end 10 tegn med. Husk ikke at inkludere bindestreg\",IF(LEN(B7)=0,\"\",IF(LEN(B7)<10,\"CPR-nummer ikke gyldigt - Du har indtastet for få tegn\",IF(0=MOD(LEFT(B7)*4+MID(B7,2,1)*3+MID(B7,3,1)*2+MID(B7,4,1)*7+MID(B7,5,1)*6+MID(B7,6,1)*5+(MID(B7,7,1)*4+MID(B7,8,1)*3)+MID(B7,9,1)*2+MID(B7,10,1),11),\"\",\"CPR-nummer ikke gyldigt - Tjek cifrene i dit CPR igennem igen\")))),\"CPR-nummer ikke gyldigt - Et af cifrene i dit CPR er ikke et tal\")","v":""}]
["Navn:"]
[]
["Cpr.nr.:",null,"Jeg sender en faktura",null,null,null,"Ja"]
["Ingen bindestreg. CPR-nummer fremgår af formellinje under tastning, hvorefter det skjules.",null,null,null,null,null,"Nej"]
["E-mail"]
[]
["Udfyldes af underviser","Obligatorisk",null,"Udfyldes automatisk","Aktuel sats"]
["Antal forelæsningstimer",null,"Udgift til forelæsningstimer ",{"$f":"B12*'Adm.ark satser'!C2","v":0},{"$f":"'Adm.ark satser'!G1","v":"2026-04-01"}]
["Antal diskussionstimer",null,"Udgift til diskussionstimer ",{"$f":"B13*'Adm.ark satser'!C3","v":0}]
["Antal medhjælper timer",null,"Udgift til medhjælpertimer",{"$f":"B14*'Adm.ark satser'!C4","v":0}]
[null,null,"Beløb i alt",{"$f":"SUM(D12+D13+D14)","v":0}]
[]
["Udfyldes automatisk, trækkes fra delkursuslederark"]
[]
["Speciale:",{"$f":"'Delkursusleder 1'!B6","v":"[vælg fra liste]"}]
[]
["Kursusnavn:",{"$f":"'Delkursusleder 1'!B8","v":"[vælg fra liste]"}]
[]
["Dato for første undervisningsdag DD-MM-ÅÅ:",{"$f":"+'Delkursusleder 1'!B23","v":"00:00:00"},{"$f":"'Delkursusleder 1'!C23","v":""}]
[]
["Kursussted, by:",{"$f":"'Delkursusleder 1'!B12:D12","v":0}]
[]
["Dit honorar udbetales til NemKonto. Lønsedlen sendes til din e-boks. "]
["Ved CVR./SE-nr. SKAL der sendes e-faktura til EAN nr: 5798000362147 via sundhedsstyrelsens hjemmeside."]
[]
["Evt. bemærkninger"]

{"sheet":"Honorarlønnet 3","index":7,"n_rows":30,"n_cols":5,"rows_kept":30,"cut":false,"hidden":false,"merged":[[1,2,1,4],[24,1,24,3],[30,0,33,4],[0,1,0,4],[6,2,6,3],[8,1,8,3],[4,1,4,3],[20,1,20,3],[18,1,18,3]]}
[null,"Honorar"]
[null,null,"NB. Skemaet SKAL udfyldes elektronisk"]
["Udfyldes af underviser"]
[{"$f":"IFERROR(IF(LEN(B7)>10,\"CPR-nummer ikke gyldigt - du har mere end 10 tegn med. Husk ikke at inkludere bindestreg\",IF(LEN(B7)=0,\"\",IF(LEN(B7)<10,\"CPR-nummer ikke gyldigt - Du har indtastet for få tegn\",IF(0=MOD(LEFT(B7)*4+MID(B7,2,1)*3+MID(B7,3,1)*2+MID(B7,4,1)*7+MID(B7,5,1)*6+MID(B7,6,1)*5+(MID(B7,7,1)*4+MID(B7,8,1)*3)+MID(B7,9,1)*2+MID(B7,10,1),11),\"\",\"CPR-nummer ikke gyldigt - Tjek cifrene i dit CPR igennem igen\")))),\"CPR-nummer ikke gyldigt - Et af cifrene i dit CPR er ikke et tal\")","v":""}]
["Navn:"]
[]
["Cpr.nr.:",null,"Jeg sender en faktura"]
["Ingen bindestreg. CPR-nummer fremgår af formellinje under tastning, hvorefter det skjules."]
["E-mail"]
[]
["Udfyldes af underviser","Obligatorisk",null,"Udfyldes automatisk","Aktuel sats"]
["Antal forelæsningstimer",null,"Udgift til forelæsningstimer ",{"$f":"B12*'Adm.ark satser'!C2","v":0},{"$f":"'Adm.ark satser'!G1","v":"2026-04-01"}]
["Antal diskussionstimer",null,"Udgift til diskussionstimer ",{"$f":"B13*'Adm.ark satser'!C3","v":0}]
["Antal medhjælper timer",null,"Udgift til medhjælpertimer",{"$f":"B14*'Adm.ark satser'!C4","v":0}]
[null,null,"Beløb i alt",{"$f":"SUM(D12+D13+D14)","v":0}]
[]
["Udfyldes automatisk, trækkes fra delkursuslederark"]
[]
["Speciale:",{"$f":"'Delkursusleder 1'!B6","v":"[vælg fra liste]"}]
[]
["Kursusnavn:",{"$f":"'Delkursusleder 1'!B8","v":"[vælg fra liste]"}]
[]
["Dato for første undervisningsdag DD-MM-ÅÅ:",{"$f":"+'Delkursusleder 1'!B23","v":"00:00:00"},{"$f":"'Delkursusleder 1'!C23","v":""}]
[]
["Kursussted, by:",{"$f":"'Delkursusleder 1'!B12:D12","v":0}]
[]
["Dit honorar udbetales til NemKonto. Lønsedlen sendes til din e-boks. "]
["Ved CVR./SE-nr. SKAL der sendes e-faktura til EAN nr: 5798000362147 via sundhedsstyrelsens hjemmeside."]
[]
["Evt. bemærkninger"]

{"sheet":"Honorarlønnet 4","index":8,"n_rows":30,"n_cols":5,"rows_kept":30,"cut":false,"hidden":false,"merged":[[1,2,1,4],[24,1,24,3],[30,0,33,4],[0,1,0,4],[6,2,6,3],[20,1,20,3],[18,1,18,3],[8,1,8,3],[4,1,4,3]]}
[null,"Honorar"]
[null,null,"NB. Skemaet SKAL udfyldes elektronisk"]
["Udfyldes af underviser"]
[{"$f":"IFERROR(IF(LEN(B7)>10,\"CPR-nummer ikke gyldigt - du har mere end 10 tegn med. Husk ikke at inkludere bindestreg\",IF(LEN(B7)=0,\"\",IF(LEN(B7)<10,\"CPR-nummer ikke gyldigt - Du har indtastet for få tegn\",IF(0=MOD(LEFT(B7)*4+MID(B7,2,1)*3+MID(B7,3,1)*2+MID(B7,4,1)*7+MID(B7,5,1)*6+MID(B7,6,1)*5+(MID(B7,7,1)*4+MID(B7,8,1)*3)+MID(B7,9,1)*2+MID(B7,10,1),11),\"\",\"CPR-nummer ikke gyldigt - Tjek cifrene i dit CPR igennem igen\")))),\"CPR-nummer ikke gyldigt - Et af cifrene i dit CPR er ikke et tal\")","v":""}]
["Navn:"]
[]
["Cpr.nr.:",null,"Jeg sender en faktura"]
["Ingen bindestreg. CPR-nummer fremgår af formellinje under tastning, hvorefter det skjules."]
["E-mail"]
[]
["Udfyldes af underviser","Obligatorisk",null,"Udfyldes automatisk","Aktuel sats"]
["Antal forelæsningstimer",null,"Udgift til forelæsningstimer ",{"$f":"B12*'Adm.ark satser'!C2","v":0},{"$f":"'Adm.ark satser'!G1","v":"2026-04-01"}]
["Antal diskussionstimer",null,"Udgift til diskussionstimer ",{"$f":"B13*'Adm.ark satser'!C3","v":0}]
["Antal medhjælper timer",null,"Udgift til medhjælpertimer",{"$f":"B14*'Adm.ark satser'!C4","v":0}]
[null,null,"Beløb i alt",{"$f":"SUM(D12+D13+D14)","v":0}]
[]
["Udfyldes automatisk, trækkes fra delkursuslederark"]
[]
["Speciale:",{"$f":"'Delkursusleder 1'!B6","v":"[vælg fra liste]"}]
[]
["Kursusnavn:",{"$f":"'Delkursusleder 1'!B8","v":"[vælg fra liste]"}]
[]
["Dato for første undervisningsdag DD-MM-ÅÅ:",{"$f":"+'Delkursusleder 1'!B23","v":"00:00:00"},{"$f":"'Delkursusleder 1'!C23","v":""}]
[]
["Kursussted, by:",{"$f":"'Delkursusleder 1'!B12:D12","v":0}]
[]
["Dit honorar udbetales til NemKonto. Lønsedlen sendes til din e-boks. "]
["Ved CVR./SE-nr. SKAL der sendes e-faktura til EAN nr: 5798000362147 via sundhedsstyrelsens hjemmeside."]
[]
["Evt. bemærkninger"]

{"sheet":"Honorarlønnet 5","index":9,"n_rows":30,"n_cols":5,"rows_kept":30,"cut":false,"hidden":false,"merged":[[1,2,1,4],[24,1,24,3],[30,0,33,4],[0,1,0,4],[6,2,6,3],[20,1,20,3],[18,1,18,3],[8,1,8,3],[4,1,4,3]]}
[null,"Honorar"]
[null,null,"NB. Skemaet SKAL udfyldes elektronisk"]
["Udfyldes af underviser"]
[{"$f":"IFERROR(IF(LEN(B7)>10,\"CPR-nummer ikke gyldigt - du har mere end 10 tegn med. Husk ikke at inkludere bindestreg\",IF(LEN(B7)=0,\"\",IF(LEN(B7)<10,\"CPR-nummer ikke gyldigt - Du har indtastet for få tegn\",IF(0=MOD(LEFT(B7)*4+MID(B7,2,1)*3+MID(B7,3,1)*2+MID(B7,4,1)*7+MID(B7,5,1)*6+MID(B7,6,1)*5+(MID(B7,7,1)*4+MID(B7,8,1)*3)+MID(B7,9,1)*2+MID(B7,10,1),11),\"\",\"CPR-nummer ikke gyldigt - Tjek cifrene i dit CPR igennem igen\")))),\"CPR-nummer ikke gyldigt - Et af cifrene i dit CPR er ikke et tal\")","v":""}]
["Navn:"]
[]
["Cpr.nr.:",null,"Jeg sender en faktura"]
["Ingen bindestreg. CPR-nummer fremgår af formellinje under tastning, hvorefter det skjules."]
["E-mail"]
[]
["Udfyldes af underviser","Obligatorisk",null,"Udfyldes automatisk","Aktuel sats"]
["Antal forelæsningstimer",null,"Udgift til forelæsningstimer ",{"$f":"B12*'Adm.ark satser'!C2","v":0},{"$f":"'Adm.ark satser'!G1","v":"2026-04-01"}]
["Antal diskussionstimer",null,"Udgift til diskussionstimer ",{"$f":"B13*'Adm.ark satser'!C3","v":0}]
["Antal medhjælper timer",null,"Udgift til medhjælpertimer",{"$f":"B14*'Adm.ark satser'!C4","v":0}]
[null,null,"Beløb i alt",{"$f":"SUM(D12+D13+D14)","v":0}]
[]
["Udfyldes automatisk, trækkes fra delkursuslederark"]
[]
["Speciale:",{"$f":"'Delkursusleder 1'!B6","v":"[vælg fra liste]"}]
[]
["Kursusnavn:",{"$f":"'Delkursusleder 1'!B8","v":"[vælg fra liste]"}]
[]
["Dato for første undervisningsdag DD-MM-ÅÅ:",{"$f":"+'Delkursusleder 1'!B23","v":"00:00:00"},{"$f":"'Delkursusleder 1'!C23","v":""}]
[]
["Kursussted, by:",{"$f":"'Delkursusleder 1'!B12:D12","v":0}]
[]
["Dit honorar udbetales til NemKonto. Lønsedlen sendes til din e-boks. "]
["Ved CVR./SE-nr. SKAL der sendes e-faktura til EAN nr: 5798000362147 via sundhedsstyrelsens hjemmeside."]
[]
["Evt. bemærkninger"]

{"sheet":"Honorarlønnet 6","index":10,"n_rows":30,"n_cols":5,"rows_kept":30,"cut":false,"hidden":false,"merged":[[1,2,1,4],[24,1,24,3],[30,0,33,4],[0,1,0,4],[6,2,6,3],[20,1,20,3],[18,1,18,3],[8,1,8,3],[4,1,4,3]]}
[null,"Honorar"]
[null,null,"NB. Skemaet SKAL udfyldes elektronisk"]
["Udfyldes af underviser"]
[{"$f":"IFERROR(IF(LEN(B7)>10,\"CPR-nummer ikke gyldigt - du har mere end 10 tegn med. Husk ikke at inkludere bindestreg\",IF(LEN(B7)=0,\"\",IF(LEN(B7)<10,\"CPR-nummer ikke gyldigt - Du har indtastet for få tegn\",IF(0=MOD(LEFT(B7)*4+MID(B7,2,1)*3+MID(B7,3,1)*2+MID(B7,4,1)*7+MID(B7,5,1)*6+MID(B7,6,1)*5+(MID(B7,7,1)*4+MID(B7,8,1)*3)+MID(B7,9,1)*2+MID(B7,10,1),11),\"\",\"CPR-nummer ikke gyldigt - Tjek cifrene i dit CPR igennem igen\")))),\"CPR-nummer ikke gyldigt - Et af cifrene i dit CPR er ikke et tal\")","v":""}]
["Navn:"]
[]
["Cpr.nr.:",null,"Jeg sender en faktura"]
["Ingen bindestreg. CPR-nummer fremgår af formellinje under tastning, hvorefter det skjules."]
["E-mail"]
[]
["Udfyldes af underviser","Obligatorisk",null,"Udfyldes automatisk","Aktuel sats"]
["Antal forelæsningstimer",null,"Udgift til forelæsningstimer ",{"$f":"B12*'Adm.ark satser'!C2","v":0},{"$f":"'Adm.ark satser'!G1","v":"2026-04-01"}]
["Antal diskussionstimer",null,"Udgift til diskussionstimer ",{"$f":"B13*'Adm.ark satser'!C3","v":0}]
["Antal medhjælper timer",null,"Udgift til medhjælpertimer",{"$f":"B14*'Adm.ark satser'!C4","v":0}]
[null,null,"Beløb i alt",{"$f":"SUM(D12+D13+D14)","v":0}]
[]
["Udfyldes automatisk, trækkes fra delkursuslederark"]
[]
["Speciale:",{"$f":"'Delkursusleder 1'!B6","v":"[vælg fra liste]"}]
[]
["Kursusnavn:",{"$f":"'Delkursusleder 1'!B8","v":"[vælg fra liste]"}]
[]
["Dato for første undervisningsdag DD-MM-ÅÅ:",{"$f":"+'Delkursusleder 1'!B23","v":"00:00:00"},{"$f":"'Delkursusleder 1'!C23","v":""}]
[]
["Kursussted, by:",{"$f":"'Delkursusleder 1'!B12:D12","v":0}]
[]
["Dit honorar udbetales til NemKonto. Lønsedlen sendes til din e-boks. "]
["Ved CVR./SE-nr. SKAL der sendes e-faktura til EAN nr: 5798000362147 via sundhedsstyrelsens hjemmeside."]
[]
["Evt. bemærkninger"]

{"sheet":"Honorarlønnet 7","index":11,"n_rows":30,"n_cols":5,"rows_kept":30,"cut":false,"hidden":false,"merged":[[1,2,1,4],[24,1,24,3],[30,0,33,4],[0,1,0,4],[6,2,6,3],[20,1,20,3],[18,1,18,3],[8,1,8,3],[4,1,4,3]]}
[null,"Honorar"]
[null,null,"NB. Skemaet SKAL udfyldes elektronisk"]
["Udfyldes af underviser"]
[{"$f":"IFERROR(IF(LEN(B7)>10,\"CPR-nummer ikke gyldigt - du har mere end 10 tegn med. Husk ikke at inkludere bindestreg\",IF(LEN(B7)=0,\"\",IF(LEN(B7)<10,\"CPR-nummer ikke gyldigt - Du har indtastet for få tegn\",IF(0=MOD(LEFT(B7)*4+MID(B7,2,1)*3+MID(B7,3,1)*2+MID(B7,4,1)*7+MID(B7,5,1)*6+MID(B7,6,1)*5+(MID(B7,7,1)*4+MID(B7,8,1)*3)+MID(B7,9,1)*2+MID(B7,10,1),11),\"\",\"CPR-nummer ikke gyldigt - Tjek cifrene i dit CPR igennem igen\")))),\"CPR-nummer ikke gyldigt - Et af cifrene i dit CPR er ikke et tal\")","v":""}]
["Navn:"]
[]
["Cpr.nr.:",null,"Jeg sender en faktura"]
["Ingen bindestreg. CPR-nummer fremgår af formellinje under tastning, hvorefter det skjules."]
["E-mail"]
[]
["Udfyldes af underviser","Obligatorisk",null,"Udfyldes automatisk","Aktuel sats"]
["Antal forelæsningstimer",null,"Udgift til forelæsningstimer ",{"$f":"B12*'Adm.ark satser'!C2","v":0},{"$f":"'Adm.ark satser'!G1","v":"2026-04-01"}]
["Antal diskussionstimer",null,"Udgift til diskussionstimer ",{"$f":"B13*'Adm.ark satser'!C3","v":0}]
["Antal medhjælper timer",null,"Udgift til medhjælpertimer",{"$f":"B14*'Adm.ark satser'!C4","v":0}]
[null,null,"Beløb i alt",{"$f":"SUM(D12+D13+D14)","v":0}]
[]
["Udfyldes automatisk, trækkes fra delkursuslederark"]
[]
["Speciale:",{"$f":"'Delkursusleder 1'!B6","v":"[vælg fra liste]"}]
[]
["Kursusnavn:",{"$f":"'Delkursusleder 1'!B8","v":"[vælg fra liste]"}]
[]
["Dato for første undervisningsdag DD-MM-ÅÅ:",{"$f":"+'Delkursusleder 1'!B23","v":"00:00:00"},{"$f":"'Delkursusleder 1'!C23","v":""}]
[]
["Kursussted, by:",{"$f":"'Delkursusleder 1'!B12:D12","v":0}]
[]
["Dit honorar udbetales til NemKonto. Lønsedlen sendes til din e-boks. "]
["Ved CVR./SE-nr. SKAL der sendes e-faktura til EAN nr: 5798000362147 via sundhedsstyrelsens hjemmeside."]
[]
["Evt. bemærkninger"]

{"sheet":"Honorarlønnet 8","index":12,"n_rows":30,"n_cols":5,"rows_kept":30,"cut":false,"hidden":false,"merged":[[1,2,1,4],[24,1,24,3],[30,0,33,4],[0,1,0,4],[6,2,6,3],[20,1,20,3],[18,1,18,3],[8,1,8,3],[4,1,4,3]]}
[null,"Honorar"]
[null,null,"NB. Skemaet SKAL udfyldes elektronisk"]
["Udfyldes af underviser"]
[{"$f":"IFERROR(IF(LEN(B7)>10,\"CPR-nummer ikke gyldigt - du har mere end 10 tegn med. Husk ikke at inkludere bindestreg\",IF(LEN(B7)=0,\"\",IF(LEN(B7)<10,\"CPR-nummer ikke gyldigt - Du har indtastet for få tegn\",IF(0=MOD(LEFT(B7)*4+MID(B7,2,1)*3+MID(B7,3,1)*2+MID(B7,4,1)*7+MID(B7,5,1)*6+MID(B7,6,1)*5+(MID(B7,7,1)*4+MID(B7,8,1)*3)+MID(B7,9,1)*2+MID(B7,10,1),11),\"\",\"CPR-nummer ikke gyldigt - Tjek cifrene i dit CPR igennem igen\")))),\"CPR-nummer ikke gyldigt - Et af cifrene i dit CPR er ikke et tal\")","v":""}]
["Navn:"]
[]
["Cpr.nr.:",null,"Jeg sender en faktura"]
["Ingen bindestreg. CPR-nummer fremgår af formellinje under tastning, hvorefter det skjules."]
["E-mail"]
[]
["Udfyldes af underviser","Obligatorisk",null,"Udfyldes automatisk","Aktuel sats"]
["Antal forelæsningstimer",null,"Udgift til forelæsningstimer ",{"$f":"B12*'Adm.ark satser'!C2","v":0},{"$f":"'Adm.ark satser'!G1","v":"2026-04-01"}]
["Antal diskussionstimer",null,"Udgift til diskussionstimer ",{"$f":"B13*'Adm.ark satser'!C3","v":0}]
["Antal medhjælper timer",null,"Udgift til medhjælpertimer",{"$f":"B14*'Adm.ark satser'!C4","v":0}]
[null,null,"Beløb i alt",{"$f":"SUM(D12+D13+D14)","v":0}]
[]
["Udfyldes automatisk, trækkes fra delkursuslederark"]
[]
["Speciale:",{"$f":"'Delkursusleder 1'!B6","v":"[vælg fra liste]"}]
[]
["Kursusnavn:",{"$f":"'Delkursusleder 1'!B8","v":"[vælg fra liste]"}]
[]
["Dato for første undervisningsdag DD-MM-ÅÅ:",{"$f":"+'Delkursusleder 1'!B23","v":"00:00:00"},{"$f":"'Delkursusleder 1'!C23","v":""}]
[]
["Kursussted, by:",{"$f":"'Delkursusleder 1'!B12:D12","v":0}]
[]
["Dit honorar udbetales til NemKonto. Lønsedlen sendes til din e-boks. "]
["Ved CVR./SE-nr. SKAL der sendes e-faktura til EAN nr: 5798000362147 via sundhedsstyrelsens hjemmeside."]
[]
["Evt. bemærkninger"]

{"sheet":"Honorarlønnet 9","index":13,"n_rows":30,"n_cols":5,"rows_kept":30,"cut":false,"hidden":false,"merged":[[1,2,1,4],[24,1,24,3],[30,0,33,4],[0,1,0,4],[6,2,6,3],[20,1,20,3],[18,1,18,3],[8,1,8,3],[4,1,4,3]]}
[null,"Honorar"]
[null,null,"NB. Skemaet SKAL udfyldes elektronisk"]
["Udfyldes af underviser"]
[{"$f":"IFERROR(IF(LEN(B7)>10,\"CPR-nummer ikke gyldigt - du har mere end 10 tegn med. Husk ikke at inkludere bindestreg\",IF(LEN(B7)=0,\"\",IF(LEN(B7)<10,\"CPR-nummer ikke gyldigt - Du har indtastet for få tegn\",IF(0=MOD(LEFT(B7)*4+MID(B7,2,1)*3+MID(B7,3,1)*2+MID(B7,4,1)*7+MID(B7,5,1)*6+MID(B7,6,1)*5+(MID(B7,7,1)*4+MID(B7,8,1)*3)+MID(B7,9,1)*2+MID(B7,10,1),11),\"\",\"CPR-nummer ikke gyldigt - Tjek cifrene i dit CPR igennem igen\")))),\"CPR-nummer ikke gyldigt - Et af cifrene i dit CPR er ikke et tal\")","v":""}]
["Navn:"]
[]
["Cpr.nr.:",null,"Jeg sender en faktura"]
["Ingen bindestreg. CPR-nummer fremgår af formellinje under tastning, hvorefter det skjules."]
["E-mail"]
[]
["Udfyldes af underviser","Obligatorisk",null,"Udfyldes automatisk","Aktuel sats"]
["Antal forelæsningstimer",null,"Udgift til forelæsningstimer ",{"$f":"B12*'Adm.ark satser'!C2","v":0},{"$f":"'Adm.ark satser'!G1","v":"2026-04-01"}]
["Antal diskussionstimer",null,"Udgift til diskussionstimer ",{"$f":"B13*'Adm.ark satser'!C3","v":0}]
["Antal medhjælper timer",null,"Udgift til medhjælpertimer",{"$f":"B14*'Adm.ark satser'!C4","v":0}]
[null,null,"Beløb i alt",{"$f":"SUM(D12+D13+D14)","v":0}]
[]
["Udfyldes automatisk, trækkes fra delkursuslederark"]
[]
["Speciale:",{"$f":"'Delkursusleder 1'!B6","v":"[vælg fra liste]"}]
[]
["Kursusnavn:",{"$f":"'Delkursusleder 1'!B8","v":"[vælg fra liste]"}]
[]
["Dato for første undervisningsdag DD-MM-ÅÅ:",{"$f":"+'Delkursusleder 1'!B23","v":"00:00:00"},{"$f":"'Delkursusleder 1'!C23","v":""}]
[]
["Kursussted, by:",{"$f":"'Delkursusleder 1'!B12:D12","v":0}]
[]
["Dit honorar udbetales til NemKonto. Lønsedlen sendes til din e-boks. "]
["Ved CVR./SE-nr. SKAL der sendes e-faktura til EAN nr: 5798000362147 via sundhedsstyrelsens hjemmeside."]
[]
["Evt. bemærkninger"]

{"sheet":"Honorarlønnet 10","index":14,"n_rows":30,"n_cols":5,"rows_kept":30,"cut":false,"hidden":false,"merged":[[1,2,1,4],[24,1,24,3],[30,0,33,4],[0,1,0,4],[6,2,6,3],[20,1,20,3],[18,1,18,3],[8,1,8,3],[4,1,4,3]]}
[null,"Honorar"]
[null,null,"NB. Skemaet SKAL udfyldes elektronisk"]
["Udfyldes af underviser"]
[{"$f":"IFERROR(IF(LEN(B7)>10,\"CPR-nummer ikke gyldigt - du har mere end 10 tegn med. Husk ikke at inkludere bindestreg\",IF(LEN(B7)=0,\"\",IF(LEN(B7)<10,\"CPR-nummer ikke gyldigt - Du har indtastet for få tegn\",IF(0=MOD(LEFT(B7)*4+MID(B7,2,1)*3+MID(B7,3,1)*2+MID(B7,4,1)*7+MID(B7,5,1)*6+MID(B7,6,1)*5+(MID(B7,7,1)*4+MID(B7,8,1)*3)+MID(B7,9,1)*2+MID(B7,10,1),11),\"\",\"CPR-nummer ikke gyldigt - Tjek cifrene i dit CPR igennem igen\")))),\"CPR-nummer ikke gyldigt - Et af cifrene i dit CPR er ikke et tal\")","v":""}]
["Navn:"]
[]
["Cpr.nr.:",null,"Jeg sender en faktura"]
["Ingen bindestreg. CPR-nummer fremgår af formellinje under tastning, hvorefter det skjules."]
["E-mail"]
[]
["Udfyldes af underviser","Obligatorisk",null,"Udfyldes automatisk","Aktuel sats"]
["Antal forelæsningstimer",null,"Udgift til forelæsningstimer ",{"$f":"B12*'Adm.ark satser'!C2","v":0},{"$f":"'Adm.ark satser'!G1","v":"2026-04-01"}]
["Antal diskussionstimer",null,"Udgift til diskussionstimer ",{"$f":"B13*'Adm.ark satser'!C3","v":0}]
["Antal medhjælper timer",null,"Udgift til medhjælpertimer",{"$f":"B14*'Adm.ark satser'!C4","v":0}]
[null,null,"Beløb i alt",{"$f":"SUM(D12+D13+D14)","v":0}]
[]
["Udfyldes automatisk, trækkes fra delkursuslederark"]
[]
["Speciale:",{"$f":"'Delkursusleder 1'!B6","v":"[vælg fra liste]"}]
[]
["Kursusnavn:",{"$f":"'Delkursusleder 1'!B8","v":"[vælg fra liste]"}]
[]
["Dato for første undervisningsdag DD-MM-ÅÅ:",{"$f":"+'Delkursusleder 1'!B23","v":"00:00:00"},{"$f":"'Delkursusleder 1'!C23","v":""}]
[]
["Kursussted, by:",{"$f":"'Delkursusleder 1'!B12:D12","v":0}]
[]
["Dit honorar udbetales til NemKonto. Lønsedlen sendes til din e-boks. "]
["Ved CVR./SE-nr. SKAL der sendes e-faktura til EAN nr: 5798000362147 via sundhedsstyrelsens hjemmeside."]
[]
["Evt. bemærkninger"]

{"sheet":"Honorarlønnet 11","index":15,"n_rows":30,"n_cols":5,"rows_kept":30,"cut":false,"hidden":false,"merged":[[1,2,1,4],[24,1,24,3],[30,0,33,4],[0,1,0,4],[6,2,6,3],[20,1,20,3],[18,1,18,3],[8,1,8,3],[4,1,4,3]]}
[null,"Honorar"]
[null,null,"NB. Skemaet SKAL udfyldes elektronisk"]
["Udfyldes af underviser"]
[{"$f":"IFERROR(IF(LEN(B7)>10,\"CPR-nummer ikke gyldigt - du har mere end 10 tegn med. Husk ikke at inkludere bindestreg\",IF(LEN(B7)=0,\"\",IF(LEN(B7)<10,\"CPR-nummer ikke gyldigt - Du har indtastet for få tegn\",IF(0=MOD(LEFT(B7)*4+MID(B7,2,1)*3+MID(B7,3,1)*2+MID(B7,4,1)*7+MID(B7,5,1)*6+MID(B7,6,1)*5+(MID(B7,7,1)*4+MID(B7,8,1)*3)+MID(B7,9,1)*2+MID(B7,10,1),11),\"\",\"CPR-nummer ikke gyldigt - Tjek cifrene i dit CPR igennem igen\")))),\"CPR-nummer ikke gyldigt - Et af cifrene i dit CPR er ikke et tal\")","v":""}]
["Navn:"]
[]
["Cpr.nr.:",null,"Jeg sender en faktura"]
["Ingen bindestreg. CPR-nummer fremgår af formellinje under tastning, hvorefter det skjules."]
["E-mail"]
[]
["Udfyldes af underviser","Obligatorisk",null,"Udfyldes automatisk","Aktuel sats"]
["Antal forelæsningstimer",null,"Udgift til forelæsningstimer ",{"$f":"B12*'Adm.ark satser'!C2","v":0},{"$f":"'Adm.ark satser'!G1","v":"2026-04-01"}]
["Antal diskussionstimer",null,"Udgift til diskussionstimer ",{"$f":"B13*'Adm.ark satser'!C3","v":0}]
["Antal medhjælper timer",null,"Udgift til medhjælpertimer",{"$f":"B14*'Adm.ark satser'!C4","v":0}]
[null,null,"Beløb i alt",{"$f":"SUM(D12+D13+D14)","v":0}]
[]
["Udfyldes automatisk, trækkes fra delkursuslederark"]
[]
["Speciale:",{"$f":"'Delkursusleder 1'!B6","v":"[vælg fra liste]"}]
[]
["Kursusnavn:",{"$f":"'Delkursusleder 1'!B8","v":"[vælg fra liste]"}]
[]
["Dato for første undervisningsdag DD-MM-ÅÅ:",{"$f":"+'Delkursusleder 1'!B23","v":"00:00:00"},{"$f":"'Delkursusleder 1'!C23","v":""}]
[]
["Kursussted, by:",{"$f":"'Delkursusleder 1'!B12:D12","v":0}]
[]
["Dit honorar udbetales til NemKonto. Lønsedlen sendes til din e-boks. "]
["Ved CVR./SE-nr. SKAL der sendes e-faktura til EAN nr: 5798000362147 via sundhedsstyrelsens hjemmeside."]
[]
["Evt. bemærkninger"]

{"sheet":"Honorarlønnet 12","index":16,"n_rows":30,"n_cols":5,"rows_kept":30,"cut":false,"hidden":false,"merged":[[1,2,1,4],[24,1,24,3],[30,0,33,4],[0,1,0,4],[6,2,6,3],[20,1,20,3],[18,1,18,3],[8,1,8,3],[4,1,4,3]]}
[null,"Honorar"]
[null,null,"NB. Skemaet SKAL udfyldes elektronisk"]
["Udfyldes af underviser"]
[{"$f":"IFERROR(IF(LEN(B7)>10,\"CPR-nummer ikke gyldigt - du har mere end 10 tegn med. Husk ikke at inkludere bindestreg\",IF(LEN(B7)=0,\"\",IF(LEN(B7)<10,\"CPR-nummer ikke gyldigt - Du har indtastet for få tegn\",IF(0=MOD(LEFT(B7)*4+MID(B7,2,1)*3+MID(B7,3,1)*2+MID(B7,4,1)*7+MID(B7,5,1)*6+MID(B7,6,1)*5+(MID(B7,7,1)*4+MID(B7,8,1)*3)+MID(B7,9,1)*2+MID(B7,10,1),11),\"\",\"CPR-nummer ikke gyldigt - Tjek cifrene i dit CPR igennem igen\")))),\"CPR-nummer ikke gyldigt - Et af cifrene i dit CPR er ikke et tal\")","v":""}]
["Navn:"]
[]
["Cpr.nr.:",null,"Jeg sender en faktura"]
["Ingen bindestreg. CPR-nummer fremgår af formellinje under tastning, hvorefter det skjules."]
["E-mail"]
[]
["Udfyldes af underviser","Obligatorisk",null,"Udfyldes automatisk","Aktuel sats"]
["Antal forelæsningstimer",null,"Udgift til forelæsningstimer ",{"$f":"B12*'Adm.ark satser'!C2","v":0},{"$f":"'Adm.ark satser'!G1","v":"2026-04-01"}]
["Antal diskussionstimer",null,"Udgift til diskussionstimer ",{"$f":"B13*'Adm.ark satser'!C3","v":0}]
["Antal medhjælper timer",null,"Udgift til medhjælpertimer",{"$f":"B14*'Adm.ark satser'!C4","v":0}]
[null,null,"Beløb i alt",{"$f":"SUM(D12+D13+D14)","v":0}]
[]
["Udfyldes automatisk, trækkes fra delkursuslederark"]
[]
["Speciale:",{"$f":"'Delkursusleder 1'!B6","v":"[vælg fra liste]"}]
[]
["Kursusnavn:",{"$f":"'Delkursusleder 1'!B8","v":"[vælg fra liste]"}]
[]
["Dato for første undervisningsdag DD-MM-ÅÅ:",{"$f":"+'Delkursusleder 1'!B23","v":"00:00:00"},{"$f":"'Delkursusleder 1'!C23","v":""}]
[]
["Kursussted, by:",{"$f":"'Delkursusleder 1'!B12:D12","v":0}]
[]
["Dit honorar udbetales til NemKonto. Lønsedlen sendes til din e-boks. "]
["Ved CVR./SE-nr. SKAL der sendes e-faktura til EAN nr: 5798000362147 via sundhedsstyrelsens hjemmeside."]
[]
["Evt. bemærkninger"]

{"sheet":"Honorarlønnet 13","index":17,"n_rows":30,"n_cols":5,"rows_kept":30,"cut":false,"hidden":false,"merged":[[0,1,0,4],[1,2,1,4],[24,1,24,3],[30,0,33,4],[6,2,6,3],[20,1,20,3],[18,1,18,3],[8,1,8,3],[4,1,4,3]]}
[null,"Honorar"]
[null,null,"NB. Skemaet SKAL udfyldes elektronisk"]
["Udfyldes af underviser"]
[{"$f":"IFERROR(IF(LEN(B7)>10,\"CPR-nummer ikke gyldigt - du har mere end 10 tegn med. Husk ikke at inkludere bindestreg\",IF(LEN(B7)=0,\"\",IF(LEN(B7)<10,\"CPR-nummer ikke gyldigt - Du har indtastet for få tegn\",IF(0=MOD(LEFT(B7)*4+MID(B7,2,1)*3+MID(B7,3,1)*2+MID(B7,4,1)*7+MID(B7,5,1)*6+MID(B7,6,1)*5+(MID(B7,7,1)*4+MID(B7,8,1)*3)+MID(B7,9,1)*2+MID(B7,10,1),11),\"\",\"CPR-nummer ikke gyldigt - Tjek cifrene i dit CPR igennem igen\")))),\"CPR-nummer ikke gyldigt - Et af cifrene i dit CPR er ikke et tal\")","v":""}]
["Navn:"]
[]
["Cpr.nr.:",null,"Jeg sender en faktura"]
["Ingen bindestreg. CPR-nummer fremgår af formellinje under tastning, hvorefter det skjules."]
["E-mail"]
[]
["Udfyldes af underviser","Obligatorisk",null,"Udfyldes automatisk","Aktuel sats"]
["Antal forelæsningstimer",null,"Udgift til forelæsningstimer ",{"$f":"B12*'Adm.ark satser'!C2","v":0},{"$f":"'Adm.ark satser'!G1","v":"2026-04-01"}]
["Antal diskussionstimer",null,"Udgift til diskussionstimer ",{"$f":"B13*'Adm.ark satser'!C3","v":0}]
["Antal medhjælper timer",null,"Udgift til medhjælpertimer",{"$f":"B14*'Adm.ark satser'!C4","v":0}]
[null,null,"Beløb i alt",{"$f":"SUM(D12+D13+D14)","v":0}]
[]
["Udfyldes automatisk, trækkes fra delkursuslederark"]
[]
["Speciale:",{"$f":"'Delkursusleder 1'!B6","v":"[vælg fra liste]"}]
[]
["Kursusnavn:",{"$f":"'Delkursusleder 1'!B8","v":"[vælg fra liste]"}]
[]
["Dato for første undervisningsdag DD-MM-ÅÅ:",{"$f":"+'Delkursusleder 1'!B23","v":"00:00:00"},{"$f":"'Delkursusleder 1'!C23","v":""}]
[]
["Kursussted, by:",{"$f":"'Delkursusleder 1'!B12:D12","v":0}]
[]
["Dit honorar udbetales til NemKonto. Lønsedlen sendes til din e-boks. "]
["Ved CVR./SE-nr. SKAL der sendes e-faktura til EAN nr: 5798000362147 via sundhedsstyrelsens hjemmeside."]
[]
["Evt. bemærkninger"]

{"sheet":"Honorarlønnet 14","index":18,"n_rows":30,"n_cols":5,"rows_kept":30,"cut":false,"hidden":false,"merged":[[0,1,0,4],[1,2,1,4],[24,1,24,3],[30,0,33,4],[6,2,6,3],[4,1,4,3],[20,1,20,3],[18,1,18,3],[8,1,8,3]]}
[null,"Honorar"]
[null,null,"NB. Skemaet SKAL udfyldes elektronisk"]
["Udfyldes af underviser"]
[{"$f":"IFERROR(IF(LEN(B7)>10,\"CPR-nummer ikke gyldigt - du har mere end 10 tegn med. Husk ikke at inkludere bindestreg\",IF(LEN(B7)=0,\"\",IF(LEN(B7)<10,\"CPR-nummer ikke gyldigt - Du har indtastet for få tegn\",IF(0=MOD(LEFT(B7)*4+MID(B7,2,1)*3+MID(B7,3,1)*2+MID(B7,4,1)*7+MID(B7,5,1)*6+MID(B7,6,1)*5+(MID(B7,7,1)*4+MID(B7,8,1)*3)+MID(B7,9,1)*2+MID(B7,10,1),11),\"\",\"CPR-nummer ikke gyldigt - Tjek cifrene i dit CPR igennem igen\")))),\"CPR-nummer ikke gyldigt - Et af cifrene i dit CPR er ikke et tal\")","v":""}]
["Navn:"]
[]
["Cpr.nr.:",null,"Jeg sender en faktura"]
["Ingen bindestreg. CPR-nummer fremgår af formellinje under tastning, hvorefter det skjules."]
["E-mail"]
[]
["Udfyldes af underviser","Obligatorisk",null,"Udfyldes automatisk","Aktuel sats"]
["Antal forelæsningstimer",null,"Udgift til forelæsningstimer ",{"$f":"B12*'Adm.ark satser'!C2","v":0},{"$f":"'Adm.ark satser'!G1","v":"2026-04-01"}]
["Antal diskussionstimer",null,"Udgift til diskussionstimer ",{"$f":"B13*'Adm.ark satser'!C3","v":0}]
["Antal medhjælper timer",null,"Udgift til medhjælpertimer",{"$f":"B14*'Adm.ark satser'!C4","v":0}]
[null,null,"Beløb i alt",{"$f":"SUM(D12+D13+D14)","v":0}]
[]
["Udfyldes automatisk, trækkes fra delkursuslederark"]
[]
["Speciale:",{"$f":"'Delkursusleder 1'!B6","v":"[vælg fra liste]"}]
[]
["Kursusnavn:",{"$f":"'Delkursusleder 1'!B8","v":"[vælg fra liste]"}]
[]
["Dato for første undervisningsdag DD-MM-ÅÅ:",{"$f":"+'Delkursusleder 1'!B23","v":"00:00:00"},{"$f":"'Delkursusleder 1'!C23","v":""}]
[]
["Kursussted, by:",{"$f":"'Delkursusleder 1'!B12:D12","v":0}]
[]
["Dit honorar udbetales til NemKonto. Lønsedlen sendes til din e-boks. "]
["Ved CVR./SE-nr. SKAL der sendes e-faktura til EAN nr: 5798000362147 via sundhedsstyrelsens hjemmeside."]
[]
["Evt. bemærkninger"]

{"sheet":"Honorarlønnet 15","index":19,"n_rows":30,"n_cols":5,"rows_kept":30,"cut":false,"hidden":false,"merged":[[0,1,0,4],[1,2,1,4],[24,1,24,3],[30,0,33,4],[6,2,6,3],[20,1,20,3],[18,1,18,3],[8,1,8,3],[4,1,4,3]]}
[null,"Honorar"]
[null,null,"NB. Skemaet SKAL udfyldes elektronisk"]
["Udfyldes af underviser"]
[{"$f":"IFERROR(IF(LEN(B7)>10,\"CPR-nummer ikke gyldigt - du har mere end 10 tegn med. Husk ikke at inkludere bindestreg\",IF(LEN(B7)=0,\"\",IF(LEN(B7)<10,\"CPR-nummer ikke gyldigt - Du har indtastet for få tegn\",IF(0=MOD(LEFT(B7)*4+MID(B7,2,1)*3+MID(B7,3,1)*2+MID(B7,4,1)*7+MID(B7,5,1)*6+MID(B7,6,1)*5+(MID(B7,7,1)*4+MID(B7,8,1)*3)+MID(B7,9,1)*2+MID(B7,10,1),11),\"\",\"CPR-nummer ikke gyldigt - Tjek cifrene i dit CPR igennem igen\")))),\"CPR-nummer ikke gyldigt - Et af cifrene i dit CPR er ikke et tal\")","v":""}]
["Navn:"]
[]
["Cpr.nr.:",null,"Jeg sender en faktura"]
["Ingen bindestreg. CPR-nummer fremgår af formellinje under tastning, hvorefter det skjules."]
["E-mail"]
[]
["Udfyldes af underviser","Obligatorisk",null,"Udfyldes automatisk","Aktuel sats"]
["Antal forelæsningstimer",null,"Udgift til forelæsningstimer ",{"$f":"B12*'Adm.ark satser'!C2","v":0},{"$f":"'Adm.ark satser'!G1","v":"2026-04-01"}]
["Antal diskussionstimer",null,"Udgift til diskussionstimer ",{"$f":"B13*'Adm.ark satser'!C3","v":0}]
["Antal medhjælper timer",null,"Udgift til medhjælpertimer",{"$f":"B14*'Adm.ark satser'!C4","v":0}]
[null,null,"Beløb i alt",{"$f":"SUM(D12+D13+D14)","v":0}]
[]
["Udfyldes automatisk, trækkes fra delkursuslederark"]
[]
["Speciale:",{"$f":"'Delkursusleder 1'!B6","v":"[vælg fra liste]"}]
[]
["Kursusnavn:",{"$f":"'Delkursusleder 1'!B8","v":"[vælg fra liste]"}]
[]
["Dato for første undervisningsdag DD-MM-ÅÅ:",{"$f":"+'Delkursusleder 1'!B23","v":"00:00:00"},{"$f":"'Delkursusleder 1'!C23","v":""}]
[]
["Kursussted, by:",{"$f":"'Delkursusleder 1'!B12:D12","v":0}]
[]
["Dit honorar udbetales til NemKonto. Lønsedlen sendes til din e-boks. "]
["Ved CVR./SE-nr. SKAL der sendes e-faktura til EAN nr: 5798000362147 via sundhedsstyrelsens hjemmeside."]
[]
["Evt. bemærkninger"]

{"sheet":"Sekretær","index":20,"n_rows":25,"n_cols":6,"rows_kept":25,"cut":false,"hidden":false,"merged":[[6,5,6,6],[0,1,0,3],[1,2,1,3],[25,0,28,3],[19,1,19,2],[6,1,6,3],[4,1,4,3],[8,1,8,3],[17,1,17,3],[15,1,15,3]]}
[null,"Honorar Sekretær"]
[null,null,"NB. Skemaet SKAL udfyldes elektronisk"]
["Udfyldes af sekretær"]
[{"$f":"IFERROR(IF(LEN(B7)>10,\"CPR-nummer ikke gyldigt - du har mere end 10 tegn med. Husk ikke at inkludere bindestreg\",IF(LEN(B7)=0,\"\",IF(LEN(B7)<10,\"CPR-nummer ikke gyldigt - Du har indtastet for få tegn\",IF(0=MOD(LEFT(B7)*4+MID(B7,2,1)*3+MID(B7,3,1)*2+MID(B7,4,1)*7+MID(B7,5,1)*6+MID(B7,6,1)*5+(MID(B7,7,1)*4+MID(B7,8,1)*3)+MID(B7,9,1)*2+MID(B7,10,1),11),\"\",\"CPR-nummer ikke gyldigt - Tjek cifrene i dit CPR igennem igen\")))),\"CPR-nummer ikke gyldigt - Et af cifrene i dit CPR er ikke et tal\")","v":""}]
["Navn:"]
[]
["Cpr.nr.: ",null,null,null,null,"Jeg sender en faktura"]
[null,"Ingen bindestreg. CPR-nummer er skjult."]
["E-mail"]
[]
["Honorar sekretær\n (tast her)",null,"Max beløb til deling mellem sekretær og hovedkursusleder",{"$f":"'Adm.ark satser'!K2","v":9000}]
[null,null,"Total beløb for sekretær og hovedkursusleder",{"$f":"A12+Hovedkursusleder!A12","v":0}]
[]
["Udfyldes automatisk, trækkes fra delkursuslederark"]
[]
["Speciale:",{"$f":"'Delkursusleder 1'!B6","v":"[vælg fra liste]"}]
[]
["Kursusnavn:",{"$f":"'Delkursusleder 1'!B8","v":"[vælg fra liste]"}]
[]
["Dato for første undervisningsdag DD-MM-ÅÅ:",{"$f":"+'Delkursusleder 1'!B23","v":"00:00:00"},null,{"$f":"'Delkursusleder 1'!C23","v":""}]
[]
["Dit honorar udbetales til NemKonto. Lønsedlen sendes til din e-boks. "]
["Ved CVR./SE-nr. SKAL der sendes e-faktura til EAN nr: 5798000362147 via sundhedsstyrelsens hjemmeside."]
[]
["Evt. bemærkninger"]

{"sheet":"Samlingsark","index":21,"n_rows":24,"n_cols":14,"rows_kept":24,"cut":false,"hidden":false,"merged":[[0,0,0,13],[1,0,2,0],[1,1,2,1],[1,2,2,2],[1,3,2,3],[1,4,2,4],[1,5,2,5],[1,6,2,6],[1,7,2,7],[1,13,2,13]]}
["Udfyldes automatisk"]
["Rolle","Navn","CPR","Kursusnummer","Antal sekretær timer","Antal forelæsningstimer","Antal diskussionstimer","Antal medhjælpertimer","Delkursuslederhonrar","Administrationshonorar","Forelæsningstimer ","Diskususionstimer ","Medhjælpertimer","Beløb i alt"]
[null,null,null,null,null,null,null,null,"Udgiftstype 4","Udgiftstype 5","Udgiftstype 1","Udgiftstype 2","Udgiftstype 3"]
["Delkursusleder 1",{"$f":"'Delkursusleder 1'!B14:D14","v":0},{"$f":"'Delkursusleder 1'!B16","v":0},{"$f":"'Delkursusleder 1'!B10","v":"Kursusnummer findes automatisk efter du har indtastet speciale/kursusnavn"},"-",{"$f":"'Delkursusleder 1'!B29","v":0},{"$f":"'Delkursusleder 1'!B30","v":0},{"$f":"'Delkursusleder 1'!B31","v":0},{"$f":"'Delkursusleder 1'!A39","v":0},"-",{"$f":"'Delkursusleder 1'!D29","v":0},{"$f":"'Delkursusleder 1'!D30","v":0},{"$f":"'Delkursusleder 1'!D31","v":0},{"$f":"I4+K4+L4+M4","v":0}]
["Evt. delkursusleder 2",{"$f":"'(Evt. delkursusleder 2)'!B6:D6","v":0},{"$f":"'(Evt. delkursusleder 2)'!B8","v":0},{"$f":"'Delkursusleder 1'!$B$10","v":"Kursusnummer findes automatisk efter du har indtastet speciale/kursusnavn"},"-",{"$f":"'(Evt. delkursusleder 2)'!B34","v":0},{"$f":"'(Evt. delkursusleder 2)'!B35","v":0},{"$f":"'(Evt. delkursusleder 2)'!B36","v":0},{"$f":"+'(Evt. delkursusleder 2)'!A22","v":0},"-",{"$f":"'(Evt. delkursusleder 2)'!D34","v":0},{"$f":"'(Evt. delkursusleder 2)'!D35","v":0},{"$f":"'(Evt. delkursusleder 2)'!D36","v":0},{"$f":"I5+K5+L5+M5","v":0}]
["Hovedkursusleder",{"$f":"+Hovedkursusleder!B5:D5","v":0},{"$f":"+Hovedkursusleder!B7","v":0},{"$f":"'Delkursusleder 1'!$B$10","v":"Kursusnummer findes automatisk efter du har indtastet speciale/kursusnavn"},"-","-","-","-","-",{"$f":"+Hovedkursusleder!A12","v":0},"-","-","-",{"$f":"J6","v":0}]
["Sekretær",{"$f":"Sekretær!B5","v":0},{"$f":"+Sekretær!B7","v":0},{"$f":"'Delkursusleder 1'!$B$10","v":"Kursusnummer findes automatisk efter du har indtastet speciale/kursusnavn"},"-","-","-","-","-",{"$f":"+Sekretær!A12","v":0},"-","-","-",{"$f":"J7","v":0}]
["Honorarlønnet 1",{"$f":"'Honorarlønnet 1'!B5","v":0},{"$f":"+'Honorarlønnet 1'!$B$7","v":0},{"$f":"'Delkursusleder 1'!$B$10","v":"Kursusnummer findes automatisk efter du har indtastet speciale/kursusnavn"},"-",{"$f":"'Honorarlønnet 1'!B12","v":0},{"$f":"'Honorarlønnet 1'!B13","v":0},{"$f":"'Honorarlønnet 1'!B14","v":0},"-","-",{"$f":"'Honorarlønnet 1'!$D$12","v":0},{"$f":"'Honorarlønnet 1'!$D$13","v":0},{"$f":"'Honorarlønnet 1'!$D$14","v":0},{"$f":"K8+L8+M8","v":0}]
["Honorarlønnet 2",{"$f":"'Honorarlønnet 2'!B5","v":0},{"$f":"+'Honorarlønnet 2'!$B$7","v":0},{"$f":"'Delkursusleder 1'!$B$10","v":"Kursusnummer findes automatisk efter du har indtastet speciale/kursusnavn"},"-",{"$f":"+'Honorarlønnet 2'!$B12","v":0},{"$f":"+'Honorarlønnet 2'!$B13","v":0},{"$f":"+'Honorarlønnet 2'!$B14","v":0},"-","-",{"$f":"'Honorarlønnet 2'!$D$12","v":0},{"$f":"'Honorarlønnet 2'!$D$13","v":0},{"$f":"'Honorarlønnet 2'!$D$14","v":0},{"$f":"K9+L9+M9","v":0}]
["Honorarlønnet 3",{"$f":"'Honorarlønnet 3'!B5","v":0},{"$f":"+'Honorarlønnet 3'!$B$7","v":0},{"$f":"'Delkursusleder 1'!$B$10","v":"Kursusnummer findes automatisk efter du har indtastet speciale/kursusnavn"},"-",{"$f":"+'Honorarlønnet 3'!B12","v":0},{"$f":"+'Honorarlønnet 3'!$B$13","v":0},{"$f":"+'Honorarlønnet 3'!$B$14","v":0},"-","-",{"$f":"'Honorarlønnet 3'!$D$12","v":0},{"$f":"'Honorarlønnet 3'!$D$13","v":0},{"$f":"'Honorarlønnet 3'!$D$14","v":0},0]
["Honorarlønnet 4",{"$f":"'Honorarlønnet 4'!B5","v":0},{"$f":"+'Honorarlønnet 4'!$B$7","v":0},{"$f":"'Delkursusleder 1'!$B$10","v":"Kursusnummer findes automatisk efter du har indtastet speciale/kursusnavn"},"-",{"$f":"+'Honorarlønnet 4'!$B$12","v":0},{"$f":"+'Honorarlønnet 4'!$B$13","v":0},{"$f":"+'Honorarlønnet 4'!$B$14","v":0},"-","-",{"$f":"'Honorarlønnet 4'!$D$12","v":0},{"$f":"'Honorarlønnet 4'!$D$13","v":0},{"$f":"'Honorarlønnet 4'!$D$14","v":0},0]
["Honorarlønnet 5",{"$f":"'Honorarlønnet 5'!B5","v":0},{"$f":"+'Honorarlønnet 5'!$B$7","v":0},{"$f":"'Delkursusleder 1'!$B$10","v":"Kursusnummer findes automatisk efter du har indtastet speciale/kursusnavn"},"-",{"$f":"+'Honorarlønnet 5'!$B$12","v":0},{"$f":"+'Honorarlønnet 5'!$B$13","v":0},{"$f":"+'Honorarlønnet 5'!$B$14","v":0},"-","-",{"$f":"'Honorarlønnet 5'!$D$12","v":0},{"$f":"'Honorarlønnet 5'!$D$13","v":0},{"$f":"'Honorarlønnet 5'!$D$14","v":0},0]
["Honorarlønnet 6",{"$f":"'Honorarlønnet 6'!B5","v":0},{"$f":"+'Honorarlønnet 6'!$B$7","v":0},{"$f":"'Delkursusleder 1'!$B$10","v":"Kursusnummer findes automatisk efter du har indtastet speciale/kursusnavn"},"-",{"$f":"+'Honorarlønnet 6'!$B$12","v":0},{"$f":"+'Honorarlønnet 6'!$B$13","v":0},{"$f":"+'Honorarlønnet 6'!$B$14","v":0},"-","-",{"$f":"'Honorarlønnet 6'!$D$12","v":0},{"$f":"'Honorarlønnet 6'!$D$13","v":0},{"$f":"'Honorarlønnet 6'!$D$14","v":0},0]
["Honorarlønnet 7",{"$f":"'Honorarlønnet 7'!B5","v":0},{"$f":"+'Honorarlønnet 7'!$B$7","v":0},{"$f":"'Delkursusleder 1'!$B$10","v":"Kursusnummer findes automatisk efter du har indtastet speciale/kursusnavn"},"-",{"$f":"+'Honorarlønnet 7'!$B$12","v":0},{"$f":"+'Honorarlønnet 7'!$B$13","v":0},{"$f":"+'Honorarlønnet 7'!$B$14","v":0},"-","-",{"$f":"'Honorarlønnet 7'!$D$12","v":0},{"$f":"'Honorarlønnet 7'!$D$13","v":0},{"$f":"'Honorarlønnet 7'!$D$14","v":0},0]
["Honorarlønnet 8",{"$f":"'Honorarlønnet 8'!B5","v":0},{"$f":"+'Honorarlønnet 8'!$B$7","v":0},{"$f":"'Delkursusleder 1'!$B$10","v":"Kursusnummer findes automatisk efter du har indtastet speciale/kursusnavn"},"-",{"$f":"+'Honorarlønnet 8'!$B$12","v":0},{"$f":"+'Honorarlønnet 8'!$B$13","v":0},{"$f":"+'Honorarlønnet 8'!$B$14","v":0},"-","-",{"$f":"'Honorarlønnet 8'!$D$12","v":0},{"$f":"'Honorarlønnet 8'!$D$13","v":0},{"$f":"'Honorarlønnet 8'!$D$14","v":0},0]
["Honorarlønnet 9",{"$f":"'Honorarlønnet 9'!B5","v":0},{"$f":"+'Honorarlønnet 9'!$B$7","v":0},{"$f":"'Delkursusleder 1'!$B$10","v":"Kursusnummer findes automatisk efter du har indtastet speciale/kursusnavn"},"-",{"$f":"+'Honorarlønnet 9'!$B$12","v":0},{"$f":"+'Honorarlønnet 9'!$B$13","v":0},{"$f":"+'Honorarlønnet 9'!$B$14","v":0},"-","-",{"$f":"'Honorarlønnet 9'!$D$12","v":0},{"$f":"'Honorarlønnet 9'!$D$13","v":0},{"$f":"'Honorarlønnet 9'!$D$14","v":0},0]
["Honorarlønnet 10",{"$f":"'Honorarlønnet 10'!B5","v":0},{"$f":"+'Honorarlønnet 10'!$B$7","v":0},{"$f":"'Delkursusleder 1'!$B$10","v":"Kursusnummer findes automatisk efter du har indtastet speciale/kursusnavn"},"-",{"$f":"+'Honorarlønnet 10'!$B$12","v":0},{"$f":"+'Honorarlønnet 10'!$B$13","v":0},{"$f":"+'Honorarlønnet 10'!$B$14","v":0},"-","-",{"$f":"'Honorarlønnet 10'!$D$12","v":0},{"$f":"'Honorarlønnet 10'!$D$13","v":0},{"$f":"'Honorarlønnet 10'!$D$14","v":0},0]
["Honorarlønnet 11",{"$f":"'Honorarlønnet 11'!B5","v":0},{"$f":"+'Honorarlønnet 11'!$B$7","v":0},{"$f":"'Delkursusleder 1'!$B$10","v":"Kursusnummer findes automatisk efter du har indtastet speciale/kursusnavn"},"-",{"$f":"+'Honorarlønnet 11'!$B$12","v":0},{"$f":"+'Honorarlønnet 11'!$B$13","v":0},{"$f":"+'Honorarlønnet 11'!$B$14","v":0},"-","-",{"$f":"'Honorarlønnet 11'!$D$12","v":0},{"$f":"'Honorarlønnet 11'!$D$13","v":0},{"$f":"'Honorarlønnet 11'!$D$14","v":0},0]
["Honorarlønnet 12",{"$f":"'Honorarlønnet 12'!B5","v":0},{"$f":"+'Honorarlønnet 12'!$B$7","v":0},{"$f":"'Delkursusleder 1'!$B$10","v":"Kursusnummer findes automatisk efter du har indtastet speciale/kursusnavn"},"-",{"$f":"+'Honorarlønnet 12'!$B$12","v":0},{"$f":"+'Honorarlønnet 12'!$B$13","v":0},{"$f":"+'Honorarlønnet 12'!$B$14","v":0},"-","-",{"$f":"'Honorarlønnet 12'!$D$12","v":0},{"$f":"'Honorarlønnet 12'!$D$13","v":0},{"$f":"'Honorarlønnet 12'!$D$14","v":0},0]
["Honorarlønnet 13",{"$f":"'Honorarlønnet 13'!B5","v":0},{"$f":"+'Honorarlønnet 13'!$B$7","v":0},{"$f":"'Delkursusleder 1'!$B$10","v":"Kursusnummer findes automatisk efter du har indtastet speciale/kursusnavn"},"-",{"$f":"+'Honorarlønnet 13'!$B$12","v":0},{"$f":"+'Honorarlønnet 13'!$B$13","v":0},{"$f":"+'Honorarlønnet 13'!$B$14","v":0},"-","-",{"$f":"'Honorarlønnet 13'!$D$12","v":0},{"$f":"'Honorarlønnet 13'!$D$13","v":0},{"$f":"'Honorarlønnet 13'!$D$14","v":0},{"$f":"K20+L20+M20","v":0}]
["Honorarlønnet 14",{"$f":"'Honorarlønnet 14'!B5","v":0},{"$f":"+'Honorarlønnet 14'!$B$7","v":0},{"$f":"'Delkursusleder 1'!$B$10","v":"Kursusnummer findes automatisk efter du har indtastet speciale/kursusnavn"},"-",{"$f":"+'Honorarlønnet 14'!$B$12","v":0},{"$f":"+'Honorarlønnet 14'!$B$13","v":0},{"$f":"+'Honorarlønnet 14'!$B$14","v":0},"-","-",{"$f":"'Honorarlønnet 14'!$D$12","v":0},{"$f":"'Honorarlønnet 14'!$D$13","v":0},{"$f":"'Honorarlønnet 14'!$D$14","v":0},0]
["Honorarlønnet 15",{"$f":"'Honorarlønnet 15'!B5","v":0},{"$f":"+'Honorarlønnet 15'!$B$7","v":0},{"$f":"'Delkursusleder 1'!$B$10","v":"Kursusnummer findes automatisk efter du har indtastet speciale/kursusnavn"},"-",{"$f":"+'Honorarlønnet 15'!$B$12","v":0},{"$f":"+'Honorarlønnet 15'!$B$13","v":0},{"$f":"+'Honorarlønnet 15'!$B$14","v":0},"-","-",{"$f":"'Honorarlønnet 15'!$D$12","v":0},{"$f":"'Honorarlønnet 15'!$D$13","v":0},{"$f":"'Honorarlønnet 15'!$D$14","v":0},0]
["Total timer/beløb",null,null,null,"-",{"$f":"SUM(F4:F22)","v":0},{"$f":"SUM(G4:G22)","v":0},{"$f":"SUM(H4:H22)","v":0},{"$f":"SUM(I4:I5)","v":0},{"$f":"SUM(J6:J7)","v":0},{"$f":"SUM(K4:K22)","v":0},{"$f":"SUM(L4:L22)","v":0},{"$f":"SUM(M4:M22)","v":0},{"$f":"SUM(N4:N22)","v":0}]
[null,null,null,null,null,null,null,null,"Den nederste række i denne fane, 'skal kopieres med i mail til hovedkursusleder, når delkursusleder kvitterer for oplysningernes rigtighed. "]

{"sheet":"Hovedkursusleder","index":22,"n_rows":25,"n_cols":7,"rows_kept":25,"cut":false,"hidden":false,"merged":[[10,6,10,7],[0,1,0,4],[1,2,1,4],[19,1,19,2],[6,1,6,3],[4,1,4,3],[17,1,17,3],[15,1,15,3],[8,1,8,3],[19,3,19,5]]}
[null,"Honorar Hovedkursusleder"]
[null,null,"NB. Skemaet SKAL udfyldes elektronisk"]
["Udfyldes af hovedkursusleder"]
[{"$f":"IFERROR(IF(LEN(B7)>10,\"CPR-nummer ikke gyldigt - du har mere end 10 tegn med. Husk ikke at inkludere bindestreg\",IF(LEN(B7)=0,\"\",IF(LEN(B7)<10,\"CPR-nummer ikke gyldigt - Du har indtastet for få tegn\",IF(0=MOD(LEFT(B7)*4+MID(B7,2,1)*3+MID(B7,3,1)*2+MID(B7,4,1)*7+MID(B7,5,1)*6+MID(B7,6,1)*5+(MID(B7,7,1)*4+MID(B7,8,1)*3)+MID(B7,9,1)*2+MID(B7,10,1),11),\"\",\"CPR-nummer ikke gyldigt - Tjek cifrene i dit CPR igennem igen\")))),\"CPR-nummer ikke gyldigt - Et af cifrene i dit CPR er ikke et tal\")","v":""}]
["Navn:"]
[]
["Cpr.nr.: "]
[null,"Ingen bindestreg. CPR-nummer skjult"]
["E-mail"]
[]
["Honorar hovedkursusleder\n (tast her)",null,"Max beløb til deling mellem sekretær og hovedkursusleder",{"$f":"'Adm.ark satser'!K2","v":9000},null,null,"Jeg sender en faktura"]
[null,null,"Total beløb for sekretær og hovedkursusleder",{"$f":"A12+Sekretær!A12","v":0}]
[]
["Udfyldes automatisk, trækkes fra delkursuslederark"]
[]
["Speciale:",{"$f":"'Delkursusleder 1'!B6","v":"[vælg fra liste]"}]
[]
["Kursusnavn:",{"$f":"'Delkursusleder 1'!B8","v":"[vælg fra liste]"}]
[]
["Dato for første undervisningsdag DD-MM-ÅÅ:",{"$f":"'Delkursusleder 1'!B23","v":"00:00:00"},null,{"$f":"'Delkursusleder 1'!C23","v":""}]
[]
["Dit honorar udbetales til NemKonto. Lønsedlen sendes til din e-boks. "]
["Ved CVR./SE-nr. SKAL der sendes e-faktura til EAN nr: 5798000362147 via sundhedsstyrelsens hjemmeside."]
[]
["Evt. bemærkninger"]

{"sheet":"SST, økonomi","index":23,"n_rows":74,"n_cols":10,"rows_kept":74,"cut":false,"hidden":false,"merged":[[0,0,0,1]]}
["Sundhedsstyrelsens økonomioverblik"]
[]
["Specialenavn:"]
[{"$f":"+'Delkursusleder 1'!B6","v":"[vælg fra liste]"}]
[]
["Kursusnavn","Kursus nummer"]
[{"$f":"+'Delkursusleder 1'!B8","v":"[vælg fra liste]"},{"$f":"+'Delkursusleder 1'!B10","v":"Kursusnummer findes automatisk efter du har indtastet speciale/kursusnavn"}]
[]
[]
["Dato/periode for undervisning:"]
[{"$f":"+'Delkursusleder 1'!B23","v":"00:00:00"}]
[]
["Delkursusleder:","E-mail:"]
[{"$f":"+'Delkursusleder 1'!B14","v":0},{"$f":"'Delkursusleder 1'!B21:D21","v":0}]
[]
["Godkendelse foregår via email og sikker post - se vejledning"]
[]
["Rolle","Navn","Udgiftstype","Antal","Samlet beløb",null,"SST Opsamling","Udgiftstype","Antal timer er lagt","Undervisningsomkostning"]
["Delkursusleder 1 - adm",{"$f":"+'Delkursusleder 1'!B14","v":0},"Delkursuslederhonorar","Udfyldes ikke",{"$f":"'Delkursusleder 1'!A39","v":0},null,"Antal forelæsningstimer",{"$f":"+'Adm.ark satser'!D2","v":1},{"$f":"D23+D26+D29+D32+D35+D38+D41+D44+D47+D50+D53+D56+D59+D62+D65+D68+D71","v":0},0]
["Delkursusleder 2",{"$f":"'(Evt. delkursusleder 2)'!B6:D6","v":0},"Delkursuslederhonorar","Udfyldes ikke",{"$f":"'(Evt. delkursusleder 2)'!A22","v":0},null,"Antal diskussionstimer",{"$f":"+'Adm.ark satser'!D3","v":2},0,0]
["Sekretær",{"$f":"+Sekretær!B5","v":0},"Administrationshonorar","Udfyldes ikke",{"$f":"+Sekretær!A12","v":0},null,"Antal medhjælpertimer",{"$f":"+'Adm.ark satser'!D4","v":3},{"$f":"D25+D28+D31+D34+D37+D40+D43+D46+D49+D52+D55+D58+D61+D64+D67+D70+D73","v":0},0]
["Hovedkursusleder",{"$f":"+Hovedkursusleder!B5","v":0},"Administrationshonorar","Udfyldes ikke",{"$f":"+Hovedkursusleder!A12","v":0},null,"Delkursuslederhonorar",{"$f":"+'Adm.ark satser'!D5","v":4},0,{"$f":"E19+E20","v":0}]
["Delkursusleder 1 - evt. underviser",{"$f":"'Delkursusleder 1'!B14:D14","v":0},"Antal forlæsningstimer",{"$f":"'Delkursusleder 1'!B29","v":0},{"$f":"'Delkursusleder 1'!D29","v":0},null,"Administrationshonorar",5,0,{"$f":"E21+E22","v":0}]
["Delkursusleder 1 - evt. underviser",{"$f":"'Delkursusleder 1'!B14:D14","v":0},"Antal diskussionstimer",{"$f":"'Delkursusleder 1'!B30","v":0},{"$f":"'Delkursusleder 1'!D30","v":0},null,"I alt",null,{"$f":"SUM(I19:I23)","v":0},{"$f":"SUM(J19:J23)","v":0}]
["Delkursusleder 1 - evt. underviser",{"$f":"'Delkursusleder 1'!B14:D14","v":0},"Antal medhjælper timer",{"$f":"'Delkursusleder 1'!B31","v":0},{"$f":"'Delkursusleder 1'!D31","v":0}]
["Delkursusleder 2 - evt. underviser",{"$f":"'(Evt. delkursusleder 2)'!B6:D6","v":0},"Antal forlæsningstimer",{"$f":"'(Evt. delkursusleder 2)'!B34","v":0},{"$f":"'(Evt. delkursusleder 2)'!D34","v":0}]
["Delkursusleder 2 - evt. underviser",{"$f":"'(Evt. delkursusleder 2)'!B6:D6","v":0},"Antal diskussionstimer",{"$f":"'(Evt. delkursusleder 2)'!B35","v":0},{"$f":"'(Evt. delkursusleder 2)'!D35","v":0}]
["Delkursusleder 2 - evt. underviser",{"$f":"'(Evt. delkursusleder 2)'!B6:D6","v":0},"Antal medhjælper timer",{"$f":"'(Evt. delkursusleder 2)'!B36","v":0},{"$f":"'(Evt. delkursusleder 2)'!D36","v":0}]
["Honorarlønnet 1",{"$f":"'Honorarlønnet 1'!$B$5","v":0},"Antal forlæsningstimer",{"$f":"'Honorarlønnet 1'!$B$12","v":0},{"$f":"'Honorarlønnet 1'!$D$12","v":0}]
["Honorarlønnet 1",{"$f":"'Honorarlønnet 1'!$B$5","v":0},"Antal diskussionstimer",{"$f":"'Honorarlønnet 1'!$B$13","v":0},{"$f":"'Honorarlønnet 1'!$D$13","v":0}]
["Honorarlønnet 1",{"$f":"'Honorarlønnet 1'!$B$5","v":0},"Antal medhjælper timer",{"$f":"'Honorarlønnet 1'!$B$14","v":0},{"$f":"'Honorarlønnet 1'!$D$14","v":0}]
["Honorarlønnet 2",{"$f":"'Honorarlønnet 2'!B$5","v":0},"Antal forlæsningstimer",{"$f":"'Honorarlønnet 2'!$B$12","v":0},{"$f":"'Honorarlønnet 2'!$D$12","v":0}]
["Honorarlønnet 2",{"$f":"'Honorarlønnet 2'!$B$5","v":0},"Antal diskussionstimer",{"$f":"'Honorarlønnet 2'!$B$13","v":0},{"$f":"'Honorarlønnet 2'!$D$13","v":0}]
["Honorarlønnet 2",{"$f":"'Honorarlønnet 2'!$B$5","v":0},"Antal medhjælper timer",{"$f":"'Honorarlønnet 2'!$B$14","v":0},{"$f":"'Honorarlønnet 2'!$D$14","v":0}]
["Honorarlønnet 3",{"$f":"'Honorarlønnet 3'!$B$5","v":0},"Antal forlæsningstimer",{"$f":"'Honorarlønnet 3'!$B$12","v":0},{"$f":"'Honorarlønnet 3'!$D$12","v":0}]
["Honorarlønnet 3",{"$f":"'Honorarlønnet 3'!$B$5","v":0},"Antal diskussionstimer",{"$f":"'Honorarlønnet 3'!$B$13","v":0},{"$f":"'Honorarlønnet 3'!$D$13","v":0}]
["Honorarlønnet 3",{"$f":"'Honorarlønnet 3'!$B$5","v":0},"Antal medhjælper timer",{"$f":"'Honorarlønnet 3'!$B$14","v":0},{"$f":"'Honorarlønnet 3'!$D$14","v":0}]
["Honorarlønnet 4",{"$f":"'Honorarlønnet 4'!$B$5","v":0},"Antal forlæsningstimer",{"$f":"'Honorarlønnet 4'!$B$12","v":0},{"$f":"'Honorarlønnet 4'!$D$12","v":0}]
["Honorarlønnet 4",{"$f":"'Honorarlønnet 4'!$B$5","v":0},"Antal diskussionstimer",{"$f":"'Honorarlønnet 4'!$B$13","v":0},{"$f":"'Honorarlønnet 4'!$D$13","v":0}]
["Honorarlønnet 4",{"$f":"'Honorarlønnet 4'!$B$5","v":0},"Antal medhjælper timer",{"$f":"'Honorarlønnet 4'!$B$14","v":0},{"$f":"'Honorarlønnet 4'!$D$14","v":0}]
["Honorarlønnet 5",{"$f":"'Honorarlønnet 5'!$B$5","v":0},"Antal forlæsningstimer",{"$f":"'Honorarlønnet 5'!$B$12","v":0},{"$f":"'Honorarlønnet 5'!$D$12","v":0}]
["Honorarlønnet 5",{"$f":"'Honorarlønnet 5'!$B$5","v":0},"Antal diskussionstimer",{"$f":"'Honorarlønnet 5'!$B$13","v":0},{"$f":"'Honorarlønnet 5'!$D$13","v":0}]
["Honorarlønnet 5",{"$f":"'Honorarlønnet 5'!$B$5","v":0},"Antal medhjælper timer",{"$f":"'Honorarlønnet 5'!$B$14","v":0},{"$f":"'Honorarlønnet 5'!$D$14","v":0}]
["Honorarlønnet 6",{"$f":"'Honorarlønnet 6'!$B$5","v":0},"Antal forlæsningstimer",{"$f":"'Honorarlønnet 6'!$B$12","v":0},{"$f":"'Honorarlønnet 6'!$D$12","v":0}]
["Honorarlønnet 6",{"$f":"'Honorarlønnet 6'!$B$5","v":0},"Antal diskussionstimer",{"$f":"'Honorarlønnet 6'!$B$13","v":0},{"$f":"'Honorarlønnet 6'!$D$13","v":0}]
["Honorarlønnet 6",{"$f":"'Honorarlønnet 6'!$B$5","v":0},"Antal medhjælper timer",{"$f":"'Honorarlønnet 6'!$B$14","v":0},{"$f":"'Honorarlønnet 6'!$D$14","v":0}]
["Honorarlønnet 7",{"$f":"'Honorarlønnet 7'!$B$5","v":0},"Antal forlæsningstimer",{"$f":"'Honorarlønnet 7'!$B$12","v":0},{"$f":"'Honorarlønnet 7'!$D$12","v":0}]
["Honorarlønnet 7",{"$f":"'Honorarlønnet 7'!$B$5","v":0},"Antal diskussionstimer",{"$f":"'Honorarlønnet 7'!$B$13","v":0},{"$f":"'Honorarlønnet 7'!$D$13","v":0}]
["Honorarlønnet 7",{"$f":"'Honorarlønnet 7'!$B$5","v":0},"Antal medhjælper timer",{"$f":"'Honorarlønnet 7'!$B$14","v":0},{"$f":"'Honorarlønnet 7'!$D$14","v":0}]
["Honorarlønnet 8",{"$f":"'Honorarlønnet 8'!$B$5","v":0},"Antal forlæsningstimer",{"$f":"'Honorarlønnet 8'!$B$12","v":0},{"$f":"'Honorarlønnet 8'!$D$12","v":0}]
["Honorarlønnet 8",{"$f":"'Honorarlønnet 8'!$B$5","v":0},"Antal diskussionstimer",{"$f":"'Honorarlønnet 8'!$B$13","v":0},{"$f":"'Honorarlønnet 8'!$D$13","v":0}]
["Honorarlønnet 8",{"$f":"'Honorarlønnet 8'!$B$5","v":0},"Antal medhjælper timer",{"$f":"'Honorarlønnet 8'!$B$14","v":0},{"$f":"'Honorarlønnet 8'!$D$14","v":0}]
["Honorarlønnet 9",{"$f":"'Honorarlønnet 9'!$B$5","v":0},"Antal forlæsningstimer",{"$f":"'Honorarlønnet 9'!$B$12","v":0},{"$f":"'Honorarlønnet 9'!$D$12","v":0}]
["Honorarlønnet 9",{"$f":"'Honorarlønnet 9'!$B$5","v":0},"Antal diskussionstimer",{"$f":"'Honorarlønnet 9'!$B$13","v":0},{"$f":"'Honorarlønnet 9'!$D$13","v":0}]
["Honorarlønnet 9",{"$f":"'Honorarlønnet 9'!$B$5","v":0},"Antal medhjælper timer",{"$f":"'Honorarlønnet 9'!$B$14","v":0},{"$f":"'Honorarlønnet 9'!$D$14","v":0}]
["Honorarlønnet 10",{"$f":"'Honorarlønnet 10'!$B$5","v":0},"Antal forlæsningstimer",{"$f":"'Honorarlønnet 10'!$B$12","v":0},{"$f":"'Honorarlønnet 10'!$D$12","v":0}]
["Honorarlønnet 10",{"$f":"'Honorarlønnet 10'!$B$5","v":0},"Antal diskussionstimer",{"$f":"'Honorarlønnet 10'!$B$13","v":0},{"$f":"'Honorarlønnet 10'!$D$13","v":0}]
["Honorarlønnet 10",{"$f":"'Honorarlønnet 10'!$B$5","v":0},"Antal medhjælper timer",{"$f":"'Honorarlønnet 10'!$B$14","v":0},{"$f":"'Honorarlønnet 10'!$D$14","v":0}]
["Honorarlønnet 11",{"$f":"'Honorarlønnet 11'!$B$5","v":0},"Antal forlæsningstimer",{"$f":"'Honorarlønnet 11'!$B$12","v":0},{"$f":"'Honorarlønnet 11'!$D$12","v":0}]
["Honorarlønnet 11",{"$f":"'Honorarlønnet 11'!$B$5","v":0},"Antal diskussionstimer",{"$f":"'Honorarlønnet 11'!$B$13","v":0},{"$f":"'Honorarlønnet 11'!$D$13","v":0}]
["Honorarlønnet 11",{"$f":"'Honorarlønnet 11'!$B$5","v":0},"Antal medhjælper timer",{"$f":"'Honorarlønnet 11'!$B$14","v":0},{"$f":"'Honorarlønnet 11'!$D$14","v":0}]
["Honorarlønnet 12",{"$f":"'Honorarlønnet 12'!$B$5","v":0},"Antal forlæsningstimer",{"$f":"'Honorarlønnet 12'!$B$12","v":0},{"$f":"'Honorarlønnet 12'!$D$12","v":0}]
["Honorarlønnet 12",{"$f":"'Honorarlønnet 12'!$B$5","v":0},"Antal diskussionstimer",{"$f":"'Honorarlønnet 12'!$B$13","v":0},{"$f":"'Honorarlønnet 12'!$D$13","v":0}]
["Honorarlønnet 12",{"$f":"'Honorarlønnet 12'!$B$5","v":0},"Antal medhjælper timer",{"$f":"'Honorarlønnet 12'!$B$14","v":0},{"$f":"'Honorarlønnet 12'!$D$14","v":0}]
["Honorarlønnet 13",{"$f":"'Honorarlønnet 13'!$B$5","v":0},"Antal forlæsningstimer",{"$f":"'Honorarlønnet 13'!$B$12","v":0},{"$f":"'Honorarlønnet 13'!$D$12","v":0}]
["Honorarlønnet 13",{"$f":"'Honorarlønnet 13'!$B$5","v":0},"Antal diskussionstimer",{"$f":"'Honorarlønnet 13'!$B$13","v":0},{"$f":"'Honorarlønnet 13'!$D$13","v":0}]
["Honorarlønnet 13",{"$f":"'Honorarlønnet 13'!$B$5","v":0},"Antal medhjælper timer",{"$f":"'Honorarlønnet 13'!$B$14","v":0},{"$f":"'Honorarlønnet 13'!$D$14","v":0}]
["Honorarlønnet 14",{"$f":"'Honorarlønnet 14'!$B$5","v":0},"Antal forlæsningstimer",{"$f":"'Honorarlønnet 14'!$B$12","v":0},{"$f":"'Honorarlønnet 14'!$D$12","v":0}]
["Honorarlønnet 14",{"$f":"'Honorarlønnet 14'!$B$5","v":0},"Antal diskussionstimer",{"$f":"'Honorarlønnet 14'!$B$13","v":0},{"$f":"'Honorarlønnet 14'!$D$13","v":0}]
["Honorarlønnet 14",{"$f":"'Honorarlønnet 14'!$B$5","v":0},"Antal medhjælper timer",{"$f":"'Honorarlønnet 14'!$B$14","v":0},{"$f":"'Honorarlønnet 14'!$D$14","v":0}]
["Honorarlønnet 15",{"$f":"'Honorarlønnet 15'!$B$5","v":0},"Antal forlæsningstimer",{"$f":"'Honorarlønnet 15'!$B$12","v":0},{"$f":"'Honorarlønnet 15'!$D$12","v":0}]
["Honorarlønnet 15",{"$f":"'Honorarlønnet 15'!$B$5","v":0},"Antal diskussionstimer",{"$f":"'Honorarlønnet 15'!$B$13","v":0},{"$f":"'Honorarlønnet 15'!$D$13","v":0}]
["Honorarlønnet 15",{"$f":"'Honorarlønnet 15'!$B$5","v":0},"Antal medhjælper timer",{"$f":"'Honorarlønnet 15'!$B$14","v":0},{"$f":"'Honorarlønnet 15'!$D$14","v":0}]
["I alt",null,null,{"$f":"SUM(D23:D73)","v":0},{"$f":"SUM(E19:E73)","v":0}]

{"sheet":"Lønadm.","index":24,"n_rows":56,"n_cols":19,"rows_kept":56,"cut":false,"hidden":false,"merged":[]}
["CPR fejl?","Cpr.nr.*","Løbenr.","Dato*","Løndelsnr.*","Felt1*","Felt2","Felt3","Felt4","Kreditorkodenr.","Afvigende løndelstekst","Bogf.kreds+delregnskab (8 cifre)","Artskonto (4 cifre)","Segment 1","Segment 2","Segment 3","Segment 4","Segment 5","Segment 6"]
[{"$f":"IF(LEN('Delkursusleder 1'!$C$16)>0,\"Ja\",\"\")","v":""},{"$f":"IF('Delkursusleder 1'!$B$19=\"Ja\",\"Sender faktura\",'Delkursusleder 1'!$B$16)","v":0},null,{"$f":"+'Delkursusleder 1'!$B$23","v":"00:00:00"},2510,{"$f":"Samlingsark!I4","v":0},null,1,null,null,{"$f":"'Delkursusleder 1'!$B$8","v":"[vælg fra liste]"},null,null,1,{"$f":"+Samlingsark!$D$4","v":"Kursusnummer findes automatisk efter du har indtastet speciale/kursusnavn"},{"$f":"IF(Samlingsark!I4>0.1,'Adm.ark satser'!$D$5,0)","v":0}]
[{"$f":"IF(LEN('Delkursusleder 1'!$C$16)>0,\"Ja\",\"\")","v":""},{"$f":"IF('Delkursusleder 1'!$B$19=\"Ja\",\"Sender faktura\",'Delkursusleder 1'!$B$16)","v":0},null,{"$f":"+'Delkursusleder 1'!$B$23","v":"00:00:00"},2510,{"$f":"+Samlingsark!K4","v":0},null,1,null,null,{"$f":"'Delkursusleder 1'!$B$8","v":"[vælg fra liste]"},null,null,1,{"$f":"+Samlingsark!$D$4","v":"Kursusnummer findes automatisk efter du har indtastet speciale/kursusnavn"},{"$f":"IF(Samlingsark!K4>0.1,'Adm.ark satser'!$D$2,0)","v":0}]
[{"$f":"IF(LEN('Delkursusleder 1'!$C$16)>0,\"Ja\",\"\")","v":""},{"$f":"IF('Delkursusleder 1'!$B$19=\"Ja\",\"Sender faktura\",'Delkursusleder 1'!$B$16)","v":0},null,{"$f":"+'Delkursusleder 1'!$B$23","v":"00:00:00"},2510,{"$f":"+Samlingsark!L4","v":0},null,1,null,null,{"$f":"'Delkursusleder 1'!$B$8","v":"[vælg fra liste]"},null,null,1,{"$f":"+Samlingsark!$D$4","v":"Kursusnummer findes automatisk efter du har indtastet speciale/kursusnavn"},{"$f":"IF(Samlingsark!L4>0.1,'Adm.ark satser'!$D$3,0)","v":0}]
[{"$f":"IF(LEN('Delkursusleder 1'!$C$16)>0,\"Ja\",\"\")","v":""},{"$f":"IF('Delkursusleder 1'!$B$19=\"Ja\",\"Sender faktura\",'Delkursusleder 1'!$B$16)","v":0},null,{"$f":"+'Delkursusleder 1'!$B$23","v":"00:00:00"},2510,{"$f":"+Samlingsark!M4","v":0},null,1,null,null,{"$f":"'Delkursusleder 1'!$B$8","v":"[vælg fra liste]"},null,null,1,{"$f":"+Samlingsark!$D$4","v":"Kursusnummer findes automatisk efter du har indtastet speciale/kursusnavn"},{"$f":"IF(Samlingsark!M4>0.1,'Adm.ark satser'!$D$4,0)","v":0}]
[{"$f":"IF(LEN('(Evt. delkursusleder 2)'!$A$11)>0,\"Ja\",\"\")","v":""},{"$f":"IF('(Evt. delkursusleder 2)'!$E$8=\"Ja\",\"Sender faktura\",'(Evt. delkursusleder 2)'!$B$8)","v":0},null,{"$f":"+'Delkursusleder 1'!$B$23","v":"00:00:00"},2510,{"$f":"Samlingsark!I5","v":0},null,1,null,null,{"$f":"'Delkursusleder 1'!$B$8","v":"[vælg fra liste]"},null,null,1,{"$f":"+Samlingsark!$D$4","v":"Kursusnummer findes automatisk efter du har indtastet speciale/kursusnavn"},{"$f":"IF(Samlingsark!I5>0.1,'Adm.ark satser'!$D$5,0)","v":0}]
[{"$f":"IF(LEN('(Evt. delkursusleder 2)'!$A$11)>0,\"Ja\",\"\")","v":""},{"$f":"IF('(Evt. delkursusleder 2)'!$E$8=\"Ja\",\"Sender faktura\",'(Evt. delkursusleder 2)'!$B$8)","v":0},null,{"$f":"+'Delkursusleder 1'!$B$23","v":"00:00:00"},2510,{"$f":"Samlingsark!K5","v":0},null,1,null,null,{"$f":"'Delkursusleder 1'!$B$8","v":"[vælg fra liste]"},null,null,1,{"$f":"+Samlingsark!$D$4","v":"Kursusnummer findes automatisk efter du har indtastet speciale/kursusnavn"},{"$f":"IF(Samlingsark!K5>0.1,'Adm.ark satser'!$D$2,0)","v":0}]
[{"$f":"IF(LEN('(Evt. delkursusleder 2)'!$A$11)>0,\"Ja\",\"\")","v":""},{"$f":"IF('(Evt. delkursusleder 2)'!$E$8=\"Ja\",\"Sender faktura\",'(Evt. delkursusleder 2)'!$B$8)","v":0},null,{"$f":"+'Delkursusleder 1'!$B$23","v":"00:00:00"},2510,{"$f":"Samlingsark!L5","v":0},null,1,null,null,{"$f":"'Delkursusleder 1'!$B$8","v":"[vælg fra liste]"},null,null,1,{"$f":"+Samlingsark!$D$4","v":"Kursusnummer findes automatisk efter du har indtastet speciale/kursusnavn"},{"$f":"IF(Samlingsark!L5>0.1,'Adm.ark satser'!$D$3,0)","v":0}]
[{"$f":"IF(LEN('(Evt. delkursusleder 2)'!$A$11)>0,\"Ja\",\"\")","v":""},{"$f":"IF('(Evt. delkursusleder 2)'!$E$8=\"Ja\",\"Sender faktura\",'(Evt. delkursusleder 2)'!$B$8)","v":0},null,{"$f":"+'Delkursusleder 1'!$B$23","v":"00:00:00"},2510,{"$f":"Samlingsark!M5","v":0},null,1,null,null,{"$f":"'Delkursusleder 1'!$B$8","v":"[vælg fra liste]"},null,null,1,{"$f":"+Samlingsark!$D$4","v":"Kursusnummer findes automatisk efter du har indtastet speciale/kursusnavn"},{"$f":"IF(Samlingsark!M5>0.1,'Adm.ark satser'!$D$4,0)","v":0}]
[{"$f":"IF(LEN(Sekretær!$A$4)>0,\"Ja\",\"\")","v":""},{"$f":"IF(Sekretær!H7=\"Ja\",\"Sender faktura\",Sekretær!B7)","v":0},null,{"$f":"+'Delkursusleder 1'!$B$23","v":"00:00:00"},2510,{"$f":"+Samlingsark!J7","v":0},null,1,null,null,{"$f":"'Delkursusleder 1'!$B$8","v":"[vælg fra liste]"},null,null,1,{"$f":"+Samlingsark!$D$4","v":"Kursusnummer findes automatisk efter du har indtastet speciale/kursusnavn"},{"$f":"IF(Samlingsark!J7>0.1,'Adm.ark satser'!$D$6,0)","v":0}]
[{"$f":"IF(LEN(Hovedkursusleder!$A$4)>0,\"Ja\",\"\")","v":""},{"$f":"IF(Hovedkursusleder!I11=\"Ja\",\"Sender faktura\",+Hovedkursusleder!B7)","v":0},null,{"$f":"+'Delkursusleder 1'!$B$23","v":"00:00:00"},2510,{"$f":"+Samlingsark!J6","v":0},null,1,null,null,{"$f":"'Delkursusleder 1'!$B$8","v":"[vælg fra liste]"},null,null,1,{"$f":"+Samlingsark!$D$4","v":"Kursusnummer findes automatisk efter du har indtastet speciale/kursusnavn"},{"$f":"IF(Samlingsark!J6>0.1,'Adm.ark satser'!$D$6,0)","v":0}]
[{"$f":"IF(LEN('Honorarlønnet 1'!$A$4)>0,\"Ja\",\"\")","v":""},{"$f":"IF('Honorarlønnet 1'!$E$7=\"Ja\",\"Sender faktura\",+'Honorarlønnet 1'!$B$7)","v":0},null,{"$f":"+'Delkursusleder 1'!$B$23","v":"00:00:00"},2510,{"$f":"+Samlingsark!K8","v":0},null,1,null,null,{"$f":"'Delkursusleder 1'!$B$8","v":"[vælg fra liste]"},null,null,1,{"$f":"+Samlingsark!$D$4","v":"Kursusnummer findes automatisk efter du har indtastet speciale/kursusnavn"},{"$f":"IF(Samlingsark!K8>0.1,'Adm.ark satser'!$D$2,0)","v":0}]
[{"$f":"IF(LEN('Honorarlønnet 1'!$A$4)>0,\"Ja\",\"\")","v":""},{"$f":"IF('Honorarlønnet 1'!$E$7=\"Ja\",\"Sender faktura\",+'Honorarlønnet 1'!$B$7)","v":0},null,{"$f":"+'Delkursusleder 1'!$B$23","v":"00:00:00"},2510,{"$f":"+Samlingsark!L8","v":0},null,1,null,null,{"$f":"'Delkursusleder 1'!$B$8","v":"[vælg fra liste]"},null,null,1,{"$f":"+Samlingsark!$D$4","v":"Kursusnummer findes automatisk efter du har indtastet speciale/kursusnavn"},{"$f":"IF(Samlingsark!L8>0.1,'Adm.ark satser'!$D$3,0)","v":0}]
[{"$f":"IF(LEN('Honorarlønnet 1'!$A$4)>0,\"Ja\",\"\")","v":""},{"$f":"IF('Honorarlønnet 1'!$E$7=\"Ja\",\"Sender faktura\",+'Honorarlønnet 1'!$B$7)","v":0},null,{"$f":"+'Delkursusleder 1'!$B$23","v":"00:00:00"},2510,{"$f":"+Samlingsark!M8","v":0},null,1,null,null,{"$f":"'Delkursusleder 1'!$B$8","v":"[vælg fra liste]"},null,null,1,{"$f":"+Samlingsark!$D$4","v":"Kursusnummer findes automatisk efter du har indtastet speciale/kursusnavn"},{"$f":"IF(Samlingsark!M8>0.1,'Adm.ark satser'!$D$4,0)","v":0}]
[{"$f":"IF(LEN('Honorarlønnet 2'!$A$4)>0,\"Ja\",\"\")","v":""},{"$f":"IF('Honorarlønnet 2'!$E$7=\"Ja\",\"Sender faktura\",+'Honorarlønnet 2'!$B$7)","v":0},null,{"$f":"+'Delkursusleder 1'!$B$23","v":"00:00:00"},2510,{"$f":"+Samlingsark!K9","v":0},null,1,null,null,{"$f":"'Delkursusleder 1'!$B$8","v":"[vælg fra liste]"},null,null,1,{"$f":"+Samlingsark!$D$4","v":"Kursusnummer findes automatisk efter du har indtastet speciale/kursusnavn"},{"$f":"IF(Samlingsark!K9>0.1,'Adm.ark satser'!$D$2,0)","v":0}]
[{"$f":"IF(LEN('Honorarlønnet 2'!$A$4)>0,\"Ja\",\"\")","v":""},{"$f":"IF('Honorarlønnet 2'!$E$7=\"Ja\",\"Sender faktura\",+'Honorarlønnet 2'!$B$7)","v":0},null,{"$f":"+'Delkursusleder 1'!$B$23","v":"00:00:00"},2510,{"$f":"+Samlingsark!L9","v":0},null,1,null,null,{"$f":"'Delkursusleder 1'!$B$8","v":"[vælg fra liste]"},null,null,1,{"$f":"+Samlingsark!$D$4","v":"Kursusnummer findes automatisk efter du har indtastet speciale/kursusnavn"},{"$f":"IF(Samlingsark!L9>0.1,'Adm.ark satser'!$D$3,0)","v":0}]
[{"$f":"IF(LEN('Honorarlønnet 2'!$A$4)>0,\"Ja\",\"\")","v":""},{"$f":"IF('Honorarlønnet 2'!$E$7=\"Ja\",\"Sender faktura\",+'Honorarlønnet 2'!$B$7)","v":0},null,{"$f":"+'Delkursusleder 1'!$B$23","v":"00:00:00"},2510,{"$f":"+Samlingsark!M9","v":0},null,1,null,null,{"$f":"'Delkursusleder 1'!$B$8","v":"[vælg fra liste]"},null,null,1,{"$f":"+Samlingsark!$D$4","v":"Kursusnummer findes automatisk efter du har indtastet speciale/kursusnavn"},{"$f":"IF(Samlingsark!M9>0.1,'Adm.ark satser'!$D$4,0)","v":0}]
[{"$f":"IF(LEN('Honorarlønnet 3'!$A$4)>0,\"Ja\",\"\")","v":""},{"$f":"IF('Honorarlønnet 3'!$E$7=\"Ja\",\"Sender faktura\",+'Honorarlønnet 3'!$B$7)","v":0},null,{"$f":"+'Delkursusleder 1'!$B$23","v":"00:00:00"},2510,{"$f":"+Samlingsark!K10","v":0},null,1,null,null,{"$f":"'Delkursusleder 1'!$B$8","v":"[vælg fra liste]"},null,null,1,{"$f":"+Samlingsark!$D$4","v":"Kursusnummer findes automatisk efter du har indtastet speciale/kursusnavn"},{"$f":"IF(Samlingsark!K10>0.1,'Adm.ark satser'!$D$2,0)","v":0}]
[{"$f":"IF(LEN('Honorarlønnet 3'!$A$4)>0,\"Ja\",\"\")","v":""},{"$f":"IF('Honorarlønnet 3'!$E$7=\"Ja\",\"Sender faktura\",+'Honorarlønnet 3'!$B$7)","v":0},null,{"$f":"+'Delkursusleder 1'!$B$23","v":"00:00:00"},2510,{"$f":"+Samlingsark!L10","v":0},null,1,null,null,{"$f":"'Delkursusleder 1'!$B$8","v":"[vælg fra liste]"},null,null,1,{"$f":"+Samlingsark!$D$4","v":"Kursusnummer findes automatisk efter du har indtastet speciale/kursusnavn"},{"$f":"IF(Samlingsark!L10>0.1,'Adm.ark satser'!$D$3,0)","v":0}]
[{"$f":"IF(LEN('Honorarlønnet 3'!$A$4)>0,\"Ja\",\"\")","v":""},{"$f":"IF('Honorarlønnet 3'!$E$7=\"Ja\",\"Sender faktura\",+'Honorarlønnet 3'!$B$7)","v":0},null,{"$f":"+'Delkursusleder 1'!$B$23","v":"00:00:00"},2510,{"$f":"+Samlingsark!M10","v":0},null,1,null,null,{"$f":"'Delkursusleder 1'!$B$8","v":"[vælg fra liste]"},null,null,1,{"$f":"+Samlingsark!$D$4","v":"Kursusnummer findes automatisk efter du har indtastet speciale/kursusnavn"},{"$f":"IF(Samlingsark!M10>0.1,'Adm.ark satser'!$D$4,0)","v":0}]
[{"$f":"IF(LEN('Honorarlønnet 4'!$A$4)>0,\"Ja\",\"\")","v":""},{"$f":"IF('Honorarlønnet 4'!$E$7=\"Ja\",\"Sender faktura\",+'Honorarlønnet 4'!$B$7)","v":0},null,{"$f":"+'Delkursusleder 1'!$B$23","v":"00:00:00"},2510,{"$f":"+Samlingsark!K11","v":0},null,1,null,null,{"$f":"'Delkursusleder 1'!$B$8","v":"[vælg fra liste]"},null,null,1,{"$f":"+Samlingsark!$D$4","v":"Kursusnummer findes automatisk efter du har indtastet speciale/kursusnavn"},{"$f":"IF(Samlingsark!K11>0.1,'Adm.ark satser'!$D$2,0)","v":0}]
[{"$f":"IF(LEN('Honorarlønnet 4'!$A$4)>0,\"Ja\",\"\")","v":""},{"$f":"IF('Honorarlønnet 4'!$E$7=\"Ja\",\"Sender faktura\",+'Honorarlønnet 4'!$B$7)","v":0},null,{"$f":"+'Delkursusleder 1'!$B$23","v":"00:00:00"},2510,{"$f":"+Samlingsark!L11","v":0},null,1,null,null,{"$f":"'Delkursusleder 1'!$B$8","v":"[vælg fra liste]"},null,null,1,{"$f":"+Samlingsark!$D$4","v":"Kursusnummer findes automatisk efter du har indtastet speciale/kursusnavn"},{"$f":"IF(Samlingsark!L11>0.1,'Adm.ark satser'!$D$3,0)","v":0}]
[{"$f":"IF(LEN('Honorarlønnet 4'!$A$4)>0,\"Ja\",\"\")","v":""},{"$f":"IF('Honorarlønnet 4'!$E$7=\"Ja\",\"Sender faktura\",+'Honorarlønnet 4'!$B$7)","v":0},null,{"$f":"+'Delkursusleder 1'!$B$23","v":"00:00:00"},2510,{"$f":"+Samlingsark!M11","v":0},null,1,null,null,{"$f":"'Delkursusleder 1'!$B$8","v":"[vælg fra liste]"},null,null,1,{"$f":"+Samlingsark!$D$4","v":"Kursusnummer findes automatisk efter du har indtastet speciale/kursusnavn"},{"$f":"IF(Samlingsark!M11>0.1,'Adm.ark satser'!$D$4,0)","v":0}]
[{"$f":"IF(LEN('Honorarlønnet 5'!$A$4)>0,\"Ja\",\"\")","v":""},{"$f":"IF('Honorarlønnet 5'!$E$7=\"Ja\",\"Sender faktura\",+'Honorarlønnet 5'!$B$7)","v":0},null,{"$f":"+'Delkursusleder 1'!$B$23","v":"00:00:00"},2510,{"$f":"+Samlingsark!K12","v":0},null,1,null,null,{"$f":"'Delkursusleder 1'!$B$8","v":"[vælg fra liste]"},null,null,1,{"$f":"+Samlingsark!$D$4","v":"Kursusnummer findes automatisk efter du har indtastet speciale/kursusnavn"},{"$f":"IF(Samlingsark!K12>0.1,'Adm.ark satser'!$D$2,0)","v":0}]
[{"$f":"IF(LEN('Honorarlønnet 5'!$A$4)>0,\"Ja\",\"\")","v":""},{"$f":"IF('Honorarlønnet 5'!$E$7=\"Ja\",\"Sender faktura\",+'Honorarlønnet 5'!$B$7)","v":0},null,{"$f":"+'Delkursusleder 1'!$B$23","v":"00:00:00"},2510,{"$f":"+Samlingsark!L12","v":0},null,1,null,null,{"$f":"'Delkursusleder 1'!$B$8","v":"[vælg fra liste]"},null,null,1,{"$f":"+Samlingsark!$D$4","v":"Kursusnummer findes automatisk efter du har indtastet speciale/kursusnavn"},{"$f":"IF(Samlingsark!L12>0.1,'Adm.ark satser'!$D$3,0)","v":0}]
[{"$f":"IF(LEN('Honorarlønnet 5'!$A$4)>0,\"Ja\",\"\")","v":""},{"$f":"IF('Honorarlønnet 5'!$E$7=\"Ja\",\"Sender faktura\",+'Honorarlønnet 5'!$B$7)","v":0},null,{"$f":"+'Delkursusleder 1'!$B$23","v":"00:00:00"},2510,{"$f":"+Samlingsark!M12","v":0},null,1,null,null,{"$f":"'Delkursusleder 1'!$B$8","v":"[vælg fra liste]"},null,null,1,{"$f":"+Samlingsark!$D$4","v":"Kursusnummer findes automatisk efter du har indtastet speciale/kursusnavn"},{"$f":"IF(Samlingsark!M12>0.1,'Adm.ark satser'!$D$4,0)","v":0}]
[{"$f":"IF(LEN('Honorarlønnet 6'!$A$4)>0,\"Ja\",\"\")","v":""},{"$f":"IF('Honorarlønnet 6'!$E$7=\"Ja\",\"Sender faktura\",+'Honorarlønnet 6'!$B$7)","v":0},null,{"$f":"+'Delkursusleder 1'!$B$23","v":"00:00:00"},2510,{"$f":"+Samlingsark!K13","v":0},null,1,null,null,{"$f":"'Delkursusleder 1'!$B$8","v":"[vælg fra liste]"},null,null,1,{"$f":"+Samlingsark!$D$4","v":"Kursusnummer findes automatisk efter du har indtastet speciale/kursusnavn"},{"$f":"IF(Samlingsark!K13>0.1,'Adm.ark satser'!$D$2,0)","v":0}]
[{"$f":"IF(LEN('Honorarlønnet 6'!$A$4)>0,\"Ja\",\"\")","v":""},{"$f":"IF('Honorarlønnet 6'!$E$7=\"Ja\",\"Sender faktura\",+'Honorarlønnet 6'!$B$7)","v":0},null,{"$f":"+'Delkursusleder 1'!$B$23","v":"00:00:00"},2510,{"$f":"+Samlingsark!L13","v":0},null,1,null,null,{"$f":"'Delkursusleder 1'!$B$8","v":"[vælg fra liste]"},null,null,1,{"$f":"+Samlingsark!$D$4","v":"Kursusnummer findes automatisk efter du har indtastet speciale/kursusnavn"},{"$f":"IF(Samlingsark!L13>0.1,'Adm.ark satser'!$D$3,0)","v":0}]
[{"$f":"IF(LEN('Honorarlønnet 6'!$A$4)>0,\"Ja\",\"\")","v":""},{"$f":"IF('Honorarlønnet 6'!$E$7=\"Ja\",\"Sender faktura\",+'Honorarlønnet 6'!$B$7)","v":0},null,{"$f":"+'Delkursusleder 1'!$B$23","v":"00:00:00"},2510,{"$f":"+Samlingsark!M13","v":0},null,1,null,null,{"$f":"'Delkursusleder 1'!$B$8","v":"[vælg fra liste]"},null,null,1,{"$f":"+Samlingsark!$D$4","v":"Kursusnummer findes automatisk efter du har indtastet speciale/kursusnavn"},{"$f":"IF(Samlingsark!M13>0.1,'Adm.ark satser'!$D$4,0)","v":0}]
[{"$f":"IF(LEN('Honorarlønnet 7'!$A$4)>0,\"Ja\",\"\")","v":""},{"$f":"IF('Honorarlønnet 7'!$E$7=\"Ja\",\"Sender faktura\",+'Honorarlønnet 7'!$B$7)","v":0},null,{"$f":"+'Delkursusleder 1'!$B$23","v":"00:00:00"},2510,{"$f":"+Samlingsark!K14","v":0},null,1,null,null,{"$f":"'Delkursusleder 1'!$B$8","v":"[vælg fra liste]"},null,null,1,{"$f":"+Samlingsark!$D$4","v":"Kursusnummer findes automatisk efter du har indtastet speciale/kursusnavn"},{"$f":"IF(Samlingsark!K14>0.1,'Adm.ark satser'!$D$2,0)","v":0}]
[{"$f":"IF(LEN('Honorarlønnet 7'!$A$4)>0,\"Ja\",\"\")","v":""},{"$f":"IF('Honorarlønnet 7'!$E$7=\"Ja\",\"Sender faktura\",+'Honorarlønnet 7'!$B$7)","v":0},null,{"$f":"+'Delkursusleder 1'!$B$23","v":"00:00:00"},2510,{"$f":"+Samlingsark!L14","v":0},null,1,null,null,{"$f":"'Delkursusleder 1'!$B$8","v":"[vælg fra liste]"},null,null,1,{"$f":"+Samlingsark!$D$4","v":"Kursusnummer findes automatisk efter du har indtastet speciale/kursusnavn"},{"$f":"IF(Samlingsark!L14>0.1,'Adm.ark satser'!$D$3,0)","v":0}]
[{"$f":"IF(LEN('Honorarlønnet 7'!$A$4)>0,\"Ja\",\"\")","v":""},{"$f":"IF('Honorarlønnet 7'!$E$7=\"Ja\",\"Sender faktura\",+'Honorarlønnet 7'!$B$7)","v":0},null,{"$f":"+'Delkursusleder 1'!$B$23","v":"00:00:00"},2510,{"$f":"+Samlingsark!M14","v":0},null,1,null,null,{"$f":"'Delkursusleder 1'!$B$8","v":"[vælg fra liste]"},null,null,1,{"$f":"+Samlingsark!$D$4","v":"Kursusnummer findes automatisk efter du har indtastet speciale/kursusnavn"},{"$f":"IF(Samlingsark!M14>0.1,'Adm.ark satser'!$D$4,0)","v":0}]
[{"$f":"IF(LEN('Honorarlønnet 8'!$A$4)>0,\"Ja\",\"\")","v":""},{"$f":"IF('Honorarlønnet 8'!$E$7=\"Ja\",\"Sender faktura\",+'Honorarlønnet 8'!$B$7)","v":0},null,{"$f":"+'Delkursusleder 1'!$B$23","v":"00:00:00"},2510,{"$f":"+Samlingsark!K15","v":0},null,1,null,null,{"$f":"'Delkursusleder 1'!$B$8","v":"[vælg fra liste]"},null,null,1,{"$f":"+Samlingsark!$D$4","v":"Kursusnummer findes automatisk efter du har indtastet speciale/kursusnavn"},{"$f":"IF(Samlingsark!K15>0.1,'Adm.ark satser'!$D$2,0)","v":0}]
[{"$f":"IF(LEN('Honorarlønnet 8'!$A$4)>0,\"Ja\",\"\")","v":""},{"$f":"IF('Honorarlønnet 8'!$E$7=\"Ja\",\"Sender faktura\",+'Honorarlønnet 8'!$B$7)","v":0},null,{"$f":"+'Delkursusleder 1'!$B$23","v":"00:00:00"},2510,{"$f":"+Samlingsark!L15","v":0},null,1,null,null,{"$f":"'Delkursusleder 1'!$B$8","v":"[vælg fra liste]"},null,null,1,{"$f":"+Samlingsark!$D$4","v":"Kursusnummer findes automatisk efter du har indtastet speciale/kursusnavn"},{"$f":"IF(Samlingsark!L15>0.1,'Adm.ark satser'!$D$3,0)","v":0}]
[{"$f":"IF(LEN('Honorarlønnet 8'!$A$4)>0,\"Ja\",\"\")","v":""},{"$f":"IF('Honorarlønnet 8'!$E$7=\"Ja\",\"Sender faktura\",+'Honorarlønnet 8'!$B$7)","v":0},null,{"$f":"+'Delkursusleder 1'!$B$23","v":"00:00:00"},2510,{"$f":"+Samlingsark!M15","v":0},null,1,null,null,{"$f":"'Delkursusleder 1'!$B$8","v":"[vælg fra liste]"},null,null,1,{"$f":"+Samlingsark!$D$4","v":"Kursusnummer findes automatisk efter du har indtastet speciale/kursusnavn"},{"$f":"IF(Samlingsark!M15>0.1,'Adm.ark satser'!$D$4,0)","v":0}]
[{"$f":"IF(LEN('Honorarlønnet 9'!$A$4)>0,\"Ja\",\"\")","v":""},{"$f":"IF('Honorarlønnet 9'!$E$7=\"Ja\",\"Sender faktura\",+'Honorarlønnet 9'!$B$7)","v":0},null,{"$f":"+'Delkursusleder 1'!$B$23","v":"00:00:00"},2510,{"$f":"+Samlingsark!K16","v":0},null,1,null,null,{"$f":"'Delkursusleder 1'!$B$8","v":"[vælg fra liste]"},null,null,1,{"$f":"+Samlingsark!$D$4","v":"Kursusnummer findes automatisk efter du har indtastet speciale/kursusnavn"},{"$f":"IF(Samlingsark!K16>0.1,'Adm.ark satser'!$D$2,0)","v":0}]
[{"$f":"IF(LEN('Honorarlønnet 9'!$A$4)>0,\"Ja\",\"\")","v":""},{"$f":"IF('Honorarlønnet 9'!$E$7=\"Ja\",\"Sender faktura\",+'Honorarlønnet 9'!$B$7)","v":0},null,{"$f":"+'Delkursusleder 1'!$B$23","v":"00:00:00"},2510,{"$f":"+Samlingsark!L16","v":0},null,1,null,null,{"$f":"'Delkursusleder 1'!$B$8","v":"[vælg fra liste]"},null,null,1,{"$f":"+Samlingsark!$D$4","v":"Kursusnummer findes automatisk efter du har indtastet speciale/kursusnavn"},{"$f":"IF(Samlingsark!L16>0.1,'Adm.ark satser'!$D$3,0)","v":0}]
[{"$f":"IF(LEN('Honorarlønnet 9'!$A$4)>0,\"Ja\",\"\")","v":""},{"$f":"IF('Honorarlønnet 9'!$E$7=\"Ja\",\"Sender faktura\",+'Honorarlønnet 9'!$B$7)","v":0},null,{"$f":"+'Delkursusleder 1'!$B$23","v":"00:00:00"},2510,{"$f":"+Samlingsark!M16","v":0},null,1,null,null,{"$f":"'Delkursusleder 1'!$B$8","v":"[vælg fra liste]"},null,null,1,{"$f":"+Samlingsark!$D$4","v":"Kursusnummer findes automatisk efter du har indtastet speciale/kursusnavn"},{"$f":"IF(Samlingsark!M16>0.1,'Adm.ark satser'!$D$4,0)","v":0}]
[{"$f":"IF(LEN('Honorarlønnet 10'!$A$4)>0,\"Ja\",\"\")","v":""},{"$f":"IF('Honorarlønnet 10'!$E$7=\"Ja\",\"Sender faktura\",+'Honorarlønnet 10'!$B$7)","v":0},null,{"$f":"+'Delkursusleder 1'!$B$23","v":"00:00:00"},2510,{"$f":"+Samlingsark!K17","v":0},null,1,null,null,{"$f":"'Delkursusleder 1'!$B$8","v":"[vælg fra liste]"},null,null,1,{"$f":"+Samlingsark!$D$4","v":"Kursusnummer findes automatisk efter du har indtastet speciale/kursusnavn"},{"$f":"IF(Samlingsark!K17>0.1,'Adm.ark satser'!$D$2,0)","v":0}]
[{"$f":"IF(LEN('Honorarlønnet 10'!$A$4)>0,\"Ja\",\"\")","v":""},{"$f":"IF('Honorarlønnet 10'!$E$7=\"Ja\",\"Sender faktura\",+'Honorarlønnet 10'!$B$7)","v":0},null,{"$f":"+'Delkursusleder 1'!$B$23","v":"00:00:00"},2510,{"$f":"+Samlingsark!L17","v":0},null,1,null,null,{"$f":"'Delkursusleder 1'!$B$8","v":"[vælg fra liste]"},null,null,1,{"$f":"+Samlingsark!$D$4","v":"Kursusnummer findes automatisk efter du har indtastet speciale/kursusnavn"},{"$f":"IF(Samlingsark!L17>0.1,'Adm.ark satser'!$D$3,0)","v":0}]
[{"$f":"IF(LEN('Honorarlønnet 10'!$A$4)>0,\"Ja\",\"\")","v":""},{"$f":"IF('Honorarlønnet 10'!$E$7=\"Ja\",\"Sender faktura\",+'Honorarlønnet 10'!$B$7)","v":0},null,{"$f":"+'Delkursusleder 1'!$B$23","v":"00:00:00"},2510,{"$f":"+Samlingsark!M17","v":0},null,1,null,null,{"$f":"'Delkursusleder 1'!$B$8","v":"[vælg fra liste]"},null,null,1,{"$f":"+Samlingsark!$D$4","v":"Kursusnummer findes automatisk efter du har indtastet speciale/kursusnavn"},{"$f":"IF(Samlingsark!M17>0.1,'Adm.ark satser'!$D$4,0)","v":0}]
[{"$f":"IF(LEN('Honorarlønnet 11'!$A$4)>0,\"Ja\",\"\")","v":""},{"$f":"IF('Honorarlønnet 11'!$E$7=\"Ja\",\"Sender faktura\",+'Honorarlønnet 11'!$B$7)","v":0},null,{"$f":"+'Delkursusleder 1'!$B$23","v":"00:00:00"},2510,{"$f":"+Samlingsark!K18","v":0},null,1,null,null,{"$f":"'Delkursusleder 1'!$B$8","v":"[vælg fra liste]"},null,null,1,{"$f":"+Samlingsark!$D$4","v":"Kursusnummer findes automatisk efter du har indtastet speciale/kursusnavn"},{"$f":"IF(Samlingsark!K18>0.1,'Adm.ark satser'!$D$2,0)","v":0}]
[{"$f":"IF(LEN('Honorarlønnet 11'!$A$4)>0,\"Ja\",\"\")","v":""},{"$f":"IF('Honorarlønnet 11'!$E$7=\"Ja\",\"Sender faktura\",+'Honorarlønnet 11'!$B$7)","v":0},null,{"$f":"+'Delkursusleder 1'!$B$23","v":"00:00:00"},2510,{"$f":"+Samlingsark!L18","v":0},null,1,null,null,{"$f":"'Delkursusleder 1'!$B$8","v":"[vælg fra liste]"},null,null,1,{"$f":"+Samlingsark!$D$4","v":"Kursusnummer findes automatisk efter du har indtastet speciale/kursusnavn"},{"$f":"IF(Samlingsark!L18>0.1,'Adm.ark satser'!$D$3,0)","v":0}]
[{"$f":"IF(LEN('Honorarlønnet 11'!$A$4)>0,\"Ja\",\"\")","v":""},{"$f":"IF('Honorarlønnet 11'!$E$7=\"Ja\",\"Sender faktura\",+'Honorarlønnet 11'!$B$7)","v":0},null,{"$f":"+'Delkursusleder 1'!$B$23","v":"00:00:00"},2510,{"$f":"+Samlingsark!M18","v":0},null,1,null,null,{"$f":"'Delkursusleder 1'!$B$8","v":"[vælg fra liste]"},null,null,1,{"$f":"+Samlingsark!$D$4","v":"Kursusnummer findes automatisk efter du har indtastet speciale/kursusnavn"},{"$f":"IF(Samlingsark!M18>0.1,'Adm.ark satser'!$D$4,0)","v":0}]
[{"$f":"IF(LEN('Honorarlønnet 12'!$A$4)>0,\"Ja\",\"\")","v":""},{"$f":"IF('Honorarlønnet 12'!$E$7=\"Ja\",\"Sender faktura\",+'Honorarlønnet 12'!$B$7)","v":0},null,{"$f":"+'Delkursusleder 1'!$B$23","v":"00:00:00"},2510,{"$f":"+Samlingsark!K19","v":0},null,1,null,null,{"$f":"'Delkursusleder 1'!$B$8","v":"[vælg fra liste]"},null,null,1,{"$f":"+Samlingsark!$D$4","v":"Kursusnummer findes automatisk efter du har indtastet speciale/kursusnavn"},{"$f":"IF(Samlingsark!K19>0.1,'Adm.ark satser'!$D$2,0)","v":0}]
[{"$f":"IF(LEN('Honorarlønnet 12'!$A$4)>0,\"Ja\",\"\")","v":""},{"$f":"IF('Honorarlønnet 12'!$E$7=\"Ja\",\"Sender faktura\",+'Honorarlønnet 12'!$B$7)","v":0},null,{"$f":"+'Delkursusleder 1'!$B$23","v":"00:00:00"},2510,{"$f":"+Samlingsark!L19","v":0},null,1,null,null,{"$f":"'Delkursusleder 1'!$B$8","v":"[vælg fra liste]"},null,null,1,{"$f":"+Samlingsark!$D$4","v":"Kursusnummer findes automatisk efter du har indtastet speciale/kursusnavn"},{"$f":"IF(Samlingsark!L19>0.1,'Adm.ark satser'!$D$3,0)","v":0}]
[{"$f":"IF(LEN('Honorarlønnet 12'!$A$4)>0,\"Ja\",\"\")","v":""},{"$f":"IF('Honorarlønnet 12'!$E$7=\"Ja\",\"Sender faktura\",+'Honorarlønnet 12'!$B$7)","v":0},null,{"$f":"+'Delkursusleder 1'!$B$23","v":"00:00:00"},2510,{"$f":"+Samlingsark!M19","v":0},null,1,null,null,{"$f":"'Delkursusleder 1'!$B$8","v":"[vælg fra liste]"},null,null,1,{"$f":"+Samlingsark!$D$4","v":"Kursusnummer findes automatisk efter du har indtastet speciale/kursusnavn"},{"$f":"IF(Samlingsark!M19>0.1,'Adm.ark satser'!$D$4,0)","v":0}]
[{"$f":"IF(LEN('Honorarlønnet 13'!$A$4)>0,\"Ja\",\"\")","v":""},{"$f":"IF('Honorarlønnet 13'!$E$7=\"Ja\",\"Sender faktura\",+'Honorarlønnet 13'!$B$7)","v":0},null,{"$f":"+'Delkursusleder 1'!$B$23","v":"00:00:00"},2510,{"$f":"+Samlingsark!K20","v":0},null,1,null,null,{"$f":"'Delkursusleder 1'!$B$8","v":"[vælg fra liste]"},null,null,1,{"$f":"+Samlingsark!$D$4","v":"Kursusnummer findes automatisk efter du har indtastet speciale/kursusnavn"},{"$f":"IF(Samlingsark!K20>0.1,'Adm.ark satser'!$D$2,0)","v":0}]
[{"$f":"IF(LEN('Honorarlønnet 13'!$A$4)>0,\"Ja\",\"\")","v":""},{"$f":"IF('Honorarlønnet 13'!$E$7=\"Ja\",\"Sender faktura\",+'Honorarlønnet 13'!$B$7)","v":0},null,{"$f":"+'Delkursusleder 1'!$B$23","v":"00:00:00"},2510,{"$f":"+Samlingsark!L20","v":0},null,1,null,null,{"$f":"'Delkursusleder 1'!$B$8","v":"[vælg fra liste]"},null,null,1,{"$f":"+Samlingsark!$D$4","v":"Kursusnummer findes automatisk efter du har indtastet speciale/kursusnavn"},{"$f":"IF(Samlingsark!L20>0.1,'Adm.ark satser'!$D$3,0)","v":0}]
[{"$f":"IF(LEN('Honorarlønnet 13'!$A$4)>0,\"Ja\",\"\")","v":""},{"$f":"IF('Honorarlønnet 13'!$E$7=\"Ja\",\"Sender faktura\",+'Honorarlønnet 13'!$B$7)","v":0},null,{"$f":"+'Delkursusleder 1'!$B$23","v":"00:00:00"},2510,{"$f":"+Samlingsark!M20","v":0},null,1,null,null,{"$f":"'Delkursusleder 1'!$B$8","v":"[vælg fra liste]"},null,null,1,{"$f":"+Samlingsark!$D$4","v":"Kursusnummer findes automatisk efter du har indtastet speciale/kursusnavn"},{"$f":"IF(Samlingsark!M20>0.1,'Adm.ark satser'!$D$4,0)","v":0}]
[{"$f":"IF(LEN('Honorarlønnet 14'!$A$4)>0,\"Ja\",\"\")","v":""},{"$f":"IF('Honorarlønnet 14'!$E$7=\"Ja\",\"Sender faktura\",+'Honorarlønnet 14'!$B$7)","v":0},null,{"$f":"+'Delkursusleder 1'!$B$23","v":"00:00:00"},2510,{"$f":"+Samlingsark!K21","v":0},null,1,null,null,{"$f":"'Delkursusleder 1'!$B$8","v":"[vælg fra liste]"},null,null,1,{"$f":"+Samlingsark!$D$4","v":"Kursusnummer findes automatisk efter du har indtastet speciale/kursusnavn"},{"$f":"IF(Samlingsark!K21>0.1,'Adm.ark satser'!$D$2,0)","v":0}]
[{"$f":"IF(LEN('Honorarlønnet 14'!$A$4)>0,\"Ja\",\"\")","v":""},{"$f":"IF('Honorarlønnet 14'!$E$7=\"Ja\",\"Sender faktura\",+'Honorarlønnet 14'!$B$7)","v":0},null,{"$f":"+'Delkursusleder 1'!$B$23","v":"00:00:00"},2510,{"$f":"+Samlingsark!L21","v":0},null,1,null,null,{"$f":"'Delkursusleder 1'!$B$8","v":"[vælg fra liste]"},null,null,1,{"$f":"+Samlingsark!$D$4","v":"Kursusnummer findes automatisk efter du har indtastet speciale/kursusnavn"},{"$f":"IF(Samlingsark!L21>0.1,'Adm.ark satser'!$D$3,0)","v":0}]
[{"$f":"IF(LEN('Honorarlønnet 14'!$A$4)>0,\"Ja\",\"\")","v":""},{"$f":"IF('Honorarlønnet 14'!$E$7=\"Ja\",\"Sender faktura\",+'Honorarlønnet 14'!$B$7)","v":0},null,{"$f":"+'Delkursusleder 1'!$B$23","v":"00:00:00"},2510,{"$f":"+Samlingsark!M21","v":0},null,1,null,null,{"$f":"'Delkursusleder 1'!$B$8","v":"[vælg fra liste]"},null,null,1,{"$f":"+Samlingsark!$D$4","v":"Kursusnummer findes automatisk efter du har indtastet speciale/kursusnavn"},{"$f":"IF(Samlingsark!M21>0.1,'Adm.ark satser'!$D$4,0)","v":0}]
[{"$f":"IF(LEN('Honorarlønnet 15'!$A$4)>0,\"Ja\",\"\")","v":""},{"$f":"IF('Honorarlønnet 15'!$E$7=\"Ja\",\"Sender faktura\",+'Honorarlønnet 15'!$B$7)","v":0},null,{"$f":"+'Delkursusleder 1'!$B$23","v":"00:00:00"},2510,{"$f":"+Samlingsark!K22","v":0},null,1,null,null,{"$f":"'Delkursusleder 1'!$B$8","v":"[vælg fra liste]"},null,null,1,{"$f":"+Samlingsark!$D$4","v":"Kursusnummer findes automatisk efter du har indtastet speciale/kursusnavn"},{"$f":"IF(Samlingsark!K22>0.1,'Adm.ark satser'!$D$2,0)","v":0}]
[{"$f":"IF(LEN('Honorarlønnet 15'!$A$4)>0,\"Ja\",\"\")","v":""},{"$f":"IF('Honorarlønnet 15'!$E$7=\"Ja\",\"Sender faktura\",+'Honorarlønnet 15'!$B$7)","v":0},null,{"$f":"+'Delkursusleder 1'!$B$23","v":"00:00:00"},2510,{"$f":"+Samlingsark!L22","v":0},null,1,null,null,{"$f":"'Delkursusleder 1'!$B$8","v":"[vælg fra liste]"},null,null,1,{"$f":"+Samlingsark!$D$4","v":"Kursusnummer findes automatisk efter du har indtastet speciale/kursusnavn"},{"$f":"IF(Samlingsark!L22>0.1,'Adm.ark satser'!$D$3,0)","v":0}]
[{"$f":"IF(LEN('Honorarlønnet 15'!$A$4)>0,\"Ja\",\"\")","v":""},{"$f":"IF('Honorarlønnet 15'!$E$7=\"Ja\",\"Sender faktura\",+'Honorarlønnet 15'!$B$7)","v":0},null,{"$f":"+'Delkursusleder 1'!$B$23","v":"00:00:00"},2510,{"$f":"+Samlingsark!M22","v":0},null,1,null,null,{"$f":"'Delkursusleder 1'!$B$8","v":"[vælg fra liste]"},null,null,1,{"$f":"+Samlingsark!$D$4","v":"Kursusnummer findes automatisk efter du har indtastet speciale/kursusnavn"},{"$f":"IF(Samlingsark!M22>0.1,'Adm.ark satser'!$D$4,0)","v":0}]

{"sheet":"Lønadm_backup","index":25,"n_rows":56,"n_cols":20,"rows_kept":56,"cut":false,"hidden":true,"merged":[]}
["CPR fejl?","Cpr.nr.*","Løbenr.","Dato*","Løndelsnr.*","Felt1*","Felt2","Felt3","Felt4","Kreditorkodenr.","Afvigende løndelstekst","Bogf.kreds+delregnskab (8 cifre)","Artskonto (4 cifre)","Segment 1","Segment 2","Segment 3","Segment 4","Segment 5","Segment 6","Navn"]
[{"$f":"IF(LEN('Delkursusleder 1'!$C$16)>0,\"Ja\",\"\")","v":""},{"$f":"IF('Delkursusleder 1'!$B$19=\"Ja\",\"Sender faktura\",'Delkursusleder 1'!$B$16)","v":0},null,{"$f":"+'Delkursusleder 1'!$B$23","v":"00:00:00"},2510,{"$f":"Samlingsark!I4","v":0},null,1,null,null,{"$f":"'Delkursusleder 1'!$B$8","v":"[vælg fra liste]"},null,null,1,{"$f":"+Samlingsark!$D$4","v":"Kursusnummer findes automatisk efter du har indtastet speciale/kursusnavn"},{"$f":"IF(Samlingsark!I4>0.1,'Adm.ark satser'!$D$5,0)","v":0},null,null,null,"Delkursusleder 1"]
[{"$f":"IF(LEN('Delkursusleder 1'!$C$16)>0,\"Ja\",\"\")","v":""},{"$f":"IF('Delkursusleder 1'!$B$19=\"Ja\",\"Sender faktura\",'Delkursusleder 1'!$B$16)","v":0},null,{"$f":"+'Delkursusleder 1'!$B$23","v":"00:00:00"},2510,{"$f":"+Samlingsark!K4","v":0},null,1,null,null,{"$f":"'Delkursusleder 1'!$B$8","v":"[vælg fra liste]"},null,null,1,{"$f":"+Samlingsark!$D$4","v":"Kursusnummer findes automatisk efter du har indtastet speciale/kursusnavn"},{"$f":"IF(Samlingsark!K4>0.1,'Adm.ark satser'!$D$2,0)","v":0},null,null,null,"Delkursusleder 1"]
[{"$f":"IF(LEN('Delkursusleder 1'!$C$16)>0,\"Ja\",\"\")","v":""},{"$f":"IF('Delkursusleder 1'!$B$19=\"Ja\",\"Sender faktura\",'Delkursusleder 1'!$B$16)","v":0},null,{"$f":"+'Delkursusleder 1'!$B$23","v":"00:00:00"},2510,{"$f":"+Samlingsark!L4","v":0},null,1,null,null,{"$f":"'Delkursusleder 1'!$B$8","v":"[vælg fra liste]"},null,null,1,{"$f":"+Samlingsark!$D$4","v":"Kursusnummer findes automatisk efter du har indtastet speciale/kursusnavn"},{"$f":"IF(Samlingsark!L4>0.1,'Adm.ark satser'!$D$3,0)","v":0},null,null,null,"Delkursusleder 1"]
[{"$f":"IF(LEN('Delkursusleder 1'!$C$16)>0,\"Ja\",\"\")","v":""},{"$f":"IF('Delkursusleder 1'!$B$19=\"Ja\",\"Sender faktura\",'Delkursusleder 1'!$B$16)","v":0},null,{"$f":"+'Delkursusleder 1'!$B$23","v":"00:00:00"},2510,{"$f":"+Samlingsark!M4","v":0},null,1,null,null,{"$f":"'Delkursusleder 1'!$B$8","v":"[vælg fra liste]"},null,null,1,{"$f":"+Samlingsark!$D$4","v":"Kursusnummer findes automatisk efter du har indtastet speciale/kursusnavn"},{"$f":"IF(Samlingsark!M4>0.1,'Adm.ark satser'!$D$4,0)","v":0},null,null,null,"Delkursusleder 1"]
[{"$f":"IF(LEN('(Evt. delkursusleder 2)'!$A$11)>0,\"Ja\",\"\")","v":""},{"$f":"IF('(Evt. delkursusleder 2)'!$E$8=\"Ja\",\"Sender faktura\",'(Evt. delkursusleder 2)'!$B$8)","v":0},null,{"$f":"+'Delkursusleder 1'!$B$23","v":"00:00:00"},2510,{"$f":"Samlingsark!I5","v":0},null,1,null,null,{"$f":"'Delkursusleder 1'!$B$8","v":"[vælg fra liste]"},null,null,1,{"$f":"+Samlingsark!$D$4","v":"Kursusnummer findes automatisk efter du har indtastet speciale/kursusnavn"},{"$f":"IF(Samlingsark!I5>0.1,'Adm.ark satser'!$D$5,0)","v":0},null,null,null,"Evt. delkursusleder 2"]
[{"$f":"IF(LEN('(Evt. delkursusleder 2)'!$A$11)>0,\"Ja\",\"\")","v":""},{"$f":"IF('(Evt. delkursusleder 2)'!$E$8=\"Ja\",\"Sender faktura\",'(Evt. delkursusleder 2)'!$B$8)","v":0},null,{"$f":"+'Delkursusleder 1'!$B$23","v":"00:00:00"},2510,{"$f":"Samlingsark!K5","v":0},null,1,null,null,{"$f":"'Delkursusleder 1'!$B$8","v":"[vælg fra liste]"},null,null,1,{"$f":"+Samlingsark!$D$4","v":"Kursusnummer findes automatisk efter du har indtastet speciale/kursusnavn"},{"$f":"IF(Samlingsark!K5>0.1,'Adm.ark satser'!$D$2,0)","v":0},null,null,null,"Evt. delkursusleder 2"]
[{"$f":"IF(LEN('(Evt. delkursusleder 2)'!$A$11)>0,\"Ja\",\"\")","v":""},{"$f":"IF('(Evt. delkursusleder 2)'!$E$8=\"Ja\",\"Sender faktura\",'(Evt. delkursusleder 2)'!$B$8)","v":0},null,{"$f":"+'Delkursusleder 1'!$B$23","v":"00:00:00"},2510,{"$f":"Samlingsark!L5","v":0},null,1,null,null,{"$f":"'Delkursusleder 1'!$B$8","v":"[vælg fra liste]"},null,null,1,{"$f":"+Samlingsark!$D$4","v":"Kursusnummer findes automatisk efter du har indtastet speciale/kursusnavn"},{"$f":"IF(Samlingsark!L5>0.1,'Adm.ark satser'!$D$3,0)","v":0},null,null,null,"Evt. delkursusleder 2"]
[{"$f":"IF(LEN('(Evt. delkursusleder 2)'!$A$11)>0,\"Ja\",\"\")","v":""},{"$f":"IF('(Evt. delkursusleder 2)'!$E$8=\"Ja\",\"Sender faktura\",'(Evt. delkursusleder 2)'!$B$8)","v":0},null,{"$f":"+'Delkursusleder 1'!$B$23","v":"00:00:00"},2510,{"$f":"Samlingsark!M5","v":0},null,1,null,null,{"$f":"'Delkursusleder 1'!$B$8","v":"[vælg fra liste]"},null,null,1,{"$f":"+Samlingsark!$D$4","v":"Kursusnummer findes automatisk efter du har indtastet speciale/kursusnavn"},{"$f":"IF(Samlingsark!M5>0.1,'Adm.ark satser'!$D$4,0)","v":0},null,null,null,"Evt. delkursusleder 2"]
[{"$f":"IF(LEN(Sekretær!$A$4)>0,\"Ja\",\"\")","v":""},{"$f":"IF(Sekretær!H7=\"Ja\",\"Sender faktura\",Sekretær!B7)","v":0},null,{"$f":"+'Delkursusleder 1'!$B$23","v":"00:00:00"},2510,{"$f":"+Samlingsark!J7","v":0},null,1,null,null,{"$f":"'Delkursusleder 1'!$B$8","v":"[vælg fra liste]"},null,null,1,{"$f":"+Samlingsark!$D$4","v":"Kursusnummer findes automatisk efter du har indtastet speciale/kursusnavn"},{"$f":"IF(Samlingsark!J7>0.1,'Adm.ark satser'!$D$6,0)","v":0},null,null,null,"Sekretær"]
[{"$f":"IF(LEN(Hovedkursusleder!$A$4)>0,\"Ja\",\"\")","v":""},{"$f":"IF(Hovedkursusleder!I11=\"Ja\",\"Sender faktura\",+Hovedkursusleder!B7)","v":0},null,{"$f":"+'Delkursusleder 1'!$B$23","v":"00:00:00"},2510,{"$f":"+Samlingsark!J6","v":0},null,1,null,null,{"$f":"'Delkursusleder 1'!$B$8","v":"[vælg fra liste]"},null,null,1,{"$f":"+Samlingsark!$D$4","v":"Kursusnummer findes automatisk efter du har indtastet speciale/kursusnavn"},{"$f":"IF(Samlingsark!J6>0.1,'Adm.ark satser'!$D$6,0)","v":0},null,null,null,"Hovedkursusleder"]
[{"$f":"IF(LEN('Honorarlønnet 1'!$A$4)>0,\"Ja\",\"\")","v":""},{"$f":"IF('Honorarlønnet 1'!$E$7=\"Ja\",\"Sender faktura\",+'Honorarlønnet 1'!$B$7)","v":0},null,{"$f":"+'Delkursusleder 1'!$B$23","v":"00:00:00"},2510,{"$f":"+Samlingsark!K8","v":0},null,1,null,null,{"$f":"'Delkursusleder 1'!$B$8","v":"[vælg fra liste]"},null,null,1,{"$f":"+Samlingsark!$D$4","v":"Kursusnummer findes automatisk efter du har indtastet speciale/kursusnavn"},{"$f":"IF(Samlingsark!K8>0.1,'Adm.ark satser'!$D$2,0)","v":0},null,null,null,{"$f":"'Honorarlønnet 1'!$B$5","v":0}]
[{"$f":"IF(LEN('Honorarlønnet 1'!$A$4)>0,\"Ja\",\"\")","v":""},{"$f":"IF('Honorarlønnet 1'!$E$7=\"Ja\",\"Sender faktura\",+'Honorarlønnet 1'!$B$7)","v":0},null,{"$f":"+'Delkursusleder 1'!$B$23","v":"00:00:00"},2510,{"$f":"+Samlingsark!L8","v":0},null,1,null,null,{"$f":"'Delkursusleder 1'!$B$8","v":"[vælg fra liste]"},null,null,1,{"$f":"+Samlingsark!$D$4","v":"Kursusnummer findes automatisk efter du har indtastet speciale/kursusnavn"},{"$f":"IF(Samlingsark!L8>0.1,'Adm.ark satser'!$D$3,0)","v":0},null,null,null,{"$f":"'Honorarlønnet 1'!$B$5","v":0}]
[{"$f":"IF(LEN('Honorarlønnet 1'!$A$4)>0,\"Ja\",\"\")","v":""},{"$f":"IF('Honorarlønnet 1'!$E$7=\"Ja\",\"Sender faktura\",+'Honorarlønnet 1'!$B$7)","v":0},null,{"$f":"+'Delkursusleder 1'!$B$23","v":"00:00:00"},2510,{"$f":"+Samlingsark!M8","v":0},null,1,null,null,{"$f":"'Delkursusleder 1'!$B$8","v":"[vælg fra liste]"},null,null,1,{"$f":"+Samlingsark!$D$4","v":"Kursusnummer findes automatisk efter du har indtastet speciale/kursusnavn"},{"$f":"IF(Samlingsark!M8>0.1,'Adm.ark satser'!$D$4,0)","v":0},null,null,null,{"$f":"'Honorarlønnet 1'!$B$5","v":0}]
[{"$f":"IF(LEN('Honorarlønnet 2'!$A$4)>0,\"Ja\",\"\")","v":""},{"$f":"IF('Honorarlønnet 2'!$E$7=\"Ja\",\"Sender faktura\",+'Honorarlønnet 2'!$B$7)","v":0},null,{"$f":"+'Delkursusleder 1'!$B$23","v":"00:00:00"},2510,{"$f":"+Samlingsark!K9","v":0},null,1,null,null,{"$f":"'Delkursusleder 1'!$B$8","v":"[vælg fra liste]"},null,null,1,{"$f":"+Samlingsark!$D$4","v":"Kursusnummer findes automatisk efter du har indtastet speciale/kursusnavn"},{"$f":"IF(Samlingsark!K9>0.1,'Adm.ark satser'!$D$2,0)","v":0},null,null,null,{"$f":"'Honorarlønnet 2'!$B$5","v":0}]
[{"$f":"IF(LEN('Honorarlønnet 2'!$A$4)>0,\"Ja\",\"\")","v":""},{"$f":"IF('Honorarlønnet 2'!$E$7=\"Ja\",\"Sender faktura\",+'Honorarlønnet 2'!$B$7)","v":0},null,{"$f":"+'Delkursusleder 1'!$B$23","v":"00:00:00"},2510,{"$f":"+Samlingsark!L9","v":0},null,1,null,null,{"$f":"'Delkursusleder 1'!$B$8","v":"[vælg fra liste]"},null,null,1,{"$f":"+Samlingsark!$D$4","v":"Kursusnummer findes automatisk efter du har indtastet speciale/kursusnavn"},{"$f":"IF(Samlingsark!L9>0.1,'Adm.ark satser'!$D$3,0)","v":0},null,null,null,{"$f":"'Honorarlønnet 2'!$B$5","v":0}]
[{"$f":"IF(LEN('Honorarlønnet 2'!$A$4)>0,\"Ja\",\"\")","v":""},{"$f":"IF('Honorarlønnet 2'!$E$7=\"Ja\",\"Sender faktura\",+'Honorarlønnet 2'!$B$7)","v":0},null,{"$f":"+'Delkursusleder 1'!$B$23","v":"00:00:00"},2510,{"$f":"+Samlingsark!M9","v":0},null,1,null,null,{"$f":"'Delkursusleder 1'!$B$8","v":"[vælg fra liste]"},null,null,1,{"$f":"+Samlingsark!$D$4","v":"Kursusnummer findes automatisk efter du har indtastet speciale/kursusnavn"},{"$f":"IF(Samlingsark!M9>0.1,'Adm.ark satser'!$D$4,0)","v":0},null,null,null,{"$f":"'Honorarlønnet 2'!$B$5","v":0}]
[{"$f":"IF(LEN('Honorarlønnet 3'!$A$4)>0,\"Ja\",\"\")","v":""},{"$f":"IF('Honorarlønnet 3'!$E$7=\"Ja\",\"Sender faktura\",+'Honorarlønnet 3'!$B$7)","v":0},null,{"$f":"+'Delkursusleder 1'!$B$23","v":"00:00:00"},2510,{"$f":"+Samlingsark!K10","v":0},null,1,null,null,{"$f":"'Delkursusleder 1'!$B$8","v":"[vælg fra liste]"},null,null,1,{"$f":"+Samlingsark!$D$4","v":"Kursusnummer findes automatisk efter du har indtastet speciale/kursusnavn"},{"$f":"IF(Samlingsark!K10>0.1,'Adm.ark satser'!$D$2,0)","v":0},null,null,null,{"$f":"'Honorarlønnet 3'!$B$5","v":0}]
[{"$f":"IF(LEN('Honorarlønnet 3'!$A$4)>0,\"Ja\",\"\")","v":""},{"$f":"IF('Honorarlønnet 3'!$E$7=\"Ja\",\"Sender faktura\",+'Honorarlønnet 3'!$B$7)","v":0},null,{"$f":"+'Delkursusleder 1'!$B$23","v":"00:00:00"},2510,{"$f":"+Samlingsark!L10","v":0},null,1,null,null,{"$f":"'Delkursusleder 1'!$B$8","v":"[vælg fra liste]"},null,null,1,{"$f":"+Samlingsark!$D$4","v":"Kursusnummer findes automatisk efter du har indtastet speciale/kursusnavn"},{"$f":"IF(Samlingsark!L10>0.1,'Adm.ark satser'!$D$3,0)","v":0},null,null,null,{"$f":"'Honorarlønnet 3'!$B$5","v":0}]
[{"$f":"IF(LEN('Honorarlønnet 3'!$A$4)>0,\"Ja\",\"\")","v":""},{"$f":"IF('Honorarlønnet 3'!$E$7=\"Ja\",\"Sender faktura\",+'Honorarlønnet 3'!$B$7)","v":0},null,{"$f":"+'Delkursusleder 1'!$B$23","v":"00:00:00"},2510,{"$f":"+Samlingsark!M10","v":0},null,1,null,null,{"$f":"'Delkursusleder 1'!$B$8","v":"[vælg fra liste]"},null,null,1,{"$f":"+Samlingsark!$D$4","v":"Kursusnummer findes automatisk efter du har indtastet speciale/kursusnavn"},{"$f":"IF(Samlingsark!M10>0.1,'Adm.ark satser'!$D$4,0)","v":0},null,null,null,{"$f":"'Honorarlønnet 3'!$B$5","v":0}]
[{"$f":"IF(LEN('Honorarlønnet 4'!$A$4)>0,\"Ja\",\"\")","v":""},{"$f":"IF('Honorarlønnet 4'!$E$7=\"Ja\",\"Sender faktura\",+'Honorarlønnet 4'!$B$7)","v":0},null,{"$f":"+'Delkursusleder 1'!$B$23","v":"00:00:00"},2510,{"$f":"+Samlingsark!K11","v":0},null,1,null,null,{"$f":"'Delkursusleder 1'!$B$8","v":"[vælg fra liste]"},null,null,1,{"$f":"+Samlingsark!$D$4","v":"Kursusnummer findes automatisk efter du har indtastet speciale/kursusnavn"},{"$f":"IF(Samlingsark!K11>0.1,'Adm.ark satser'!$D$2,0)","v":0},null,null,null,{"$f":"'Honorarlønnet 4'!$B$5","v":0}]
[{"$f":"IF(LEN('Honorarlønnet 4'!$A$4)>0,\"Ja\",\"\")","v":""},{"$f":"IF('Honorarlønnet 4'!$E$7=\"Ja\",\"Sender faktura\",+'Honorarlønnet 4'!$B$7)","v":0},null,{"$f":"+'Delkursusleder 1'!$B$23","v":"00:00:00"},2510,{"$f":"+Samlingsark!L11","v":0},null,1,null,null,{"$f":"'Delkursusleder 1'!$B$8","v":"[vælg fra liste]"},null,null,1,{"$f":"+Samlingsark!$D$4","v":"Kursusnummer findes automatisk efter du har indtastet speciale/kursusnavn"},{"$f":"IF(Samlingsark!L11>0.1,'Adm.ark satser'!$D$3,0)","v":0},null,null,null,{"$f":"'Honorarlønnet 4'!$B$5","v":0}]
[{"$f":"IF(LEN('Honorarlønnet 4'!$A$4)>0,\"Ja\",\"\")","v":""},{"$f":"IF('Honorarlønnet 4'!$E$7=\"Ja\",\"Sender faktura\",+'Honorarlønnet 4'!$B$7)","v":0},null,{"$f":"+'Delkursusleder 1'!$B$23","v":"00:00:00"},2510,{"$f":"+Samlingsark!M11","v":0},null,1,null,null,{"$f":"'Delkursusleder 1'!$B$8","v":"[vælg fra liste]"},null,null,1,{"$f":"+Samlingsark!$D$4","v":"Kursusnummer findes automatisk efter du har indtastet speciale/kursusnavn"},{"$f":"IF(Samlingsark!M11>0.1,'Adm.ark satser'!$D$4,0)","v":0},null,null,null,{"$f":"'Honorarlønnet 4'!$B$5","v":0}]
[{"$f":"IF(LEN('Honorarlønnet 5'!$A$4)>0,\"Ja\",\"\")","v":""},{"$f":"IF('Honorarlønnet 5'!$E$7=\"Ja\",\"Sender faktura\",+'Honorarlønnet 5'!$B$7)","v":0},null,{"$f":"+'Delkursusleder 1'!$B$23","v":"00:00:00"},2510,{"$f":"+Samlingsark!K12","v":0},null,1,null,null,{"$f":"'Delkursusleder 1'!$B$8","v":"[vælg fra liste]"},null,null,1,{"$f":"+Samlingsark!$D$4","v":"Kursusnummer findes automatisk efter du har indtastet speciale/kursusnavn"},{"$f":"IF(Samlingsark!K12>0.1,'Adm.ark satser'!$D$2,0)","v":0},null,null,null,{"$f":"'Honorarlønnet 5'!$B$5","v":0}]
[{"$f":"IF(LEN('Honorarlønnet 5'!$A$4)>0,\"Ja\",\"\")","v":""},{"$f":"IF('Honorarlønnet 5'!$E$7=\"Ja\",\"Sender faktura\",+'Honorarlønnet 5'!$B$7)","v":0},null,{"$f":"+'Delkursusleder 1'!$B$23","v":"00:00:00"},2510,{"$f":"+Samlingsark!L12","v":0},null,1,null,null,{"$f":"'Delkursusleder 1'!$B$8","v":"[vælg fra liste]"},null,null,1,{"$f":"+Samlingsark!$D$4","v":"Kursusnummer findes automatisk efter du har indtastet speciale/kursusnavn"},{"$f":"IF(Samlingsark!L12>0.1,'Adm.ark satser'!$D$3,0)","v":0},null,null,null,{"$f":"'Honorarlønnet 5'!$B$5","v":0}]
[{"$f":"IF(LEN('Honorarlønnet 5'!$A$4)>0,\"Ja\",\"\")","v":""},{"$f":"IF('Honorarlønnet 5'!$E$7=\"Ja\",\"Sender faktura\",+'Honorarlønnet 5'!$B$7)","v":0},null,{"$f":"+'Delkursusleder 1'!$B$23","v":"00:00:00"},2510,{"$f":"+Samlingsark!M12","v":0},null,1,null,null,{"$f":"'Delkursusleder 1'!$B$8","v":"[vælg fra liste]"},null,null,1,{"$f":"+Samlingsark!$D$4","v":"Kursusnummer findes automatisk efter du har indtastet speciale/kursusnavn"},{"$f":"IF(Samlingsark!M12>0.1,'Adm.ark satser'!$D$4,0)","v":0},null,null,null,{"$f":"'Honorarlønnet 5'!$B$5","v":0}]
[{"$f":"IF(LEN('Honorarlønnet 6'!$A$4)>0,\"Ja\",\"\")","v":""},{"$f":"IF('Honorarlønnet 6'!$E$7=\"Ja\",\"Sender faktura\",+'Honorarlønnet 6'!$B$7)","v":0},null,{"$f":"+'Delkursusleder 1'!$B$23","v":"00:00:00"},2510,{"$f":"+Samlingsark!K13","v":0},null,1,null,null,{"$f":"'Delkursusleder 1'!$B$8","v":"[vælg fra liste]"},null,null,1,{"$f":"+Samlingsark!$D$4","v":"Kursusnummer findes automatisk efter du har indtastet speciale/kursusnavn"},{"$f":"IF(Samlingsark!K13>0.1,'Adm.ark satser'!$D$2,0)","v":0},null,null,null,{"$f":"'Honorarlønnet 6'!$B$5","v":0}]
[{"$f":"IF(LEN('Honorarlønnet 6'!$A$4)>0,\"Ja\",\"\")","v":""},{"$f":"IF('Honorarlønnet 6'!$E$7=\"Ja\",\"Sender faktura\",+'Honorarlønnet 6'!$B$7)","v":0},null,{"$f":"+'Delkursusleder 1'!$B$23","v":"00:00:00"},2510,{"$f":"+Samlingsark!L13","v":0},null,1,null,null,{"$f":"'Delkursusleder 1'!$B$8","v":"[vælg fra liste]"},null,null,1,{"$f":"+Samlingsark!$D$4","v":"Kursusnummer findes automatisk efter du har indtastet speciale/kursusnavn"},{"$f":"IF(Samlingsark!L13>0.1,'Adm.ark satser'!$D$3,0)","v":0},null,null,null,{"$f":"'Honorarlønnet 6'!$B$5","v":0}]
[{"$f":"IF(LEN('Honorarlønnet 6'!$A$4)>0,\"Ja\",\"\")","v":""},{"$f":"IF('Honorarlønnet 6'!$E$7=\"Ja\",\"Sender faktura\",+'Honorarlønnet 6'!$B$7)","v":0},null,{"$f":"+'Delkursusleder 1'!$B$23","v":"00:00:00"},2510,{"$f":"+Samlingsark!M13","v":0},null,1,null,null,{"$f":"'Delkursusleder 1'!$B$8","v":"[vælg fra liste]"},null,null,1,{"$f":"+Samlingsark!$D$4","v":"Kursusnummer findes automatisk efter du har indtastet speciale/kursusnavn"},{"$f":"IF(Samlingsark!M13>0.1,'Adm.ark satser'!$D$4,0)","v":0},null,null,null,{"$f":"'Honorarlønnet 6'!$B$5","v":0}]
[{"$f":"IF(LEN('Honorarlønnet 7'!$A$4)>0,\"Ja\",\"\")","v":""},{"$f":"IF('Honorarlønnet 7'!$E$7=\"Ja\",\"Sender faktura\",+'Honorarlønnet 7'!$B$7)","v":0},null,{"$f":"+'Delkursusleder 1'!$B$23","v":"00:00:00"},2510,{"$f":"+Samlingsark!K14","v":0},null,1,null,null,{"$f":"'Delkursusleder 1'!$B$8","v":"[vælg fra liste]"},null,null,1,{"$f":"+Samlingsark!$D$4","v":"Kursusnummer findes automatisk efter du har indtastet speciale/kursusnavn"},{"$f":"IF(Samlingsark!K14>0.1,'Adm.ark satser'!$D$2,0)","v":0},null,null,null,{"$f":"'Honorarlønnet 7'!$B$5","v":0}]
[{"$f":"IF(LEN('Honorarlønnet 7'!$A$4)>0,\"Ja\",\"\")","v":""},{"$f":"IF('Honorarlønnet 7'!$E$7=\"Ja\",\"Sender faktura\",+'Honorarlønnet 7'!$B$7)","v":0},null,{"$f":"+'Delkursusleder 1'!$B$23","v":"00:00:00"},2510,{"$f":"+Samlingsark!L14","v":0},null,1,null,null,{"$f":"'Delkursusleder 1'!$B$8","v":"[vælg fra liste]"},null,null,1,{"$f":"+Samlingsark!$D$4","v":"Kursusnummer findes automatisk efter du har indtastet speciale/kursusnavn"},{"$f":"IF(Samlingsark!L14>0.1,'Adm.ark satser'!$D$3,0)","v":0},null,null,null,{"$f":"'Honorarlønnet 7'!$B$5","v":0}]
[{"$f":"IF(LEN('Honorarlønnet 7'!$A$4)>0,\"Ja\",\"\")","v":""},{"$f":"IF('Honorarlønnet 7'!$E$7=\"Ja\",\"Sender faktura\",+'Honorarlønnet 7'!$B$7)","v":0},null,{"$f":"+'Delkursusleder 1'!$B$23","v":"00:00:00"},2510,{"$f":"+Samlingsark!M14","v":0},null,1,null,null,{"$f":"'Delkursusleder 1'!$B$8","v":"[vælg fra liste]"},null,null,1,{"$f":"+Samlingsark!$D$4","v":"Kursusnummer findes automatisk efter du har indtastet speciale/kursusnavn"},{"$f":"IF(Samlingsark!M14>0.1,'Adm.ark satser'!$D$4,0)","v":0},null,null,null,{"$f":"'Honorarlønnet 7'!$B$5","v":0}]
[{"$f":"IF(LEN('Honorarlønnet 8'!$A$4)>0,\"Ja\",\"\")","v":""},{"$f":"IF('Honorarlønnet 8'!$E$7=\"Ja\",\"Sender faktura\",+'Honorarlønnet 8'!$B$7)","v":0},null,{"$f":"+'Delkursusleder 1'!$B$23","v":"00:00:00"},2510,{"$f":"+Samlingsark!K15","v":0},null,1,null,null,{"$f":"'Delkursusleder 1'!$B$8","v":"[vælg fra liste]"},null,null,1,{"$f":"+Samlingsark!$D$4","v":"Kursusnummer findes automatisk efter du har indtastet speciale/kursusnavn"},{"$f":"IF(Samlingsark!K15>0.1,'Adm.ark satser'!$D$2,0)","v":0},null,null,null,{"$f":"'Honorarlønnet 8'!$B$5","v":0}]
[{"$f":"IF(LEN('Honorarlønnet 8'!$A$4)>0,\"Ja\",\"\")","v":""},{"$f":"IF('Honorarlønnet 8'!$E$7=\"Ja\",\"Sender faktura\",+'Honorarlønnet 8'!$B$7)","v":0},null,{"$f":"+'Delkursusleder 1'!$B$23","v":"00:00:00"},2510,{"$f":"+Samlingsark!L15","v":0},null,1,null,null,{"$f":"'Delkursusleder 1'!$B$8","v":"[vælg fra liste]"},null,null,1,{"$f":"+Samlingsark!$D$4","v":"Kursusnummer findes automatisk efter du har indtastet speciale/kursusnavn"},{"$f":"IF(Samlingsark!L15>0.1,'Adm.ark satser'!$D$3,0)","v":0},null,null,null,{"$f":"'Honorarlønnet 8'!$B$5","v":0}]
[{"$f":"IF(LEN('Honorarlønnet 8'!$A$4)>0,\"Ja\",\"\")","v":""},{"$f":"IF('Honorarlønnet 8'!$E$7=\"Ja\",\"Sender faktura\",+'Honorarlønnet 8'!$B$7)","v":0},null,{"$f":"+'Delkursusleder 1'!$B$23","v":"00:00:00"},2510,{"$f":"+Samlingsark!M15","v":0},null,1,null,null,{"$f":"'Delkursusleder 1'!$B$8","v":"[vælg fra liste]"},null,null,1,{"$f":"+Samlingsark!$D$4","v":"Kursusnummer findes automatisk efter du har indtastet speciale/kursusnavn"},{"$f":"IF(Samlingsark!M15>0.1,'Adm.ark satser'!$D$4,0)","v":0},null,null,null,{"$f":"'Honorarlønnet 8'!$B$5","v":0}]
[{"$f":"IF(LEN('Honorarlønnet 9'!$A$4)>0,\"Ja\",\"\")","v":""},{"$f":"IF('Honorarlønnet 9'!$E$7=\"Ja\",\"Sender faktura\",+'Honorarlønnet 9'!$B$7)","v":0},null,{"$f":"+'Delkursusleder 1'!$B$23","v":"00:00:00"},2510,{"$f":"+Samlingsark!K16","v":0},null,1,null,null,{"$f":"'Delkursusleder 1'!$B$8","v":"[vælg fra liste]"},null,null,1,{"$f":"+Samlingsark!$D$4","v":"Kursusnummer findes automatisk efter du har indtastet speciale/kursusnavn"},{"$f":"IF(Samlingsark!K16>0.1,'Adm.ark satser'!$D$2,0)","v":0},null,null,null,{"$f":"'Honorarlønnet 9'!$B$5","v":0}]
[{"$f":"IF(LEN('Honorarlønnet 9'!$A$4)>0,\"Ja\",\"\")","v":""},{"$f":"IF('Honorarlønnet 9'!$E$7=\"Ja\",\"Sender faktura\",+'Honorarlønnet 9'!$B$7)","v":0},null,{"$f":"+'Delkursusleder 1'!$B$23","v":"00:00:00"},2510,{"$f":"+Samlingsark!L16","v":0},null,1,null,null,{"$f":"'Delkursusleder 1'!$B$8","v":"[vælg fra liste]"},null,null,1,{"$f":"+Samlingsark!$D$4","v":"Kursusnummer findes automatisk efter du har indtastet speciale/kursusnavn"},{"$f":"IF(Samlingsark!L16>0.1,'Adm.ark satser'!$D$3,0)","v":0},null,null,null,{"$f":"'Honorarlønnet 9'!$B$5","v":0}]
[{"$f":"IF(LEN('Honorarlønnet 9'!$A$4)>0,\"Ja\",\"\")","v":""},{"$f":"IF('Honorarlønnet 9'!$E$7=\"Ja\",\"Sender faktura\",+'Honorarlønnet 9'!$B$7)","v":0},null,{"$f":"+'Delkursusleder 1'!$B$23","v":"00:00:00"},2510,{"$f":"+Samlingsark!M16","v":0},null,1,null,null,{"$f":"'Delkursusleder 1'!$B$8","v":"[vælg fra liste]"},null,null,1,{"$f":"+Samlingsark!$D$4","v":"Kursusnummer findes automatisk efter du har indtastet speciale/kursusnavn"},{"$f":"IF(Samlingsark!M16>0.1,'Adm.ark satser'!$D$4,0)","v":0},null,null,null,{"$f":"'Honorarlønnet 9'!$B$5","v":0}]
[{"$f":"IF(LEN('Honorarlønnet 10'!$A$4)>0,\"Ja\",\"\")","v":""},{"$f":"IF('Honorarlønnet 10'!$E$7=\"Ja\",\"Sender faktura\",+'Honorarlønnet 10'!$B$7)","v":0},null,{"$f":"+'Delkursusleder 1'!$B$23","v":"00:00:00"},2510,{"$f":"+Samlingsark!K17","v":0},null,1,null,null,{"$f":"'Delkursusleder 1'!$B$8","v":"[vælg fra liste]"},null,null,1,{"$f":"+Samlingsark!$D$4","v":"Kursusnummer findes automatisk efter du har indtastet speciale/kursusnavn"},{"$f":"IF(Samlingsark!K17>0.1,'Adm.ark satser'!$D$2,0)","v":0},null,null,null,{"$f":"'Honorarlønnet 10'!$B$5","v":0}]
[{"$f":"IF(LEN('Honorarlønnet 10'!$A$4)>0,\"Ja\",\"\")","v":""},{"$f":"IF('Honorarlønnet 10'!$E$7=\"Ja\",\"Sender faktura\",+'Honorarlønnet 10'!$B$7)","v":0},null,{"$f":"+'Delkursusleder 1'!$B$23","v":"00:00:00"},2510,{"$f":"+Samlingsark!L17","v":0},null,1,null,null,{"$f":"'Delkursusleder 1'!$B$8","v":"[vælg fra liste]"},null,null,1,{"$f":"+Samlingsark!$D$4","v":"Kursusnummer findes automatisk efter du har indtastet speciale/kursusnavn"},{"$f":"IF(Samlingsark!L17>0.1,'Adm.ark satser'!$D$3,0)","v":0},null,null,null,{"$f":"'Honorarlønnet 10'!$B$5","v":0}]
[{"$f":"IF(LEN('Honorarlønnet 10'!$A$4)>0,\"Ja\",\"\")","v":""},{"$f":"IF('Honorarlønnet 10'!$E$7=\"Ja\",\"Sender faktura\",+'Honorarlønnet 10'!$B$7)","v":0},null,{"$f":"+'Delkursusleder 1'!$B$23","v":"00:00:00"},2510,{"$f":"+Samlingsark!M17","v":0},null,1,null,null,{"$f":"'Delkursusleder 1'!$B$8","v":"[vælg fra liste]"},null,null,1,{"$f":"+Samlingsark!$D$4","v":"Kursusnummer findes automatisk efter du har indtastet speciale/kursusnavn"},{"$f":"IF(Samlingsark!M17>0.1,'Adm.ark satser'!$D$4,0)","v":0},null,null,null,{"$f":"'Honorarlønnet 10'!$B$5","v":0}]
[{"$f":"IF(LEN('Honorarlønnet 11'!$A$4)>0,\"Ja\",\"\")","v":""},{"$f":"IF('Honorarlønnet 11'!$E$7=\"Ja\",\"Sender faktura\",+'Honorarlønnet 11'!$B$7)","v":0},null,{"$f":"+'Delkursusleder 1'!$B$23","v":"00:00:00"},2510,{"$f":"+Samlingsark!K18","v":0},null,1,null,null,{"$f":"'Delkursusleder 1'!$B$8","v":"[vælg fra liste]"},null,null,1,{"$f":"+Samlingsark!$D$4","v":"Kursusnummer findes automatisk efter du har indtastet speciale/kursusnavn"},{"$f":"IF(Samlingsark!K18>0.1,'Adm.ark satser'!$D$2,0)","v":0},null,null,null,{"$f":"'Honorarlønnet 11'!$B$5","v":0}]
[{"$f":"IF(LEN('Honorarlønnet 11'!$A$4)>0,\"Ja\",\"\")","v":""},{"$f":"IF('Honorarlønnet 11'!$E$7=\"Ja\",\"Sender faktura\",+'Honorarlønnet 11'!$B$7)","v":0},null,{"$f":"+'Delkursusleder 1'!$B$23","v":"00:00:00"},2510,{"$f":"+Samlingsark!L18","v":0},null,1,null,null,{"$f":"'Delkursusleder 1'!$B$8","v":"[vælg fra liste]"},null,null,1,{"$f":"+Samlingsark!$D$4","v":"Kursusnummer findes automatisk efter du har indtastet speciale/kursusnavn"},{"$f":"IF(Samlingsark!L18>0.1,'Adm.ark satser'!$D$3,0)","v":0},null,null,null,{"$f":"'Honorarlønnet 11'!$B$5","v":0}]
[{"$f":"IF(LEN('Honorarlønnet 11'!$A$4)>0,\"Ja\",\"\")","v":""},{"$f":"IF('Honorarlønnet 11'!$E$7=\"Ja\",\"Sender faktura\",+'Honorarlønnet 11'!$B$7)","v":0},null,{"$f":"+'Delkursusleder 1'!$B$23","v":"00:00:00"},2510,{"$f":"+Samlingsark!M18","v":0},null,1,null,null,{"$f":"'Delkursusleder 1'!$B$8","v":"[vælg fra liste]"},null,null,1,{"$f":"+Samlingsark!$D$4","v":"Kursusnummer findes automatisk efter du har indtastet speciale/kursusnavn"},{"$f":"IF(Samlingsark!M18>0.1,'Adm.ark satser'!$D$4,0)","v":0},null,null,null,{"$f":"'Honorarlønnet 11'!$B$5","v":0}]
[{"$f":"IF(LEN('Honorarlønnet 12'!$A$4)>0,\"Ja\",\"\")","v":""},{"$f":"IF('Honorarlønnet 12'!$E$7=\"Ja\",\"Sender faktura\",+'Honorarlønnet 12'!$B$7)","v":0},null,{"$f":"+'Delkursusleder 1'!$B$23","v":"00:00:00"},2510,{"$f":"+Samlingsark!K19","v":0},null,1,null,null,{"$f":"'Delkursusleder 1'!$B$8","v":"[vælg fra liste]"},null,null,1,{"$f":"+Samlingsark!$D$4","v":"Kursusnummer findes automatisk efter du har indtastet speciale/kursusnavn"},{"$f":"IF(Samlingsark!K19>0.1,'Adm.ark satser'!$D$2,0)","v":0},null,null,null,{"$f":"'Honorarlønnet 12'!$B$5","v":0}]
[{"$f":"IF(LEN('Honorarlønnet 12'!$A$4)>0,\"Ja\",\"\")","v":""},{"$f":"IF('Honorarlønnet 12'!$E$7=\"Ja\",\"Sender faktura\",+'Honorarlønnet 12'!$B$7)","v":0},null,{"$f":"+'Delkursusleder 1'!$B$23","v":"00:00:00"},2510,{"$f":"+Samlingsark!L19","v":0},null,1,null,null,{"$f":"'Delkursusleder 1'!$B$8","v":"[vælg fra liste]"},null,null,1,{"$f":"+Samlingsark!$D$4","v":"Kursusnummer findes automatisk efter du har indtastet speciale/kursusnavn"},{"$f":"IF(Samlingsark!L19>0.1,'Adm.ark satser'!$D$3,0)","v":0},null,null,null,{"$f":"'Honorarlønnet 12'!$B$5","v":0}]
[{"$f":"IF(LEN('Honorarlønnet 12'!$A$4)>0,\"Ja\",\"\")","v":""},{"$f":"IF('Honorarlønnet 12'!$E$7=\"Ja\",\"Sender faktura\",+'Honorarlønnet 12'!$B$7)","v":0},null,{"$f":"+'Delkursusleder 1'!$B$23","v":"00:00:00"},2510,{"$f":"+Samlingsark!M19","v":0},null,1,null,null,{"$f":"'Delkursusleder 1'!$B$8","v":"[vælg fra liste]"},null,null,1,{"$f":"+Samlingsark!$D$4","v":"Kursusnummer findes automatisk efter du har indtastet speciale/kursusnavn"},{"$f":"IF(Samlingsark!M19>0.1,'Adm.ark satser'!$D$4,0)","v":0},null,null,null,{"$f":"'Honorarlønnet 12'!$B$5","v":0}]
[{"$f":"IF(LEN('Honorarlønnet 13'!$A$4)>0,\"Ja\",\"\")","v":""},{"$f":"IF('Honorarlønnet 13'!$E$7=\"Ja\",\"Sender faktura\",+'Honorarlønnet 13'!$B$7)","v":0},null,{"$f":"+'Delkursusleder 1'!$B$23","v":"00:00:00"},2510,{"$f":"+Samlingsark!K20","v":0},null,1,null,null,{"$f":"'Delkursusleder 1'!$B$8","v":"[vælg fra liste]"},null,null,1,{"$f":"+Samlingsark!$D$4","v":"Kursusnummer findes automatisk efter du har indtastet speciale/kursusnavn"},{"$f":"IF(Samlingsark!K20>0.1,'Adm.ark satser'!$D$2,0)","v":0},null,null,null,{"$f":"'Honorarlønnet 13'!$B$5","v":0}]
[{"$f":"IF(LEN('Honorarlønnet 13'!$A$4)>0,\"Ja\",\"\")","v":""},{"$f":"IF('Honorarlønnet 13'!$E$7=\"Ja\",\"Sender faktura\",+'Honorarlønnet 13'!$B$7)","v":0},null,{"$f":"+'Delkursusleder 1'!$B$23","v":"00:00:00"},2510,{"$f":"+Samlingsark!L20","v":0},null,1,null,null,{"$f":"'Delkursusleder 1'!$B$8","v":"[vælg fra liste]"},null,null,1,{"$f":"+Samlingsark!$D$4","v":"Kursusnummer findes automatisk efter du har indtastet speciale/kursusnavn"},{"$f":"IF(Samlingsark!L20>0.1,'Adm.ark satser'!$D$3,0)","v":0},null,null,null,{"$f":"'Honorarlønnet 13'!$B$5","v":0}]
[{"$f":"IF(LEN('Honorarlønnet 13'!$A$4)>0,\"Ja\",\"\")","v":""},{"$f":"IF('Honorarlønnet 13'!$E$7=\"Ja\",\"Sender faktura\",+'Honorarlønnet 13'!$B$7)","v":0},null,{"$f":"+'Delkursusleder 1'!$B$23","v":"00:00:00"},2510,{"$f":"+Samlingsark!M20","v":0},null,1,null,null,{"$f":"'Delkursusleder 1'!$B$8","v":"[vælg fra liste]"},null,null,1,{"$f":"+Samlingsark!$D$4","v":"Kursusnummer findes automatisk efter du har indtastet speciale/kursusnavn"},{"$f":"IF(Samlingsark!M20>0.1,'Adm.ark satser'!$D$4,0)","v":0},null,null,null,{"$f":"'Honorarlønnet 13'!$B$5","v":0}]
[{"$f":"IF(LEN('Honorarlønnet 14'!$A$4)>0,\"Ja\",\"\")","v":""},{"$f":"IF('Honorarlønnet 14'!$E$7=\"Ja\",\"Sender faktura\",+'Honorarlønnet 14'!$B$7)","v":0},null,{"$f":"+'Delkursusleder 1'!$B$23","v":"00:00:00"},2510,{"$f":"+Samlingsark!K21","v":0},null,1,null,null,{"$f":"'Delkursusleder 1'!$B$8","v":"[vælg fra liste]"},null,null,1,{"$f":"+Samlingsark!$D$4","v":"Kursusnummer findes automatisk efter du har indtastet speciale/kursusnavn"},{"$f":"IF(Samlingsark!K21>0.1,'Adm.ark satser'!$D$2,0)","v":0},null,null,null,{"$f":"'Honorarlønnet 14'!$B$5","v":0}]
[{"$f":"IF(LEN('Honorarlønnet 14'!$A$4)>0,\"Ja\",\"\")","v":""},{"$f":"IF('Honorarlønnet 14'!$E$7=\"Ja\",\"Sender faktura\",+'Honorarlønnet 14'!$B$7)","v":0},null,{"$f":"+'Delkursusleder 1'!$B$23","v":"00:00:00"},2510,{"$f":"+Samlingsark!L21","v":0},null,1,null,null,{"$f":"'Delkursusleder 1'!$B$8","v":"[vælg fra liste]"},null,null,1,{"$f":"+Samlingsark!$D$4","v":"Kursusnummer findes automatisk efter du har indtastet speciale/kursusnavn"},{"$f":"IF(Samlingsark!L21>0.1,'Adm.ark satser'!$D$3,0)","v":0},null,null,null,{"$f":"'Honorarlønnet 14'!$B$5","v":0}]
[{"$f":"IF(LEN('Honorarlønnet 14'!$A$4)>0,\"Ja\",\"\")","v":""},{"$f":"IF('Honorarlønnet 14'!$E$7=\"Ja\",\"Sender faktura\",+'Honorarlønnet 14'!$B$7)","v":0},null,{"$f":"+'Delkursusleder 1'!$B$23","v":"00:00:00"},2510,{"$f":"+Samlingsark!M21","v":0},null,1,null,null,{"$f":"'Delkursusleder 1'!$B$8","v":"[vælg fra liste]"},null,null,1,{"$f":"+Samlingsark!$D$4","v":"Kursusnummer findes automatisk efter du har indtastet speciale/kursusnavn"},{"$f":"IF(Samlingsark!M21>0.1,'Adm.ark satser'!$D$4,0)","v":0},null,null,null,{"$f":"'Honorarlønnet 14'!$B$5","v":0}]
[{"$f":"IF(LEN('Honorarlønnet 15'!$A$4)>0,\"Ja\",\"\")","v":""},{"$f":"IF('Honorarlønnet 15'!$E$7=\"Ja\",\"Sender faktura\",+'Honorarlønnet 15'!$B$7)","v":0},null,{"$f":"+'Delkursusleder 1'!$B$23","v":"00:00:00"},2510,{"$f":"+Samlingsark!K22","v":0},null,1,null,null,{"$f":"'Delkursusleder 1'!$B$8","v":"[vælg fra liste]"},null,null,1,{"$f":"+Samlingsark!$D$4","v":"Kursusnummer findes automatisk efter du har indtastet speciale/kursusnavn"},{"$f":"IF(Samlingsark!K22>0.1,'Adm.ark satser'!$D$2,0)","v":0},null,null,null,{"$f":"'Honorarlønnet 15'!$B$5","v":0}]
[{"$f":"IF(LEN('Honorarlønnet 15'!$A$4)>0,\"Ja\",\"\")","v":""},{"$f":"IF('Honorarlønnet 15'!$E$7=\"Ja\",\"Sender faktura\",+'Honorarlønnet 15'!$B$7)","v":0},null,{"$f":"+'Delkursusleder 1'!$B$23","v":"00:00:00"},2510,{"$f":"+Samlingsark!L22","v":0},null,1,null,null,{"$f":"'Delkursusleder 1'!$B$8","v":"[vælg fra liste]"},null,null,1,{"$f":"+Samlingsark!$D$4","v":"Kursusnummer findes automatisk efter du har indtastet speciale/kursusnavn"},{"$f":"IF(Samlingsark!L22>0.1,'Adm.ark satser'!$D$3,0)","v":0},null,null,null,{"$f":"'Honorarlønnet 15'!$B$5","v":0}]
[{"$f":"IF(LEN('Honorarlønnet 15'!$A$4)>0,\"Ja\",\"\")","v":""},{"$f":"IF('Honorarlønnet 15'!$E$7=\"Ja\",\"Sender faktura\",+'Honorarlønnet 15'!$B$7)","v":0},null,{"$f":"+'Delkursusleder 1'!$B$23","v":"00:00:00"},2510,{"$f":"+Samlingsark!M22","v":0},null,1,null,null,{"$f":"'Delkursusleder 1'!$B$8","v":"[vælg fra liste]"},null,null,1,{"$f":"+Samlingsark!$D$4","v":"Kursusnummer findes automatisk efter du har indtastet speciale/kursusnavn"},{"$f":"IF(Samlingsark!M22>0.1,'Adm.ark satser'!$D$4,0)","v":0},null,null,null,{"$f":"'Honorarlønnet 15'!$B$5","v":0}]

{"sheet":"Adm.ark satser","index":26,"n_rows":8,"n_cols":13,"rows_kept":8,"cut":false,"hidden":false,"merged":[[0,0,0,1]]}
["Satser (marts 12-niv.)",null,"Satser (aktuelt niv.) ","Udgiftstype",null,"Regulerings-procent","2026-04-01",null,"Satser okt. '97 niv.",null,"Max beløb til deling sekretær og hovedkursusleder",null,"Sender faktura"]
["Forelæsningstimer",1570.98,{"$f":"+B2*$G$2","v":1987.4232333},1,null,null,1.265085,null,1198.6199999999999,null,{"$f":"+C6","v":9000},null,"Ja"]
["Diskussionstimer",392.74,{"$f":"+B3*$G$2","v":496.8494829},2,null,null,null,null,299.64999999999998,null,null,null,"Nej"]
["Medhjælpertimer",259.89999999999998,328.7955915,3,null,null,null,null,197.78]
["Delkursuslederhonorar",8000,{"$f":"+B5","v":8000},4,null,null,null,null,8000,"*Bemærk fast beløb, reguleres ikke"]
["Administrationshonorar",9000,{"$f":"+B6","v":9000},5,null,null,null,null,9000,"*Bemærk fast beløb, reguleres ikke"]
["Hovedkursusledertime",275.92,{"$f":"+B7*$G$2","v":349.06225320000004},5,null,null,null,null,"Ukendt"]
["Sekretærtimer",160.80000000000001,{"$f":"+B8*$G$2","v":203.42566800000003},5,null,null,null,null,"Ukendt"]